Workbook

Sheet INTRO
B2: Formulaire de demande commune de médicaments pour CP v.3.1
B4: Dans le cadre des efforts mondiaux entrepris pour accélérer l'expansion de la chimioprévention (CP) pour l'élimination de la filariose lymphatique et la lutte contre la schistosomiase et les géohelminthiases, l'Organisation mondiale de la Santé (OMS) facilite l'approvisionnement en albendazole, comprimés de 400 mg (GSK), pour les programmes nationaux d'élimination de la filariose lymphatique et programmes nationaux de lutte contre les géohelminthiases; en diethylcarbamazine, comprimés de 100 mg (Eisai), pour les programmes nationaux d'élimination de la filariose lymphatique; en mebendazole, comprimés de 500 mg (J&J) pour les programmes nationaux de lutte contre les géohelminthiases et en praziquantel, comprimés de 600 mg (Merck KGaA), destinés aux enfants d'âge scolaire, pour les programmes nationaux de lutte contre la schistosomiase. L'OMS contribue également à l'approvisionnement en ivermectine, comprimés de 3 mg (Merck), pour les programmes de donation pour l'onchocercose et la filariose lymphatique. Cet outil Excel est concu pour aider les pays à quantifier le nombre de comprimés nécessaires, selon le traitement de chimioprévention requis, pour atteindre les objectifs de couverture de traitement de populations et districts pour l'année de la demande de médicaments. Le résultat de cet outil est une demande commune de médicaments pour la chimioprévention des maladies tropicales négligées, qui peut être imprimée, signée et soumise à l'OMS pour la demande de ces médicaments.
B6: Structure de l'application (feuilles de travail) :
B8: INTRO | C8: Cette feuille contient des instructions pour compléter le formulaire de demande de médicaments pour la chimioprévention et des informations sur le statut de la chimioprévention pour les maladies d'endémie du pays.
B9: COUNTRY_INFO | C9: Cette feuille contient des informations sur la structure administrative du pays, la population par groupe d'âge, le statut d'endémicité pour chaque maladie, la population devant être traitée par chimioprévention et les interventions prévues.
B10: DEC, ALB_MBD, PZQ et IVM | C10: Ces feuilles contiennent des informations sur l'endémicité des districts ciblés pour le traitement aux médicaments spécifiques à la chimioprévention, les plans de traitement, et le nombre de comprimés requis et demandés.
B11: SUMMARY | C11: Cette feuille inclut un résumé du nombre de comprimés demandés, des informations concernant le stock et les dates de soumission de la demande de médicaments. Avant de générer le rapport (run macros), veuillez sélectionner le médicament pour lequel le rapport est nécessaire. Veuillez suivre la même règle pour voir le nombre de personnes à traiter pour les maladies spécifiques. Cette feuille doit être imprimée et soumise en tant que "Formulaire de demande commune de médicaments pour chimioprévention" (voir les instructions pour la soumission du formulaire sous la feuille SUMMARY).
B13: Instructions pour la saisie des données
B15: La plupart des cellules des feuilles de travail mentionnées ci-dessus contiennent des formules calculées automatiquement en fonction du protocole de traitement recommandé par l'OMS pour chaque maladie. Voir : http://www.who.int/neglected_diseases/preventive_chemotherapy/pct_manual/en/index.html
B17: Veuillez entrer vos données dans les cellules en fonction de leur code de couleur :
C19: Blanc - la cellule n'est pas protégée. Veuillez entrer la valeur de l'indicateur demandé.
C21: Jaune - la cellule est protégée et inclut le nom de l'indicateur. Aucune entrée de données requise.
C23: Orange - la cellule n'est pas protégée et contient un menu déroulant. Veuillez sélectionner la valeur dans le menu déroulant.
C26: Vert - la cellule n'est pas protégée et contient des formules. Veuillez changer la valeur indiquée uniquement si vos données sont différentes de celles calculées automatiquement.
C29: Bleu - la cellule est protégée et contient des formules. Aucune entrée de données requise.
B31: Données pays
B33: PAYS | E33: Niger
B35: Année de la demande de médicaments | E35: 2022
B37: Le pays est-il endémique à la filariose lymphatique (FL) ? | E37: Endémique
B39: Le pays est-il endémique à l'onchocercose (ONCHO) ? | E39: Endémique mais pas de CP
B41: Le pays est-il endémique aux géohelminthiases (STH) ? | E41: Endémique
B43: Le pays est-il endémique à la schistosomiase (SCH) ? | E43: Endémique
B45: Combien d'unités administratives compte le pays ? | E45: 72
B47: Si les données démographiques par groupe d'âge ne sont pas disponibles au second niveau administratif, veuillez entrer la proportion (%) de population, par groupe d'âge, du pays. Si les données sont disponibles, veuillez laisser les cellules vierges.
B48: 1-4 ans | C48: Enfants d'âge pré-scolaire (EAPréS) | E48: 0.18
B49: 5-14 ans | C49: Enfants d'âge scolaire (EAS) | E49: 0.3
B50: 15 ans et plus | C50: Adultes | E50: 0.5

Sheet COUNTRY_INFO
A1: INFORMATIONS PAYS | O1: 7073767
A2: Struture administrative, population par groupe d'âge, statut d'endémicité et interventions planifiées
A4: TOTAL | D4: =SUM(D$9:D$1000) -> 25764829 | E4: =SUM(E$9:E$1000) -> 4512071 | F4: =SUM(F$9:F$1000) -> 7520126 | G4: =SUM(G$9:G$1000) -> 12533552 | L4: =SUM(L$9:L$1000) -> 4485607 | M4: =SUM(M$9:M$1000) -> 0 | N4: =SUM(N$9:N$1000) -> 0 | O4: =SUM(O$9:O$1000) -> 11568372.2
A6: Structure administrative du pays | D6: Population | H6: Endémicité | L6: Population nécessitant la CP | P6: Nombre de tournées de traitement prévues pour l'année | T6: Enquêtes épidémiologiques planifiées pour l’année | AF6: jrf2020 | AP6: jrsm2021 | AV6: 2020 | AW6: 2021
A7: Pays | B7: Régions | C7: Districts | D7: Total | E7: EAPréS | F7: EAS | G7: Adultes | H7: FL | I7: Oncho | J7: STH | K7: SCH | L7: FL | M7: Oncho | N7: STH | O7: SCH | P7: FL | Q7: Oncho | R7: STH | S7: SCH | T7: FL | U7: Oncho | V7: STH | W7: SCH | X7: IU_ID | Y7: IU_Name
A9: =IF(INTRO!$E$33<>0,INTRO!$E$33, " ") -> Niger | B9: Agadez | C9: Agadez commune | D9: 162223 | E9: =IF(INTRO!$E$48="","",ROUND($D9*INTRO!$E$48,0)) -> 29200 | F9: =IF(INTRO!$E$49="","",ROUND($D9*INTRO!$E$49,0)) -> 48667 | G9: =IF(INTRO!$E$50="","",ROUND($D9*INTRO!$E$50,0)) -> 81112 | H9: 0 | I9: 0 | J9: 0 | K9: 2 | L9: =IF(INTRO!$E$37="Endémique",IF($H9>0,IF($H9=4,"Inconnu",IF($H9=99,"Interrompu",$D9)),0),"Non requis") -> 0 | M9: =IF(INTRO!$E$39="Endémique", IF($I9>0, IF($I9=4,"Inconnu",IF($I9=99,"Interrompu",$D9)), 0),"Non requis") -> Non requis | N9: =IF(INTRO!$E$41="Endémique", IF(AND($J9>1,$J9<5), IF($J9=4, "Inconnu", E9+F9), 0),"Non requis") -> 0 | O9: =IF(INTRO!$E$43="Endémique", IF(AND($K9>0,$K9<5), IF($K9=4,"Inconnu", IF($K9=1, $F9*0.33, IF($K9=2, $F9*0.5+$G9*0.2, SUM(F9:G9)))), 0),"Non requis") -> 40555.9 | P9: 0 | Q9: 0 | R9: 0 | S9: 0 | X9: 35294 | Y9: Agadez | AB9: =_xlfn.XLOOKUP($X9,[1]COUNTRY_INFO!$X$9:$X$80,[1]COUNTRY_INFO!D$9:D$80) ->  | AC9: =(D9-AB9)/AB9*100 ->  | AF9: =_xlfn.XLOOKUP($X9,[1]COUNTRY_INFO!$X$9:$X$80,[1]COUNTRY_INFO!H$9:H$80) ->  | AG9: =_xlfn.XLOOKUP($X9,[1]COUNTRY_INFO!$X$9:$X$80,[1]COUNTRY_INFO!I$9:I$80) ->  | AH9: =_xlfn.XLOOKUP($X9,[1]COUNTRY_INFO!$X$9:$X$80,[1]COUNTRY_INFO!J$9:J$80) ->  | AI9: =_xlfn.XLOOKUP($X9,[1]COUNTRY_INFO!$X$9:$X$80,[1]COUNTRY_INFO!K$9:K$80) ->  | AJ9: =AF9=H9 ->  | AK9: =AG9=I9 ->  | AP9: =_xlfn.XLOOKUP($X9,[2]COUNTRY_INFO!$Y$9:$Y$80,[2]COUNTRY_INFO!H$9:H$80) ->  | AQ9: =_xlfn.XLOOKUP($X9,[2]COUNTRY_INFO!$Y$9:$Y$80,[2]COUNTRY_INFO!I$9:I$80) ->  | AR9: =_xlfn.XLOOKUP($X9,[2]COUNTRY_INFO!$Y$9:$Y$80,[2]COUNTRY_INFO!J$9:J$80) ->  | AS9: =_xlfn.XLOOKUP($X9,[2]COUNTRY_INFO!$Y$9:$Y$80,[2]COUNTRY_INFO!K$9:K$80) ->  | AV9: =_xlfn.XLOOKUP(X9,[1]COUNTRY_INFO!$X$9:$X$80,[1]COUNTRY_INFO!$S$9:$S$80) ->  | AW9: =_xlfn.XLOOKUP(X9,[2]COUNTRY_INFO!$Y$9:$Y$80,[2]COUNTRY_INFO!$S$9:$S$80) -> 
A10: =IF(INTRO!$E$33<>0,INTRO!$E$33, " ") -> Niger | B10: Agadez | C10: Aderbissanat | D10: 48458 | E10: =IF(INTRO!$E$48="","",ROUND($D10*INTRO!$E$48,0)) -> 8722 | F10: =IF(INTRO!$E$49="","",ROUND($D10*INTRO!$E$49,0)) -> 14537 | G10: =IF(INTRO!$E$50="","",ROUND($D10*INTRO!$E$50,0)) -> 24229 | H10: 0 | I10: 0 | J10: 0 | K10: 2 | L10: =IF(INTRO!$E$37="Endémique",IF($H10>0,IF($H10=4,"Inconnu",IF($H10=99,"Interrompu",$D10)),0),"Non requis") -> 0 | M10: =IF(INTRO!$E$39="Endémique", IF($I10>0, IF($I10=4,"Inconnu",IF($I10=99,"Interrompu",$D10)), 0),"Non requis") -> Non requis | N10: =IF(INTRO!$E$41="Endémique", IF(AND($J10>1,$J10<5), IF($J10=4, "Inconnu", E10+F10), 0),"Non requis") -> 0 | O10: =IF(INTRO!$E$43="Endémique", IF(AND($K10>0,$K10<5), IF($K10=4,"Inconnu", IF($K10=1, $F10*0.33, IF($K10=2, $F10*0.5+$G10*0.2, SUM(F10:G10)))), 0),"Non requis") -> 12114.3 | P10: 0 | Q10: 0 | R10: 0 | S10: 0 | X10: 35341 | Y10: Aderbissinat | AB10: =_xlfn.XLOOKUP($X10,[1]COUNTRY_INFO!$X$9:$X$80,[1]COUNTRY_INFO!D$9:D$80) ->  | AC10: =(D10-AB10)/AB10*100 ->  | AF10: =_xlfn.XLOOKUP($X10,[1]COUNTRY_INFO!$X$9:$X$80,[1]COUNTRY_INFO!H$9:H$80) ->  | AG10: =_xlfn.XLOOKUP($X10,[1]COUNTRY_INFO!$X$9:$X$80,[1]COUNTRY_INFO!I$9:I$80) ->  | AH10: =_xlfn.XLOOKUP($X10,[1]COUNTRY_INFO!$X$9:$X$80,[1]COUNTRY_INFO!J$9:J$80) ->  | AI10: =_xlfn.XLOOKUP($X10,[1]COUNTRY_INFO!$X$9:$X$80,[1]COUNTRY_INFO!K$9:K$80) ->  | AJ10: =AF10=H10 ->  | AK10: =AG10=I10 ->  | AL10: =AH10=J10 ->  | AM10: =AI10=K10 ->  | AP10: =_xlfn.XLOOKUP($X10,[2]COUNTRY_INFO!$Y$9:$Y$80,[2]COUNTRY_INFO!H$9:H$80) ->  | AQ10: =_xlfn.XLOOKUP($X10,[2]COUNTRY_INFO!$Y$9:$Y$80,[2]COUNTRY_INFO!I$9:I$80) ->  | AR10: =_xlfn.XLOOKUP($X10,[2]COUNTRY_INFO!$Y$9:$Y$80,[2]COUNTRY_INFO!J$9:J$80) ->  | AS10: =_xlfn.XLOOKUP($X10,[2]COUNTRY_INFO!$Y$9:$Y$80,[2]COUNTRY_INFO!K$9:K$80) ->  | AV10: =_xlfn.XLOOKUP(X10,[1]COUNTRY_INFO!$X$9:$X$80,[1]COUNTRY_INFO!$S$9:$S$80) ->  | AW10: =_xlfn.XLOOKUP(X10,[2]COUNTRY_INFO!$Y$9:$Y$80,[2]COUNTRY_INFO!$S$9:$S$80) -> 
A11: =IF(INTRO!$E$33<>0,INTRO!$E$33, " ") -> Niger | B11: Agadez | C11: Arlit | D11: 144092 | E11: =IF(INTRO!$E$48="","",ROUND($D11*INTRO!$E$48,0)) -> 25937 | F11: =IF(INTRO!$E$49="","",ROUND($D11*INTRO!$E$49,0)) -> 43228 | G11: =IF(INTRO!$E$50="","",ROUND($D11*INTRO!$E$50,0)) -> 72046 | H11: 1 | I11: 0 | J11: 0 | K11: 2 | L11: =IF(INTRO!$E$37="Endémique",IF($H11>0,IF($H11=4,"Inconnu",IF($H11=99,"Interrompu",$D11)),0),"Non requis") -> 144092 | M11: =IF(INTRO!$E$39="Endémique", IF($I11>0, IF($I11=4,"Inconnu",IF($I11=99,"Interrompu",$D11)), 0),"Non requis") -> Non requis | N11: =IF(INTRO!$E$41="Endémique", IF(AND($J11>1,$J11<5), IF($J11=4, "Inconnu", E11+F11), 0),"Non requis") -> 0 | O11: =IF(INTRO!$E$43="Endémique", IF(AND($K11>0,$K11<5), IF($K11=4,"Inconnu", IF($K11=1, $F11*0.33, IF($K11=2, $F11*0.5+$G11*0.2, SUM(F11:G11)))), 0),"Non requis") -> 36023.2 | P11: 1 | Q11: 0 | R11: 0 | S11: 0 | X11: 35337 | Y11: Arlit | AB11: =_xlfn.XLOOKUP($X11,[1]COUNTRY_INFO!$X$9:$X$80,[1]COUNTRY_INFO!D$9:D$80) ->  | AF11: =_xlfn.XLOOKUP($X11,[1]COUNTRY_INFO!$X$9:$X$80,[1]COUNTRY_INFO!H$9:H$80) ->  | AG11: =_xlfn.XLOOKUP($X11,[1]COUNTRY_INFO!$X$9:$X$80,[1]COUNTRY_INFO!I$9:I$80) ->  | AH11: =_xlfn.XLOOKUP($X11,[1]COUNTRY_INFO!$X$9:$X$80,[1]COUNTRY_INFO!J$9:J$80) ->  | AI11: =_xlfn.XLOOKUP($X11,[1]COUNTRY_INFO!$X$9:$X$80,[1]COUNTRY_INFO!K$9:K$80) ->  | AP11: =_xlfn.XLOOKUP($X11,[2]COUNTRY_INFO!$Y$9:$Y$80,[2]COUNTRY_INFO!H$9:H$80) ->  | AQ11: =_xlfn.XLOOKUP($X11,[2]COUNTRY_INFO!$Y$9:$Y$80,[2]COUNTRY_INFO!I$9:I$80) ->  | AR11: =_xlfn.XLOOKUP($X11,[2]COUNTRY_INFO!$Y$9:$Y$80,[2]COUNTRY_INFO!J$9:J$80) ->  | AS11: =_xlfn.XLOOKUP($X11,[2]COUNTRY_INFO!$Y$9:$Y$80,[2]COUNTRY_INFO!K$9:K$80) ->  | AV11: =_xlfn.XLOOKUP(X11,[1]COUNTRY_INFO!$X$9:$X$80,[1]COUNTRY_INFO!$S$9:$S$80) ->  | AW11: =_xlfn.XLOOKUP(X11,[2]COUNTRY_INFO!$Y$9:$Y$80,[2]COUNTRY_INFO!$S$9:$S$80) -> 
A12: =IF(INTRO!$E$33<>0,INTRO!$E$33, " ") -> Niger | B12: Agadez | C12: Bilma | D12: 24606 | E12: =IF(INTRO!$E$48="","",ROUND($D12*INTRO!$E$48,0)) -> 4429 | F12: =IF(INTRO!$E$49="","",ROUND($D12*INTRO!$E$49,0)) -> 7382 | G12: =IF(INTRO!$E$50="","",ROUND($D12*INTRO!$E$50,0)) -> 12303 | H12: 0 | I12: 0 | J12: 1 | K12: 0 | L12: =IF(INTRO!$E$37="Endémique",IF($H12>0,IF($H12=4,"Inconnu",IF($H12=99,"Interrompu",$D12)),0),"Non requis") -> 0 | M12: =IF(INTRO!$E$39="Endémique", IF($I12>0, IF($I12=4,"Inconnu",IF($I12=99,"Interrompu",$D12)), 0),"Non requis") -> Non requis | N12: =IF(INTRO!$E$41="Endémique", IF(AND($J12>1,$J12<5), IF($J12=4, "Inconnu", E12+F12), 0),"Non requis") -> 0 | O12: =IF(INTRO!$E$43="Endémique", IF(AND($K12>0,$K12<5), IF($K12=4,"Inconnu", IF($K12=1, $F12*0.33, IF($K12=2, $F12*0.5+$G12*0.2, SUM(F12:G12)))), 0),"Non requis") -> 0 | P12: 0 | Q12: 0 | R12: 0 | S12: 0 | X12: 35296 | Y12: Bilma | AB12: =_xlfn.XLOOKUP($X12,[1]COUNTRY_INFO!$X$9:$X$80,[1]COUNTRY_INFO!D$9:D$80) ->  | AF12: =_xlfn.XLOOKUP($X12,[1]COUNTRY_INFO!$X$9:$X$80,[1]COUNTRY_INFO!H$9:H$80) ->  | AG12: =_xlfn.XLOOKUP($X12,[1]COUNTRY_INFO!$X$9:$X$80,[1]COUNTRY_INFO!I$9:I$80) ->  | AH12: =_xlfn.XLOOKUP($X12,[1]COUNTRY_INFO!$X$9:$X$80,[1]COUNTRY_INFO!J$9:J$80) ->  | AI12: =_xlfn.XLOOKUP($X12,[1]COUNTRY_INFO!$X$9:$X$80,[1]COUNTRY_INFO!K$9:K$80) ->  | AP12: =_xlfn.XLOOKUP($X12,[2]COUNTRY_INFO!$Y$9:$Y$80,[2]COUNTRY_INFO!H$9:H$80) ->  | AQ12: =_xlfn.XLOOKUP($X12,[2]COUNTRY_INFO!$Y$9:$Y$80,[2]COUNTRY_INFO!I$9:I$80) ->  | AR12: =_xlfn.XLOOKUP($X12,[2]COUNTRY_INFO!$Y$9:$Y$80,[2]COUNTRY_INFO!J$9:J$80) ->  | AS12: =_xlfn.XLOOKUP($X12,[2]COUNTRY_INFO!$Y$9:$Y$80,[2]COUNTRY_INFO!K$9:K$80) ->  | AV12: =_xlfn.XLOOKUP(X12,[1]COUNTRY_INFO!$X$9:$X$80,[1]COUNTRY_INFO!$S$9:$S$80) ->  | AW12: =_xlfn.XLOOKUP(X12,[2]COUNTRY_INFO!$Y$9:$Y$80,[2]COUNTRY_INFO!$S$9:$S$80) -> 
A13: =IF(INTRO!$E$33<>0,INTRO!$E$33, " ") -> Niger | B13: Agadez | C13: Iférouane | D13: 44906 | E13: =IF(INTRO!$E$48="","",ROUND($D13*INTRO!$E$48,0)) -> 8083 | F13: =IF(INTRO!$E$49="","",ROUND($D13*INTRO!$E$49,0)) -> 13472 | G13: =IF(INTRO!$E$50="","",ROUND($D13*INTRO!$E$50,0)) -> 22453 | H13: 1 | I13: 0 | J13: 1 | K13: 2 | L13: =IF(INTRO!$E$37="Endémique",IF($H13>0,IF($H13=4,"Inconnu",IF($H13=99,"Interrompu",$D13)),0),"Non requis") -> 44906 | M13: =IF(INTRO!$E$39="Endémique", IF($I13>0, IF($I13=4,"Inconnu",IF($I13=99,"Interrompu",$D13)), 0),"Non requis") -> Non requis | N13: =IF(INTRO!$E$41="Endémique", IF(AND($J13>1,$J13<5), IF($J13=4, "Inconnu", E13+F13), 0),"Non requis") -> 0 | O13: =IF(INTRO!$E$43="Endémique", IF(AND($K13>0,$K13<5), IF($K13=4,"Inconnu", IF($K13=1, $F13*0.33, IF($K13=2, $F13*0.5+$G13*0.2, SUM(F13:G13)))), 0),"Non requis") -> 11226.6 | P13: 1 | Q13: 0 | R13: 0 | S13: 0 | X13: 35338 | Y13: Iférouane | AB13: =_xlfn.XLOOKUP($X13,[1]COUNTRY_INFO!$X$9:$X$80,[1]COUNTRY_INFO!D$9:D$80) ->  | AF13: =_xlfn.XLOOKUP($X13,[1]COUNTRY_INFO!$X$9:$X$80,[1]COUNTRY_INFO!H$9:H$80) ->  | AG13: =_xlfn.XLOOKUP($X13,[1]COUNTRY_INFO!$X$9:$X$80,[1]COUNTRY_INFO!I$9:I$80) ->  | AH13: =_xlfn.XLOOKUP($X13,[1]COUNTRY_INFO!$X$9:$X$80,[1]COUNTRY_INFO!J$9:J$80) ->  | AI13: =_xlfn.XLOOKUP($X13,[1]COUNTRY_INFO!$X$9:$X$80,[1]COUNTRY_INFO!K$9:K$80) ->  | AP13: =_xlfn.XLOOKUP($X13,[2]COUNTRY_INFO!$Y$9:$Y$80,[2]COUNTRY_INFO!H$9:H$80) ->  | AQ13: =_xlfn.XLOOKUP($X13,[2]COUNTRY_INFO!$Y$9:$Y$80,[2]COUNTRY_INFO!I$9:I$80) ->  | AR13: =_xlfn.XLOOKUP($X13,[2]COUNTRY_INFO!$Y$9:$Y$80,[2]COUNTRY_INFO!J$9:J$80) ->  | AS13: =_xlfn.XLOOKUP($X13,[2]COUNTRY_INFO!$Y$9:$Y$80,[2]COUNTRY_INFO!K$9:K$80) ->  | AV13: =_xlfn.XLOOKUP(X13,[1]COUNTRY_INFO!$X$9:$X$80,[1]COUNTRY_INFO!$S$9:$S$80) ->  | AW13: =_xlfn.XLOOKUP(X13,[2]COUNTRY_INFO!$Y$9:$Y$80,[2]COUNTRY_INFO!$S$9:$S$80) -> 
A14: =IF(INTRO!$E$33<>0,INTRO!$E$33, " ") -> Niger | B14: Agadez | C14: Ingall | D14: 71210 | E14: =IF(INTRO!$E$48="","",ROUND($D14*INTRO!$E$48,0)) -> 12818 | F14: =IF(INTRO!$E$49="","",ROUND($D14*INTRO!$E$49,0)) -> 21363 | G14: =IF(INTRO!$E$50="","",ROUND($D14*INTRO!$E$50,0)) -> 35605 | H14: 0 | I14: 0 | J14: 0 | K14: 2 | L14: =IF(INTRO!$E$37="Endémique",IF($H14>0,IF($H14=4,"Inconnu",IF($H14=99,"Interrompu",$D14)),0),"Non requis") -> 0 | M14: =IF(INTRO!$E$39="Endémique", IF($I14>0, IF($I14=4,"Inconnu",IF($I14=99,"Interrompu",$D14)), 0),"Non requis") -> Non requis | N14: =IF(INTRO!$E$41="Endémique", IF(AND($J14>1,$J14<5), IF($J14=4, "Inconnu", E14+F14), 0),"Non requis") -> 0 | O14: =IF(INTRO!$E$43="Endémique", IF(AND($K14>0,$K14<5), IF($K14=4,"Inconnu", IF($K14=1, $F14*0.33, IF($K14=2, $F14*0.5+$G14*0.2, SUM(F14:G14)))), 0),"Non requis") -> 17802.5 | P14: 0 | Q14: 0 | R14: 0 | S14: 0 | X14: 35340 | Y14: Ingall | AB14: =_xlfn.XLOOKUP($X14,[1]COUNTRY_INFO!$X$9:$X$80,[1]COUNTRY_INFO!D$9:D$80) ->  | AF14: =_xlfn.XLOOKUP($X14,[1]COUNTRY_INFO!$X$9:$X$80,[1]COUNTRY_INFO!H$9:H$80) ->  | AG14: =_xlfn.XLOOKUP($X14,[1]COUNTRY_INFO!$X$9:$X$80,[1]COUNTRY_INFO!I$9:I$80) ->  | AH14: =_xlfn.XLOOKUP($X14,[1]COUNTRY_INFO!$X$9:$X$80,[1]COUNTRY_INFO!J$9:J$80) ->  | AI14: =_xlfn.XLOOKUP($X14,[1]COUNTRY_INFO!$X$9:$X$80,[1]COUNTRY_INFO!K$9:K$80) ->  | AP14: =_xlfn.XLOOKUP($X14,[2]COUNTRY_INFO!$Y$9:$Y$80,[2]COUNTRY_INFO!H$9:H$80) ->  | AQ14: =_xlfn.XLOOKUP($X14,[2]COUNTRY_INFO!$Y$9:$Y$80,[2]COUNTRY_INFO!I$9:I$80) ->  | AR14: =_xlfn.XLOOKUP($X14,[2]COUNTRY_INFO!$Y$9:$Y$80,[2]COUNTRY_INFO!J$9:J$80) ->  | AS14: =_xlfn.XLOOKUP($X14,[2]COUNTRY_INFO!$Y$9:$Y$80,[2]COUNTRY_INFO!K$9:K$80) ->  | AV14: =_xlfn.XLOOKUP(X14,[1]COUNTRY_INFO!$X$9:$X$80,[1]COUNTRY_INFO!$S$9:$S$80) ->  | AW14: =_xlfn.XLOOKUP(X14,[2]COUNTRY_INFO!$Y$9:$Y$80,[2]COUNTRY_INFO!$S$9:$S$80) -> 
A15: =IF(INTRO!$E$33<>0,INTRO!$E$33, " ") -> Niger | B15: Agadez | C15: Tchirozérine | D15: 173508 | E15: =IF(INTRO!$E$48="","",ROUND($D15*INTRO!$E$48,0)) -> 31231 | F15: =IF(INTRO!$E$49="","",ROUND($D15*INTRO!$E$49,0)) -> 52052 | G15: =IF(INTRO!$E$50="","",ROUND($D15*INTRO!$E$50,0)) -> 86754 | H15: 0 | I15: 0 | J15: 1 | K15: 2 | L15: =IF(INTRO!$E$37="Endémique",IF($H15>0,IF($H15=4,"Inconnu",IF($H15=99,"Interrompu",$D15)),0),"Non requis") -> 0 | M15: =IF(INTRO!$E$39="Endémique", IF($I15>0, IF($I15=4,"Inconnu",IF($I15=99,"Interrompu",$D15)), 0),"Non requis") -> Non requis | N15: =IF(INTRO!$E$41="Endémique", IF(AND($J15>1,$J15<5), IF($J15=4, "Inconnu", E15+F15), 0),"Non requis") -> 0 | O15: =IF(INTRO!$E$43="Endémique", IF(AND($K15>0,$K15<5), IF($K15=4,"Inconnu", IF($K15=1, $F15*0.33, IF($K15=2, $F15*0.5+$G15*0.2, SUM(F15:G15)))), 0),"Non requis") -> 43376.8 | P15: 0 | Q15: 0 | R15: 0 | S15: 0 | X15: 35339 | Y15: Tchirozérine | AB15: =_xlfn.XLOOKUP($X15,[1]COUNTRY_INFO!$X$9:$X$80,[1]COUNTRY_INFO!D$9:D$80) ->  | AF15: =_xlfn.XLOOKUP($X15,[1]COUNTRY_INFO!$X$9:$X$80,[1]COUNTRY_INFO!H$9:H$80) ->  | AG15: =_xlfn.XLOOKUP($X15,[1]COUNTRY_INFO!$X$9:$X$80,[1]COUNTRY_INFO!I$9:I$80) ->  | AH15: =_xlfn.XLOOKUP($X15,[1]COUNTRY_INFO!$X$9:$X$80,[1]COUNTRY_INFO!J$9:J$80) ->  | AI15: =_xlfn.XLOOKUP($X15,[1]COUNTRY_INFO!$X$9:$X$80,[1]COUNTRY_INFO!K$9:K$80) ->  | AP15: =_xlfn.XLOOKUP($X15,[2]COUNTRY_INFO!$Y$9:$Y$80,[2]COUNTRY_INFO!H$9:H$80) ->  | AQ15: =_xlfn.XLOOKUP($X15,[2]COUNTRY_INFO!$Y$9:$Y$80,[2]COUNTRY_INFO!I$9:I$80) ->  | AR15: =_xlfn.XLOOKUP($X15,[2]COUNTRY_INFO!$Y$9:$Y$80,[2]COUNTRY_INFO!J$9:J$80) ->  | AS15: =_xlfn.XLOOKUP($X15,[2]COUNTRY_INFO!$Y$9:$Y$80,[2]COUNTRY_INFO!K$9:K$80) ->  | AV15: =_xlfn.XLOOKUP(X15,[1]COUNTRY_INFO!$X$9:$X$80,[1]COUNTRY_INFO!$S$9:$S$80) ->  | AW15: =_xlfn.XLOOKUP(X15,[2]COUNTRY_INFO!$Y$9:$Y$80,[2]COUNTRY_INFO!$S$9:$S$80) -> 
A16: =IF(INTRO!$E$33<>0,INTRO!$E$33, " ") -> Niger | B16: Diffa | C16: Bosso | D16: 105358 | E16: =IF(INTRO!$E$48="","",ROUND($D16*INTRO!$E$48,0)) -> 18964 | F16: =IF(INTRO!$E$49="","",ROUND($D16*INTRO!$E$49,0)) -> 31607 | G16: =IF(INTRO!$E$50="","",ROUND($D16*INTRO!$E$50,0)) -> 52679 | H16: 99 | I16: 0 | J16: 0 | K16: 3 | L16: =IF(INTRO!$E$37="Endémique",IF($H16>0,IF($H16=4,"Inconnu",IF($H16=99,"Interrompu",$D16)),0),"Non requis") -> Interrompu | M16: =IF(INTRO!$E$39="Endémique", IF($I16>0, IF($I16=4,"Inconnu",IF($I16=99,"Interrompu",$D16)), 0),"Non requis") -> Non requis | N16: =IF(INTRO!$E$41="Endémique", IF(AND($J16>1,$J16<5), IF($J16=4, "Inconnu", E16+F16), 0),"Non requis") -> 0 | O16: =IF(INTRO!$E$43="Endémique", IF(AND($K16>0,$K16<5), IF($K16=4,"Inconnu", IF($K16=1, $F16*0.33, IF($K16=2, $F16*0.5+$G16*0.2, SUM(F16:G16)))), 0),"Non requis") -> 84286 | P16: 0 | Q16: 0 | R16: 0 | S16: 1 | X16: 35343 | Y16: Bosso | AB16: =_xlfn.XLOOKUP($X16,[1]COUNTRY_INFO!$X$9:$X$80,[1]COUNTRY_INFO!D$9:D$80) ->  | AF16: =_xlfn.XLOOKUP($X16,[1]COUNTRY_INFO!$X$9:$X$80,[1]COUNTRY_INFO!H$9:H$80) ->  | AG16: =_xlfn.XLOOKUP($X16,[1]COUNTRY_INFO!$X$9:$X$80,[1]COUNTRY_INFO!I$9:I$80) ->  | AH16: =_xlfn.XLOOKUP($X16,[1]COUNTRY_INFO!$X$9:$X$80,[1]COUNTRY_INFO!J$9:J$80) ->  | AI16: =_xlfn.XLOOKUP($X16,[1]COUNTRY_INFO!$X$9:$X$80,[1]COUNTRY_INFO!K$9:K$80) ->  | AP16: =_xlfn.XLOOKUP($X16,[2]COUNTRY_INFO!$Y$9:$Y$80,[2]COUNTRY_INFO!H$9:H$80) ->  | AQ16: =_xlfn.XLOOKUP($X16,[2]COUNTRY_INFO!$Y$9:$Y$80,[2]COUNTRY_INFO!I$9:I$80) ->  | AR16: =_xlfn.XLOOKUP($X16,[2]COUNTRY_INFO!$Y$9:$Y$80,[2]COUNTRY_INFO!J$9:J$80) ->  | AS16: =_xlfn.XLOOKUP($X16,[2]COUNTRY_INFO!$Y$9:$Y$80,[2]COUNTRY_INFO!K$9:K$80) ->  | AV16: =_xlfn.XLOOKUP(X16,[1]COUNTRY_INFO!$X$9:$X$80,[1]COUNTRY_INFO!$S$9:$S$80) ->  | AW16: =_xlfn.XLOOKUP(X16,[2]COUNTRY_INFO!$Y$9:$Y$80,[2]COUNTRY_INFO!$S$9:$S$80) -> 
A17: =IF(INTRO!$E$33<>0,INTRO!$E$33, " ") -> Niger | B17: Diffa | C17: DS Diffa | D17: 219300 | E17: =IF(INTRO!$E$48="","",ROUND($D17*INTRO!$E$48,0)) -> 39474 | F17: =IF(INTRO!$E$49="","",ROUND($D17*INTRO!$E$49,0)) -> 65790 | G17: =IF(INTRO!$E$50="","",ROUND($D17*INTRO!$E$50,0)) -> 109650 | H17: 99 | I17: 0 | J17: 0 | K17: 3 | L17: =IF(INTRO!$E$37="Endémique",IF($H17>0,IF($H17=4,"Inconnu",IF($H17=99,"Interrompu",$D17)),0),"Non requis") -> Interrompu | M17: =IF(INTRO!$E$39="Endémique", IF($I17>0, IF($I17=4,"Inconnu",IF($I17=99,"Interrompu",$D17)), 0),"Non requis") -> Non requis | N17: =IF(INTRO!$E$41="Endémique", IF(AND($J17>1,$J17<5), IF($J17=4, "Inconnu", E17+F17), 0),"Non requis") -> 0 | O17: =IF(INTRO!$E$43="Endémique", IF(AND($K17>0,$K17<5), IF($K17=4,"Inconnu", IF($K17=1, $F17*0.33, IF($K17=2, $F17*0.5+$G17*0.2, SUM(F17:G17)))), 0),"Non requis") -> 175440 | P17: 0 | Q17: 0 | R17: 0 | S17: 1 | X17: 35342 | Y17: Diffa | AB17: =_xlfn.XLOOKUP($X17,[1]COUNTRY_INFO!$X$9:$X$80,[1]COUNTRY_INFO!D$9:D$80) ->  | AF17: =_xlfn.XLOOKUP($X17,[1]COUNTRY_INFO!$X$9:$X$80,[1]COUNTRY_INFO!H$9:H$80) ->  | AG17: =_xlfn.XLOOKUP($X17,[1]COUNTRY_INFO!$X$9:$X$80,[1]COUNTRY_INFO!I$9:I$80) ->  | AH17: =_xlfn.XLOOKUP($X17,[1]COUNTRY_INFO!$X$9:$X$80,[1]COUNTRY_INFO!J$9:J$80) ->  | AI17: =_xlfn.XLOOKUP($X17,[1]COUNTRY_INFO!$X$9:$X$80,[1]COUNTRY_INFO!K$9:K$80) ->  | AP17: =_xlfn.XLOOKUP($X17,[2]COUNTRY_INFO!$Y$9:$Y$80,[2]COUNTRY_INFO!H$9:H$80) ->  | AQ17: =_xlfn.XLOOKUP($X17,[2]COUNTRY_INFO!$Y$9:$Y$80,[2]COUNTRY_INFO!I$9:I$80) ->  | AR17: =_xlfn.XLOOKUP($X17,[2]COUNTRY_INFO!$Y$9:$Y$80,[2]COUNTRY_INFO!J$9:J$80) ->  | AS17: =_xlfn.XLOOKUP($X17,[2]COUNTRY_INFO!$Y$9:$Y$80,[2]COUNTRY_INFO!K$9:K$80) ->  | AV17: =_xlfn.XLOOKUP(X17,[1]COUNTRY_INFO!$X$9:$X$80,[1]COUNTRY_INFO!$S$9:$S$80) ->  | AW17: =_xlfn.XLOOKUP(X17,[2]COUNTRY_INFO!$Y$9:$Y$80,[2]COUNTRY_INFO!$S$9:$S$80) -> 
A18: =IF(INTRO!$E$33<>0,INTRO!$E$33, " ") -> Niger | B18: Diffa | C18: Mainé Soroa | D18: 180776 | E18: =IF(INTRO!$E$48="","",ROUND($D18*INTRO!$E$48,0)) -> 32540 | F18: =IF(INTRO!$E$49="","",ROUND($D18*INTRO!$E$49,0)) -> 54233 | G18: =IF(INTRO!$E$50="","",ROUND($D18*INTRO!$E$50,0)) -> 90388 | H18: 99 | I18: 0 | J18: 0 | K18: 2 | L18: =IF(INTRO!$E$37="Endémique",IF($H18>0,IF($H18=4,"Inconnu",IF($H18=99,"Interrompu",$D18)),0),"Non requis") -> Interrompu | M18: =IF(INTRO!$E$39="Endémique", IF($I18>0, IF($I18=4,"Inconnu",IF($I18=99,"Interrompu",$D18)), 0),"Non requis") -> Non requis | N18: =IF(INTRO!$E$41="Endémique", IF(AND($J18>1,$J18<5), IF($J18=4, "Inconnu", E18+F18), 0),"Non requis") -> 0 | O18: =IF(INTRO!$E$43="Endémique", IF(AND($K18>0,$K18<5), IF($K18=4,"Inconnu", IF($K18=1, $F18*0.33, IF($K18=2, $F18*0.5+$G18*0.2, SUM(F18:G18)))), 0),"Non requis") -> 45194.1 | P18: 0 | Q18: 0 | R18: 0 | S18: 0 | X18: 35344 | Y18: Mainé Soroa | AB18: =_xlfn.XLOOKUP($X18,[1]COUNTRY_INFO!$X$9:$X$80,[1]COUNTRY_INFO!D$9:D$80) ->  | AF18: =_xlfn.XLOOKUP($X18,[1]COUNTRY_INFO!$X$9:$X$80,[1]COUNTRY_INFO!H$9:H$80) ->  | AG18: =_xlfn.XLOOKUP($X18,[1]COUNTRY_INFO!$X$9:$X$80,[1]COUNTRY_INFO!I$9:I$80) ->  | AH18: =_xlfn.XLOOKUP($X18,[1]COUNTRY_INFO!$X$9:$X$80,[1]COUNTRY_INFO!J$9:J$80) ->  | AI18: =_xlfn.XLOOKUP($X18,[1]COUNTRY_INFO!$X$9:$X$80,[1]COUNTRY_INFO!K$9:K$80) ->  | AP18: =_xlfn.XLOOKUP($X18,[2]COUNTRY_INFO!$Y$9:$Y$80,[2]COUNTRY_INFO!H$9:H$80) ->  | AQ18: =_xlfn.XLOOKUP($X18,[2]COUNTRY_INFO!$Y$9:$Y$80,[2]COUNTRY_INFO!I$9:I$80) ->  | AR18: =_xlfn.XLOOKUP($X18,[2]COUNTRY_INFO!$Y$9:$Y$80,[2]COUNTRY_INFO!J$9:J$80) ->  | AS18: =_xlfn.XLOOKUP($X18,[2]COUNTRY_INFO!$Y$9:$Y$80,[2]COUNTRY_INFO!K$9:K$80) ->  | AV18: =_xlfn.XLOOKUP(X18,[1]COUNTRY_INFO!$X$9:$X$80,[1]COUNTRY_INFO!$S$9:$S$80) ->  | AW18: =_xlfn.XLOOKUP(X18,[2]COUNTRY_INFO!$Y$9:$Y$80,[2]COUNTRY_INFO!$S$9:$S$80) -> 
A19: =IF(INTRO!$E$33<>0,INTRO!$E$33, " ") -> Niger | B19: Diffa | C19: Goudoumaria | D19: 138069 | E19: =IF(INTRO!$E$48="","",ROUND($D19*INTRO!$E$48,0)) -> 24852 | F19: =IF(INTRO!$E$49="","",ROUND($D19*INTRO!$E$49,0)) -> 41421 | G19: =IF(INTRO!$E$50="","",ROUND($D19*INTRO!$E$50,0)) -> 69035 | H19: 99 | I19: 0 | J19: 0 | K19: 2 | L19: =IF(INTRO!$E$37="Endémique",IF($H19>0,IF($H19=4,"Inconnu",IF($H19=99,"Interrompu",$D19)),0),"Non requis") -> Interrompu | M19: =IF(INTRO!$E$39="Endémique", IF($I19>0, IF($I19=4,"Inconnu",IF($I19=99,"Interrompu",$D19)), 0),"Non requis") -> Non requis | N19: =IF(INTRO!$E$41="Endémique", IF(AND($J19>1,$J19<5), IF($J19=4, "Inconnu", E19+F19), 0),"Non requis") -> 0 | O19: =IF(INTRO!$E$43="Endémique", IF(AND($K19>0,$K19<5), IF($K19=4,"Inconnu", IF($K19=1, $F19*0.33, IF($K19=2, $F19*0.5+$G19*0.2, SUM(F19:G19)))), 0),"Non requis") -> 34517.5 | P19: 0 | Q19: 0 | R19: 0 | S19: 0 | X19: 35345 | Y19: Goudoumaria | AB19: =_xlfn.XLOOKUP($X19,[1]COUNTRY_INFO!$X$9:$X$80,[1]COUNTRY_INFO!D$9:D$80) ->  | AF19: =_xlfn.XLOOKUP($X19,[1]COUNTRY_INFO!$X$9:$X$80,[1]COUNTRY_INFO!H$9:H$80) ->  | AG19: =_xlfn.XLOOKUP($X19,[1]COUNTRY_INFO!$X$9:$X$80,[1]COUNTRY_INFO!I$9:I$80) ->  | AH19: =_xlfn.XLOOKUP($X19,[1]COUNTRY_INFO!$X$9:$X$80,[1]COUNTRY_INFO!J$9:J$80) ->  | AI19: =_xlfn.XLOOKUP($X19,[1]COUNTRY_INFO!$X$9:$X$80,[1]COUNTRY_INFO!K$9:K$80) ->  | AP19: =_xlfn.XLOOKUP($X19,[2]COUNTRY_INFO!$Y$9:$Y$80,[2]COUNTRY_INFO!H$9:H$80) ->  | AQ19: =_xlfn.XLOOKUP($X19,[2]COUNTRY_INFO!$Y$9:$Y$80,[2]COUNTRY_INFO!I$9:I$80) ->  | AR19: =_xlfn.XLOOKUP($X19,[2]COUNTRY_INFO!$Y$9:$Y$80,[2]COUNTRY_INFO!J$9:J$80) ->  | AS19: =_xlfn.XLOOKUP($X19,[2]COUNTRY_INFO!$Y$9:$Y$80,[2]COUNTRY_INFO!K$9:K$80) ->  | AV19: =_xlfn.XLOOKUP(X19,[1]COUNTRY_INFO!$X$9:$X$80,[1]COUNTRY_INFO!$S$9:$S$80) ->  | AW19: =_xlfn.XLOOKUP(X19,[2]COUNTRY_INFO!$Y$9:$Y$80,[2]COUNTRY_INFO!$S$9:$S$80) -> 
A20: =IF(INTRO!$E$33<>0,INTRO!$E$33, " ") -> Niger | B20: Diffa | C20: N'gourti | D20: 71077 | E20: =IF(INTRO!$E$48="","",ROUND($D20*INTRO!$E$48,0)) -> 12794 | F20: =IF(INTRO!$E$49="","",ROUND($D20*INTRO!$E$49,0)) -> 21323 | G20: =IF(INTRO!$E$50="","",ROUND($D20*INTRO!$E$50,0)) -> 35539 | H20: 99 | I20: 0 | J20: 1 | K20: 0 | L20: =IF(INTRO!$E$37="Endémique",IF($H20>0,IF($H20=4,"Inconnu",IF($H20=99,"Interrompu",$D20)),0),"Non requis") -> Interrompu | M20: =IF(INTRO!$E$39="Endémique", IF($I20>0, IF($I20=4,"Inconnu",IF($I20=99,"Interrompu",$D20)), 0),"Non requis") -> Non requis | N20: =IF(INTRO!$E$41="Endémique", IF(AND($J20>1,$J20<5), IF($J20=4, "Inconnu", E20+F20), 0),"Non requis") -> 0 | O20: =IF(INTRO!$E$43="Endémique", IF(AND($K20>0,$K20<5), IF($K20=4,"Inconnu", IF($K20=1, $F20*0.33, IF($K20=2, $F20*0.5+$G20*0.2, SUM(F20:G20)))), 0),"Non requis") -> 0 | P20: 0 | Q20: 0 | R20: 0 | S20: 0 | X20: 35347 | Y20: N'Gourti | AB20: =_xlfn.XLOOKUP($X20,[1]COUNTRY_INFO!$X$9:$X$80,[1]COUNTRY_INFO!D$9:D$80) ->  | AF20: =_xlfn.XLOOKUP($X20,[1]COUNTRY_INFO!$X$9:$X$80,[1]COUNTRY_INFO!H$9:H$80) ->  | AG20: =_xlfn.XLOOKUP($X20,[1]COUNTRY_INFO!$X$9:$X$80,[1]COUNTRY_INFO!I$9:I$80) ->  | AH20: =_xlfn.XLOOKUP($X20,[1]COUNTRY_INFO!$X$9:$X$80,[1]COUNTRY_INFO!J$9:J$80) ->  | AI20: =_xlfn.XLOOKUP($X20,[1]COUNTRY_INFO!$X$9:$X$80,[1]COUNTRY_INFO!K$9:K$80) ->  | AP20: =_xlfn.XLOOKUP($X20,[2]COUNTRY_INFO!$Y$9:$Y$80,[2]COUNTRY_INFO!H$9:H$80) ->  | AQ20: =_xlfn.XLOOKUP($X20,[2]COUNTRY_INFO!$Y$9:$Y$80,[2]COUNTRY_INFO!I$9:I$80) ->  | AR20: =_xlfn.XLOOKUP($X20,[2]COUNTRY_INFO!$Y$9:$Y$80,[2]COUNTRY_INFO!J$9:J$80) ->  | AS20: =_xlfn.XLOOKUP($X20,[2]COUNTRY_INFO!$Y$9:$Y$80,[2]COUNTRY_INFO!K$9:K$80) ->  | AV20: =_xlfn.XLOOKUP(X20,[1]COUNTRY_INFO!$X$9:$X$80,[1]COUNTRY_INFO!$S$9:$S$80) ->  | AW20: =_xlfn.XLOOKUP(X20,[2]COUNTRY_INFO!$Y$9:$Y$80,[2]COUNTRY_INFO!$S$9:$S$80) -> 
A21: =IF(INTRO!$E$33<>0,INTRO!$E$33, " ") -> Niger | B21: Diffa | C21: N'Guigmi | D21: 100743 | E21: =IF(INTRO!$E$48="","",ROUND($D21*INTRO!$E$48,0)) -> 18134 | F21: =IF(INTRO!$E$49="","",ROUND($D21*INTRO!$E$49,0)) -> 30223 | G21: =IF(INTRO!$E$50="","",ROUND($D21*INTRO!$E$50,0)) -> 50372 | H21: 99 | I21: 0 | J21: 1 | K21: 2 | L21: =IF(INTRO!$E$37="Endémique",IF($H21>0,IF($H21=4,"Inconnu",IF($H21=99,"Interrompu",$D21)),0),"Non requis") -> Interrompu | M21: =IF(INTRO!$E$39="Endémique", IF($I21>0, IF($I21=4,"Inconnu",IF($I21=99,"Interrompu",$D21)), 0),"Non requis") -> Non requis | N21: =IF(INTRO!$E$41="Endémique", IF(AND($J21>1,$J21<5), IF($J21=4, "Inconnu", E21+F21), 0),"Non requis") -> 0 | O21: =IF(INTRO!$E$43="Endémique", IF(AND($K21>0,$K21<5), IF($K21=4,"Inconnu", IF($K21=1, $F21*0.33, IF($K21=2, $F21*0.5+$G21*0.2, SUM(F21:G21)))), 0),"Non requis") -> 25185.9 | P21: 0 | Q21: 0 | R21: 0 | S21: 0 | X21: 35346 | Y21: N'Guigmi | AB21: =_xlfn.XLOOKUP($X21,[1]COUNTRY_INFO!$X$9:$X$80,[1]COUNTRY_INFO!D$9:D$80) ->  | AF21: =_xlfn.XLOOKUP($X21,[1]COUNTRY_INFO!$X$9:$X$80,[1]COUNTRY_INFO!H$9:H$80) ->  | AG21: =_xlfn.XLOOKUP($X21,[1]COUNTRY_INFO!$X$9:$X$80,[1]COUNTRY_INFO!I$9:I$80) ->  | AH21: =_xlfn.XLOOKUP($X21,[1]COUNTRY_INFO!$X$9:$X$80,[1]COUNTRY_INFO!J$9:J$80) ->  | AI21: =_xlfn.XLOOKUP($X21,[1]COUNTRY_INFO!$X$9:$X$80,[1]COUNTRY_INFO!K$9:K$80) ->  | AP21: =_xlfn.XLOOKUP($X21,[2]COUNTRY_INFO!$Y$9:$Y$80,[2]COUNTRY_INFO!H$9:H$80) ->  | AQ21: =_xlfn.XLOOKUP($X21,[2]COUNTRY_INFO!$Y$9:$Y$80,[2]COUNTRY_INFO!I$9:I$80) ->  | AR21: =_xlfn.XLOOKUP($X21,[2]COUNTRY_INFO!$Y$9:$Y$80,[2]COUNTRY_INFO!J$9:J$80) ->  | AS21: =_xlfn.XLOOKUP($X21,[2]COUNTRY_INFO!$Y$9:$Y$80,[2]COUNTRY_INFO!K$9:K$80) ->  | AV21: =_xlfn.XLOOKUP(X21,[1]COUNTRY_INFO!$X$9:$X$80,[1]COUNTRY_INFO!$S$9:$S$80) ->  | AW21: =_xlfn.XLOOKUP(X21,[2]COUNTRY_INFO!$Y$9:$Y$80,[2]COUNTRY_INFO!$S$9:$S$80) -> 
A22: =IF(INTRO!$E$33<>0,INTRO!$E$33, " ") -> Niger | B22: Dosso | C22: Boboye | D22: 368211 | E22: =IF(INTRO!$E$48="","",ROUND($D22*INTRO!$E$48,0)) -> 66278 | F22: =IF(INTRO!$E$49="","",ROUND($D22*INTRO!$E$49,0)) -> 110463 | G22: =IF(INTRO!$E$50="","",ROUND($D22*INTRO!$E$50,0)) -> 184106 | H22: 99 | I22: 99 | J22: 1 | K22: 3 | L22: =IF(INTRO!$E$37="Endémique",IF($H22>0,IF($H22=4,"Inconnu",IF($H22=99,"Interrompu",$D22)),0),"Non requis") -> Interrompu | M22: =IF(INTRO!$E$39="Endémique", IF($I22>0, IF($I22=4,"Inconnu",IF($I22=99,"Interrompu",$D22)), 0),"Non requis") -> Non requis | N22: =IF(INTRO!$E$41="Endémique", IF(AND($J22>1,$J22<5), IF($J22=4, "Inconnu", E22+F22), 0),"Non requis") -> 0 | O22: =IF(INTRO!$E$43="Endémique", IF(AND($K22>0,$K22<5), IF($K22=4,"Inconnu", IF($K22=1, $F22*0.33, IF($K22=2, $F22*0.5+$G22*0.2, SUM(F22:G22)))), 0),"Non requis") -> 294569 | P22: 0 | Q22: 0 | R22: 0 | S22: 1 | X22: 35348 | Y22: Boboye | AB22: =_xlfn.XLOOKUP($X22,[1]COUNTRY_INFO!$X$9:$X$80,[1]COUNTRY_INFO!D$9:D$80) ->  | AF22: =_xlfn.XLOOKUP($X22,[1]COUNTRY_INFO!$X$9:$X$80,[1]COUNTRY_INFO!H$9:H$80) ->  | AG22: =_xlfn.XLOOKUP($X22,[1]COUNTRY_INFO!$X$9:$X$80,[1]COUNTRY_INFO!I$9:I$80) ->  | AH22: =_xlfn.XLOOKUP($X22,[1]COUNTRY_INFO!$X$9:$X$80,[1]COUNTRY_INFO!J$9:J$80) ->  | AI22: =_xlfn.XLOOKUP($X22,[1]COUNTRY_INFO!$X$9:$X$80,[1]COUNTRY_INFO!K$9:K$80) ->  | AP22: =_xlfn.XLOOKUP($X22,[2]COUNTRY_INFO!$Y$9:$Y$80,[2]COUNTRY_INFO!H$9:H$80) ->  | AQ22: =_xlfn.XLOOKUP($X22,[2]COUNTRY_INFO!$Y$9:$Y$80,[2]COUNTRY_INFO!I$9:I$80) ->  | AR22: =_xlfn.XLOOKUP($X22,[2]COUNTRY_INFO!$Y$9:$Y$80,[2]COUNTRY_INFO!J$9:J$80) ->  | AS22: =_xlfn.XLOOKUP($X22,[2]COUNTRY_INFO!$Y$9:$Y$80,[2]COUNTRY_INFO!K$9:K$80) ->  | AV22: =_xlfn.XLOOKUP(X22,[1]COUNTRY_INFO!$X$9:$X$80,[1]COUNTRY_INFO!$S$9:$S$80) ->  | AW22: =_xlfn.XLOOKUP(X22,[2]COUNTRY_INFO!$Y$9:$Y$80,[2]COUNTRY_INFO!$S$9:$S$80) -> 
A23: =IF(INTRO!$E$33<>0,INTRO!$E$33, " ") -> Niger | B23: Dosso | C23: Dioundou | D23: 159786 | E23: =IF(INTRO!$E$48="","",ROUND($D23*INTRO!$E$48,0)) -> 28761 | F23: =IF(INTRO!$E$49="","",ROUND($D23*INTRO!$E$49,0)) -> 47936 | G23: =IF(INTRO!$E$50="","",ROUND($D23*INTRO!$E$50,0)) -> 79893 | H23: 1 | I23: 99 | J23: 1 | K23: 3 | L23: =IF(INTRO!$E$37="Endémique",IF($H23>0,IF($H23=4,"Inconnu",IF($H23=99,"Interrompu",$D23)),0),"Non requis") -> 159786 | M23: =IF(INTRO!$E$39="Endémique", IF($I23>0, IF($I23=4,"Inconnu",IF($I23=99,"Interrompu",$D23)), 0),"Non requis") -> Non requis | N23: =IF(INTRO!$E$41="Endémique", IF(AND($J23>1,$J23<5), IF($J23=4, "Inconnu", E23+F23), 0),"Non requis") -> 0 | O23: =IF(INTRO!$E$43="Endémique", IF(AND($K23>0,$K23<5), IF($K23=4,"Inconnu", IF($K23=1, $F23*0.33, IF($K23=2, $F23*0.5+$G23*0.2, SUM(F23:G23)))), 0),"Non requis") -> 127829 | P23: 1 | Q23: 0 | R23: 0 | S23: 1 | X23: 35353 | Y23: Dioundiou | AB23: =_xlfn.XLOOKUP($X23,[1]COUNTRY_INFO!$X$9:$X$80,[1]COUNTRY_INFO!D$9:D$80) ->  | AF23: =_xlfn.XLOOKUP($X23,[1]COUNTRY_INFO!$X$9:$X$80,[1]COUNTRY_INFO!H$9:H$80) ->  | AG23: =_xlfn.XLOOKUP($X23,[1]COUNTRY_INFO!$X$9:$X$80,[1]COUNTRY_INFO!I$9:I$80) ->  | AH23: =_xlfn.XLOOKUP($X23,[1]COUNTRY_INFO!$X$9:$X$80,[1]COUNTRY_INFO!J$9:J$80) ->  | AI23: =_xlfn.XLOOKUP($X23,[1]COUNTRY_INFO!$X$9:$X$80,[1]COUNTRY_INFO!K$9:K$80) ->  | AP23: =_xlfn.XLOOKUP($X23,[2]COUNTRY_INFO!$Y$9:$Y$80,[2]COUNTRY_INFO!H$9:H$80) ->  | AQ23: =_xlfn.XLOOKUP($X23,[2]COUNTRY_INFO!$Y$9:$Y$80,[2]COUNTRY_INFO!I$9:I$80) ->  | AR23: =_xlfn.XLOOKUP($X23,[2]COUNTRY_INFO!$Y$9:$Y$80,[2]COUNTRY_INFO!J$9:J$80) ->  | AS23: =_xlfn.XLOOKUP($X23,[2]COUNTRY_INFO!$Y$9:$Y$80,[2]COUNTRY_INFO!K$9:K$80) ->  | AV23: =_xlfn.XLOOKUP(X23,[1]COUNTRY_INFO!$X$9:$X$80,[1]COUNTRY_INFO!$S$9:$S$80) ->  | AW23: =_xlfn.XLOOKUP(X23,[2]COUNTRY_INFO!$Y$9:$Y$80,[2]COUNTRY_INFO!$S$9:$S$80) -> 
A24: =IF(INTRO!$E$33<>0,INTRO!$E$33, " ") -> Niger | B24: Dosso | C24: Dogondoutchi | D24: 542955 | E24: =IF(INTRO!$E$48="","",ROUND($D24*INTRO!$E$48,0)) -> 97732 | F24: =IF(INTRO!$E$49="","",ROUND($D24*INTRO!$E$49,0)) -> 162887 | G24: =IF(INTRO!$E$50="","",ROUND($D24*INTRO!$E$50,0)) -> 271478 | H24: 0 | I24: 4 | J24: 0 | K24: 2 | L24: =IF(INTRO!$E$37="Endémique",IF($H24>0,IF($H24=4,"Inconnu",IF($H24=99,"Interrompu",$D24)),0),"Non requis") -> 0 | M24: =IF(INTRO!$E$39="Endémique", IF($I24>0, IF($I24=4,"Inconnu",IF($I24=99,"Interrompu",$D24)), 0),"Non requis") -> Non requis | N24: =IF(INTRO!$E$41="Endémique", IF(AND($J24>1,$J24<5), IF($J24=4, "Inconnu", E24+F24), 0),"Non requis") -> 0 | O24: =IF(INTRO!$E$43="Endémique", IF(AND($K24>0,$K24<5), IF($K24=4,"Inconnu", IF($K24=1, $F24*0.33, IF($K24=2, $F24*0.5+$G24*0.2, SUM(F24:G24)))), 0),"Non requis") -> 135739.1 | P24: 0 | Q24: 0 | R24: 0 | S24: 0 | X24: 35350 | Y24: Doutchi | AB24: =_xlfn.XLOOKUP($X24,[1]COUNTRY_INFO!$X$9:$X$80,[1]COUNTRY_INFO!D$9:D$80) ->  | AF24: =_xlfn.XLOOKUP($X24,[1]COUNTRY_INFO!$X$9:$X$80,[1]COUNTRY_INFO!H$9:H$80) ->  | AG24: =_xlfn.XLOOKUP($X24,[1]COUNTRY_INFO!$X$9:$X$80,[1]COUNTRY_INFO!I$9:I$80) ->  | AH24: =_xlfn.XLOOKUP($X24,[1]COUNTRY_INFO!$X$9:$X$80,[1]COUNTRY_INFO!J$9:J$80) ->  | AI24: =_xlfn.XLOOKUP($X24,[1]COUNTRY_INFO!$X$9:$X$80,[1]COUNTRY_INFO!K$9:K$80) ->  | AP24: =_xlfn.XLOOKUP($X24,[2]COUNTRY_INFO!$Y$9:$Y$80,[2]COUNTRY_INFO!H$9:H$80) ->  | AQ24: =_xlfn.XLOOKUP($X24,[2]COUNTRY_INFO!$Y$9:$Y$80,[2]COUNTRY_INFO!I$9:I$80) ->  | AR24: =_xlfn.XLOOKUP($X24,[2]COUNTRY_INFO!$Y$9:$Y$80,[2]COUNTRY_INFO!J$9:J$80) ->  | AS24: =_xlfn.XLOOKUP($X24,[2]COUNTRY_INFO!$Y$9:$Y$80,[2]COUNTRY_INFO!K$9:K$80) ->  | AV24: =_xlfn.XLOOKUP(X24,[1]COUNTRY_INFO!$X$9:$X$80,[1]COUNTRY_INFO!$S$9:$S$80) ->  | AW24: =_xlfn.XLOOKUP(X24,[2]COUNTRY_INFO!$Y$9:$Y$80,[2]COUNTRY_INFO!$S$9:$S$80) -> 
A25: =IF(INTRO!$E$33<>0,INTRO!$E$33, " ") -> Niger | B25: Dosso | C25: Dosso Commune | D25: 718006 | E25: =IF(INTRO!$E$48="","",ROUND($D25*INTRO!$E$48,0)) -> 129241 | F25: =IF(INTRO!$E$49="","",ROUND($D25*INTRO!$E$49,0)) -> 215402 | G25: =IF(INTRO!$E$50="","",ROUND($D25*INTRO!$E$50,0)) -> 359003 | H25: 0 | I25: 4 | J25: 0 | K25: 2 | L25: =IF(INTRO!$E$37="Endémique",IF($H25>0,IF($H25=4,"Inconnu",IF($H25=99,"Interrompu",$D25)),0),"Non requis") -> 0 | M25: =IF(INTRO!$E$39="Endémique", IF($I25>0, IF($I25=4,"Inconnu",IF($I25=99,"Interrompu",$D25)), 0),"Non requis") -> Non requis | N25: =IF(INTRO!$E$41="Endémique", IF(AND($J25>1,$J25<5), IF($J25=4, "Inconnu", E25+F25), 0),"Non requis") -> 0 | O25: =IF(INTRO!$E$43="Endémique", IF(AND($K25>0,$K25<5), IF($K25=4,"Inconnu", IF($K25=1, $F25*0.33, IF($K25=2, $F25*0.5+$G25*0.2, SUM(F25:G25)))), 0),"Non requis") -> 179501.6 | P25: 0 | Q25: 0 | R25: 0 | S25: 0 | X25: 35302 | Y25: Dosso | AB25: =_xlfn.XLOOKUP($X25,[1]COUNTRY_INFO!$X$9:$X$80,[1]COUNTRY_INFO!D$9:D$80) ->  | AF25: =_xlfn.XLOOKUP($X25,[1]COUNTRY_INFO!$X$9:$X$80,[1]COUNTRY_INFO!H$9:H$80) ->  | AG25: =_xlfn.XLOOKUP($X25,[1]COUNTRY_INFO!$X$9:$X$80,[1]COUNTRY_INFO!I$9:I$80) ->  | AH25: =_xlfn.XLOOKUP($X25,[1]COUNTRY_INFO!$X$9:$X$80,[1]COUNTRY_INFO!J$9:J$80) ->  | AI25: =_xlfn.XLOOKUP($X25,[1]COUNTRY_INFO!$X$9:$X$80,[1]COUNTRY_INFO!K$9:K$80) ->  | AP25: =_xlfn.XLOOKUP($X25,[2]COUNTRY_INFO!$Y$9:$Y$80,[2]COUNTRY_INFO!H$9:H$80) ->  | AQ25: =_xlfn.XLOOKUP($X25,[2]COUNTRY_INFO!$Y$9:$Y$80,[2]COUNTRY_INFO!I$9:I$80) ->  | AR25: =_xlfn.XLOOKUP($X25,[2]COUNTRY_INFO!$Y$9:$Y$80,[2]COUNTRY_INFO!J$9:J$80) ->  | AS25: =_xlfn.XLOOKUP($X25,[2]COUNTRY_INFO!$Y$9:$Y$80,[2]COUNTRY_INFO!K$9:K$80) ->  | AV25: =_xlfn.XLOOKUP(X25,[1]COUNTRY_INFO!$X$9:$X$80,[1]COUNTRY_INFO!$S$9:$S$80) ->  | AW25: =_xlfn.XLOOKUP(X25,[2]COUNTRY_INFO!$Y$9:$Y$80,[2]COUNTRY_INFO!$S$9:$S$80) -> 
A26: =IF(INTRO!$E$33<>0,INTRO!$E$33, " ") -> Niger | B26: Dosso | C26: Falmey | D26: 150538 | E26: =IF(INTRO!$E$48="","",ROUND($D26*INTRO!$E$48,0)) -> 27097 | F26: =IF(INTRO!$E$49="","",ROUND($D26*INTRO!$E$49,0)) -> 45161 | G26: =IF(INTRO!$E$50="","",ROUND($D26*INTRO!$E$50,0)) -> 75269 | H26: 99 | I26: 99 | J26: 0 | K26: 3 | L26: =IF(INTRO!$E$37="Endémique",IF($H26>0,IF($H26=4,"Inconnu",IF($H26=99,"Interrompu",$D26)),0),"Non requis") -> Interrompu | M26: =IF(INTRO!$E$39="Endémique", IF($I26>0, IF($I26=4,"Inconnu",IF($I26=99,"Interrompu",$D26)), 0),"Non requis") -> Non requis | N26: =IF(INTRO!$E$41="Endémique", IF(AND($J26>1,$J26<5), IF($J26=4, "Inconnu", E26+F26), 0),"Non requis") -> 0 | O26: =IF(INTRO!$E$43="Endémique", IF(AND($K26>0,$K26<5), IF($K26=4,"Inconnu", IF($K26=1, $F26*0.33, IF($K26=2, $F26*0.5+$G26*0.2, SUM(F26:G26)))), 0),"Non requis") -> 120430 | P26: 0 | Q26: 0 | R26: 0 | S26: 1 | X26: 35349 | Y26: Falmey | AB26: =_xlfn.XLOOKUP($X26,[1]COUNTRY_INFO!$X$9:$X$80,[1]COUNTRY_INFO!D$9:D$80) ->  | AF26: =_xlfn.XLOOKUP($X26,[1]COUNTRY_INFO!$X$9:$X$80,[1]COUNTRY_INFO!H$9:H$80) ->  | AG26: =_xlfn.XLOOKUP($X26,[1]COUNTRY_INFO!$X$9:$X$80,[1]COUNTRY_INFO!I$9:I$80) ->  | AH26: =_xlfn.XLOOKUP($X26,[1]COUNTRY_INFO!$X$9:$X$80,[1]COUNTRY_INFO!J$9:J$80) ->  | AI26: =_xlfn.XLOOKUP($X26,[1]COUNTRY_INFO!$X$9:$X$80,[1]COUNTRY_INFO!K$9:K$80) ->  | AP26: =_xlfn.XLOOKUP($X26,[2]COUNTRY_INFO!$Y$9:$Y$80,[2]COUNTRY_INFO!H$9:H$80) ->  | AQ26: =_xlfn.XLOOKUP($X26,[2]COUNTRY_INFO!$Y$9:$Y$80,[2]COUNTRY_INFO!I$9:I$80) ->  | AR26: =_xlfn.XLOOKUP($X26,[2]COUNTRY_INFO!$Y$9:$Y$80,[2]COUNTRY_INFO!J$9:J$80) ->  | AS26: =_xlfn.XLOOKUP($X26,[2]COUNTRY_INFO!$Y$9:$Y$80,[2]COUNTRY_INFO!K$9:K$80) ->  | AV26: =_xlfn.XLOOKUP(X26,[1]COUNTRY_INFO!$X$9:$X$80,[1]COUNTRY_INFO!$S$9:$S$80) ->  | AW26: =_xlfn.XLOOKUP(X26,[2]COUNTRY_INFO!$Y$9:$Y$80,[2]COUNTRY_INFO!$S$9:$S$80) -> 
A27: =IF(INTRO!$E$33<>0,INTRO!$E$33, " ") -> Niger | B27: Dosso | C27: Gaya | D27: 381390 | E27: =IF(INTRO!$E$48="","",ROUND($D27*INTRO!$E$48,0)) -> 68650 | F27: =IF(INTRO!$E$49="","",ROUND($D27*INTRO!$E$49,0)) -> 114417 | G27: =IF(INTRO!$E$50="","",ROUND($D27*INTRO!$E$50,0)) -> 190695 | H27: 1 | I27: 99 | J27: 1 | K27: 3 | L27: =IF(INTRO!$E$37="Endémique",IF($H27>0,IF($H27=4,"Inconnu",IF($H27=99,"Interrompu",$D27)),0),"Non requis") -> 381390 | M27: =IF(INTRO!$E$39="Endémique", IF($I27>0, IF($I27=4,"Inconnu",IF($I27=99,"Interrompu",$D27)), 0),"Non requis") -> Non requis | N27: =IF(INTRO!$E$41="Endémique", IF(AND($J27>1,$J27<5), IF($J27=4, "Inconnu", E27+F27), 0),"Non requis") -> 0 | O27: =IF(INTRO!$E$43="Endémique", IF(AND($K27>0,$K27<5), IF($K27=4,"Inconnu", IF($K27=1, $F27*0.33, IF($K27=2, $F27*0.5+$G27*0.2, SUM(F27:G27)))), 0),"Non requis") -> 305112 | P27: 1 | Q27: 0 | R27: 0 | S27: 1 | X27: 35352 | Y27: Gaya | AB27: =_xlfn.XLOOKUP($X27,[1]COUNTRY_INFO!$X$9:$X$80,[1]COUNTRY_INFO!D$9:D$80) ->  | AF27: =_xlfn.XLOOKUP($X27,[1]COUNTRY_INFO!$X$9:$X$80,[1]COUNTRY_INFO!H$9:H$80) ->  | AG27: =_xlfn.XLOOKUP($X27,[1]COUNTRY_INFO!$X$9:$X$80,[1]COUNTRY_INFO!I$9:I$80) ->  | AH27: =_xlfn.XLOOKUP($X27,[1]COUNTRY_INFO!$X$9:$X$80,[1]COUNTRY_INFO!J$9:J$80) ->  | AI27: =_xlfn.XLOOKUP($X27,[1]COUNTRY_INFO!$X$9:$X$80,[1]COUNTRY_INFO!K$9:K$80) ->  | AP27: =_xlfn.XLOOKUP($X27,[2]COUNTRY_INFO!$Y$9:$Y$80,[2]COUNTRY_INFO!H$9:H$80) ->  | AQ27: =_xlfn.XLOOKUP($X27,[2]COUNTRY_INFO!$Y$9:$Y$80,[2]COUNTRY_INFO!I$9:I$80) ->  | AR27: =_xlfn.XLOOKUP($X27,[2]COUNTRY_INFO!$Y$9:$Y$80,[2]COUNTRY_INFO!J$9:J$80) ->  | AS27: =_xlfn.XLOOKUP($X27,[2]COUNTRY_INFO!$Y$9:$Y$80,[2]COUNTRY_INFO!K$9:K$80) ->  | AV27: =_xlfn.XLOOKUP(X27,[1]COUNTRY_INFO!$X$9:$X$80,[1]COUNTRY_INFO!$S$9:$S$80) ->  | AW27: =_xlfn.XLOOKUP(X27,[2]COUNTRY_INFO!$Y$9:$Y$80,[2]COUNTRY_INFO!$S$9:$S$80) -> 
A28: =IF(INTRO!$E$33<>0,INTRO!$E$33, " ") -> Niger | B28: Dosso | C28: Loga | D28: 255889 | E28: =IF(INTRO!$E$48="","",ROUND($D28*INTRO!$E$48,0)) -> 46060 | F28: =IF(INTRO!$E$49="","",ROUND($D28*INTRO!$E$49,0)) -> 76767 | G28: =IF(INTRO!$E$50="","",ROUND($D28*INTRO!$E$50,0)) -> 127945 | H28: 0 | I28: 4 | J28: 1 | K28: 2 | L28: =IF(INTRO!$E$37="Endémique",IF($H28>0,IF($H28=4,"Inconnu",IF($H28=99,"Interrompu",$D28)),0),"Non requis") -> 0 | M28: =IF(INTRO!$E$39="Endémique", IF($I28>0, IF($I28=4,"Inconnu",IF($I28=99,"Interrompu",$D28)), 0),"Non requis") -> Non requis | N28: =IF(INTRO!$E$41="Endémique", IF(AND($J28>1,$J28<5), IF($J28=4, "Inconnu", E28+F28), 0),"Non requis") -> 0 | O28: =IF(INTRO!$E$43="Endémique", IF(AND($K28>0,$K28<5), IF($K28=4,"Inconnu", IF($K28=1, $F28*0.33, IF($K28=2, $F28*0.5+$G28*0.2, SUM(F28:G28)))), 0),"Non requis") -> 63972.5 | P28: 0 | Q28: 0 | R28: 0 | S28: 0 | X28: 35305 | Y28: Loga | AB28: =_xlfn.XLOOKUP($X28,[1]COUNTRY_INFO!$X$9:$X$80,[1]COUNTRY_INFO!D$9:D$80) ->  | AF28: =_xlfn.XLOOKUP($X28,[1]COUNTRY_INFO!$X$9:$X$80,[1]COUNTRY_INFO!H$9:H$80) ->  | AG28: =_xlfn.XLOOKUP($X28,[1]COUNTRY_INFO!$X$9:$X$80,[1]COUNTRY_INFO!I$9:I$80) ->  | AH28: =_xlfn.XLOOKUP($X28,[1]COUNTRY_INFO!$X$9:$X$80,[1]COUNTRY_INFO!J$9:J$80) ->  | AI28: =_xlfn.XLOOKUP($X28,[1]COUNTRY_INFO!$X$9:$X$80,[1]COUNTRY_INFO!K$9:K$80) ->  | AP28: =_xlfn.XLOOKUP($X28,[2]COUNTRY_INFO!$Y$9:$Y$80,[2]COUNTRY_INFO!H$9:H$80) ->  | AQ28: =_xlfn.XLOOKUP($X28,[2]COUNTRY_INFO!$Y$9:$Y$80,[2]COUNTRY_INFO!I$9:I$80) ->  | AR28: =_xlfn.XLOOKUP($X28,[2]COUNTRY_INFO!$Y$9:$Y$80,[2]COUNTRY_INFO!J$9:J$80) ->  | AS28: =_xlfn.XLOOKUP($X28,[2]COUNTRY_INFO!$Y$9:$Y$80,[2]COUNTRY_INFO!K$9:K$80) ->  | AV28: =_xlfn.XLOOKUP(X28,[1]COUNTRY_INFO!$X$9:$X$80,[1]COUNTRY_INFO!$S$9:$S$80) ->  | AW28: =_xlfn.XLOOKUP(X28,[2]COUNTRY_INFO!$Y$9:$Y$80,[2]COUNTRY_INFO!$S$9:$S$80) -> 
A29: =IF(INTRO!$E$33<>0,INTRO!$E$33, " ") -> Niger | B29: Dosso | C29: Tibiri (Doutchi) | D29: 393603 | E29: =IF(INTRO!$E$48="","",ROUND($D29*INTRO!$E$48,0)) -> 70849 | F29: =IF(INTRO!$E$49="","",ROUND($D29*INTRO!$E$49,0)) -> 118081 | G29: =IF(INTRO!$E$50="","",ROUND($D29*INTRO!$E$50,0)) -> 196802 | H29: 0 | I29: 4 | J29: 1 | K29: 2 | L29: =IF(INTRO!$E$37="Endémique",IF($H29>0,IF($H29=4,"Inconnu",IF($H29=99,"Interrompu",$D29)),0),"Non requis") -> 0 | M29: =IF(INTRO!$E$39="Endémique", IF($I29>0, IF($I29=4,"Inconnu",IF($I29=99,"Interrompu",$D29)), 0),"Non requis") -> Non requis | N29: =IF(INTRO!$E$41="Endémique", IF(AND($J29>1,$J29<5), IF($J29=4, "Inconnu", E29+F29), 0),"Non requis") -> 0 | O29: =IF(INTRO!$E$43="Endémique", IF(AND($K29>0,$K29<5), IF($K29=4,"Inconnu", IF($K29=1, $F29*0.33, IF($K29=2, $F29*0.5+$G29*0.2, SUM(F29:G29)))), 0),"Non requis") -> 98400.9 | P29: 0 | Q29: 0 | R29: 0 | S29: 0 | X29: 35351 | Y29: Tibiri(Doutchi) | AB29: =_xlfn.XLOOKUP($X29,[1]COUNTRY_INFO!$X$9:$X$80,[1]COUNTRY_INFO!D$9:D$80) ->  | AF29: =_xlfn.XLOOKUP($X29,[1]COUNTRY_INFO!$X$9:$X$80,[1]COUNTRY_INFO!H$9:H$80) ->  | AG29: =_xlfn.XLOOKUP($X29,[1]COUNTRY_INFO!$X$9:$X$80,[1]COUNTRY_INFO!I$9:I$80) ->  | AH29: =_xlfn.XLOOKUP($X29,[1]COUNTRY_INFO!$X$9:$X$80,[1]COUNTRY_INFO!J$9:J$80) ->  | AI29: =_xlfn.XLOOKUP($X29,[1]COUNTRY_INFO!$X$9:$X$80,[1]COUNTRY_INFO!K$9:K$80) ->  | AP29: =_xlfn.XLOOKUP($X29,[2]COUNTRY_INFO!$Y$9:$Y$80,[2]COUNTRY_INFO!H$9:H$80) ->  | AQ29: =_xlfn.XLOOKUP($X29,[2]COUNTRY_INFO!$Y$9:$Y$80,[2]COUNTRY_INFO!I$9:I$80) ->  | AR29: =_xlfn.XLOOKUP($X29,[2]COUNTRY_INFO!$Y$9:$Y$80,[2]COUNTRY_INFO!J$9:J$80) ->  | AS29: =_xlfn.XLOOKUP($X29,[2]COUNTRY_INFO!$Y$9:$Y$80,[2]COUNTRY_INFO!K$9:K$80) ->  | AV29: =_xlfn.XLOOKUP(X29,[1]COUNTRY_INFO!$X$9:$X$80,[1]COUNTRY_INFO!$S$9:$S$80) ->  | AW29: =_xlfn.XLOOKUP(X29,[2]COUNTRY_INFO!$Y$9:$Y$80,[2]COUNTRY_INFO!$S$9:$S$80) -> 
A30: =IF(INTRO!$E$33<>0,INTRO!$E$33, " ") -> Niger | B30: Maradi | C30: Aguié | D30: 372630 | E30: =IF(INTRO!$E$48="","",ROUND($D30*INTRO!$E$48,0)) -> 67073 | F30: =IF(INTRO!$E$49="","",ROUND($D30*INTRO!$E$49,0)) -> 111789 | G30: =IF(INTRO!$E$50="","",ROUND($D30*INTRO!$E$50,0)) -> 186315 | H30: 1 | I30: 0 | J30: 0 | K30: 2 | L30: =IF(INTRO!$E$37="Endémique",IF($H30>0,IF($H30=4,"Inconnu",IF($H30=99,"Interrompu",$D30)),0),"Non requis") -> 372630 | M30: =IF(INTRO!$E$39="Endémique", IF($I30>0, IF($I30=4,"Inconnu",IF($I30=99,"Interrompu",$D30)), 0),"Non requis") -> Non requis | N30: =IF(INTRO!$E$41="Endémique", IF(AND($J30>1,$J30<5), IF($J30=4, "Inconnu", E30+F30), 0),"Non requis") -> 0 | O30: =IF(INTRO!$E$43="Endémique", IF(AND($K30>0,$K30<5), IF($K30=4,"Inconnu", IF($K30=1, $F30*0.33, IF($K30=2, $F30*0.5+$G30*0.2, SUM(F30:G30)))), 0),"Non requis") -> 93157.5 | P30: 1 | Q30: 0 | R30: 0 | S30: 0 | X30: 35354 | Y30: Aguié | AB30: =_xlfn.XLOOKUP($X30,[1]COUNTRY_INFO!$X$9:$X$80,[1]COUNTRY_INFO!D$9:D$80) ->  | AF30: =_xlfn.XLOOKUP($X30,[1]COUNTRY_INFO!$X$9:$X$80,[1]COUNTRY_INFO!H$9:H$80) ->  | AG30: =_xlfn.XLOOKUP($X30,[1]COUNTRY_INFO!$X$9:$X$80,[1]COUNTRY_INFO!I$9:I$80) ->  | AH30: =_xlfn.XLOOKUP($X30,[1]COUNTRY_INFO!$X$9:$X$80,[1]COUNTRY_INFO!J$9:J$80) ->  | AI30: =_xlfn.XLOOKUP($X30,[1]COUNTRY_INFO!$X$9:$X$80,[1]COUNTRY_INFO!K$9:K$80) ->  | AP30: =_xlfn.XLOOKUP($X30,[2]COUNTRY_INFO!$Y$9:$Y$80,[2]COUNTRY_INFO!H$9:H$80) ->  | AQ30: =_xlfn.XLOOKUP($X30,[2]COUNTRY_INFO!$Y$9:$Y$80,[2]COUNTRY_INFO!I$9:I$80) ->  | AR30: =_xlfn.XLOOKUP($X30,[2]COUNTRY_INFO!$Y$9:$Y$80,[2]COUNTRY_INFO!J$9:J$80) ->  | AS30: =_xlfn.XLOOKUP($X30,[2]COUNTRY_INFO!$Y$9:$Y$80,[2]COUNTRY_INFO!K$9:K$80) ->  | AV30: =_xlfn.XLOOKUP(X30,[1]COUNTRY_INFO!$X$9:$X$80,[1]COUNTRY_INFO!$S$9:$S$80) ->  | AW30: =_xlfn.XLOOKUP(X30,[2]COUNTRY_INFO!$Y$9:$Y$80,[2]COUNTRY_INFO!$S$9:$S$80) -> 
A31: =IF(INTRO!$E$33<>0,INTRO!$E$33, " ") -> Niger | B31: Maradi | C31: Bermo | D31: 79184 | E31: =IF(INTRO!$E$48="","",ROUND($D31*INTRO!$E$48,0)) -> 14253 | F31: =IF(INTRO!$E$49="","",ROUND($D31*INTRO!$E$49,0)) -> 23755 | G31: =IF(INTRO!$E$50="","",ROUND($D31*INTRO!$E$50,0)) -> 39592 | H31: 99 | I31: 0 | J31: 0 | K31: 2 | L31: =IF(INTRO!$E$37="Endémique",IF($H31>0,IF($H31=4,"Inconnu",IF($H31=99,"Interrompu",$D31)),0),"Non requis") -> Interrompu | M31: =IF(INTRO!$E$39="Endémique", IF($I31>0, IF($I31=4,"Inconnu",IF($I31=99,"Interrompu",$D31)), 0),"Non requis") -> Non requis | N31: =IF(INTRO!$E$41="Endémique", IF(AND($J31>1,$J31<5), IF($J31=4, "Inconnu", E31+F31), 0),"Non requis") -> 0 | O31: =IF(INTRO!$E$43="Endémique", IF(AND($K31>0,$K31<5), IF($K31=4,"Inconnu", IF($K31=1, $F31*0.33, IF($K31=2, $F31*0.5+$G31*0.2, SUM(F31:G31)))), 0),"Non requis") -> 19795.9 | P31: 0 | Q31: 0 | R31: 0 | S31: 0 | X31: 35357 | Y31: Bermo | AB31: =_xlfn.XLOOKUP($X31,[1]COUNTRY_INFO!$X$9:$X$80,[1]COUNTRY_INFO!D$9:D$80) ->  | AF31: =_xlfn.XLOOKUP($X31,[1]COUNTRY_INFO!$X$9:$X$80,[1]COUNTRY_INFO!H$9:H$80) ->  | AG31: =_xlfn.XLOOKUP($X31,[1]COUNTRY_INFO!$X$9:$X$80,[1]COUNTRY_INFO!I$9:I$80) ->  | AH31: =_xlfn.XLOOKUP($X31,[1]COUNTRY_INFO!$X$9:$X$80,[1]COUNTRY_INFO!J$9:J$80) ->  | AI31: =_xlfn.XLOOKUP($X31,[1]COUNTRY_INFO!$X$9:$X$80,[1]COUNTRY_INFO!K$9:K$80) ->  | AP31: =_xlfn.XLOOKUP($X31,[2]COUNTRY_INFO!$Y$9:$Y$80,[2]COUNTRY_INFO!H$9:H$80) ->  | AQ31: =_xlfn.XLOOKUP($X31,[2]COUNTRY_INFO!$Y$9:$Y$80,[2]COUNTRY_INFO!I$9:I$80) ->  | AR31: =_xlfn.XLOOKUP($X31,[2]COUNTRY_INFO!$Y$9:$Y$80,[2]COUNTRY_INFO!J$9:J$80) ->  | AS31: =_xlfn.XLOOKUP($X31,[2]COUNTRY_INFO!$Y$9:$Y$80,[2]COUNTRY_INFO!K$9:K$80) ->  | AV31: =_xlfn.XLOOKUP(X31,[1]COUNTRY_INFO!$X$9:$X$80,[1]COUNTRY_INFO!$S$9:$S$80) ->  | AW31: =_xlfn.XLOOKUP(X31,[2]COUNTRY_INFO!$Y$9:$Y$80,[2]COUNTRY_INFO!$S$9:$S$80) -> 
A32: =IF(INTRO!$E$33<>0,INTRO!$E$33, " ") -> Niger | B32: Maradi | C32: Dakoro | D32: 954949 | E32: =IF(INTRO!$E$48="","",ROUND($D32*INTRO!$E$48,0)) -> 171891 | F32: =IF(INTRO!$E$49="","",ROUND($D32*INTRO!$E$49,0)) -> 286485 | G32: =IF(INTRO!$E$50="","",ROUND($D32*INTRO!$E$50,0)) -> 477475 | H32: 99 | I32: 0 | J32: 1 | K32: 2 | L32: =IF(INTRO!$E$37="Endémique",IF($H32>0,IF($H32=4,"Inconnu",IF($H32=99,"Interrompu",$D32)),0),"Non requis") -> Interrompu | M32: =IF(INTRO!$E$39="Endémique", IF($I32>0, IF($I32=4,"Inconnu",IF($I32=99,"Interrompu",$D32)), 0),"Non requis") -> Non requis | N32: =IF(INTRO!$E$41="Endémique", IF(AND($J32>1,$J32<5), IF($J32=4, "Inconnu", E32+F32), 0),"Non requis") -> 0 | O32: =IF(INTRO!$E$43="Endémique", IF(AND($K32>0,$K32<5), IF($K32=4,"Inconnu", IF($K32=1, $F32*0.33, IF($K32=2, $F32*0.5+$G32*0.2, SUM(F32:G32)))), 0),"Non requis") -> 238737.5 | P32: 0 | Q32: 0 | R32: 0 | S32: 0 | X32: 35356 | Y32: Dakoro | AB32: =_xlfn.XLOOKUP($X32,[1]COUNTRY_INFO!$X$9:$X$80,[1]COUNTRY_INFO!D$9:D$80) ->  | AF32: =_xlfn.XLOOKUP($X32,[1]COUNTRY_INFO!$X$9:$X$80,[1]COUNTRY_INFO!H$9:H$80) ->  | AG32: =_xlfn.XLOOKUP($X32,[1]COUNTRY_INFO!$X$9:$X$80,[1]COUNTRY_INFO!I$9:I$80) ->  | AH32: =_xlfn.XLOOKUP($X32,[1]COUNTRY_INFO!$X$9:$X$80,[1]COUNTRY_INFO!J$9:J$80) ->  | AI32: =_xlfn.XLOOKUP($X32,[1]COUNTRY_INFO!$X$9:$X$80,[1]COUNTRY_INFO!K$9:K$80) ->  | AP32: =_xlfn.XLOOKUP($X32,[2]COUNTRY_INFO!$Y$9:$Y$80,[2]COUNTRY_INFO!H$9:H$80) ->  | AQ32: =_xlfn.XLOOKUP($X32,[2]COUNTRY_INFO!$Y$9:$Y$80,[2]COUNTRY_INFO!I$9:I$80) ->  | AR32: =_xlfn.XLOOKUP($X32,[2]COUNTRY_INFO!$Y$9:$Y$80,[2]COUNTRY_INFO!J$9:J$80) ->  | AS32: =_xlfn.XLOOKUP($X32,[2]COUNTRY_INFO!$Y$9:$Y$80,[2]COUNTRY_INFO!K$9:K$80) ->  | AV32: =_xlfn.XLOOKUP(X32,[1]COUNTRY_INFO!$X$9:$X$80,[1]COUNTRY_INFO!$S$9:$S$80) ->  | AW32: =_xlfn.XLOOKUP(X32,[2]COUNTRY_INFO!$Y$9:$Y$80,[2]COUNTRY_INFO!$S$9:$S$80) -> 
A33: =IF(INTRO!$E$33<>0,INTRO!$E$33, " ") -> Niger | B33: Maradi | C33: Gazaoua | D33: 243177 | E33: =IF(INTRO!$E$48="","",ROUND($D33*INTRO!$E$48,0)) -> 43772 | F33: =IF(INTRO!$E$49="","",ROUND($D33*INTRO!$E$49,0)) -> 72953 | G33: =IF(INTRO!$E$50="","",ROUND($D33*INTRO!$E$50,0)) -> 121589 | H33: 1 | I33: 0 | J33: 1 | K33: 2 | L33: =IF(INTRO!$E$37="Endémique",IF($H33>0,IF($H33=4,"Inconnu",IF($H33=99,"Interrompu",$D33)),0),"Non requis") -> 243177 | M33: =IF(INTRO!$E$39="Endémique", IF($I33>0, IF($I33=4,"Inconnu",IF($I33=99,"Interrompu",$D33)), 0),"Non requis") -> Non requis | N33: =IF(INTRO!$E$41="Endémique", IF(AND($J33>1,$J33<5), IF($J33=4, "Inconnu", E33+F33), 0),"Non requis") -> 0 | O33: =IF(INTRO!$E$43="Endémique", IF(AND($K33>0,$K33<5), IF($K33=4,"Inconnu", IF($K33=1, $F33*0.33, IF($K33=2, $F33*0.5+$G33*0.2, SUM(F33:G33)))), 0),"Non requis") -> 60794.3 | P33: 1 | Q33: 0 | R33: 0 | S33: 0 | X33: 35355 | Y33: Gazaoua | AB33: =_xlfn.XLOOKUP($X33,[1]COUNTRY_INFO!$X$9:$X$80,[1]COUNTRY_INFO!D$9:D$80) ->  | AF33: =_xlfn.XLOOKUP($X33,[1]COUNTRY_INFO!$X$9:$X$80,[1]COUNTRY_INFO!H$9:H$80) ->  | AG33: =_xlfn.XLOOKUP($X33,[1]COUNTRY_INFO!$X$9:$X$80,[1]COUNTRY_INFO!I$9:I$80) ->  | AH33: =_xlfn.XLOOKUP($X33,[1]COUNTRY_INFO!$X$9:$X$80,[1]COUNTRY_INFO!J$9:J$80) ->  | AI33: =_xlfn.XLOOKUP($X33,[1]COUNTRY_INFO!$X$9:$X$80,[1]COUNTRY_INFO!K$9:K$80) ->  | AP33: =_xlfn.XLOOKUP($X33,[2]COUNTRY_INFO!$Y$9:$Y$80,[2]COUNTRY_INFO!H$9:H$80) ->  | AQ33: =_xlfn.XLOOKUP($X33,[2]COUNTRY_INFO!$Y$9:$Y$80,[2]COUNTRY_INFO!I$9:I$80) ->  | AR33: =_xlfn.XLOOKUP($X33,[2]COUNTRY_INFO!$Y$9:$Y$80,[2]COUNTRY_INFO!J$9:J$80) ->  | AS33: =_xlfn.XLOOKUP($X33,[2]COUNTRY_INFO!$Y$9:$Y$80,[2]COUNTRY_INFO!K$9:K$80) ->  | AV33: =_xlfn.XLOOKUP(X33,[1]COUNTRY_INFO!$X$9:$X$80,[1]COUNTRY_INFO!$S$9:$S$80) ->  | AW33: =_xlfn.XLOOKUP(X33,[2]COUNTRY_INFO!$Y$9:$Y$80,[2]COUNTRY_INFO!$S$9:$S$80) -> 
A34: =IF(INTRO!$E$33<>0,INTRO!$E$33, " ") -> Niger | B34: Maradi | C34: Guidan Roumdji | D34: 793316 | E34: =IF(INTRO!$E$48="","",ROUND($D34*INTRO!$E$48,0)) -> 142797 | F34: =IF(INTRO!$E$49="","",ROUND($D34*INTRO!$E$49,0)) -> 237995 | G34: =IF(INTRO!$E$50="","",ROUND($D34*INTRO!$E$50,0)) -> 396658 | H34: 99 | I34: 0 | J34: 1 | K34: 2 | L34: =IF(INTRO!$E$37="Endémique",IF($H34>0,IF($H34=4,"Inconnu",IF($H34=99,"Interrompu",$D34)),0),"Non requis") -> Interrompu | M34: =IF(INTRO!$E$39="Endémique", IF($I34>0, IF($I34=4,"Inconnu",IF($I34=99,"Interrompu",$D34)), 0),"Non requis") -> Non requis | N34: =IF(INTRO!$E$41="Endémique", IF(AND($J34>1,$J34<5), IF($J34=4, "Inconnu", E34+F34), 0),"Non requis") -> 0 | O34: =IF(INTRO!$E$43="Endémique", IF(AND($K34>0,$K34<5), IF($K34=4,"Inconnu", IF($K34=1, $F34*0.33, IF($K34=2, $F34*0.5+$G34*0.2, SUM(F34:G34)))), 0),"Non requis") -> 198329.1 | P34: 0 | Q34: 0 | R34: 0 | S34: 0 | X34: 35308 | Y34: Guidan Roumdji | AB34: =_xlfn.XLOOKUP($X34,[1]COUNTRY_INFO!$X$9:$X$80,[1]COUNTRY_INFO!D$9:D$80) ->  | AF34: =_xlfn.XLOOKUP($X34,[1]COUNTRY_INFO!$X$9:$X$80,[1]COUNTRY_INFO!H$9:H$80) ->  | AG34: =_xlfn.XLOOKUP($X34,[1]COUNTRY_INFO!$X$9:$X$80,[1]COUNTRY_INFO!I$9:I$80) ->  | AH34: =_xlfn.XLOOKUP($X34,[1]COUNTRY_INFO!$X$9:$X$80,[1]COUNTRY_INFO!J$9:J$80) ->  | AI34: =_xlfn.XLOOKUP($X34,[1]COUNTRY_INFO!$X$9:$X$80,[1]COUNTRY_INFO!K$9:K$80) ->  | AP34: =_xlfn.XLOOKUP($X34,[2]COUNTRY_INFO!$Y$9:$Y$80,[2]COUNTRY_INFO!H$9:H$80) ->  | AQ34: =_xlfn.XLOOKUP($X34,[2]COUNTRY_INFO!$Y$9:$Y$80,[2]COUNTRY_INFO!I$9:I$80) ->  | AR34: =_xlfn.XLOOKUP($X34,[2]COUNTRY_INFO!$Y$9:$Y$80,[2]COUNTRY_INFO!J$9:J$80) ->  | AS34: =_xlfn.XLOOKUP($X34,[2]COUNTRY_INFO!$Y$9:$Y$80,[2]COUNTRY_INFO!K$9:K$80) ->  | AV34: =_xlfn.XLOOKUP(X34,[1]COUNTRY_INFO!$X$9:$X$80,[1]COUNTRY_INFO!$S$9:$S$80) ->  | AW34: =_xlfn.XLOOKUP(X34,[2]COUNTRY_INFO!$Y$9:$Y$80,[2]COUNTRY_INFO!$S$9:$S$80) -> 
A35: =IF(INTRO!$E$33<>0,INTRO!$E$33, " ") -> Niger | B35: Maradi | C35: Madarounfa | D35: 679928 | E35: =IF(INTRO!$E$48="","",ROUND($D35*INTRO!$E$48,0)) -> 122387 | F35: =IF(INTRO!$E$49="","",ROUND($D35*INTRO!$E$49,0)) -> 203978 | G35: =IF(INTRO!$E$50="","",ROUND($D35*INTRO!$E$50,0)) -> 339964 | H35: 1 | I35: 0 | J35: 1 | K35: 2 | L35: =IF(INTRO!$E$37="Endémique",IF($H35>0,IF($H35=4,"Inconnu",IF($H35=99,"Interrompu",$D35)),0),"Non requis") -> 679928 | M35: =IF(INTRO!$E$39="Endémique", IF($I35>0, IF($I35=4,"Inconnu",IF($I35=99,"Interrompu",$D35)), 0),"Non requis") -> Non requis | N35: =IF(INTRO!$E$41="Endémique", IF(AND($J35>1,$J35<5), IF($J35=4, "Inconnu", E35+F35), 0),"Non requis") -> 0 | O35: =IF(INTRO!$E$43="Endémique", IF(AND($K35>0,$K35<5), IF($K35=4,"Inconnu", IF($K35=1, $F35*0.33, IF($K35=2, $F35*0.5+$G35*0.2, SUM(F35:G35)))), 0),"Non requis") -> 169981.8 | P35: 1 | Q35: 0 | R35: 0 | S35: 0 | X35: 35309 | Y35: Madarounfa | AB35: =_xlfn.XLOOKUP($X35,[1]COUNTRY_INFO!$X$9:$X$80,[1]COUNTRY_INFO!D$9:D$80) ->  | AF35: =_xlfn.XLOOKUP($X35,[1]COUNTRY_INFO!$X$9:$X$80,[1]COUNTRY_INFO!H$9:H$80) ->  | AG35: =_xlfn.XLOOKUP($X35,[1]COUNTRY_INFO!$X$9:$X$80,[1]COUNTRY_INFO!I$9:I$80) ->  | AH35: =_xlfn.XLOOKUP($X35,[1]COUNTRY_INFO!$X$9:$X$80,[1]COUNTRY_INFO!J$9:J$80) ->  | AI35: =_xlfn.XLOOKUP($X35,[1]COUNTRY_INFO!$X$9:$X$80,[1]COUNTRY_INFO!K$9:K$80) ->  | AP35: =_xlfn.XLOOKUP($X35,[2]COUNTRY_INFO!$Y$9:$Y$80,[2]COUNTRY_INFO!H$9:H$80) ->  | AQ35: =_xlfn.XLOOKUP($X35,[2]COUNTRY_INFO!$Y$9:$Y$80,[2]COUNTRY_INFO!I$9:I$80) ->  | AR35: =_xlfn.XLOOKUP($X35,[2]COUNTRY_INFO!$Y$9:$Y$80,[2]COUNTRY_INFO!J$9:J$80) ->  | AS35: =_xlfn.XLOOKUP($X35,[2]COUNTRY_INFO!$Y$9:$Y$80,[2]COUNTRY_INFO!K$9:K$80) ->  | AV35: =_xlfn.XLOOKUP(X35,[1]COUNTRY_INFO!$X$9:$X$80,[1]COUNTRY_INFO!$S$9:$S$80) ->  | AW35: =_xlfn.XLOOKUP(X35,[2]COUNTRY_INFO!$Y$9:$Y$80,[2]COUNTRY_INFO!$S$9:$S$80) -> 
A36: =IF(INTRO!$E$33<>0,INTRO!$E$33, " ") -> Niger | B36: Maradi | C36: Maradi commune | D36: 404823 | E36: =IF(INTRO!$E$48="","",ROUND($D36*INTRO!$E$48,0)) -> 72868 | F36: =IF(INTRO!$E$49="","",ROUND($D36*INTRO!$E$49,0)) -> 121447 | G36: =IF(INTRO!$E$50="","",ROUND($D36*INTRO!$E$50,0)) -> 202412 | H36: 0 | I36: 0 | J36: 1 | K36: 2 | L36: =IF(INTRO!$E$37="Endémique",IF($H36>0,IF($H36=4,"Inconnu",IF($H36=99,"Interrompu",$D36)),0),"Non requis") -> 0 | M36: =IF(INTRO!$E$39="Endémique", IF($I36>0, IF($I36=4,"Inconnu",IF($I36=99,"Interrompu",$D36)), 0),"Non requis") -> Non requis | N36: =IF(INTRO!$E$41="Endémique", IF(AND($J36>1,$J36<5), IF($J36=4, "Inconnu", E36+F36), 0),"Non requis") -> 0 | O36: =IF(INTRO!$E$43="Endémique", IF(AND($K36>0,$K36<5), IF($K36=4,"Inconnu", IF($K36=1, $F36*0.33, IF($K36=2, $F36*0.5+$G36*0.2, SUM(F36:G36)))), 0),"Non requis") -> 101205.9 | P36: 0 | Q36: 0 | R36: 0 | S36: 0 | X36: 35310 | Y36: Maradi | AB36: =_xlfn.XLOOKUP($X36,[1]COUNTRY_INFO!$X$9:$X$80,[1]COUNTRY_INFO!D$9:D$80) ->  | AF36: =_xlfn.XLOOKUP($X36,[1]COUNTRY_INFO!$X$9:$X$80,[1]COUNTRY_INFO!H$9:H$80) ->  | AG36: =_xlfn.XLOOKUP($X36,[1]COUNTRY_INFO!$X$9:$X$80,[1]COUNTRY_INFO!I$9:I$80) ->  | AH36: =_xlfn.XLOOKUP($X36,[1]COUNTRY_INFO!$X$9:$X$80,[1]COUNTRY_INFO!J$9:J$80) ->  | AI36: =_xlfn.XLOOKUP($X36,[1]COUNTRY_INFO!$X$9:$X$80,[1]COUNTRY_INFO!K$9:K$80) ->  | AP36: =_xlfn.XLOOKUP($X36,[2]COUNTRY_INFO!$Y$9:$Y$80,[2]COUNTRY_INFO!H$9:H$80) ->  | AQ36: =_xlfn.XLOOKUP($X36,[2]COUNTRY_INFO!$Y$9:$Y$80,[2]COUNTRY_INFO!I$9:I$80) ->  | AR36: =_xlfn.XLOOKUP($X36,[2]COUNTRY_INFO!$Y$9:$Y$80,[2]COUNTRY_INFO!J$9:J$80) ->  | AS36: =_xlfn.XLOOKUP($X36,[2]COUNTRY_INFO!$Y$9:$Y$80,[2]COUNTRY_INFO!K$9:K$80) ->  | AV36: =_xlfn.XLOOKUP(X36,[1]COUNTRY_INFO!$X$9:$X$80,[1]COUNTRY_INFO!$S$9:$S$80) ->  | AW36: =_xlfn.XLOOKUP(X36,[2]COUNTRY_INFO!$Y$9:$Y$80,[2]COUNTRY_INFO!$S$9:$S$80) -> 
A37: =IF(INTRO!$E$33<>0,INTRO!$E$33, " ") -> Niger | B37: Maradi | C37: Mayahi | D37: 844014 | E37: =IF(INTRO!$E$48="","",ROUND($D37*INTRO!$E$48,0)) -> 151923 | F37: =IF(INTRO!$E$49="","",ROUND($D37*INTRO!$E$49,0)) -> 253204 | G37: =IF(INTRO!$E$50="","",ROUND($D37*INTRO!$E$50,0)) -> 422007 | H37: 1 | I37: 0 | J37: 1 | K37: 2 | L37: =IF(INTRO!$E$37="Endémique",IF($H37>0,IF($H37=4,"Inconnu",IF($H37=99,"Interrompu",$D37)),0),"Non requis") -> 844014 | M37: =IF(INTRO!$E$39="Endémique", IF($I37>0, IF($I37=4,"Inconnu",IF($I37=99,"Interrompu",$D37)), 0),"Non requis") -> Non requis | N37: =IF(INTRO!$E$41="Endémique", IF(AND($J37>1,$J37<5), IF($J37=4, "Inconnu", E37+F37), 0),"Non requis") -> 0 | O37: =IF(INTRO!$E$43="Endémique", IF(AND($K37>0,$K37<5), IF($K37=4,"Inconnu", IF($K37=1, $F37*0.33, IF($K37=2, $F37*0.5+$G37*0.2, SUM(F37:G37)))), 0),"Non requis") -> 211003.4 | P37: 1 | Q37: 0 | R37: 0 | S37: 0 | X37: 35311 | Y37: Mayahi | AB37: =_xlfn.XLOOKUP($X37,[1]COUNTRY_INFO!$X$9:$X$80,[1]COUNTRY_INFO!D$9:D$80) ->  | AF37: =_xlfn.XLOOKUP($X37,[1]COUNTRY_INFO!$X$9:$X$80,[1]COUNTRY_INFO!H$9:H$80) ->  | AG37: =_xlfn.XLOOKUP($X37,[1]COUNTRY_INFO!$X$9:$X$80,[1]COUNTRY_INFO!I$9:I$80) ->  | AH37: =_xlfn.XLOOKUP($X37,[1]COUNTRY_INFO!$X$9:$X$80,[1]COUNTRY_INFO!J$9:J$80) ->  | AI37: =_xlfn.XLOOKUP($X37,[1]COUNTRY_INFO!$X$9:$X$80,[1]COUNTRY_INFO!K$9:K$80) ->  | AP37: =_xlfn.XLOOKUP($X37,[2]COUNTRY_INFO!$Y$9:$Y$80,[2]COUNTRY_INFO!H$9:H$80) ->  | AQ37: =_xlfn.XLOOKUP($X37,[2]COUNTRY_INFO!$Y$9:$Y$80,[2]COUNTRY_INFO!I$9:I$80) ->  | AR37: =_xlfn.XLOOKUP($X37,[2]COUNTRY_INFO!$Y$9:$Y$80,[2]COUNTRY_INFO!J$9:J$80) ->  | AS37: =_xlfn.XLOOKUP($X37,[2]COUNTRY_INFO!$Y$9:$Y$80,[2]COUNTRY_INFO!K$9:K$80) ->  | AV37: =_xlfn.XLOOKUP(X37,[1]COUNTRY_INFO!$X$9:$X$80,[1]COUNTRY_INFO!$S$9:$S$80) ->  | AW37: =_xlfn.XLOOKUP(X37,[2]COUNTRY_INFO!$Y$9:$Y$80,[2]COUNTRY_INFO!$S$9:$S$80) -> 
A38: =IF(INTRO!$E$33<>0,INTRO!$E$33, " ") -> Niger | B38: Maradi | C38: Tessaoua | D38: 781402 | E38: =IF(INTRO!$E$48="","",ROUND($D38*INTRO!$E$48,0)) -> 140652 | F38: =IF(INTRO!$E$49="","",ROUND($D38*INTRO!$E$49,0)) -> 234421 | G38: =IF(INTRO!$E$50="","",ROUND($D38*INTRO!$E$50,0)) -> 390701 | H38: 1 | I38: 0 | J38: 1 | K38: 3 | L38: =IF(INTRO!$E$37="Endémique",IF($H38>0,IF($H38=4,"Inconnu",IF($H38=99,"Interrompu",$D38)),0),"Non requis") -> 781402 | M38: =IF(INTRO!$E$39="Endémique", IF($I38>0, IF($I38=4,"Inconnu",IF($I38=99,"Interrompu",$D38)), 0),"Non requis") -> Non requis | N38: =IF(INTRO!$E$41="Endémique", IF(AND($J38>1,$J38<5), IF($J38=4, "Inconnu", E38+F38), 0),"Non requis") -> 0 | O38: =IF(INTRO!$E$43="Endémique", IF(AND($K38>0,$K38<5), IF($K38=4,"Inconnu", IF($K38=1, $F38*0.33, IF($K38=2, $F38*0.5+$G38*0.2, SUM(F38:G38)))), 0),"Non requis") -> 625122 | P38: 1 | Q38: 0 | R38: 0 | S38: 1 | X38: 35312 | Y38: Tessaoua | AB38: =_xlfn.XLOOKUP($X38,[1]COUNTRY_INFO!$X$9:$X$80,[1]COUNTRY_INFO!D$9:D$80) ->  | AF38: =_xlfn.XLOOKUP($X38,[1]COUNTRY_INFO!$X$9:$X$80,[1]COUNTRY_INFO!H$9:H$80) ->  | AG38: =_xlfn.XLOOKUP($X38,[1]COUNTRY_INFO!$X$9:$X$80,[1]COUNTRY_INFO!I$9:I$80) ->  | AH38: =_xlfn.XLOOKUP($X38,[1]COUNTRY_INFO!$X$9:$X$80,[1]COUNTRY_INFO!J$9:J$80) ->  | AI38: =_xlfn.XLOOKUP($X38,[1]COUNTRY_INFO!$X$9:$X$80,[1]COUNTRY_INFO!K$9:K$80) ->  | AP38: =_xlfn.XLOOKUP($X38,[2]COUNTRY_INFO!$Y$9:$Y$80,[2]COUNTRY_INFO!H$9:H$80) ->  | AQ38: =_xlfn.XLOOKUP($X38,[2]COUNTRY_INFO!$Y$9:$Y$80,[2]COUNTRY_INFO!I$9:I$80) ->  | AR38: =_xlfn.XLOOKUP($X38,[2]COUNTRY_INFO!$Y$9:$Y$80,[2]COUNTRY_INFO!J$9:J$80) ->  | AS38: =_xlfn.XLOOKUP($X38,[2]COUNTRY_INFO!$Y$9:$Y$80,[2]COUNTRY_INFO!K$9:K$80) ->  | AV38: =_xlfn.XLOOKUP(X38,[1]COUNTRY_INFO!$X$9:$X$80,[1]COUNTRY_INFO!$S$9:$S$80) ->  | AW38: =_xlfn.XLOOKUP(X38,[2]COUNTRY_INFO!$Y$9:$Y$80,[2]COUNTRY_INFO!$S$9:$S$80) -> 
A39: =IF(INTRO!$E$33<>0,INTRO!$E$33, " ") -> Niger | B39: Tahoua | C39: Abalak | D39: 367830 | E39: =IF(INTRO!$E$48="","",ROUND($D39*INTRO!$E$48,0)) -> 66209 | F39: =IF(INTRO!$E$49="","",ROUND($D39*INTRO!$E$49,0)) -> 110349 | G39: =IF(INTRO!$E$50="","",ROUND($D39*INTRO!$E$50,0)) -> 183915 | H39: 0 | I39: 0 | J39: 0 | K39: 3 | L39: =IF(INTRO!$E$37="Endémique",IF($H39>0,IF($H39=4,"Inconnu",IF($H39=99,"Interrompu",$D39)),0),"Non requis") -> 0 | M39: =IF(INTRO!$E$39="Endémique", IF($I39>0, IF($I39=4,"Inconnu",IF($I39=99,"Interrompu",$D39)), 0),"Non requis") -> Non requis | N39: =IF(INTRO!$E$41="Endémique", IF(AND($J39>1,$J39<5), IF($J39=4, "Inconnu", E39+F39), 0),"Non requis") -> 0 | O39: =IF(INTRO!$E$43="Endémique", IF(AND($K39>0,$K39<5), IF($K39=4,"Inconnu", IF($K39=1, $F39*0.33, IF($K39=2, $F39*0.5+$G39*0.2, SUM(F39:G39)))), 0),"Non requis") -> 294264 | P39: 0 | Q39: 0 | R39: 0 | S39: 1 | X39: 35316 | Y39: Abalak | AB39: =_xlfn.XLOOKUP($X39,[1]COUNTRY_INFO!$X$9:$X$80,[1]COUNTRY_INFO!D$9:D$80) ->  | AF39: =_xlfn.XLOOKUP($X39,[1]COUNTRY_INFO!$X$9:$X$80,[1]COUNTRY_INFO!H$9:H$80) ->  | AG39: =_xlfn.XLOOKUP($X39,[1]COUNTRY_INFO!$X$9:$X$80,[1]COUNTRY_INFO!I$9:I$80) ->  | AH39: =_xlfn.XLOOKUP($X39,[1]COUNTRY_INFO!$X$9:$X$80,[1]COUNTRY_INFO!J$9:J$80) ->  | AI39: =_xlfn.XLOOKUP($X39,[1]COUNTRY_INFO!$X$9:$X$80,[1]COUNTRY_INFO!K$9:K$80) ->  | AP39: =_xlfn.XLOOKUP($X39,[2]COUNTRY_INFO!$Y$9:$Y$80,[2]COUNTRY_INFO!H$9:H$80) ->  | AQ39: =_xlfn.XLOOKUP($X39,[2]COUNTRY_INFO!$Y$9:$Y$80,[2]COUNTRY_INFO!I$9:I$80) ->  | AR39: =_xlfn.XLOOKUP($X39,[2]COUNTRY_INFO!$Y$9:$Y$80,[2]COUNTRY_INFO!J$9:J$80) ->  | AS39: =_xlfn.XLOOKUP($X39,[2]COUNTRY_INFO!$Y$9:$Y$80,[2]COUNTRY_INFO!K$9:K$80) ->  | AV39: =_xlfn.XLOOKUP(X39,[1]COUNTRY_INFO!$X$9:$X$80,[1]COUNTRY_INFO!$S$9:$S$80) ->  | AW39: =_xlfn.XLOOKUP(X39,[2]COUNTRY_INFO!$Y$9:$Y$80,[2]COUNTRY_INFO!$S$9:$S$80) -> 
A40: =IF(INTRO!$E$33<>0,INTRO!$E$33, " ") -> Niger | B40: Tahoua | C40: Bagaroua | D40: 103751 | E40: =IF(INTRO!$E$48="","",ROUND($D40*INTRO!$E$48,0)) -> 18675 | F40: =IF(INTRO!$E$49="","",ROUND($D40*INTRO!$E$49,0)) -> 31125 | G40: =IF(INTRO!$E$50="","",ROUND($D40*INTRO!$E$50,0)) -> 51876 | H40: 99 | I40: 0 | J40: 0 | K40: 2 | L40: =IF(INTRO!$E$37="Endémique",IF($H40>0,IF($H40=4,"Inconnu",IF($H40=99,"Interrompu",$D40)),0),"Non requis") -> Interrompu | M40: =IF(INTRO!$E$39="Endémique", IF($I40>0, IF($I40=4,"Inconnu",IF($I40=99,"Interrompu",$D40)), 0),"Non requis") -> Non requis | N40: =IF(INTRO!$E$41="Endémique", IF(AND($J40>1,$J40<5), IF($J40=4, "Inconnu", E40+F40), 0),"Non requis") -> 0 | O40: =IF(INTRO!$E$43="Endémique", IF(AND($K40>0,$K40<5), IF($K40=4,"Inconnu", IF($K40=1, $F40*0.33, IF($K40=2, $F40*0.5+$G40*0.2, SUM(F40:G40)))), 0),"Non requis") -> 25937.7 | P40: 0 | Q40: 0 | R40: 0 | S40: 0 | X40: 35365 | Y40: Bagaroua | AB40: =_xlfn.XLOOKUP($X40,[1]COUNTRY_INFO!$X$9:$X$80,[1]COUNTRY_INFO!D$9:D$80) ->  | AF40: =_xlfn.XLOOKUP($X40,[1]COUNTRY_INFO!$X$9:$X$80,[1]COUNTRY_INFO!H$9:H$80) ->  | AG40: =_xlfn.XLOOKUP($X40,[1]COUNTRY_INFO!$X$9:$X$80,[1]COUNTRY_INFO!I$9:I$80) ->  | AH40: =_xlfn.XLOOKUP($X40,[1]COUNTRY_INFO!$X$9:$X$80,[1]COUNTRY_INFO!J$9:J$80) ->  | AI40: =_xlfn.XLOOKUP($X40,[1]COUNTRY_INFO!$X$9:$X$80,[1]COUNTRY_INFO!K$9:K$80) ->  | AP40: =_xlfn.XLOOKUP($X40,[2]COUNTRY_INFO!$Y$9:$Y$80,[2]COUNTRY_INFO!H$9:H$80) ->  | AQ40: =_xlfn.XLOOKUP($X40,[2]COUNTRY_INFO!$Y$9:$Y$80,[2]COUNTRY_INFO!I$9:I$80) ->  | AR40: =_xlfn.XLOOKUP($X40,[2]COUNTRY_INFO!$Y$9:$Y$80,[2]COUNTRY_INFO!J$9:J$80) ->  | AS40: =_xlfn.XLOOKUP($X40,[2]COUNTRY_INFO!$Y$9:$Y$80,[2]COUNTRY_INFO!K$9:K$80) ->  | AV40: =_xlfn.XLOOKUP(X40,[1]COUNTRY_INFO!$X$9:$X$80,[1]COUNTRY_INFO!$S$9:$S$80) ->  | AW40: =_xlfn.XLOOKUP(X40,[2]COUNTRY_INFO!$Y$9:$Y$80,[2]COUNTRY_INFO!$S$9:$S$80) -> 
A41: =IF(INTRO!$E$33<>0,INTRO!$E$33, " ") -> Niger | B41: Tahoua | C41: Birni N'Konni | D41: 449038 | E41: =IF(INTRO!$E$48="","",ROUND($D41*INTRO!$E$48,0)) -> 80827 | F41: =IF(INTRO!$E$49="","",ROUND($D41*INTRO!$E$49,0)) -> 134711 | G41: =IF(INTRO!$E$50="","",ROUND($D41*INTRO!$E$50,0)) -> 224519 | H41: 99 | I41: 0 | J41: 0 | K41: 2 | L41: =IF(INTRO!$E$37="Endémique",IF($H41>0,IF($H41=4,"Inconnu",IF($H41=99,"Interrompu",$D41)),0),"Non requis") -> Interrompu | M41: =IF(INTRO!$E$39="Endémique", IF($I41>0, IF($I41=4,"Inconnu",IF($I41=99,"Interrompu",$D41)), 0),"Non requis") -> Non requis | N41: =IF(INTRO!$E$41="Endémique", IF(AND($J41>1,$J41<5), IF($J41=4, "Inconnu", E41+F41), 0),"Non requis") -> 0 | O41: =IF(INTRO!$E$43="Endémique", IF(AND($K41>0,$K41<5), IF($K41=4,"Inconnu", IF($K41=1, $F41*0.33, IF($K41=2, $F41*0.5+$G41*0.2, SUM(F41:G41)))), 0),"Non requis") -> 112259.3 | P41: 0 | Q41: 0 | R41: 0 | S41: 0 | X41: 35362 | Y41: Birnin' Konni | AB41: =_xlfn.XLOOKUP($X41,[1]COUNTRY_INFO!$X$9:$X$80,[1]COUNTRY_INFO!D$9:D$80) ->  | AF41: =_xlfn.XLOOKUP($X41,[1]COUNTRY_INFO!$X$9:$X$80,[1]COUNTRY_INFO!H$9:H$80) ->  | AG41: =_xlfn.XLOOKUP($X41,[1]COUNTRY_INFO!$X$9:$X$80,[1]COUNTRY_INFO!I$9:I$80) ->  | AH41: =_xlfn.XLOOKUP($X41,[1]COUNTRY_INFO!$X$9:$X$80,[1]COUNTRY_INFO!J$9:J$80) ->  | AI41: =_xlfn.XLOOKUP($X41,[1]COUNTRY_INFO!$X$9:$X$80,[1]COUNTRY_INFO!K$9:K$80) ->  | AP41: =_xlfn.XLOOKUP($X41,[2]COUNTRY_INFO!$Y$9:$Y$80,[2]COUNTRY_INFO!H$9:H$80) ->  | AQ41: =_xlfn.XLOOKUP($X41,[2]COUNTRY_INFO!$Y$9:$Y$80,[2]COUNTRY_INFO!I$9:I$80) ->  | AR41: =_xlfn.XLOOKUP($X41,[2]COUNTRY_INFO!$Y$9:$Y$80,[2]COUNTRY_INFO!J$9:J$80) ->  | AS41: =_xlfn.XLOOKUP($X41,[2]COUNTRY_INFO!$Y$9:$Y$80,[2]COUNTRY_INFO!K$9:K$80) ->  | AV41: =_xlfn.XLOOKUP(X41,[1]COUNTRY_INFO!$X$9:$X$80,[1]COUNTRY_INFO!$S$9:$S$80) ->  | AW41: =_xlfn.XLOOKUP(X41,[2]COUNTRY_INFO!$Y$9:$Y$80,[2]COUNTRY_INFO!$S$9:$S$80) -> 
A42: =IF(INTRO!$E$33<>0,INTRO!$E$33, " ") -> Niger | B42: Tahoua | C42: Bouza | D42: 639162 | E42: =IF(INTRO!$E$48="","",ROUND($D42*INTRO!$E$48,0)) -> 115049 | F42: =IF(INTRO!$E$49="","",ROUND($D42*INTRO!$E$49,0)) -> 191749 | G42: =IF(INTRO!$E$50="","",ROUND($D42*INTRO!$E$50,0)) -> 319581 | H42: 99 | I42: 0 | J42: 0 | K42: 2 | L42: =IF(INTRO!$E$37="Endémique",IF($H42>0,IF($H42=4,"Inconnu",IF($H42=99,"Interrompu",$D42)),0),"Non requis") -> Interrompu | M42: =IF(INTRO!$E$39="Endémique", IF($I42>0, IF($I42=4,"Inconnu",IF($I42=99,"Interrompu",$D42)), 0),"Non requis") -> Non requis | N42: =IF(INTRO!$E$41="Endémique", IF(AND($J42>1,$J42<5), IF($J42=4, "Inconnu", E42+F42), 0),"Non requis") -> 0 | O42: =IF(INTRO!$E$43="Endémique", IF(AND($K42>0,$K42<5), IF($K42=4,"Inconnu", IF($K42=1, $F42*0.33, IF($K42=2, $F42*0.5+$G42*0.2, SUM(F42:G42)))), 0),"Non requis") -> 159790.7 | P42: 0 | Q42: 0 | R42: 0 | S42: 0 | X42: 35318 | Y42: Bouza | AB42: =_xlfn.XLOOKUP($X42,[1]COUNTRY_INFO!$X$9:$X$80,[1]COUNTRY_INFO!D$9:D$80) ->  | AF42: =_xlfn.XLOOKUP($X42,[1]COUNTRY_INFO!$X$9:$X$80,[1]COUNTRY_INFO!H$9:H$80) ->  | AG42: =_xlfn.XLOOKUP($X42,[1]COUNTRY_INFO!$X$9:$X$80,[1]COUNTRY_INFO!I$9:I$80) ->  | AH42: =_xlfn.XLOOKUP($X42,[1]COUNTRY_INFO!$X$9:$X$80,[1]COUNTRY_INFO!J$9:J$80) ->  | AI42: =_xlfn.XLOOKUP($X42,[1]COUNTRY_INFO!$X$9:$X$80,[1]COUNTRY_INFO!K$9:K$80) ->  | AP42: =_xlfn.XLOOKUP($X42,[2]COUNTRY_INFO!$Y$9:$Y$80,[2]COUNTRY_INFO!H$9:H$80) ->  | AQ42: =_xlfn.XLOOKUP($X42,[2]COUNTRY_INFO!$Y$9:$Y$80,[2]COUNTRY_INFO!I$9:I$80) ->  | AR42: =_xlfn.XLOOKUP($X42,[2]COUNTRY_INFO!$Y$9:$Y$80,[2]COUNTRY_INFO!J$9:J$80) ->  | AS42: =_xlfn.XLOOKUP($X42,[2]COUNTRY_INFO!$Y$9:$Y$80,[2]COUNTRY_INFO!K$9:K$80) ->  | AV42: =_xlfn.XLOOKUP(X42,[1]COUNTRY_INFO!$X$9:$X$80,[1]COUNTRY_INFO!$S$9:$S$80) ->  | AW42: =_xlfn.XLOOKUP(X42,[2]COUNTRY_INFO!$Y$9:$Y$80,[2]COUNTRY_INFO!$S$9:$S$80) -> 
A43: =IF(INTRO!$E$33<>0,INTRO!$E$33, " ") -> Niger | B43: Tahoua | C43: Illéla | D43: 483101 | E43: =IF(INTRO!$E$48="","",ROUND($D43*INTRO!$E$48,0)) -> 86958 | F43: =IF(INTRO!$E$49="","",ROUND($D43*INTRO!$E$49,0)) -> 144930 | G43: =IF(INTRO!$E$50="","",ROUND($D43*INTRO!$E$50,0)) -> 241551 | H43: 99 | I43: 0 | J43: 0 | K43: 2 | L43: =IF(INTRO!$E$37="Endémique",IF($H43>0,IF($H43=4,"Inconnu",IF($H43=99,"Interrompu",$D43)),0),"Non requis") -> Interrompu | M43: =IF(INTRO!$E$39="Endémique", IF($I43>0, IF($I43=4,"Inconnu",IF($I43=99,"Interrompu",$D43)), 0),"Non requis") -> Non requis | N43: =IF(INTRO!$E$41="Endémique", IF(AND($J43>1,$J43<5), IF($J43=4, "Inconnu", E43+F43), 0),"Non requis") -> 0 | O43: =IF(INTRO!$E$43="Endémique", IF(AND($K43>0,$K43<5), IF($K43=4,"Inconnu", IF($K43=1, $F43*0.33, IF($K43=2, $F43*0.5+$G43*0.2, SUM(F43:G43)))), 0),"Non requis") -> 120775.2 | P43: 0 | Q43: 0 | R43: 0 | S43: 0 | X43: 35364 | Y43: Illela | AB43: =_xlfn.XLOOKUP($X43,[1]COUNTRY_INFO!$X$9:$X$80,[1]COUNTRY_INFO!D$9:D$80) ->  | AF43: =_xlfn.XLOOKUP($X43,[1]COUNTRY_INFO!$X$9:$X$80,[1]COUNTRY_INFO!H$9:H$80) ->  | AG43: =_xlfn.XLOOKUP($X43,[1]COUNTRY_INFO!$X$9:$X$80,[1]COUNTRY_INFO!I$9:I$80) ->  | AH43: =_xlfn.XLOOKUP($X43,[1]COUNTRY_INFO!$X$9:$X$80,[1]COUNTRY_INFO!J$9:J$80) ->  | AI43: =_xlfn.XLOOKUP($X43,[1]COUNTRY_INFO!$X$9:$X$80,[1]COUNTRY_INFO!K$9:K$80) ->  | AP43: =_xlfn.XLOOKUP($X43,[2]COUNTRY_INFO!$Y$9:$Y$80,[2]COUNTRY_INFO!H$9:H$80) ->  | AQ43: =_xlfn.XLOOKUP($X43,[2]COUNTRY_INFO!$Y$9:$Y$80,[2]COUNTRY_INFO!I$9:I$80) ->  | AR43: =_xlfn.XLOOKUP($X43,[2]COUNTRY_INFO!$Y$9:$Y$80,[2]COUNTRY_INFO!J$9:J$80) ->  | AS43: =_xlfn.XLOOKUP($X43,[2]COUNTRY_INFO!$Y$9:$Y$80,[2]COUNTRY_INFO!K$9:K$80) ->  | AV43: =_xlfn.XLOOKUP(X43,[1]COUNTRY_INFO!$X$9:$X$80,[1]COUNTRY_INFO!$S$9:$S$80) ->  | AW43: =_xlfn.XLOOKUP(X43,[2]COUNTRY_INFO!$Y$9:$Y$80,[2]COUNTRY_INFO!$S$9:$S$80) -> 
A44: =IF(INTRO!$E$33<>0,INTRO!$E$33, " ") -> Niger | B44: Tahoua | C44: Keita | D44: 483786 | E44: =IF(INTRO!$E$48="","",ROUND($D44*INTRO!$E$48,0)) -> 87081 | F44: =IF(INTRO!$E$49="","",ROUND($D44*INTRO!$E$49,0)) -> 145136 | G44: =IF(INTRO!$E$50="","",ROUND($D44*INTRO!$E$50,0)) -> 241893 | H44: 99 | I44: 0 | J44: 0 | K44: 2 | L44: =IF(INTRO!$E$37="Endémique",IF($H44>0,IF($H44=4,"Inconnu",IF($H44=99,"Interrompu",$D44)),0),"Non requis") -> Interrompu | M44: =IF(INTRO!$E$39="Endémique", IF($I44>0, IF($I44=4,"Inconnu",IF($I44=99,"Interrompu",$D44)), 0),"Non requis") -> Non requis | N44: =IF(INTRO!$E$41="Endémique", IF(AND($J44>1,$J44<5), IF($J44=4, "Inconnu", E44+F44), 0),"Non requis") -> 0 | O44: =IF(INTRO!$E$43="Endémique", IF(AND($K44>0,$K44<5), IF($K44=4,"Inconnu", IF($K44=1, $F44*0.33, IF($K44=2, $F44*0.5+$G44*0.2, SUM(F44:G44)))), 0),"Non requis") -> 120946.6 | P44: 0 | Q44: 0 | R44: 0 | S44: 0 | X44: 35320 | Y44: Keita | AB44: =_xlfn.XLOOKUP($X44,[1]COUNTRY_INFO!$X$9:$X$80,[1]COUNTRY_INFO!D$9:D$80) ->  | AF44: =_xlfn.XLOOKUP($X44,[1]COUNTRY_INFO!$X$9:$X$80,[1]COUNTRY_INFO!H$9:H$80) ->  | AG44: =_xlfn.XLOOKUP($X44,[1]COUNTRY_INFO!$X$9:$X$80,[1]COUNTRY_INFO!I$9:I$80) ->  | AH44: =_xlfn.XLOOKUP($X44,[1]COUNTRY_INFO!$X$9:$X$80,[1]COUNTRY_INFO!J$9:J$80) ->  | AI44: =_xlfn.XLOOKUP($X44,[1]COUNTRY_INFO!$X$9:$X$80,[1]COUNTRY_INFO!K$9:K$80) ->  | AP44: =_xlfn.XLOOKUP($X44,[2]COUNTRY_INFO!$Y$9:$Y$80,[2]COUNTRY_INFO!H$9:H$80) ->  | AQ44: =_xlfn.XLOOKUP($X44,[2]COUNTRY_INFO!$Y$9:$Y$80,[2]COUNTRY_INFO!I$9:I$80) ->  | AR44: =_xlfn.XLOOKUP($X44,[2]COUNTRY_INFO!$Y$9:$Y$80,[2]COUNTRY_INFO!J$9:J$80) ->  | AS44: =_xlfn.XLOOKUP($X44,[2]COUNTRY_INFO!$Y$9:$Y$80,[2]COUNTRY_INFO!K$9:K$80) ->  | AV44: =_xlfn.XLOOKUP(X44,[1]COUNTRY_INFO!$X$9:$X$80,[1]COUNTRY_INFO!$S$9:$S$80) ->  | AW44: =_xlfn.XLOOKUP(X44,[2]COUNTRY_INFO!$Y$9:$Y$80,[2]COUNTRY_INFO!$S$9:$S$80) -> 
A45: =IF(INTRO!$E$33<>0,INTRO!$E$33, " ") -> Niger | B45: Tahoua | C45: Madaoua | D45: 782928 | E45: =IF(INTRO!$E$48="","",ROUND($D45*INTRO!$E$48,0)) -> 140927 | F45: =IF(INTRO!$E$49="","",ROUND($D45*INTRO!$E$49,0)) -> 234878 | G45: =IF(INTRO!$E$50="","",ROUND($D45*INTRO!$E$50,0)) -> 391464 | H45: 99 | I45: 0 | J45: 0 | K45: 2 | L45: =IF(INTRO!$E$37="Endémique",IF($H45>0,IF($H45=4,"Inconnu",IF($H45=99,"Interrompu",$D45)),0),"Non requis") -> Interrompu | M45: =IF(INTRO!$E$39="Endémique", IF($I45>0, IF($I45=4,"Inconnu",IF($I45=99,"Interrompu",$D45)), 0),"Non requis") -> Non requis | N45: =IF(INTRO!$E$41="Endémique", IF(AND($J45>1,$J45<5), IF($J45=4, "Inconnu", E45+F45), 0),"Non requis") -> 0 | O45: =IF(INTRO!$E$43="Endémique", IF(AND($K45>0,$K45<5), IF($K45=4,"Inconnu", IF($K45=1, $F45*0.33, IF($K45=2, $F45*0.5+$G45*0.2, SUM(F45:G45)))), 0),"Non requis") -> 195731.8 | P45: 0 | Q45: 0 | R45: 0 | S45: 0 | X45: 35321 | Y45: Madaoua | AB45: =_xlfn.XLOOKUP($X45,[1]COUNTRY_INFO!$X$9:$X$80,[1]COUNTRY_INFO!D$9:D$80) ->  | AF45: =_xlfn.XLOOKUP($X45,[1]COUNTRY_INFO!$X$9:$X$80,[1]COUNTRY_INFO!H$9:H$80) ->  | AG45: =_xlfn.XLOOKUP($X45,[1]COUNTRY_INFO!$X$9:$X$80,[1]COUNTRY_INFO!I$9:I$80) ->  | AH45: =_xlfn.XLOOKUP($X45,[1]COUNTRY_INFO!$X$9:$X$80,[1]COUNTRY_INFO!J$9:J$80) ->  | AI45: =_xlfn.XLOOKUP($X45,[1]COUNTRY_INFO!$X$9:$X$80,[1]COUNTRY_INFO!K$9:K$80) ->  | AP45: =_xlfn.XLOOKUP($X45,[2]COUNTRY_INFO!$Y$9:$Y$80,[2]COUNTRY_INFO!H$9:H$80) ->  | AQ45: =_xlfn.XLOOKUP($X45,[2]COUNTRY_INFO!$Y$9:$Y$80,[2]COUNTRY_INFO!I$9:I$80) ->  | AR45: =_xlfn.XLOOKUP($X45,[2]COUNTRY_INFO!$Y$9:$Y$80,[2]COUNTRY_INFO!J$9:J$80) ->  | AS45: =_xlfn.XLOOKUP($X45,[2]COUNTRY_INFO!$Y$9:$Y$80,[2]COUNTRY_INFO!K$9:K$80) ->  | AV45: =_xlfn.XLOOKUP(X45,[1]COUNTRY_INFO!$X$9:$X$80,[1]COUNTRY_INFO!$S$9:$S$80) ->  | AW45: =_xlfn.XLOOKUP(X45,[2]COUNTRY_INFO!$Y$9:$Y$80,[2]COUNTRY_INFO!$S$9:$S$80) -> 
A46: =IF(INTRO!$E$33<>0,INTRO!$E$33, " ") -> Niger | B46: Tahoua | C46: Malbaza | D46: 333539 | E46: =IF(INTRO!$E$48="","",ROUND($D46*INTRO!$E$48,0)) -> 60037 | F46: =IF(INTRO!$E$49="","",ROUND($D46*INTRO!$E$49,0)) -> 100062 | G46: =IF(INTRO!$E$50="","",ROUND($D46*INTRO!$E$50,0)) -> 166770 | H46: 99 | I46: 0 | J46: 1 | K46: 2 | L46: =IF(INTRO!$E$37="Endémique",IF($H46>0,IF($H46=4,"Inconnu",IF($H46=99,"Interrompu",$D46)),0),"Non requis") -> Interrompu | M46: =IF(INTRO!$E$39="Endémique", IF($I46>0, IF($I46=4,"Inconnu",IF($I46=99,"Interrompu",$D46)), 0),"Non requis") -> Non requis | N46: =IF(INTRO!$E$41="Endémique", IF(AND($J46>1,$J46<5), IF($J46=4, "Inconnu", E46+F46), 0),"Non requis") -> 0 | O46: =IF(INTRO!$E$43="Endémique", IF(AND($K46>0,$K46<5), IF($K46=4,"Inconnu", IF($K46=1, $F46*0.33, IF($K46=2, $F46*0.5+$G46*0.2, SUM(F46:G46)))), 0),"Non requis") -> 83385 | P46: 0 | Q46: 0 | R46: 0 | S46: 0 | X46: 35363 | Y46: Malbaza | AB46: =_xlfn.XLOOKUP($X46,[1]COUNTRY_INFO!$X$9:$X$80,[1]COUNTRY_INFO!D$9:D$80) ->  | AF46: =_xlfn.XLOOKUP($X46,[1]COUNTRY_INFO!$X$9:$X$80,[1]COUNTRY_INFO!H$9:H$80) ->  | AG46: =_xlfn.XLOOKUP($X46,[1]COUNTRY_INFO!$X$9:$X$80,[1]COUNTRY_INFO!I$9:I$80) ->  | AH46: =_xlfn.XLOOKUP($X46,[1]COUNTRY_INFO!$X$9:$X$80,[1]COUNTRY_INFO!J$9:J$80) ->  | AI46: =_xlfn.XLOOKUP($X46,[1]COUNTRY_INFO!$X$9:$X$80,[1]COUNTRY_INFO!K$9:K$80) ->  | AP46: =_xlfn.XLOOKUP($X46,[2]COUNTRY_INFO!$Y$9:$Y$80,[2]COUNTRY_INFO!H$9:H$80) ->  | AQ46: =_xlfn.XLOOKUP($X46,[2]COUNTRY_INFO!$Y$9:$Y$80,[2]COUNTRY_INFO!I$9:I$80) ->  | AR46: =_xlfn.XLOOKUP($X46,[2]COUNTRY_INFO!$Y$9:$Y$80,[2]COUNTRY_INFO!J$9:J$80) ->  | AS46: =_xlfn.XLOOKUP($X46,[2]COUNTRY_INFO!$Y$9:$Y$80,[2]COUNTRY_INFO!K$9:K$80) ->  | AV46: =_xlfn.XLOOKUP(X46,[1]COUNTRY_INFO!$X$9:$X$80,[1]COUNTRY_INFO!$S$9:$S$80) ->  | AW46: =_xlfn.XLOOKUP(X46,[2]COUNTRY_INFO!$Y$9:$Y$80,[2]COUNTRY_INFO!$S$9:$S$80) -> 
A47: =IF(INTRO!$E$33<>0,INTRO!$E$33, " ") -> Niger | B47: Tahoua | C47: Tahoua commune | D47: 214552 | E47: =IF(INTRO!$E$48="","",ROUND($D47*INTRO!$E$48,0)) -> 38619 | F47: =IF(INTRO!$E$49="","",ROUND($D47*INTRO!$E$49,0)) -> 64366 | G47: =IF(INTRO!$E$50="","",ROUND($D47*INTRO!$E$50,0)) -> 107276 | H47: 1 | I47: 0 | J47: 0 | K47: 2 | L47: =IF(INTRO!$E$37="Endémique",IF($H47>0,IF($H47=4,"Inconnu",IF($H47=99,"Interrompu",$D47)),0),"Non requis") -> 214552 | M47: =IF(INTRO!$E$39="Endémique", IF($I47>0, IF($I47=4,"Inconnu",IF($I47=99,"Interrompu",$D47)), 0),"Non requis") -> Non requis | N47: =IF(INTRO!$E$41="Endémique", IF(AND($J47>1,$J47<5), IF($J47=4, "Inconnu", E47+F47), 0),"Non requis") -> 0 | O47: =IF(INTRO!$E$43="Endémique", IF(AND($K47>0,$K47<5), IF($K47=4,"Inconnu", IF($K47=1, $F47*0.33, IF($K47=2, $F47*0.5+$G47*0.2, SUM(F47:G47)))), 0),"Non requis") -> 53638.2 | P47: 1 | Q47: 0 | R47: 0 | S47: 0 | X47: 35367 | Y47: Tahoua commune | AB47: =_xlfn.XLOOKUP($X47,[1]COUNTRY_INFO!$X$9:$X$80,[1]COUNTRY_INFO!D$9:D$80) ->  | AF47: =_xlfn.XLOOKUP($X47,[1]COUNTRY_INFO!$X$9:$X$80,[1]COUNTRY_INFO!H$9:H$80) ->  | AG47: =_xlfn.XLOOKUP($X47,[1]COUNTRY_INFO!$X$9:$X$80,[1]COUNTRY_INFO!I$9:I$80) ->  | AH47: =_xlfn.XLOOKUP($X47,[1]COUNTRY_INFO!$X$9:$X$80,[1]COUNTRY_INFO!J$9:J$80) ->  | AI47: =_xlfn.XLOOKUP($X47,[1]COUNTRY_INFO!$X$9:$X$80,[1]COUNTRY_INFO!K$9:K$80) ->  | AP47: =_xlfn.XLOOKUP($X47,[2]COUNTRY_INFO!$Y$9:$Y$80,[2]COUNTRY_INFO!H$9:H$80) ->  | AQ47: =_xlfn.XLOOKUP($X47,[2]COUNTRY_INFO!$Y$9:$Y$80,[2]COUNTRY_INFO!I$9:I$80) ->  | AR47: =_xlfn.XLOOKUP($X47,[2]COUNTRY_INFO!$Y$9:$Y$80,[2]COUNTRY_INFO!J$9:J$80) ->  | AS47: =_xlfn.XLOOKUP($X47,[2]COUNTRY_INFO!$Y$9:$Y$80,[2]COUNTRY_INFO!K$9:K$80) ->  | AV47: =_xlfn.XLOOKUP(X47,[1]COUNTRY_INFO!$X$9:$X$80,[1]COUNTRY_INFO!$S$9:$S$80) ->  | AW47: =_xlfn.XLOOKUP(X47,[2]COUNTRY_INFO!$Y$9:$Y$80,[2]COUNTRY_INFO!$S$9:$S$80) -> 
A48: =IF(INTRO!$E$33<>0,INTRO!$E$33, " ") -> Niger | B48: Tahoua | C48: Tahoua Departement | D48: 619730 | E48: =IF(INTRO!$E$48="","",ROUND($D48*INTRO!$E$48,0)) -> 111551 | F48: =IF(INTRO!$E$49="","",ROUND($D48*INTRO!$E$49,0)) -> 185919 | G48: =IF(INTRO!$E$50="","",ROUND($D48*INTRO!$E$50,0)) -> 309865 | H48: 1 | I48: 0 | J48: 0 | K48: 2 | L48: =IF(INTRO!$E$37="Endémique",IF($H48>0,IF($H48=4,"Inconnu",IF($H48=99,"Interrompu",$D48)),0),"Non requis") -> 619730 | M48: =IF(INTRO!$E$39="Endémique", IF($I48>0, IF($I48=4,"Inconnu",IF($I48=99,"Interrompu",$D48)), 0),"Non requis") -> Non requis | N48: =IF(INTRO!$E$41="Endémique", IF(AND($J48>1,$J48<5), IF($J48=4, "Inconnu", E48+F48), 0),"Non requis") -> 0 | O48: =IF(INTRO!$E$43="Endémique", IF(AND($K48>0,$K48<5), IF($K48=4,"Inconnu", IF($K48=1, $F48*0.33, IF($K48=2, $F48*0.5+$G48*0.2, SUM(F48:G48)))), 0),"Non requis") -> 154932.5 | P48: 1 | Q48: 0 | R48: 0 | S48: 0 | X48: 35366 | Y48: Tahoua | AB48: =_xlfn.XLOOKUP($X48,[1]COUNTRY_INFO!$X$9:$X$80,[1]COUNTRY_INFO!D$9:D$80) ->  | AF48: =_xlfn.XLOOKUP($X48,[1]COUNTRY_INFO!$X$9:$X$80,[1]COUNTRY_INFO!H$9:H$80) ->  | AG48: =_xlfn.XLOOKUP($X48,[1]COUNTRY_INFO!$X$9:$X$80,[1]COUNTRY_INFO!I$9:I$80) ->  | AH48: =_xlfn.XLOOKUP($X48,[1]COUNTRY_INFO!$X$9:$X$80,[1]COUNTRY_INFO!J$9:J$80) ->  | AI48: =_xlfn.XLOOKUP($X48,[1]COUNTRY_INFO!$X$9:$X$80,[1]COUNTRY_INFO!K$9:K$80) ->  | AP48: =_xlfn.XLOOKUP($X48,[2]COUNTRY_INFO!$Y$9:$Y$80,[2]COUNTRY_INFO!H$9:H$80) ->  | AQ48: =_xlfn.XLOOKUP($X48,[2]COUNTRY_INFO!$Y$9:$Y$80,[2]COUNTRY_INFO!I$9:I$80) ->  | AR48: =_xlfn.XLOOKUP($X48,[2]COUNTRY_INFO!$Y$9:$Y$80,[2]COUNTRY_INFO!J$9:J$80) ->  | AS48: =_xlfn.XLOOKUP($X48,[2]COUNTRY_INFO!$Y$9:$Y$80,[2]COUNTRY_INFO!K$9:K$80) ->  | AV48: =_xlfn.XLOOKUP(X48,[1]COUNTRY_INFO!$X$9:$X$80,[1]COUNTRY_INFO!$S$9:$S$80) ->  | AW48: =_xlfn.XLOOKUP(X48,[2]COUNTRY_INFO!$Y$9:$Y$80,[2]COUNTRY_INFO!$S$9:$S$80) -> 
A49: =IF(INTRO!$E$33<>0,INTRO!$E$33, " ") -> Niger | B49: Tahoua | C49: Tassara | D49: 35099 | E49: =IF(INTRO!$E$48="","",ROUND($D49*INTRO!$E$48,0)) -> 6318 | F49: =IF(INTRO!$E$49="","",ROUND($D49*INTRO!$E$49,0)) -> 10530 | G49: =IF(INTRO!$E$50="","",ROUND($D49*INTRO!$E$50,0)) -> 17550 | H49: 99 | I49: 0 | J49: 1 | K49: 3 | L49: =IF(INTRO!$E$37="Endémique",IF($H49>0,IF($H49=4,"Inconnu",IF($H49=99,"Interrompu",$D49)),0),"Non requis") -> Interrompu | M49: =IF(INTRO!$E$39="Endémique", IF($I49>0, IF($I49=4,"Inconnu",IF($I49=99,"Interrompu",$D49)), 0),"Non requis") -> Non requis | N49: =IF(INTRO!$E$41="Endémique", IF(AND($J49>1,$J49<5), IF($J49=4, "Inconnu", E49+F49), 0),"Non requis") -> 0 | O49: =IF(INTRO!$E$43="Endémique", IF(AND($K49>0,$K49<5), IF($K49=4,"Inconnu", IF($K49=1, $F49*0.33, IF($K49=2, $F49*0.5+$G49*0.2, SUM(F49:G49)))), 0),"Non requis") -> 28080 | P49: 0 | Q49: 0 | R49: 0 | S49: 1 | X49: 35369 | Y49: Tassara | AB49: =_xlfn.XLOOKUP($X49,[1]COUNTRY_INFO!$X$9:$X$80,[1]COUNTRY_INFO!D$9:D$80) ->  | AF49: =_xlfn.XLOOKUP($X49,[1]COUNTRY_INFO!$X$9:$X$80,[1]COUNTRY_INFO!H$9:H$80) ->  | AG49: =_xlfn.XLOOKUP($X49,[1]COUNTRY_INFO!$X$9:$X$80,[1]COUNTRY_INFO!I$9:I$80) ->  | AH49: =_xlfn.XLOOKUP($X49,[1]COUNTRY_INFO!$X$9:$X$80,[1]COUNTRY_INFO!J$9:J$80) ->  | AI49: =_xlfn.XLOOKUP($X49,[1]COUNTRY_INFO!$X$9:$X$80,[1]COUNTRY_INFO!K$9:K$80) ->  | AP49: =_xlfn.XLOOKUP($X49,[2]COUNTRY_INFO!$Y$9:$Y$80,[2]COUNTRY_INFO!H$9:H$80) ->  | AQ49: =_xlfn.XLOOKUP($X49,[2]COUNTRY_INFO!$Y$9:$Y$80,[2]COUNTRY_INFO!I$9:I$80) ->  | AR49: =_xlfn.XLOOKUP($X49,[2]COUNTRY_INFO!$Y$9:$Y$80,[2]COUNTRY_INFO!J$9:J$80) ->  | AS49: =_xlfn.XLOOKUP($X49,[2]COUNTRY_INFO!$Y$9:$Y$80,[2]COUNTRY_INFO!K$9:K$80) ->  | AV49: =_xlfn.XLOOKUP(X49,[1]COUNTRY_INFO!$X$9:$X$80,[1]COUNTRY_INFO!$S$9:$S$80) ->  | AW49: =_xlfn.XLOOKUP(X49,[2]COUNTRY_INFO!$Y$9:$Y$80,[2]COUNTRY_INFO!$S$9:$S$80) -> 
A50: =IF(INTRO!$E$33<>0,INTRO!$E$33, " ") -> Niger | B50: Tahoua | C50: Tchintabaraden | D50: 208220 | E50: =IF(INTRO!$E$48="","",ROUND($D50*INTRO!$E$48,0)) -> 37480 | F50: =IF(INTRO!$E$49="","",ROUND($D50*INTRO!$E$49,0)) -> 62466 | G50: =IF(INTRO!$E$50="","",ROUND($D50*INTRO!$E$50,0)) -> 104110 | H50: 99 | I50: 0 | J50: 1 | K50: 3 | L50: =IF(INTRO!$E$37="Endémique",IF($H50>0,IF($H50=4,"Inconnu",IF($H50=99,"Interrompu",$D50)),0),"Non requis") -> Interrompu | M50: =IF(INTRO!$E$39="Endémique", IF($I50>0, IF($I50=4,"Inconnu",IF($I50=99,"Interrompu",$D50)), 0),"Non requis") -> Non requis | N50: =IF(INTRO!$E$41="Endémique", IF(AND($J50>1,$J50<5), IF($J50=4, "Inconnu", E50+F50), 0),"Non requis") -> 0 | O50: =IF(INTRO!$E$43="Endémique", IF(AND($K50>0,$K50<5), IF($K50=4,"Inconnu", IF($K50=1, $F50*0.33, IF($K50=2, $F50*0.5+$G50*0.2, SUM(F50:G50)))), 0),"Non requis") -> 166576 | P50: 0 | Q50: 0 | R50: 0 | S50: 1 | X50: 35368 | Y50: Tchintabaraden | AB50: =_xlfn.XLOOKUP($X50,[1]COUNTRY_INFO!$X$9:$X$80,[1]COUNTRY_INFO!D$9:D$80) ->  | AF50: =_xlfn.XLOOKUP($X50,[1]COUNTRY_INFO!$X$9:$X$80,[1]COUNTRY_INFO!H$9:H$80) ->  | AG50: =_xlfn.XLOOKUP($X50,[1]COUNTRY_INFO!$X$9:$X$80,[1]COUNTRY_INFO!I$9:I$80) ->  | AH50: =_xlfn.XLOOKUP($X50,[1]COUNTRY_INFO!$X$9:$X$80,[1]COUNTRY_INFO!J$9:J$80) ->  | AI50: =_xlfn.XLOOKUP($X50,[1]COUNTRY_INFO!$X$9:$X$80,[1]COUNTRY_INFO!K$9:K$80) ->  | AP50: =_xlfn.XLOOKUP($X50,[2]COUNTRY_INFO!$Y$9:$Y$80,[2]COUNTRY_INFO!H$9:H$80) ->  | AQ50: =_xlfn.XLOOKUP($X50,[2]COUNTRY_INFO!$Y$9:$Y$80,[2]COUNTRY_INFO!I$9:I$80) ->  | AR50: =_xlfn.XLOOKUP($X50,[2]COUNTRY_INFO!$Y$9:$Y$80,[2]COUNTRY_INFO!J$9:J$80) ->  | AS50: =_xlfn.XLOOKUP($X50,[2]COUNTRY_INFO!$Y$9:$Y$80,[2]COUNTRY_INFO!K$9:K$80) ->  | AV50: =_xlfn.XLOOKUP(X50,[1]COUNTRY_INFO!$X$9:$X$80,[1]COUNTRY_INFO!$S$9:$S$80) ->  | AW50: =_xlfn.XLOOKUP(X50,[2]COUNTRY_INFO!$Y$9:$Y$80,[2]COUNTRY_INFO!$S$9:$S$80) -> 
A51: =IF(INTRO!$E$33<>0,INTRO!$E$33, " ") -> Niger | B51: Tahoua | C51: Tillia | D51: 55962 | E51: =IF(INTRO!$E$48="","",ROUND($D51*INTRO!$E$48,0)) -> 10073 | F51: =IF(INTRO!$E$49="","",ROUND($D51*INTRO!$E$49,0)) -> 16789 | G51: =IF(INTRO!$E$50="","",ROUND($D51*INTRO!$E$50,0)) -> 27981 | H51: 99 | I51: 0 | J51: 1 | K51: 3 | L51: =IF(INTRO!$E$37="Endémique",IF($H51>0,IF($H51=4,"Inconnu",IF($H51=99,"Interrompu",$D51)),0),"Non requis") -> Interrompu | M51: =IF(INTRO!$E$39="Endémique", IF($I51>0, IF($I51=4,"Inconnu",IF($I51=99,"Interrompu",$D51)), 0),"Non requis") -> Non requis | N51: =IF(INTRO!$E$41="Endémique", IF(AND($J51>1,$J51<5), IF($J51=4, "Inconnu", E51+F51), 0),"Non requis") -> 0 | O51: =IF(INTRO!$E$43="Endémique", IF(AND($K51>0,$K51<5), IF($K51=4,"Inconnu", IF($K51=1, $F51*0.33, IF($K51=2, $F51*0.5+$G51*0.2, SUM(F51:G51)))), 0),"Non requis") -> 44770 | P51: 0 | Q51: 0 | R51: 0 | S51: 1 | X51: 35370 | Y51: Tillia | AB51: =_xlfn.XLOOKUP($X51,[1]COUNTRY_INFO!$X$9:$X$80,[1]COUNTRY_INFO!D$9:D$80) ->  | AF51: =_xlfn.XLOOKUP($X51,[1]COUNTRY_INFO!$X$9:$X$80,[1]COUNTRY_INFO!H$9:H$80) ->  | AG51: =_xlfn.XLOOKUP($X51,[1]COUNTRY_INFO!$X$9:$X$80,[1]COUNTRY_INFO!I$9:I$80) ->  | AH51: =_xlfn.XLOOKUP($X51,[1]COUNTRY_INFO!$X$9:$X$80,[1]COUNTRY_INFO!J$9:J$80) ->  | AI51: =_xlfn.XLOOKUP($X51,[1]COUNTRY_INFO!$X$9:$X$80,[1]COUNTRY_INFO!K$9:K$80) ->  | AP51: =_xlfn.XLOOKUP($X51,[2]COUNTRY_INFO!$Y$9:$Y$80,[2]COUNTRY_INFO!H$9:H$80) ->  | AQ51: =_xlfn.XLOOKUP($X51,[2]COUNTRY_INFO!$Y$9:$Y$80,[2]COUNTRY_INFO!I$9:I$80) ->  | AR51: =_xlfn.XLOOKUP($X51,[2]COUNTRY_INFO!$Y$9:$Y$80,[2]COUNTRY_INFO!J$9:J$80) ->  | AS51: =_xlfn.XLOOKUP($X51,[2]COUNTRY_INFO!$Y$9:$Y$80,[2]COUNTRY_INFO!K$9:K$80) ->  | AV51: =_xlfn.XLOOKUP(X51,[1]COUNTRY_INFO!$X$9:$X$80,[1]COUNTRY_INFO!$S$9:$S$80) ->  | AW51: =_xlfn.XLOOKUP(X51,[2]COUNTRY_INFO!$Y$9:$Y$80,[2]COUNTRY_INFO!$S$9:$S$80) -> 
A52: =IF(INTRO!$E$33<>0,INTRO!$E$33, " ") -> Niger | B52: Tillabéri | C52: Abala | D52: 210806 | E52: =IF(INTRO!$E$48="","",ROUND($D52*INTRO!$E$48,0)) -> 37945 | F52: =IF(INTRO!$E$49="","",ROUND($D52*INTRO!$E$49,0)) -> 63242 | G52: =IF(INTRO!$E$50="","",ROUND($D52*INTRO!$E$50,0)) -> 105403 | H52: 0 | I52: 4 | J52: 1 | K52: 3 | L52: =IF(INTRO!$E$37="Endémique",IF($H52>0,IF($H52=4,"Inconnu",IF($H52=99,"Interrompu",$D52)),0),"Non requis") -> 0 | M52: =IF(INTRO!$E$39="Endémique", IF($I52>0, IF($I52=4,"Inconnu",IF($I52=99,"Interrompu",$D52)), 0),"Non requis") -> Non requis | N52: =IF(INTRO!$E$41="Endémique", IF(AND($J52>1,$J52<5), IF($J52=4, "Inconnu", E52+F52), 0),"Non requis") -> 0 | O52: =IF(INTRO!$E$43="Endémique", IF(AND($K52>0,$K52<5), IF($K52=4,"Inconnu", IF($K52=1, $F52*0.33, IF($K52=2, $F52*0.5+$G52*0.2, SUM(F52:G52)))), 0),"Non requis") -> 168645 | P52: 0 | Q52: 0 | R52: 0 | S52: 1 | X52: 35372 | Y52: Abala | AB52: =_xlfn.XLOOKUP($X52,[1]COUNTRY_INFO!$X$9:$X$80,[1]COUNTRY_INFO!D$9:D$80) ->  | AF52: =_xlfn.XLOOKUP($X52,[1]COUNTRY_INFO!$X$9:$X$80,[1]COUNTRY_INFO!H$9:H$80) ->  | AG52: =_xlfn.XLOOKUP($X52,[1]COUNTRY_INFO!$X$9:$X$80,[1]COUNTRY_INFO!I$9:I$80) ->  | AH52: =_xlfn.XLOOKUP($X52,[1]COUNTRY_INFO!$X$9:$X$80,[1]COUNTRY_INFO!J$9:J$80) ->  | AI52: =_xlfn.XLOOKUP($X52,[1]COUNTRY_INFO!$X$9:$X$80,[1]COUNTRY_INFO!K$9:K$80) ->  | AP52: =_xlfn.XLOOKUP($X52,[2]COUNTRY_INFO!$Y$9:$Y$80,[2]COUNTRY_INFO!H$9:H$80) ->  | AQ52: =_xlfn.XLOOKUP($X52,[2]COUNTRY_INFO!$Y$9:$Y$80,[2]COUNTRY_INFO!I$9:I$80) ->  | AR52: =_xlfn.XLOOKUP($X52,[2]COUNTRY_INFO!$Y$9:$Y$80,[2]COUNTRY_INFO!J$9:J$80) ->  | AS52: =_xlfn.XLOOKUP($X52,[2]COUNTRY_INFO!$Y$9:$Y$80,[2]COUNTRY_INFO!K$9:K$80) ->  | AV52: =_xlfn.XLOOKUP(X52,[1]COUNTRY_INFO!$X$9:$X$80,[1]COUNTRY_INFO!$S$9:$S$80) ->  | AW52: =_xlfn.XLOOKUP(X52,[2]COUNTRY_INFO!$Y$9:$Y$80,[2]COUNTRY_INFO!$S$9:$S$80) -> 
A53: =IF(INTRO!$E$33<>0,INTRO!$E$33, " ") -> Niger | B53: Tillabéri | C53: Ayerou | D53: 83322 | E53: =IF(INTRO!$E$48="","",ROUND($D53*INTRO!$E$48,0)) -> 14998 | F53: =IF(INTRO!$E$49="","",ROUND($D53*INTRO!$E$49,0)) -> 24997 | G53: =IF(INTRO!$E$50="","",ROUND($D53*INTRO!$E$50,0)) -> 41661 | H53: 99 | I53: 4 | J53: 1 | K53: 3 | L53: =IF(INTRO!$E$37="Endémique",IF($H53>0,IF($H53=4,"Inconnu",IF($H53=99,"Interrompu",$D53)),0),"Non requis") -> Interrompu | M53: =IF(INTRO!$E$39="Endémique", IF($I53>0, IF($I53=4,"Inconnu",IF($I53=99,"Interrompu",$D53)), 0),"Non requis") -> Non requis | N53: =IF(INTRO!$E$41="Endémique", IF(AND($J53>1,$J53<5), IF($J53=4, "Inconnu", E53+F53), 0),"Non requis") -> 0 | O53: =IF(INTRO!$E$43="Endémique", IF(AND($K53>0,$K53<5), IF($K53=4,"Inconnu", IF($K53=1, $F53*0.33, IF($K53=2, $F53*0.5+$G53*0.2, SUM(F53:G53)))), 0),"Non requis") -> 66658 | P53: 0 | Q53: 0 | R53: 0 | S53: 1 | X53: 35382 | Y53: Ayerou | AB53: =_xlfn.XLOOKUP($X53,[1]COUNTRY_INFO!$X$9:$X$80,[1]COUNTRY_INFO!D$9:D$80) ->  | AF53: =_xlfn.XLOOKUP($X53,[1]COUNTRY_INFO!$X$9:$X$80,[1]COUNTRY_INFO!H$9:H$80) ->  | AG53: =_xlfn.XLOOKUP($X53,[1]COUNTRY_INFO!$X$9:$X$80,[1]COUNTRY_INFO!I$9:I$80) ->  | AH53: =_xlfn.XLOOKUP($X53,[1]COUNTRY_INFO!$X$9:$X$80,[1]COUNTRY_INFO!J$9:J$80) ->  | AI53: =_xlfn.XLOOKUP($X53,[1]COUNTRY_INFO!$X$9:$X$80,[1]COUNTRY_INFO!K$9:K$80) ->  | AP53: =_xlfn.XLOOKUP($X53,[2]COUNTRY_INFO!$Y$9:$Y$80,[2]COUNTRY_INFO!H$9:H$80) ->  | AQ53: =_xlfn.XLOOKUP($X53,[2]COUNTRY_INFO!$Y$9:$Y$80,[2]COUNTRY_INFO!I$9:I$80) ->  | AR53: =_xlfn.XLOOKUP($X53,[2]COUNTRY_INFO!$Y$9:$Y$80,[2]COUNTRY_INFO!J$9:J$80) ->  | AS53: =_xlfn.XLOOKUP($X53,[2]COUNTRY_INFO!$Y$9:$Y$80,[2]COUNTRY_INFO!K$9:K$80) ->  | AV53: =_xlfn.XLOOKUP(X53,[1]COUNTRY_INFO!$X$9:$X$80,[1]COUNTRY_INFO!$S$9:$S$80) ->  | AW53: =_xlfn.XLOOKUP(X53,[2]COUNTRY_INFO!$Y$9:$Y$80,[2]COUNTRY_INFO!$S$9:$S$80) -> 
A54: =IF(INTRO!$E$33<>0,INTRO!$E$33, " ") -> Niger | B54: Tillabéri | C54: Balleyara | D54: 156525 | E54: =IF(INTRO!$E$48="","",ROUND($D54*INTRO!$E$48,0)) -> 28175 | F54: =IF(INTRO!$E$49="","",ROUND($D54*INTRO!$E$49,0)) -> 46958 | G54: =IF(INTRO!$E$50="","",ROUND($D54*INTRO!$E$50,0)) -> 78263 | H54: 0 | I54: 4 | J54: 1 | K54: 3 | L54: =IF(INTRO!$E$37="Endémique",IF($H54>0,IF($H54=4,"Inconnu",IF($H54=99,"Interrompu",$D54)),0),"Non requis") -> 0 | M54: =IF(INTRO!$E$39="Endémique", IF($I54>0, IF($I54=4,"Inconnu",IF($I54=99,"Interrompu",$D54)), 0),"Non requis") -> Non requis | N54: =IF(INTRO!$E$41="Endémique", IF(AND($J54>1,$J54<5), IF($J54=4, "Inconnu", E54+F54), 0),"Non requis") -> 0 | O54: =IF(INTRO!$E$43="Endémique", IF(AND($K54>0,$K54<5), IF($K54=4,"Inconnu", IF($K54=1, $F54*0.33, IF($K54=2, $F54*0.5+$G54*0.2, SUM(F54:G54)))), 0),"Non requis") -> 125221 | P54: 0 | Q54: 0 | R54: 0 | S54: 1 | X54: 35373 | Y54: Baleyara | AB54: =_xlfn.XLOOKUP($X54,[1]COUNTRY_INFO!$X$9:$X$80,[1]COUNTRY_INFO!D$9:D$80) ->  | AF54: =_xlfn.XLOOKUP($X54,[1]COUNTRY_INFO!$X$9:$X$80,[1]COUNTRY_INFO!H$9:H$80) ->  | AG54: =_xlfn.XLOOKUP($X54,[1]COUNTRY_INFO!$X$9:$X$80,[1]COUNTRY_INFO!I$9:I$80) ->  | AH54: =_xlfn.XLOOKUP($X54,[1]COUNTRY_INFO!$X$9:$X$80,[1]COUNTRY_INFO!J$9:J$80) ->  | AI54: =_xlfn.XLOOKUP($X54,[1]COUNTRY_INFO!$X$9:$X$80,[1]COUNTRY_INFO!K$9:K$80) ->  | AP54: =_xlfn.XLOOKUP($X54,[2]COUNTRY_INFO!$Y$9:$Y$80,[2]COUNTRY_INFO!H$9:H$80) ->  | AQ54: =_xlfn.XLOOKUP($X54,[2]COUNTRY_INFO!$Y$9:$Y$80,[2]COUNTRY_INFO!I$9:I$80) ->  | AR54: =_xlfn.XLOOKUP($X54,[2]COUNTRY_INFO!$Y$9:$Y$80,[2]COUNTRY_INFO!J$9:J$80) ->  | AS54: =_xlfn.XLOOKUP($X54,[2]COUNTRY_INFO!$Y$9:$Y$80,[2]COUNTRY_INFO!K$9:K$80) ->  | AV54: =_xlfn.XLOOKUP(X54,[1]COUNTRY_INFO!$X$9:$X$80,[1]COUNTRY_INFO!$S$9:$S$80) ->  | AW54: =_xlfn.XLOOKUP(X54,[2]COUNTRY_INFO!$Y$9:$Y$80,[2]COUNTRY_INFO!$S$9:$S$80) -> 
A55: =IF(INTRO!$E$33<>0,INTRO!$E$33, " ") -> Niger | B55: Tillabéri | C55: Banibangou | D55: 97814 | E55: =IF(INTRO!$E$48="","",ROUND($D55*INTRO!$E$48,0)) -> 17607 | F55: =IF(INTRO!$E$49="","",ROUND($D55*INTRO!$E$49,0)) -> 29344 | G55: =IF(INTRO!$E$50="","",ROUND($D55*INTRO!$E$50,0)) -> 48907 | H55: 0 | I55: 4 | J55: 1 | K55: 3 | L55: =IF(INTRO!$E$37="Endémique",IF($H55>0,IF($H55=4,"Inconnu",IF($H55=99,"Interrompu",$D55)),0),"Non requis") -> 0 | M55: =IF(INTRO!$E$39="Endémique", IF($I55>0, IF($I55=4,"Inconnu",IF($I55=99,"Interrompu",$D55)), 0),"Non requis") -> Non requis | N55: =IF(INTRO!$E$41="Endémique", IF(AND($J55>1,$J55<5), IF($J55=4, "Inconnu", E55+F55), 0),"Non requis") -> 0 | O55: =IF(INTRO!$E$43="Endémique", IF(AND($K55>0,$K55<5), IF($K55=4,"Inconnu", IF($K55=1, $F55*0.33, IF($K55=2, $F55*0.5+$G55*0.2, SUM(F55:G55)))), 0),"Non requis") -> 78251 | P55: 0 | Q55: 0 | R55: 0 | S55: 1 | X55: 35375 | Y55: Banibangou | AB55: =_xlfn.XLOOKUP($X55,[1]COUNTRY_INFO!$X$9:$X$80,[1]COUNTRY_INFO!D$9:D$80) ->  | AF55: =_xlfn.XLOOKUP($X55,[1]COUNTRY_INFO!$X$9:$X$80,[1]COUNTRY_INFO!H$9:H$80) ->  | AG55: =_xlfn.XLOOKUP($X55,[1]COUNTRY_INFO!$X$9:$X$80,[1]COUNTRY_INFO!I$9:I$80) ->  | AH55: =_xlfn.XLOOKUP($X55,[1]COUNTRY_INFO!$X$9:$X$80,[1]COUNTRY_INFO!J$9:J$80) ->  | AI55: =_xlfn.XLOOKUP($X55,[1]COUNTRY_INFO!$X$9:$X$80,[1]COUNTRY_INFO!K$9:K$80) ->  | AP55: =_xlfn.XLOOKUP($X55,[2]COUNTRY_INFO!$Y$9:$Y$80,[2]COUNTRY_INFO!H$9:H$80) ->  | AQ55: =_xlfn.XLOOKUP($X55,[2]COUNTRY_INFO!$Y$9:$Y$80,[2]COUNTRY_INFO!I$9:I$80) ->  | AR55: =_xlfn.XLOOKUP($X55,[2]COUNTRY_INFO!$Y$9:$Y$80,[2]COUNTRY_INFO!J$9:J$80) ->  | AS55: =_xlfn.XLOOKUP($X55,[2]COUNTRY_INFO!$Y$9:$Y$80,[2]COUNTRY_INFO!K$9:K$80) ->  | AV55: =_xlfn.XLOOKUP(X55,[1]COUNTRY_INFO!$X$9:$X$80,[1]COUNTRY_INFO!$S$9:$S$80) ->  | AW55: =_xlfn.XLOOKUP(X55,[2]COUNTRY_INFO!$Y$9:$Y$80,[2]COUNTRY_INFO!$S$9:$S$80) -> 
A56: =IF(INTRO!$E$33<>0,INTRO!$E$33, " ") -> Niger | B56: Tillabéri | C56: Bankilare | D56: 124030 | E56: =IF(INTRO!$E$48="","",ROUND($D56*INTRO!$E$48,0)) -> 22325 | F56: =IF(INTRO!$E$49="","",ROUND($D56*INTRO!$E$49,0)) -> 37209 | G56: =IF(INTRO!$E$50="","",ROUND($D56*INTRO!$E$50,0)) -> 62015 | H56: 99 | I56: 99 | J56: 1 | K56: 3 | L56: =IF(INTRO!$E$37="Endémique",IF($H56>0,IF($H56=4,"Inconnu",IF($H56=99,"Interrompu",$D56)),0),"Non requis") -> Interrompu | M56: =IF(INTRO!$E$39="Endémique", IF($I56>0, IF($I56=4,"Inconnu",IF($I56=99,"Interrompu",$D56)), 0),"Non requis") -> Non requis | N56: =IF(INTRO!$E$41="Endémique", IF(AND($J56>1,$J56<5), IF($J56=4, "Inconnu", E56+F56), 0),"Non requis") -> 0 | O56: =IF(INTRO!$E$43="Endémique", IF(AND($K56>0,$K56<5), IF($K56=4,"Inconnu", IF($K56=1, $F56*0.33, IF($K56=2, $F56*0.5+$G56*0.2, SUM(F56:G56)))), 0),"Non requis") -> 99224 | P56: 0 | Q56: 0 | R56: 0 | S56: 1 | X56: 35379 | Y56: Bankilare | AB56: =_xlfn.XLOOKUP($X56,[1]COUNTRY_INFO!$X$9:$X$80,[1]COUNTRY_INFO!D$9:D$80) ->  | AF56: =_xlfn.XLOOKUP($X56,[1]COUNTRY_INFO!$X$9:$X$80,[1]COUNTRY_INFO!H$9:H$80) ->  | AG56: =_xlfn.XLOOKUP($X56,[1]COUNTRY_INFO!$X$9:$X$80,[1]COUNTRY_INFO!I$9:I$80) ->  | AH56: =_xlfn.XLOOKUP($X56,[1]COUNTRY_INFO!$X$9:$X$80,[1]COUNTRY_INFO!J$9:J$80) ->  | AI56: =_xlfn.XLOOKUP($X56,[1]COUNTRY_INFO!$X$9:$X$80,[1]COUNTRY_INFO!K$9:K$80) ->  | AP56: =_xlfn.XLOOKUP($X56,[2]COUNTRY_INFO!$Y$9:$Y$80,[2]COUNTRY_INFO!H$9:H$80) ->  | AQ56: =_xlfn.XLOOKUP($X56,[2]COUNTRY_INFO!$Y$9:$Y$80,[2]COUNTRY_INFO!I$9:I$80) ->  | AR56: =_xlfn.XLOOKUP($X56,[2]COUNTRY_INFO!$Y$9:$Y$80,[2]COUNTRY_INFO!J$9:J$80) ->  | AS56: =_xlfn.XLOOKUP($X56,[2]COUNTRY_INFO!$Y$9:$Y$80,[2]COUNTRY_INFO!K$9:K$80) ->  | AV56: =_xlfn.XLOOKUP(X56,[1]COUNTRY_INFO!$X$9:$X$80,[1]COUNTRY_INFO!$S$9:$S$80) ->  | AW56: =_xlfn.XLOOKUP(X56,[2]COUNTRY_INFO!$Y$9:$Y$80,[2]COUNTRY_INFO!$S$9:$S$80) -> 
A57: =IF(INTRO!$E$33<>0,INTRO!$E$33, " ") -> Niger | B57: Tillabéri | C57: Filingué | D57: 448133 | E57: =IF(INTRO!$E$48="","",ROUND($D57*INTRO!$E$48,0)) -> 80664 | F57: =IF(INTRO!$E$49="","",ROUND($D57*INTRO!$E$49,0)) -> 134440 | G57: =IF(INTRO!$E$50="","",ROUND($D57*INTRO!$E$50,0)) -> 224067 | H57: 0 | I57: 4 | J57: 1 | K57: 3 | L57: =IF(INTRO!$E$37="Endémique",IF($H57>0,IF($H57=4,"Inconnu",IF($H57=99,"Interrompu",$D57)),0),"Non requis") -> 0 | M57: =IF(INTRO!$E$39="Endémique", IF($I57>0, IF($I57=4,"Inconnu",IF($I57=99,"Interrompu",$D57)), 0),"Non requis") -> Non requis | N57: =IF(INTRO!$E$41="Endémique", IF(AND($J57>1,$J57<5), IF($J57=4, "Inconnu", E57+F57), 0),"Non requis") -> 0 | O57: =IF(INTRO!$E$43="Endémique", IF(AND($K57>0,$K57<5), IF($K57=4,"Inconnu", IF($K57=1, $F57*0.33, IF($K57=2, $F57*0.5+$G57*0.2, SUM(F57:G57)))), 0),"Non requis") -> 358507 | P57: 0 | Q57: 0 | R57: 0 | S57: 1 | X57: 35371 | Y57: Fillingue | AB57: =_xlfn.XLOOKUP($X57,[1]COUNTRY_INFO!$X$9:$X$80,[1]COUNTRY_INFO!D$9:D$80) ->  | AF57: =_xlfn.XLOOKUP($X57,[1]COUNTRY_INFO!$X$9:$X$80,[1]COUNTRY_INFO!H$9:H$80) ->  | AG57: =_xlfn.XLOOKUP($X57,[1]COUNTRY_INFO!$X$9:$X$80,[1]COUNTRY_INFO!I$9:I$80) ->  | AH57: =_xlfn.XLOOKUP($X57,[1]COUNTRY_INFO!$X$9:$X$80,[1]COUNTRY_INFO!J$9:J$80) ->  | AI57: =_xlfn.XLOOKUP($X57,[1]COUNTRY_INFO!$X$9:$X$80,[1]COUNTRY_INFO!K$9:K$80) ->  | AP57: =_xlfn.XLOOKUP($X57,[2]COUNTRY_INFO!$Y$9:$Y$80,[2]COUNTRY_INFO!H$9:H$80) ->  | AQ57: =_xlfn.XLOOKUP($X57,[2]COUNTRY_INFO!$Y$9:$Y$80,[2]COUNTRY_INFO!I$9:I$80) ->  | AR57: =_xlfn.XLOOKUP($X57,[2]COUNTRY_INFO!$Y$9:$Y$80,[2]COUNTRY_INFO!J$9:J$80) ->  | AS57: =_xlfn.XLOOKUP($X57,[2]COUNTRY_INFO!$Y$9:$Y$80,[2]COUNTRY_INFO!K$9:K$80) ->  | AV57: =_xlfn.XLOOKUP(X57,[1]COUNTRY_INFO!$X$9:$X$80,[1]COUNTRY_INFO!$S$9:$S$80) ->  | AW57: =_xlfn.XLOOKUP(X57,[2]COUNTRY_INFO!$Y$9:$Y$80,[2]COUNTRY_INFO!$S$9:$S$80) -> 
A58: =IF(INTRO!$E$33<>0,INTRO!$E$33, " ") -> Niger | B58: Tillabéri | C58: Gothèye | D58: 352169 | E58: =IF(INTRO!$E$48="","",ROUND($D58*INTRO!$E$48,0)) -> 63390 | F58: =IF(INTRO!$E$49="","",ROUND($D58*INTRO!$E$49,0)) -> 105651 | G58: =IF(INTRO!$E$50="","",ROUND($D58*INTRO!$E$50,0)) -> 176085 | H58: 99 | I58: 99 | J58: 1 | K58: 3 | L58: =IF(INTRO!$E$37="Endémique",IF($H58>0,IF($H58=4,"Inconnu",IF($H58=99,"Interrompu",$D58)),0),"Non requis") -> Interrompu | M58: =IF(INTRO!$E$39="Endémique", IF($I58>0, IF($I58=4,"Inconnu",IF($I58=99,"Interrompu",$D58)), 0),"Non requis") -> Non requis | N58: =IF(INTRO!$E$41="Endémique", IF(AND($J58>1,$J58<5), IF($J58=4, "Inconnu", E58+F58), 0),"Non requis") -> 0 | O58: =IF(INTRO!$E$43="Endémique", IF(AND($K58>0,$K58<5), IF($K58=4,"Inconnu", IF($K58=1, $F58*0.33, IF($K58=2, $F58*0.5+$G58*0.2, SUM(F58:G58)))), 0),"Non requis") -> 281736 | P58: 0 | Q58: 0 | R58: 0 | S58: 1 | X58: 35380 | Y58: Gothèye | AB58: =_xlfn.XLOOKUP($X58,[1]COUNTRY_INFO!$X$9:$X$80,[1]COUNTRY_INFO!D$9:D$80) ->  | AF58: =_xlfn.XLOOKUP($X58,[1]COUNTRY_INFO!$X$9:$X$80,[1]COUNTRY_INFO!H$9:H$80) ->  | AG58: =_xlfn.XLOOKUP($X58,[1]COUNTRY_INFO!$X$9:$X$80,[1]COUNTRY_INFO!I$9:I$80) ->  | AH58: =_xlfn.XLOOKUP($X58,[1]COUNTRY_INFO!$X$9:$X$80,[1]COUNTRY_INFO!J$9:J$80) ->  | AI58: =_xlfn.XLOOKUP($X58,[1]COUNTRY_INFO!$X$9:$X$80,[1]COUNTRY_INFO!K$9:K$80) ->  | AP58: =_xlfn.XLOOKUP($X58,[2]COUNTRY_INFO!$Y$9:$Y$80,[2]COUNTRY_INFO!H$9:H$80) ->  | AQ58: =_xlfn.XLOOKUP($X58,[2]COUNTRY_INFO!$Y$9:$Y$80,[2]COUNTRY_INFO!I$9:I$80) ->  | AR58: =_xlfn.XLOOKUP($X58,[2]COUNTRY_INFO!$Y$9:$Y$80,[2]COUNTRY_INFO!J$9:J$80) ->  | AS58: =_xlfn.XLOOKUP($X58,[2]COUNTRY_INFO!$Y$9:$Y$80,[2]COUNTRY_INFO!K$9:K$80) ->  | AV58: =_xlfn.XLOOKUP(X58,[1]COUNTRY_INFO!$X$9:$X$80,[1]COUNTRY_INFO!$S$9:$S$80) ->  | AW58: =_xlfn.XLOOKUP(X58,[2]COUNTRY_INFO!$Y$9:$Y$80,[2]COUNTRY_INFO!$S$9:$S$80) -> 
A59: =IF(INTRO!$E$33<>0,INTRO!$E$33, " ") -> Niger | B59: Tillabéri | C59: Kollo | D59: 679957 | E59: =IF(INTRO!$E$48="","",ROUND($D59*INTRO!$E$48,0)) -> 122392 | F59: =IF(INTRO!$E$49="","",ROUND($D59*INTRO!$E$49,0)) -> 203987 | G59: =IF(INTRO!$E$50="","",ROUND($D59*INTRO!$E$50,0)) -> 339979 | H59: 99 | I59: 99 | J59: 1 | K59: 3 | L59: =IF(INTRO!$E$37="Endémique",IF($H59>0,IF($H59=4,"Inconnu",IF($H59=99,"Interrompu",$D59)),0),"Non requis") -> Interrompu | M59: =IF(INTRO!$E$39="Endémique", IF($I59>0, IF($I59=4,"Inconnu",IF($I59=99,"Interrompu",$D59)), 0),"Non requis") -> Non requis | N59: =IF(INTRO!$E$41="Endémique", IF(AND($J59>1,$J59<5), IF($J59=4, "Inconnu", E59+F59), 0),"Non requis") -> 0 | O59: =IF(INTRO!$E$43="Endémique", IF(AND($K59>0,$K59<5), IF($K59=4,"Inconnu", IF($K59=1, $F59*0.33, IF($K59=2, $F59*0.5+$G59*0.2, SUM(F59:G59)))), 0),"Non requis") -> 543966 | P59: 0 | Q59: 0 | R59: 0 | S59: 1 | X59: 35326 | Y59: Kollo | AB59: =_xlfn.XLOOKUP($X59,[1]COUNTRY_INFO!$X$9:$X$80,[1]COUNTRY_INFO!D$9:D$80) ->  | AF59: =_xlfn.XLOOKUP($X59,[1]COUNTRY_INFO!$X$9:$X$80,[1]COUNTRY_INFO!H$9:H$80) ->  | AG59: =_xlfn.XLOOKUP($X59,[1]COUNTRY_INFO!$X$9:$X$80,[1]COUNTRY_INFO!I$9:I$80) ->  | AH59: =_xlfn.XLOOKUP($X59,[1]COUNTRY_INFO!$X$9:$X$80,[1]COUNTRY_INFO!J$9:J$80) ->  | AI59: =_xlfn.XLOOKUP($X59,[1]COUNTRY_INFO!$X$9:$X$80,[1]COUNTRY_INFO!K$9:K$80) ->  | AP59: =_xlfn.XLOOKUP($X59,[2]COUNTRY_INFO!$Y$9:$Y$80,[2]COUNTRY_INFO!H$9:H$80) ->  | AQ59: =_xlfn.XLOOKUP($X59,[2]COUNTRY_INFO!$Y$9:$Y$80,[2]COUNTRY_INFO!I$9:I$80) ->  | AR59: =_xlfn.XLOOKUP($X59,[2]COUNTRY_INFO!$Y$9:$Y$80,[2]COUNTRY_INFO!J$9:J$80) ->  | AS59: =_xlfn.XLOOKUP($X59,[2]COUNTRY_INFO!$Y$9:$Y$80,[2]COUNTRY_INFO!K$9:K$80) ->  | AV59: =_xlfn.XLOOKUP(X59,[1]COUNTRY_INFO!$X$9:$X$80,[1]COUNTRY_INFO!$S$9:$S$80) ->  | AW59: =_xlfn.XLOOKUP(X59,[2]COUNTRY_INFO!$Y$9:$Y$80,[2]COUNTRY_INFO!$S$9:$S$80) -> 
A60: =IF(INTRO!$E$33<>0,INTRO!$E$33, " ") -> Niger | B60: Tillabéri | C60: Ouallam | D60: 478081 | E60: =IF(INTRO!$E$48="","",ROUND($D60*INTRO!$E$48,0)) -> 86055 | F60: =IF(INTRO!$E$49="","",ROUND($D60*INTRO!$E$49,0)) -> 143424 | G60: =IF(INTRO!$E$50="","",ROUND($D60*INTRO!$E$50,0)) -> 239041 | H60: 0 | I60: 4 | J60: 1 | K60: 3 | L60: =IF(INTRO!$E$37="Endémique",IF($H60>0,IF($H60=4,"Inconnu",IF($H60=99,"Interrompu",$D60)),0),"Non requis") -> 0 | M60: =IF(INTRO!$E$39="Endémique", IF($I60>0, IF($I60=4,"Inconnu",IF($I60=99,"Interrompu",$D60)), 0),"Non requis") -> Non requis | N60: =IF(INTRO!$E$41="Endémique", IF(AND($J60>1,$J60<5), IF($J60=4, "Inconnu", E60+F60), 0),"Non requis") -> 0 | O60: =IF(INTRO!$E$43="Endémique", IF(AND($K60>0,$K60<5), IF($K60=4,"Inconnu", IF($K60=1, $F60*0.33, IF($K60=2, $F60*0.5+$G60*0.2, SUM(F60:G60)))), 0),"Non requis") -> 382465 | P60: 0 | Q60: 0 | R60: 0 | S60: 1 | X60: 35374 | Y60: Ouallam | AB60: =_xlfn.XLOOKUP($X60,[1]COUNTRY_INFO!$X$9:$X$80,[1]COUNTRY_INFO!D$9:D$80) ->  | AF60: =_xlfn.XLOOKUP($X60,[1]COUNTRY_INFO!$X$9:$X$80,[1]COUNTRY_INFO!H$9:H$80) ->  | AG60: =_xlfn.XLOOKUP($X60,[1]COUNTRY_INFO!$X$9:$X$80,[1]COUNTRY_INFO!I$9:I$80) ->  | AH60: =_xlfn.XLOOKUP($X60,[1]COUNTRY_INFO!$X$9:$X$80,[1]COUNTRY_INFO!J$9:J$80) ->  | AI60: =_xlfn.XLOOKUP($X60,[1]COUNTRY_INFO!$X$9:$X$80,[1]COUNTRY_INFO!K$9:K$80) ->  | AP60: =_xlfn.XLOOKUP($X60,[2]COUNTRY_INFO!$Y$9:$Y$80,[2]COUNTRY_INFO!H$9:H$80) ->  | AQ60: =_xlfn.XLOOKUP($X60,[2]COUNTRY_INFO!$Y$9:$Y$80,[2]COUNTRY_INFO!I$9:I$80) ->  | AR60: =_xlfn.XLOOKUP($X60,[2]COUNTRY_INFO!$Y$9:$Y$80,[2]COUNTRY_INFO!J$9:J$80) ->  | AS60: =_xlfn.XLOOKUP($X60,[2]COUNTRY_INFO!$Y$9:$Y$80,[2]COUNTRY_INFO!K$9:K$80) ->  | AV60: =_xlfn.XLOOKUP(X60,[1]COUNTRY_INFO!$X$9:$X$80,[1]COUNTRY_INFO!$S$9:$S$80) ->  | AW60: =_xlfn.XLOOKUP(X60,[2]COUNTRY_INFO!$Y$9:$Y$80,[2]COUNTRY_INFO!$S$9:$S$80) -> 
A61: =IF(INTRO!$E$33<>0,INTRO!$E$33, " ") -> Niger | B61: Tillabéri | C61: Say | D61: 256592 | E61: =IF(INTRO!$E$48="","",ROUND($D61*INTRO!$E$48,0)) -> 46187 | F61: =IF(INTRO!$E$49="","",ROUND($D61*INTRO!$E$49,0)) -> 76978 | G61: =IF(INTRO!$E$50="","",ROUND($D61*INTRO!$E$50,0)) -> 128296 | H61: 99 | I61: 99 | J61: 1 | K61: 3 | L61: =IF(INTRO!$E$37="Endémique",IF($H61>0,IF($H61=4,"Inconnu",IF($H61=99,"Interrompu",$D61)),0),"Non requis") -> Interrompu | M61: =IF(INTRO!$E$39="Endémique", IF($I61>0, IF($I61=4,"Inconnu",IF($I61=99,"Interrompu",$D61)), 0),"Non requis") -> Non requis | N61: =IF(INTRO!$E$41="Endémique", IF(AND($J61>1,$J61<5), IF($J61=4, "Inconnu", E61+F61), 0),"Non requis") -> 0 | O61: =IF(INTRO!$E$43="Endémique", IF(AND($K61>0,$K61<5), IF($K61=4,"Inconnu", IF($K61=1, $F61*0.33, IF($K61=2, $F61*0.5+$G61*0.2, SUM(F61:G61)))), 0),"Non requis") -> 205274 | P61: 0 | Q61: 0 | R61: 0 | S61: 1 | X61: 35376 | Y61: Say | AB61: =_xlfn.XLOOKUP($X61,[1]COUNTRY_INFO!$X$9:$X$80,[1]COUNTRY_INFO!D$9:D$80) ->  | AF61: =_xlfn.XLOOKUP($X61,[1]COUNTRY_INFO!$X$9:$X$80,[1]COUNTRY_INFO!H$9:H$80) ->  | AG61: =_xlfn.XLOOKUP($X61,[1]COUNTRY_INFO!$X$9:$X$80,[1]COUNTRY_INFO!I$9:I$80) ->  | AH61: =_xlfn.XLOOKUP($X61,[1]COUNTRY_INFO!$X$9:$X$80,[1]COUNTRY_INFO!J$9:J$80) ->  | AI61: =_xlfn.XLOOKUP($X61,[1]COUNTRY_INFO!$X$9:$X$80,[1]COUNTRY_INFO!K$9:K$80) ->  | AP61: =_xlfn.XLOOKUP($X61,[2]COUNTRY_INFO!$Y$9:$Y$80,[2]COUNTRY_INFO!H$9:H$80) ->  | AQ61: =_xlfn.XLOOKUP($X61,[2]COUNTRY_INFO!$Y$9:$Y$80,[2]COUNTRY_INFO!I$9:I$80) ->  | AR61: =_xlfn.XLOOKUP($X61,[2]COUNTRY_INFO!$Y$9:$Y$80,[2]COUNTRY_INFO!J$9:J$80) ->  | AS61: =_xlfn.XLOOKUP($X61,[2]COUNTRY_INFO!$Y$9:$Y$80,[2]COUNTRY_INFO!K$9:K$80) ->  | AV61: =_xlfn.XLOOKUP(X61,[1]COUNTRY_INFO!$X$9:$X$80,[1]COUNTRY_INFO!$S$9:$S$80) ->  | AW61: =_xlfn.XLOOKUP(X61,[2]COUNTRY_INFO!$Y$9:$Y$80,[2]COUNTRY_INFO!$S$9:$S$80) -> 
A62: =IF(INTRO!$E$33<>0,INTRO!$E$33, " ") -> Niger | B62: Tillabéri | C62: Téra | D62: 491205 | E62: =IF(INTRO!$E$48="","",ROUND($D62*INTRO!$E$48,0)) -> 88417 | F62: =IF(INTRO!$E$49="","",ROUND($D62*INTRO!$E$49,0)) -> 147362 | G62: =IF(INTRO!$E$50="","",ROUND($D62*INTRO!$E$50,0)) -> 245603 | H62: 99 | I62: 99 | J62: 1 | K62: 3 | L62: =IF(INTRO!$E$37="Endémique",IF($H62>0,IF($H62=4,"Inconnu",IF($H62=99,"Interrompu",$D62)),0),"Non requis") -> Interrompu | M62: =IF(INTRO!$E$39="Endémique", IF($I62>0, IF($I62=4,"Inconnu",IF($I62=99,"Interrompu",$D62)), 0),"Non requis") -> Non requis | N62: =IF(INTRO!$E$41="Endémique", IF(AND($J62>1,$J62<5), IF($J62=4, "Inconnu", E62+F62), 0),"Non requis") -> 0 | O62: =IF(INTRO!$E$43="Endémique", IF(AND($K62>0,$K62<5), IF($K62=4,"Inconnu", IF($K62=1, $F62*0.33, IF($K62=2, $F62*0.5+$G62*0.2, SUM(F62:G62)))), 0),"Non requis") -> 392965 | P62: 0 | Q62: 0 | R62: 0 | S62: 1 | X62: 35378 | Y62: Tera | AB62: =_xlfn.XLOOKUP($X62,[1]COUNTRY_INFO!$X$9:$X$80,[1]COUNTRY_INFO!D$9:D$80) ->  | AF62: =_xlfn.XLOOKUP($X62,[1]COUNTRY_INFO!$X$9:$X$80,[1]COUNTRY_INFO!H$9:H$80) ->  | AG62: =_xlfn.XLOOKUP($X62,[1]COUNTRY_INFO!$X$9:$X$80,[1]COUNTRY_INFO!I$9:I$80) ->  | AH62: =_xlfn.XLOOKUP($X62,[1]COUNTRY_INFO!$X$9:$X$80,[1]COUNTRY_INFO!J$9:J$80) ->  | AI62: =_xlfn.XLOOKUP($X62,[1]COUNTRY_INFO!$X$9:$X$80,[1]COUNTRY_INFO!K$9:K$80) ->  | AP62: =_xlfn.XLOOKUP($X62,[2]COUNTRY_INFO!$Y$9:$Y$80,[2]COUNTRY_INFO!H$9:H$80) ->  | AQ62: =_xlfn.XLOOKUP($X62,[2]COUNTRY_INFO!$Y$9:$Y$80,[2]COUNTRY_INFO!I$9:I$80) ->  | AR62: =_xlfn.XLOOKUP($X62,[2]COUNTRY_INFO!$Y$9:$Y$80,[2]COUNTRY_INFO!J$9:J$80) ->  | AS62: =_xlfn.XLOOKUP($X62,[2]COUNTRY_INFO!$Y$9:$Y$80,[2]COUNTRY_INFO!K$9:K$80) ->  | AV62: =_xlfn.XLOOKUP(X62,[1]COUNTRY_INFO!$X$9:$X$80,[1]COUNTRY_INFO!$S$9:$S$80) ->  | AW62: =_xlfn.XLOOKUP(X62,[2]COUNTRY_INFO!$Y$9:$Y$80,[2]COUNTRY_INFO!$S$9:$S$80) -> 
A63: =IF(INTRO!$E$33<>0,INTRO!$E$33, " ") -> Niger | B63: Tillabéri | C63: Tillabéry | D63: 332166 | E63: =IF(INTRO!$E$48="","",ROUND($D63*INTRO!$E$48,0)) -> 59790 | F63: =IF(INTRO!$E$49="","",ROUND($D63*INTRO!$E$49,0)) -> 99650 | G63: =IF(INTRO!$E$50="","",ROUND($D63*INTRO!$E$50,0)) -> 166083 | H63: 99 | I63: 4 | J63: 1 | K63: 3 | L63: =IF(INTRO!$E$37="Endémique",IF($H63>0,IF($H63=4,"Inconnu",IF($H63=99,"Interrompu",$D63)),0),"Non requis") -> Interrompu | M63: =IF(INTRO!$E$39="Endémique", IF($I63>0, IF($I63=4,"Inconnu",IF($I63=99,"Interrompu",$D63)), 0),"Non requis") -> Non requis | N63: =IF(INTRO!$E$41="Endémique", IF(AND($J63>1,$J63<5), IF($J63=4, "Inconnu", E63+F63), 0),"Non requis") -> 0 | O63: =IF(INTRO!$E$43="Endémique", IF(AND($K63>0,$K63<5), IF($K63=4,"Inconnu", IF($K63=1, $F63*0.33, IF($K63=2, $F63*0.5+$G63*0.2, SUM(F63:G63)))), 0),"Non requis") -> 265733 | P63: 0 | Q63: 0 | R63: 0 | S63: 1 | X63: 35381 | Y63: Tillaberi | AB63: =_xlfn.XLOOKUP($X63,[1]COUNTRY_INFO!$X$9:$X$80,[1]COUNTRY_INFO!D$9:D$80) ->  | AF63: =_xlfn.XLOOKUP($X63,[1]COUNTRY_INFO!$X$9:$X$80,[1]COUNTRY_INFO!H$9:H$80) ->  | AG63: =_xlfn.XLOOKUP($X63,[1]COUNTRY_INFO!$X$9:$X$80,[1]COUNTRY_INFO!I$9:I$80) ->  | AH63: =_xlfn.XLOOKUP($X63,[1]COUNTRY_INFO!$X$9:$X$80,[1]COUNTRY_INFO!J$9:J$80) ->  | AI63: =_xlfn.XLOOKUP($X63,[1]COUNTRY_INFO!$X$9:$X$80,[1]COUNTRY_INFO!K$9:K$80) ->  | AP63: =_xlfn.XLOOKUP($X63,[2]COUNTRY_INFO!$Y$9:$Y$80,[2]COUNTRY_INFO!H$9:H$80) ->  | AQ63: =_xlfn.XLOOKUP($X63,[2]COUNTRY_INFO!$Y$9:$Y$80,[2]COUNTRY_INFO!I$9:I$80) ->  | AR63: =_xlfn.XLOOKUP($X63,[2]COUNTRY_INFO!$Y$9:$Y$80,[2]COUNTRY_INFO!J$9:J$80) ->  | AS63: =_xlfn.XLOOKUP($X63,[2]COUNTRY_INFO!$Y$9:$Y$80,[2]COUNTRY_INFO!K$9:K$80) ->  | AV63: =_xlfn.XLOOKUP(X63,[1]COUNTRY_INFO!$X$9:$X$80,[1]COUNTRY_INFO!$S$9:$S$80) ->  | AW63: =_xlfn.XLOOKUP(X63,[2]COUNTRY_INFO!$Y$9:$Y$80,[2]COUNTRY_INFO!$S$9:$S$80) -> 
A64: =IF(INTRO!$E$33<>0,INTRO!$E$33, " ") -> Niger | B64: Tillabéri | C64: Torodi | D64: 266801 | E64: =IF(INTRO!$E$48="","",ROUND($D64*INTRO!$E$48,0)) -> 48024 | F64: =IF(INTRO!$E$49="","",ROUND($D64*INTRO!$E$49,0)) -> 80040 | G64: =IF(INTRO!$E$50="","",ROUND($D64*INTRO!$E$50,0)) -> 133401 | H64: 99 | I64: 99 | J64: 1 | K64: 3 | L64: =IF(INTRO!$E$37="Endémique",IF($H64>0,IF($H64=4,"Inconnu",IF($H64=99,"Interrompu",$D64)),0),"Non requis") -> Interrompu | M64: =IF(INTRO!$E$39="Endémique", IF($I64>0, IF($I64=4,"Inconnu",IF($I64=99,"Interrompu",$D64)), 0),"Non requis") -> Non requis | N64: =IF(INTRO!$E$41="Endémique", IF(AND($J64>1,$J64<5), IF($J64=4, "Inconnu", E64+F64), 0),"Non requis") -> 0 | O64: =IF(INTRO!$E$43="Endémique", IF(AND($K64>0,$K64<5), IF($K64=4,"Inconnu", IF($K64=1, $F64*0.33, IF($K64=2, $F64*0.5+$G64*0.2, SUM(F64:G64)))), 0),"Non requis") -> 213441 | P64: 0 | Q64: 0 | R64: 0 | S64: 1 | X64: 35377 | Y64: Torodi | AB64: =_xlfn.XLOOKUP($X64,[1]COUNTRY_INFO!$X$9:$X$80,[1]COUNTRY_INFO!D$9:D$80) ->  | AF64: =_xlfn.XLOOKUP($X64,[1]COUNTRY_INFO!$X$9:$X$80,[1]COUNTRY_INFO!H$9:H$80) ->  | AG64: =_xlfn.XLOOKUP($X64,[1]COUNTRY_INFO!$X$9:$X$80,[1]COUNTRY_INFO!I$9:I$80) ->  | AH64: =_xlfn.XLOOKUP($X64,[1]COUNTRY_INFO!$X$9:$X$80,[1]COUNTRY_INFO!J$9:J$80) ->  | AI64: =_xlfn.XLOOKUP($X64,[1]COUNTRY_INFO!$X$9:$X$80,[1]COUNTRY_INFO!K$9:K$80) ->  | AP64: =_xlfn.XLOOKUP($X64,[2]COUNTRY_INFO!$Y$9:$Y$80,[2]COUNTRY_INFO!H$9:H$80) ->  | AQ64: =_xlfn.XLOOKUP($X64,[2]COUNTRY_INFO!$Y$9:$Y$80,[2]COUNTRY_INFO!I$9:I$80) ->  | AR64: =_xlfn.XLOOKUP($X64,[2]COUNTRY_INFO!$Y$9:$Y$80,[2]COUNTRY_INFO!J$9:J$80) ->  | AS64: =_xlfn.XLOOKUP($X64,[2]COUNTRY_INFO!$Y$9:$Y$80,[2]COUNTRY_INFO!K$9:K$80) ->  | AV64: =_xlfn.XLOOKUP(X64,[1]COUNTRY_INFO!$X$9:$X$80,[1]COUNTRY_INFO!$S$9:$S$80) ->  | AW64: =_xlfn.XLOOKUP(X64,[2]COUNTRY_INFO!$Y$9:$Y$80,[2]COUNTRY_INFO!$S$9:$S$80) -> 
A65: =IF(INTRO!$E$33<>0,INTRO!$E$33, " ") -> Niger | B65: Zinder | C65: Belbedji | D65: 144334 | E65: =IF(INTRO!$E$48="","",ROUND($D65*INTRO!$E$48,0)) -> 25980 | F65: =IF(INTRO!$E$49="","",ROUND($D65*INTRO!$E$49,0)) -> 43300 | G65: =IF(INTRO!$E$50="","",ROUND($D65*INTRO!$E$50,0)) -> 72167 | H65: 99 | I65: 0 | J65: 1 | K65: 2 | L65: =IF(INTRO!$E$37="Endémique",IF($H65>0,IF($H65=4,"Inconnu",IF($H65=99,"Interrompu",$D65)),0),"Non requis") -> Interrompu | M65: =IF(INTRO!$E$39="Endémique", IF($I65>0, IF($I65=4,"Inconnu",IF($I65=99,"Interrompu",$D65)), 0),"Non requis") -> Non requis | N65: =IF(INTRO!$E$41="Endémique", IF(AND($J65>1,$J65<5), IF($J65=4, "Inconnu", E65+F65), 0),"Non requis") -> 0 | O65: =IF(INTRO!$E$43="Endémique", IF(AND($K65>0,$K65<5), IF($K65=4,"Inconnu", IF($K65=1, $F65*0.33, IF($K65=2, $F65*0.5+$G65*0.2, SUM(F65:G65)))), 0),"Non requis") -> 36083.4 | P65: 0 | Q65: 0 | R65: 0 | S65: 0 | X65: 35391 | Y65: Belbéji | AB65: =_xlfn.XLOOKUP($X65,[1]COUNTRY_INFO!$X$9:$X$80,[1]COUNTRY_INFO!D$9:D$80) ->  | AF65: =_xlfn.XLOOKUP($X65,[1]COUNTRY_INFO!$X$9:$X$80,[1]COUNTRY_INFO!H$9:H$80) ->  | AG65: =_xlfn.XLOOKUP($X65,[1]COUNTRY_INFO!$X$9:$X$80,[1]COUNTRY_INFO!I$9:I$80) ->  | AH65: =_xlfn.XLOOKUP($X65,[1]COUNTRY_INFO!$X$9:$X$80,[1]COUNTRY_INFO!J$9:J$80) ->  | AI65: =_xlfn.XLOOKUP($X65,[1]COUNTRY_INFO!$X$9:$X$80,[1]COUNTRY_INFO!K$9:K$80) ->  | AP65: =_xlfn.XLOOKUP($X65,[2]COUNTRY_INFO!$Y$9:$Y$80,[2]COUNTRY_INFO!H$9:H$80) ->  | AQ65: =_xlfn.XLOOKUP($X65,[2]COUNTRY_INFO!$Y$9:$Y$80,[2]COUNTRY_INFO!I$9:I$80) ->  | AR65: =_xlfn.XLOOKUP($X65,[2]COUNTRY_INFO!$Y$9:$Y$80,[2]COUNTRY_INFO!J$9:J$80) ->  | AS65: =_xlfn.XLOOKUP($X65,[2]COUNTRY_INFO!$Y$9:$Y$80,[2]COUNTRY_INFO!K$9:K$80) ->  | AV65: =_xlfn.XLOOKUP(X65,[1]COUNTRY_INFO!$X$9:$X$80,[1]COUNTRY_INFO!$S$9:$S$80) ->  | AW65: =_xlfn.XLOOKUP(X65,[2]COUNTRY_INFO!$Y$9:$Y$80,[2]COUNTRY_INFO!$S$9:$S$80) -> 
A66: =IF(INTRO!$E$33<>0,INTRO!$E$33, " ") -> Niger | B66: Zinder | C66: Damagaram takaya | D66: 360893 | E66: =IF(INTRO!$E$48="","",ROUND($D66*INTRO!$E$48,0)) -> 64961 | F66: =IF(INTRO!$E$49="","",ROUND($D66*INTRO!$E$49,0)) -> 108268 | G66: =IF(INTRO!$E$50="","",ROUND($D66*INTRO!$E$50,0)) -> 180447 | H66: 99 | I66: 0 | J66: 1 | K66: 3 | L66: =IF(INTRO!$E$37="Endémique",IF($H66>0,IF($H66=4,"Inconnu",IF($H66=99,"Interrompu",$D66)),0),"Non requis") -> Interrompu | M66: =IF(INTRO!$E$39="Endémique", IF($I66>0, IF($I66=4,"Inconnu",IF($I66=99,"Interrompu",$D66)), 0),"Non requis") -> Non requis | N66: =IF(INTRO!$E$41="Endémique", IF(AND($J66>1,$J66<5), IF($J66=4, "Inconnu", E66+F66), 0),"Non requis") -> 0 | O66: =IF(INTRO!$E$43="Endémique", IF(AND($K66>0,$K66<5), IF($K66=4,"Inconnu", IF($K66=1, $F66*0.33, IF($K66=2, $F66*0.5+$G66*0.2, SUM(F66:G66)))), 0),"Non requis") -> 288715 | P66: 0 | Q66: 0 | R66: 0 | S66: 1 | X66: 35388 | Y66: Damagaram Takaya | AB66: =_xlfn.XLOOKUP($X66,[1]COUNTRY_INFO!$X$9:$X$80,[1]COUNTRY_INFO!D$9:D$80) ->  | AF66: =_xlfn.XLOOKUP($X66,[1]COUNTRY_INFO!$X$9:$X$80,[1]COUNTRY_INFO!H$9:H$80) ->  | AG66: =_xlfn.XLOOKUP($X66,[1]COUNTRY_INFO!$X$9:$X$80,[1]COUNTRY_INFO!I$9:I$80) ->  | AH66: =_xlfn.XLOOKUP($X66,[1]COUNTRY_INFO!$X$9:$X$80,[1]COUNTRY_INFO!J$9:J$80) ->  | AI66: =_xlfn.XLOOKUP($X66,[1]COUNTRY_INFO!$X$9:$X$80,[1]COUNTRY_INFO!K$9:K$80) ->  | AP66: =_xlfn.XLOOKUP($X66,[2]COUNTRY_INFO!$Y$9:$Y$80,[2]COUNTRY_INFO!H$9:H$80) ->  | AQ66: =_xlfn.XLOOKUP($X66,[2]COUNTRY_INFO!$Y$9:$Y$80,[2]COUNTRY_INFO!I$9:I$80) ->  | AR66: =_xlfn.XLOOKUP($X66,[2]COUNTRY_INFO!$Y$9:$Y$80,[2]COUNTRY_INFO!J$9:J$80) ->  | AS66: =_xlfn.XLOOKUP($X66,[2]COUNTRY_INFO!$Y$9:$Y$80,[2]COUNTRY_INFO!K$9:K$80) ->  | AV66: =_xlfn.XLOOKUP(X66,[1]COUNTRY_INFO!$X$9:$X$80,[1]COUNTRY_INFO!$S$9:$S$80) ->  | AW66: =_xlfn.XLOOKUP(X66,[2]COUNTRY_INFO!$Y$9:$Y$80,[2]COUNTRY_INFO!$S$9:$S$80) -> 
A67: =IF(INTRO!$E$33<>0,INTRO!$E$33, " ") -> Niger | B67: Zinder | C67: Dungass | D67: 529537 | E67: =IF(INTRO!$E$48="","",ROUND($D67*INTRO!$E$48,0)) -> 95317 | F67: =IF(INTRO!$E$49="","",ROUND($D67*INTRO!$E$49,0)) -> 158861 | G67: =IF(INTRO!$E$50="","",ROUND($D67*INTRO!$E$50,0)) -> 264769 | H67: 99 | I67: 0 | J67: 1 | K67: 2 | L67: =IF(INTRO!$E$37="Endémique",IF($H67>0,IF($H67=4,"Inconnu",IF($H67=99,"Interrompu",$D67)),0),"Non requis") -> Interrompu | M67: =IF(INTRO!$E$39="Endémique", IF($I67>0, IF($I67=4,"Inconnu",IF($I67=99,"Interrompu",$D67)), 0),"Non requis") -> Non requis | N67: =IF(INTRO!$E$41="Endémique", IF(AND($J67>1,$J67<5), IF($J67=4, "Inconnu", E67+F67), 0),"Non requis") -> 0 | O67: =IF(INTRO!$E$43="Endémique", IF(AND($K67>0,$K67<5), IF($K67=4,"Inconnu", IF($K67=1, $F67*0.33, IF($K67=2, $F67*0.5+$G67*0.2, SUM(F67:G67)))), 0),"Non requis") -> 132384.3 | P67: 0 | Q67: 0 | R67: 0 | S67: 0 | X67: 35386 | Y67: Dungass | AB67: =_xlfn.XLOOKUP($X67,[1]COUNTRY_INFO!$X$9:$X$80,[1]COUNTRY_INFO!D$9:D$80) ->  | AF67: =_xlfn.XLOOKUP($X67,[1]COUNTRY_INFO!$X$9:$X$80,[1]COUNTRY_INFO!H$9:H$80) ->  | AG67: =_xlfn.XLOOKUP($X67,[1]COUNTRY_INFO!$X$9:$X$80,[1]COUNTRY_INFO!I$9:I$80) ->  | AH67: =_xlfn.XLOOKUP($X67,[1]COUNTRY_INFO!$X$9:$X$80,[1]COUNTRY_INFO!J$9:J$80) ->  | AI67: =_xlfn.XLOOKUP($X67,[1]COUNTRY_INFO!$X$9:$X$80,[1]COUNTRY_INFO!K$9:K$80) ->  | AP67: =_xlfn.XLOOKUP($X67,[2]COUNTRY_INFO!$Y$9:$Y$80,[2]COUNTRY_INFO!H$9:H$80) ->  | AQ67: =_xlfn.XLOOKUP($X67,[2]COUNTRY_INFO!$Y$9:$Y$80,[2]COUNTRY_INFO!I$9:I$80) ->  | AR67: =_xlfn.XLOOKUP($X67,[2]COUNTRY_INFO!$Y$9:$Y$80,[2]COUNTRY_INFO!J$9:J$80) ->  | AS67: =_xlfn.XLOOKUP($X67,[2]COUNTRY_INFO!$Y$9:$Y$80,[2]COUNTRY_INFO!K$9:K$80) ->  | AV67: =_xlfn.XLOOKUP(X67,[1]COUNTRY_INFO!$X$9:$X$80,[1]COUNTRY_INFO!$S$9:$S$80) ->  | AW67: =_xlfn.XLOOKUP(X67,[2]COUNTRY_INFO!$Y$9:$Y$80,[2]COUNTRY_INFO!$S$9:$S$80) -> 
A68: =IF(INTRO!$E$33<>0,INTRO!$E$33, " ") -> Niger | B68: Zinder | C68: Gouré | D68: 490557 | E68: =IF(INTRO!$E$48="","",ROUND($D68*INTRO!$E$48,0)) -> 88300 | F68: =IF(INTRO!$E$49="","",ROUND($D68*INTRO!$E$49,0)) -> 147167 | G68: =IF(INTRO!$E$50="","",ROUND($D68*INTRO!$E$50,0)) -> 245279 | H68: 99 | I68: 0 | J68: 1 | K68: 2 | L68: =IF(INTRO!$E$37="Endémique",IF($H68>0,IF($H68=4,"Inconnu",IF($H68=99,"Interrompu",$D68)),0),"Non requis") -> Interrompu | M68: =IF(INTRO!$E$39="Endémique", IF($I68>0, IF($I68=4,"Inconnu",IF($I68=99,"Interrompu",$D68)), 0),"Non requis") -> Non requis | N68: =IF(INTRO!$E$41="Endémique", IF(AND($J68>1,$J68<5), IF($J68=4, "Inconnu", E68+F68), 0),"Non requis") -> 0 | O68: =IF(INTRO!$E$43="Endémique", IF(AND($K68>0,$K68<5), IF($K68=4,"Inconnu", IF($K68=1, $F68*0.33, IF($K68=2, $F68*0.5+$G68*0.2, SUM(F68:G68)))), 0),"Non requis") -> 122639.3 | P68: 0 | Q68: 0 | R68: 0 | S68: 0 | X68: 35383 | Y68: Goure | AB68: =_xlfn.XLOOKUP($X68,[1]COUNTRY_INFO!$X$9:$X$80,[1]COUNTRY_INFO!D$9:D$80) ->  | AF68: =_xlfn.XLOOKUP($X68,[1]COUNTRY_INFO!$X$9:$X$80,[1]COUNTRY_INFO!H$9:H$80) ->  | AG68: =_xlfn.XLOOKUP($X68,[1]COUNTRY_INFO!$X$9:$X$80,[1]COUNTRY_INFO!I$9:I$80) ->  | AH68: =_xlfn.XLOOKUP($X68,[1]COUNTRY_INFO!$X$9:$X$80,[1]COUNTRY_INFO!J$9:J$80) ->  | AI68: =_xlfn.XLOOKUP($X68,[1]COUNTRY_INFO!$X$9:$X$80,[1]COUNTRY_INFO!K$9:K$80) ->  | AP68: =_xlfn.XLOOKUP($X68,[2]COUNTRY_INFO!$Y$9:$Y$80,[2]COUNTRY_INFO!H$9:H$80) ->  | AQ68: =_xlfn.XLOOKUP($X68,[2]COUNTRY_INFO!$Y$9:$Y$80,[2]COUNTRY_INFO!I$9:I$80) ->  | AR68: =_xlfn.XLOOKUP($X68,[2]COUNTRY_INFO!$Y$9:$Y$80,[2]COUNTRY_INFO!J$9:J$80) ->  | AS68: =_xlfn.XLOOKUP($X68,[2]COUNTRY_INFO!$Y$9:$Y$80,[2]COUNTRY_INFO!K$9:K$80) ->  | AV68: =_xlfn.XLOOKUP(X68,[1]COUNTRY_INFO!$X$9:$X$80,[1]COUNTRY_INFO!$S$9:$S$80) ->  | AW68: =_xlfn.XLOOKUP(X68,[2]COUNTRY_INFO!$Y$9:$Y$80,[2]COUNTRY_INFO!$S$9:$S$80) -> 
A69: =IF(INTRO!$E$33<>0,INTRO!$E$33, " ") -> Niger | B69: Zinder | C69: Magaria | D69: 864552 | E69: =IF(INTRO!$E$48="","",ROUND($D69*INTRO!$E$48,0)) -> 155619 | F69: =IF(INTRO!$E$49="","",ROUND($D69*INTRO!$E$49,0)) -> 259366 | G69: =IF(INTRO!$E$50="","",ROUND($D69*INTRO!$E$50,0)) -> 432276 | H69: 99 | I69: 0 | J69: 1 | K69: 2 | L69: =IF(INTRO!$E$37="Endémique",IF($H69>0,IF($H69=4,"Inconnu",IF($H69=99,"Interrompu",$D69)),0),"Non requis") -> Interrompu | M69: =IF(INTRO!$E$39="Endémique", IF($I69>0, IF($I69=4,"Inconnu",IF($I69=99,"Interrompu",$D69)), 0),"Non requis") -> Non requis | N69: =IF(INTRO!$E$41="Endémique", IF(AND($J69>1,$J69<5), IF($J69=4, "Inconnu", E69+F69), 0),"Non requis") -> 0 | O69: =IF(INTRO!$E$43="Endémique", IF(AND($K69>0,$K69<5), IF($K69=4,"Inconnu", IF($K69=1, $F69*0.33, IF($K69=2, $F69*0.5+$G69*0.2, SUM(F69:G69)))), 0),"Non requis") -> 216138.2 | P69: 0 | Q69: 0 | R69: 0 | S69: 0 | X69: 35385 | Y69: Magaria | AB69: =_xlfn.XLOOKUP($X69,[1]COUNTRY_INFO!$X$9:$X$80,[1]COUNTRY_INFO!D$9:D$80) ->  | AF69: =_xlfn.XLOOKUP($X69,[1]COUNTRY_INFO!$X$9:$X$80,[1]COUNTRY_INFO!H$9:H$80) ->  | AG69: =_xlfn.XLOOKUP($X69,[1]COUNTRY_INFO!$X$9:$X$80,[1]COUNTRY_INFO!I$9:I$80) ->  | AH69: =_xlfn.XLOOKUP($X69,[1]COUNTRY_INFO!$X$9:$X$80,[1]COUNTRY_INFO!J$9:J$80) ->  | AI69: =_xlfn.XLOOKUP($X69,[1]COUNTRY_INFO!$X$9:$X$80,[1]COUNTRY_INFO!K$9:K$80) ->  | AP69: =_xlfn.XLOOKUP($X69,[2]COUNTRY_INFO!$Y$9:$Y$80,[2]COUNTRY_INFO!H$9:H$80) ->  | AQ69: =_xlfn.XLOOKUP($X69,[2]COUNTRY_INFO!$Y$9:$Y$80,[2]COUNTRY_INFO!I$9:I$80) ->  | AR69: =_xlfn.XLOOKUP($X69,[2]COUNTRY_INFO!$Y$9:$Y$80,[2]COUNTRY_INFO!J$9:J$80) ->  | AS69: =_xlfn.XLOOKUP($X69,[2]COUNTRY_INFO!$Y$9:$Y$80,[2]COUNTRY_INFO!K$9:K$80) ->  | AV69: =_xlfn.XLOOKUP(X69,[1]COUNTRY_INFO!$X$9:$X$80,[1]COUNTRY_INFO!$S$9:$S$80) ->  | AW69: =_xlfn.XLOOKUP(X69,[2]COUNTRY_INFO!$Y$9:$Y$80,[2]COUNTRY_INFO!$S$9:$S$80) -> 
A70: =IF(INTRO!$E$33<>0,INTRO!$E$33, " ") -> Niger | B70: Zinder | C70: Matamèye | D70: 597347 | E70: =IF(INTRO!$E$48="","",ROUND($D70*INTRO!$E$48,0)) -> 107522 | F70: =IF(INTRO!$E$49="","",ROUND($D70*INTRO!$E$49,0)) -> 179204 | G70: =IF(INTRO!$E$50="","",ROUND($D70*INTRO!$E$50,0)) -> 298674 | H70: 99 | I70: 0 | J70: 0 | K70: 2 | L70: =IF(INTRO!$E$37="Endémique",IF($H70>0,IF($H70=4,"Inconnu",IF($H70=99,"Interrompu",$D70)),0),"Non requis") -> Interrompu | M70: =IF(INTRO!$E$39="Endémique", IF($I70>0, IF($I70=4,"Inconnu",IF($I70=99,"Interrompu",$D70)), 0),"Non requis") -> Non requis | N70: =IF(INTRO!$E$41="Endémique", IF(AND($J70>1,$J70<5), IF($J70=4, "Inconnu", E70+F70), 0),"Non requis") -> 0 | O70: =IF(INTRO!$E$43="Endémique", IF(AND($K70>0,$K70<5), IF($K70=4,"Inconnu", IF($K70=1, $F70*0.33, IF($K70=2, $F70*0.5+$G70*0.2, SUM(F70:G70)))), 0),"Non requis") -> 149336.8 | P70: 0 | Q70: 0 | R70: 0 | S70: 0 | X70: 35333 | Y70: Matamaye | AB70: =_xlfn.XLOOKUP($X70,[1]COUNTRY_INFO!$X$9:$X$80,[1]COUNTRY_INFO!D$9:D$80) ->  | AF70: =_xlfn.XLOOKUP($X70,[1]COUNTRY_INFO!$X$9:$X$80,[1]COUNTRY_INFO!H$9:H$80) ->  | AG70: =_xlfn.XLOOKUP($X70,[1]COUNTRY_INFO!$X$9:$X$80,[1]COUNTRY_INFO!I$9:I$80) ->  | AH70: =_xlfn.XLOOKUP($X70,[1]COUNTRY_INFO!$X$9:$X$80,[1]COUNTRY_INFO!J$9:J$80) ->  | AI70: =_xlfn.XLOOKUP($X70,[1]COUNTRY_INFO!$X$9:$X$80,[1]COUNTRY_INFO!K$9:K$80) ->  | AP70: =_xlfn.XLOOKUP($X70,[2]COUNTRY_INFO!$Y$9:$Y$80,[2]COUNTRY_INFO!H$9:H$80) ->  | AQ70: =_xlfn.XLOOKUP($X70,[2]COUNTRY_INFO!$Y$9:$Y$80,[2]COUNTRY_INFO!I$9:I$80) ->  | AR70: =_xlfn.XLOOKUP($X70,[2]COUNTRY_INFO!$Y$9:$Y$80,[2]COUNTRY_INFO!J$9:J$80) ->  | AS70: =_xlfn.XLOOKUP($X70,[2]COUNTRY_INFO!$Y$9:$Y$80,[2]COUNTRY_INFO!K$9:K$80) ->  | AV70: =_xlfn.XLOOKUP(X70,[1]COUNTRY_INFO!$X$9:$X$80,[1]COUNTRY_INFO!$S$9:$S$80) ->  | AW70: =_xlfn.XLOOKUP(X70,[2]COUNTRY_INFO!$Y$9:$Y$80,[2]COUNTRY_INFO!$S$9:$S$80) -> 
A71: =IF(INTRO!$E$33<>0,INTRO!$E$33, " ") -> Niger | B71: Zinder | C71: Mirriah | D71: 759437 | E71: =IF(INTRO!$E$48="","",ROUND($D71*INTRO!$E$48,0)) -> 136699 | F71: =IF(INTRO!$E$49="","",ROUND($D71*INTRO!$E$49,0)) -> 227831 | G71: =IF(INTRO!$E$50="","",ROUND($D71*INTRO!$E$50,0)) -> 379719 | H71: 99 | I71: 0 | J71: 0 | K71: 3 | L71: =IF(INTRO!$E$37="Endémique",IF($H71>0,IF($H71=4,"Inconnu",IF($H71=99,"Interrompu",$D71)),0),"Non requis") -> Interrompu | M71: =IF(INTRO!$E$39="Endémique", IF($I71>0, IF($I71=4,"Inconnu",IF($I71=99,"Interrompu",$D71)), 0),"Non requis") -> Non requis | N71: =IF(INTRO!$E$41="Endémique", IF(AND($J71>1,$J71<5), IF($J71=4, "Inconnu", E71+F71), 0),"Non requis") -> 0 | O71: =IF(INTRO!$E$43="Endémique", IF(AND($K71>0,$K71<5), IF($K71=4,"Inconnu", IF($K71=1, $F71*0.33, IF($K71=2, $F71*0.5+$G71*0.2, SUM(F71:G71)))), 0),"Non requis") -> 607550 | P71: 0 | Q71: 0 | R71: 0 | S71: 1 | X71: 35387 | Y71: Mirriah | AB71: =_xlfn.XLOOKUP($X71,[1]COUNTRY_INFO!$X$9:$X$80,[1]COUNTRY_INFO!D$9:D$80) ->  | AF71: =_xlfn.XLOOKUP($X71,[1]COUNTRY_INFO!$X$9:$X$80,[1]COUNTRY_INFO!H$9:H$80) ->  | AG71: =_xlfn.XLOOKUP($X71,[1]COUNTRY_INFO!$X$9:$X$80,[1]COUNTRY_INFO!I$9:I$80) ->  | AH71: =_xlfn.XLOOKUP($X71,[1]COUNTRY_INFO!$X$9:$X$80,[1]COUNTRY_INFO!J$9:J$80) ->  | AI71: =_xlfn.XLOOKUP($X71,[1]COUNTRY_INFO!$X$9:$X$80,[1]COUNTRY_INFO!K$9:K$80) ->  | AP71: =_xlfn.XLOOKUP($X71,[2]COUNTRY_INFO!$Y$9:$Y$80,[2]COUNTRY_INFO!H$9:H$80) ->  | AQ71: =_xlfn.XLOOKUP($X71,[2]COUNTRY_INFO!$Y$9:$Y$80,[2]COUNTRY_INFO!I$9:I$80) ->  | AR71: =_xlfn.XLOOKUP($X71,[2]COUNTRY_INFO!$Y$9:$Y$80,[2]COUNTRY_INFO!J$9:J$80) ->  | AS71: =_xlfn.XLOOKUP($X71,[2]COUNTRY_INFO!$Y$9:$Y$80,[2]COUNTRY_INFO!K$9:K$80) ->  | AV71: =_xlfn.XLOOKUP(X71,[1]COUNTRY_INFO!$X$9:$X$80,[1]COUNTRY_INFO!$S$9:$S$80) ->  | AW71: =_xlfn.XLOOKUP(X71,[2]COUNTRY_INFO!$Y$9:$Y$80,[2]COUNTRY_INFO!$S$9:$S$80) -> 
A72: =IF(INTRO!$E$33<>0,INTRO!$E$33, " ") -> Niger | B72: Zinder | C72: Takeita | D72: 369346 | E72: =IF(INTRO!$E$48="","",ROUND($D72*INTRO!$E$48,0)) -> 66482 | F72: =IF(INTRO!$E$49="","",ROUND($D72*INTRO!$E$49,0)) -> 110804 | G72: =IF(INTRO!$E$50="","",ROUND($D72*INTRO!$E$50,0)) -> 184673 | H72: 99 | I72: 0 | J72: 0 | K72: 3 | L72: =IF(INTRO!$E$37="Endémique",IF($H72>0,IF($H72=4,"Inconnu",IF($H72=99,"Interrompu",$D72)),0),"Non requis") -> Interrompu | M72: =IF(INTRO!$E$39="Endémique", IF($I72>0, IF($I72=4,"Inconnu",IF($I72=99,"Interrompu",$D72)), 0),"Non requis") -> Non requis | N72: =IF(INTRO!$E$41="Endémique", IF(AND($J72>1,$J72<5), IF($J72=4, "Inconnu", E72+F72), 0),"Non requis") -> 0 | O72: =IF(INTRO!$E$43="Endémique", IF(AND($K72>0,$K72<5), IF($K72=4,"Inconnu", IF($K72=1, $F72*0.33, IF($K72=2, $F72*0.5+$G72*0.2, SUM(F72:G72)))), 0),"Non requis") -> 295477 | P72: 0 | Q72: 0 | R72: 0 | S72: 1 | X72: 35389 | Y72: Takeita | AB72: =_xlfn.XLOOKUP($X72,[1]COUNTRY_INFO!$X$9:$X$80,[1]COUNTRY_INFO!D$9:D$80) ->  | AF72: =_xlfn.XLOOKUP($X72,[1]COUNTRY_INFO!$X$9:$X$80,[1]COUNTRY_INFO!H$9:H$80) ->  | AG72: =_xlfn.XLOOKUP($X72,[1]COUNTRY_INFO!$X$9:$X$80,[1]COUNTRY_INFO!I$9:I$80) ->  | AH72: =_xlfn.XLOOKUP($X72,[1]COUNTRY_INFO!$X$9:$X$80,[1]COUNTRY_INFO!J$9:J$80) ->  | AI72: =_xlfn.XLOOKUP($X72,[1]COUNTRY_INFO!$X$9:$X$80,[1]COUNTRY_INFO!K$9:K$80) ->  | AP72: =_xlfn.XLOOKUP($X72,[2]COUNTRY_INFO!$Y$9:$Y$80,[2]COUNTRY_INFO!H$9:H$80) ->  | AQ72: =_xlfn.XLOOKUP($X72,[2]COUNTRY_INFO!$Y$9:$Y$80,[2]COUNTRY_INFO!I$9:I$80) ->  | AR72: =_xlfn.XLOOKUP($X72,[2]COUNTRY_INFO!$Y$9:$Y$80,[2]COUNTRY_INFO!J$9:J$80) ->  | AS72: =_xlfn.XLOOKUP($X72,[2]COUNTRY_INFO!$Y$9:$Y$80,[2]COUNTRY_INFO!K$9:K$80) ->  | AV72: =_xlfn.XLOOKUP(X72,[1]COUNTRY_INFO!$X$9:$X$80,[1]COUNTRY_INFO!$S$9:$S$80) ->  | AW72: =_xlfn.XLOOKUP(X72,[2]COUNTRY_INFO!$Y$9:$Y$80,[2]COUNTRY_INFO!$S$9:$S$80) -> 
A73: =IF(INTRO!$E$33<>0,INTRO!$E$33, " ") -> Niger | B73: Zinder | C73: Tanout | D73: 642193 | E73: =IF(INTRO!$E$48="","",ROUND($D73*INTRO!$E$48,0)) -> 115595 | F73: =IF(INTRO!$E$49="","",ROUND($D73*INTRO!$E$49,0)) -> 192658 | G73: =IF(INTRO!$E$50="","",ROUND($D73*INTRO!$E$50,0)) -> 321097 | H73: 99 | I73: 0 | J73: 1 | K73: 2 | L73: =IF(INTRO!$E$37="Endémique",IF($H73>0,IF($H73=4,"Inconnu",IF($H73=99,"Interrompu",$D73)),0),"Non requis") -> Interrompu | M73: =IF(INTRO!$E$39="Endémique", IF($I73>0, IF($I73=4,"Inconnu",IF($I73=99,"Interrompu",$D73)), 0),"Non requis") -> Non requis | N73: =IF(INTRO!$E$41="Endémique", IF(AND($J73>1,$J73<5), IF($J73=4, "Inconnu", E73+F73), 0),"Non requis") -> 0 | O73: =IF(INTRO!$E$43="Endémique", IF(AND($K73>0,$K73<5), IF($K73=4,"Inconnu", IF($K73=1, $F73*0.33, IF($K73=2, $F73*0.5+$G73*0.2, SUM(F73:G73)))), 0),"Non requis") -> 160548.4 | P73: 0 | Q73: 0 | R73: 0 | S73: 0 | X73: 35390 | Y73: Tanout | AB73: =_xlfn.XLOOKUP($X73,[1]COUNTRY_INFO!$X$9:$X$80,[1]COUNTRY_INFO!D$9:D$80) ->  | AF73: =_xlfn.XLOOKUP($X73,[1]COUNTRY_INFO!$X$9:$X$80,[1]COUNTRY_INFO!H$9:H$80) ->  | AG73: =_xlfn.XLOOKUP($X73,[1]COUNTRY_INFO!$X$9:$X$80,[1]COUNTRY_INFO!I$9:I$80) ->  | AH73: =_xlfn.XLOOKUP($X73,[1]COUNTRY_INFO!$X$9:$X$80,[1]COUNTRY_INFO!J$9:J$80) ->  | AI73: =_xlfn.XLOOKUP($X73,[1]COUNTRY_INFO!$X$9:$X$80,[1]COUNTRY_INFO!K$9:K$80) ->  | AP73: =_xlfn.XLOOKUP($X73,[2]COUNTRY_INFO!$Y$9:$Y$80,[2]COUNTRY_INFO!H$9:H$80) ->  | AQ73: =_xlfn.XLOOKUP($X73,[2]COUNTRY_INFO!$Y$9:$Y$80,[2]COUNTRY_INFO!I$9:I$80) ->  | AR73: =_xlfn.XLOOKUP($X73,[2]COUNTRY_INFO!$Y$9:$Y$80,[2]COUNTRY_INFO!J$9:J$80) ->  | AS73: =_xlfn.XLOOKUP($X73,[2]COUNTRY_INFO!$Y$9:$Y$80,[2]COUNTRY_INFO!K$9:K$80) ->  | AV73: =_xlfn.XLOOKUP(X73,[1]COUNTRY_INFO!$X$9:$X$80,[1]COUNTRY_INFO!$S$9:$S$80) ->  | AW73: =_xlfn.XLOOKUP(X73,[2]COUNTRY_INFO!$Y$9:$Y$80,[2]COUNTRY_INFO!$S$9:$S$80) -> 
A74: =IF(INTRO!$E$33<>0,INTRO!$E$33, " ") -> Niger | B74: Zinder | C74: Tesker | D74: 55565 | E74: =IF(INTRO!$E$48="","",ROUND($D74*INTRO!$E$48,0)) -> 10002 | F74: =IF(INTRO!$E$49="","",ROUND($D74*INTRO!$E$49,0)) -> 16670 | G74: =IF(INTRO!$E$50="","",ROUND($D74*INTRO!$E$50,0)) -> 27783 | H74: 99 | I74: 0 | J74: 1 | K74: 0 | L74: =IF(INTRO!$E$37="Endémique",IF($H74>0,IF($H74=4,"Inconnu",IF($H74=99,"Interrompu",$D74)),0),"Non requis") -> Interrompu | M74: =IF(INTRO!$E$39="Endémique", IF($I74>0, IF($I74=4,"Inconnu",IF($I74=99,"Interrompu",$D74)), 0),"Non requis") -> Non requis | N74: =IF(INTRO!$E$41="Endémique", IF(AND($J74>1,$J74<5), IF($J74=4, "Inconnu", E74+F74), 0),"Non requis") -> 0 | O74: =IF(INTRO!$E$43="Endémique", IF(AND($K74>0,$K74<5), IF($K74=4,"Inconnu", IF($K74=1, $F74*0.33, IF($K74=2, $F74*0.5+$G74*0.2, SUM(F74:G74)))), 0),"Non requis") -> 0 | P74: 0 | Q74: 0 | R74: 0 | S74: 0 | X74: 35384 | Y74: Tesker | AB74: =_xlfn.XLOOKUP($X74,[1]COUNTRY_INFO!$X$9:$X$80,[1]COUNTRY_INFO!D$9:D$80) ->  | AC74: =(D74-AB74)/AB74*100 ->  | AF74: =_xlfn.XLOOKUP($X74,[1]COUNTRY_INFO!$X$9:$X$80,[1]COUNTRY_INFO!H$9:H$80) ->  | AG74: =_xlfn.XLOOKUP($X74,[1]COUNTRY_INFO!$X$9:$X$80,[1]COUNTRY_INFO!I$9:I$80) ->  | AH74: =_xlfn.XLOOKUP($X74,[1]COUNTRY_INFO!$X$9:$X$80,[1]COUNTRY_INFO!J$9:J$80) ->  | AI74: =_xlfn.XLOOKUP($X74,[1]COUNTRY_INFO!$X$9:$X$80,[1]COUNTRY_INFO!K$9:K$80) ->  | AJ74: =AF74=H74 ->  | AK74: =AG74=I74 ->  | AL74: =AH74=J74 ->  | AM74: =AI74=K74 ->  | AP74: =_xlfn.XLOOKUP($X74,[2]COUNTRY_INFO!$Y$9:$Y$80,[2]COUNTRY_INFO!H$9:H$80) ->  | AQ74: =_xlfn.XLOOKUP($X74,[2]COUNTRY_INFO!$Y$9:$Y$80,[2]COUNTRY_INFO!I$9:I$80) ->  | AR74: =_xlfn.XLOOKUP($X74,[2]COUNTRY_INFO!$Y$9:$Y$80,[2]COUNTRY_INFO!J$9:J$80) ->  | AS74: =_xlfn.XLOOKUP($X74,[2]COUNTRY_INFO!$Y$9:$Y$80,[2]COUNTRY_INFO!K$9:K$80) ->  | AV74: =_xlfn.XLOOKUP(X74,[1]COUNTRY_INFO!$X$9:$X$80,[1]COUNTRY_INFO!$S$9:$S$80) ->  | AW74: =_xlfn.XLOOKUP(X74,[2]COUNTRY_INFO!$Y$9:$Y$80,[2]COUNTRY_INFO!$S$9:$S$80) -> 
A75: =IF(INTRO!$E$33<>0,INTRO!$E$33, " ") -> Niger | B75: Zinder | C75: Commune de Zinder | D75: 483250 | E75: =IF(INTRO!$E$48="","",ROUND($D75*INTRO!$E$48,0)) -> 86985 | F75: =IF(INTRO!$E$49="","",ROUND($D75*INTRO!$E$49,0)) -> 144975 | G75: =IF(INTRO!$E$50="","",ROUND($D75*INTRO!$E$50,0)) -> 241625 | H75: 99 | I75: 0 | J75: 1 | K75: 2 | L75: =IF(INTRO!$E$37="Endémique",IF($H75>0,IF($H75=4,"Inconnu",IF($H75=99,"Interrompu",$D75)),0),"Non requis") -> Interrompu | M75: =IF(INTRO!$E$39="Endémique", IF($I75>0, IF($I75=4,"Inconnu",IF($I75=99,"Interrompu",$D75)), 0),"Non requis") -> Non requis | N75: =IF(INTRO!$E$41="Endémique", IF(AND($J75>1,$J75<5), IF($J75=4, "Inconnu", E75+F75), 0),"Non requis") -> 0 | O75: =IF(INTRO!$E$43="Endémique", IF(AND($K75>0,$K75<5), IF($K75=4,"Inconnu", IF($K75=1, $F75*0.33, IF($K75=2, $F75*0.5+$G75*0.2, SUM(F75:G75)))), 0),"Non requis") -> 120812.5 | P75: 0 | Q75: 0 | R75: 0 | S75: 0 | X75: 35336 | Y75: Zinder | AB75: =_xlfn.XLOOKUP($X75,[1]COUNTRY_INFO!$X$9:$X$80,[1]COUNTRY_INFO!D$9:D$80) ->  | AF75: =_xlfn.XLOOKUP($X75,[1]COUNTRY_INFO!$X$9:$X$80,[1]COUNTRY_INFO!H$9:H$80) ->  | AG75: =_xlfn.XLOOKUP($X75,[1]COUNTRY_INFO!$X$9:$X$80,[1]COUNTRY_INFO!I$9:I$80) ->  | AH75: =_xlfn.XLOOKUP($X75,[1]COUNTRY_INFO!$X$9:$X$80,[1]COUNTRY_INFO!J$9:J$80) ->  | AI75: =_xlfn.XLOOKUP($X75,[1]COUNTRY_INFO!$X$9:$X$80,[1]COUNTRY_INFO!K$9:K$80) ->  | AP75: =_xlfn.XLOOKUP($X75,[2]COUNTRY_INFO!$Y$9:$Y$80,[2]COUNTRY_INFO!H$9:H$80) ->  | AQ75: =_xlfn.XLOOKUP($X75,[2]COUNTRY_INFO!$Y$9:$Y$80,[2]COUNTRY_INFO!I$9:I$80) ->  | AR75: =_xlfn.XLOOKUP($X75,[2]COUNTRY_INFO!$Y$9:$Y$80,[2]COUNTRY_INFO!J$9:J$80) ->  | AS75: =_xlfn.XLOOKUP($X75,[2]COUNTRY_INFO!$Y$9:$Y$80,[2]COUNTRY_INFO!K$9:K$80) ->  | AV75: =_xlfn.XLOOKUP(X75,[1]COUNTRY_INFO!$X$9:$X$80,[1]COUNTRY_INFO!$S$9:$S$80) ->  | AW75: =_xlfn.XLOOKUP(X75,[2]COUNTRY_INFO!$Y$9:$Y$80,[2]COUNTRY_INFO!$S$9:$S$80) -> 
A76: =IF(INTRO!$E$33<>0,INTRO!$E$33, " ") -> Niger | B76: Niamey | C76: Niamey I | D76: 287902 | E76: =IF(INTRO!$E$48="","",ROUND($D76*INTRO!$E$48,0)) -> 51822 | F76: =IF(INTRO!$E$49="","",ROUND($D76*INTRO!$E$49,0)) -> 86371 | G76: =IF(INTRO!$E$50="","",ROUND($D76*INTRO!$E$50,0)) -> 143951 | H76: 0 | I76: 0 | J76: 1 | K76: 3 | L76: =IF(INTRO!$E$37="Endémique",IF($H76>0,IF($H76=4,"Inconnu",IF($H76=99,"Interrompu",$D76)),0),"Non requis") -> 0 | M76: =IF(INTRO!$E$39="Endémique", IF($I76>0, IF($I76=4,"Inconnu",IF($I76=99,"Interrompu",$D76)), 0),"Non requis") -> Non requis | N76: =IF(INTRO!$E$41="Endémique", IF(AND($J76>1,$J76<5), IF($J76=4, "Inconnu", E76+F76), 0),"Non requis") -> 0 | O76: =IF(INTRO!$E$43="Endémique", IF(AND($K76>0,$K76<5), IF($K76=4,"Inconnu", IF($K76=1, $F76*0.33, IF($K76=2, $F76*0.5+$G76*0.2, SUM(F76:G76)))), 0),"Non requis") -> 230322 | P76: 0 | Q76: 0 | R76: 0 | S76: 1 | X76: 35358 | Y76: Niamey 1 | AB76: =_xlfn.XLOOKUP($X76,[1]COUNTRY_INFO!$X$9:$X$80,[1]COUNTRY_INFO!D$9:D$80) ->  | AF76: =_xlfn.XLOOKUP($X76,[1]COUNTRY_INFO!$X$9:$X$80,[1]COUNTRY_INFO!H$9:H$80) ->  | AG76: =_xlfn.XLOOKUP($X76,[1]COUNTRY_INFO!$X$9:$X$80,[1]COUNTRY_INFO!I$9:I$80) ->  | AH76: =_xlfn.XLOOKUP($X76,[1]COUNTRY_INFO!$X$9:$X$80,[1]COUNTRY_INFO!J$9:J$80) ->  | AI76: =_xlfn.XLOOKUP($X76,[1]COUNTRY_INFO!$X$9:$X$80,[1]COUNTRY_INFO!K$9:K$80) ->  | AP76: =_xlfn.XLOOKUP($X76,[2]COUNTRY_INFO!$Y$9:$Y$80,[2]COUNTRY_INFO!H$9:H$80) ->  | AQ76: =_xlfn.XLOOKUP($X76,[2]COUNTRY_INFO!$Y$9:$Y$80,[2]COUNTRY_INFO!I$9:I$80) ->  | AR76: =_xlfn.XLOOKUP($X76,[2]COUNTRY_INFO!$Y$9:$Y$80,[2]COUNTRY_INFO!J$9:J$80) ->  | AS76: =_xlfn.XLOOKUP($X76,[2]COUNTRY_INFO!$Y$9:$Y$80,[2]COUNTRY_INFO!K$9:K$80) ->  | AV76: =_xlfn.XLOOKUP(X76,[1]COUNTRY_INFO!$X$9:$X$80,[1]COUNTRY_INFO!$S$9:$S$80) ->  | AW76: =_xlfn.XLOOKUP(X76,[2]COUNTRY_INFO!$Y$9:$Y$80,[2]COUNTRY_INFO!$S$9:$S$80) -> 
A77: =IF(INTRO!$E$33<>0,INTRO!$E$33, " ") -> Niger | B77: Niamey | C77: Niamey II | D77: 338455 | E77: =IF(INTRO!$E$48="","",ROUND($D77*INTRO!$E$48,0)) -> 60922 | F77: =IF(INTRO!$E$49="","",ROUND($D77*INTRO!$E$49,0)) -> 101537 | G77: =IF(INTRO!$E$50="","",ROUND($D77*INTRO!$E$50,0)) -> 169228 | H77: 99 | I77: 0 | J77: 1 | K77: 3 | L77: =IF(INTRO!$E$37="Endémique",IF($H77>0,IF($H77=4,"Inconnu",IF($H77=99,"Interrompu",$D77)),0),"Non requis") -> Interrompu | M77: =IF(INTRO!$E$39="Endémique", IF($I77>0, IF($I77=4,"Inconnu",IF($I77=99,"Interrompu",$D77)), 0),"Non requis") -> Non requis | N77: =IF(INTRO!$E$41="Endémique", IF(AND($J77>1,$J77<5), IF($J77=4, "Inconnu", E77+F77), 0),"Non requis") -> 0 | O77: =IF(INTRO!$E$43="Endémique", IF(AND($K77>0,$K77<5), IF($K77=4,"Inconnu", IF($K77=1, $F77*0.33, IF($K77=2, $F77*0.5+$G77*0.2, SUM(F77:G77)))), 0),"Non requis") -> 270765 | P77: 0 | Q77: 0 | R77: 0 | S77: 1 | X77: 35359 | Y77: Niamey 2 | AB77: =_xlfn.XLOOKUP($X77,[1]COUNTRY_INFO!$X$9:$X$80,[1]COUNTRY_INFO!D$9:D$80) ->  | AF77: =_xlfn.XLOOKUP($X77,[1]COUNTRY_INFO!$X$9:$X$80,[1]COUNTRY_INFO!H$9:H$80) ->  | AG77: =_xlfn.XLOOKUP($X77,[1]COUNTRY_INFO!$X$9:$X$80,[1]COUNTRY_INFO!I$9:I$80) ->  | AH77: =_xlfn.XLOOKUP($X77,[1]COUNTRY_INFO!$X$9:$X$80,[1]COUNTRY_INFO!J$9:J$80) ->  | AI77: =_xlfn.XLOOKUP($X77,[1]COUNTRY_INFO!$X$9:$X$80,[1]COUNTRY_INFO!K$9:K$80) ->  | AP77: =_xlfn.XLOOKUP($X77,[2]COUNTRY_INFO!$Y$9:$Y$80,[2]COUNTRY_INFO!H$9:H$80) ->  | AQ77: =_xlfn.XLOOKUP($X77,[2]COUNTRY_INFO!$Y$9:$Y$80,[2]COUNTRY_INFO!I$9:I$80) ->  | AR77: =_xlfn.XLOOKUP($X77,[2]COUNTRY_INFO!$Y$9:$Y$80,[2]COUNTRY_INFO!J$9:J$80) ->  | AS77: =_xlfn.XLOOKUP($X77,[2]COUNTRY_INFO!$Y$9:$Y$80,[2]COUNTRY_INFO!K$9:K$80) ->  | AV77: =_xlfn.XLOOKUP(X77,[1]COUNTRY_INFO!$X$9:$X$80,[1]COUNTRY_INFO!$S$9:$S$80) ->  | AW77: =_xlfn.XLOOKUP(X77,[2]COUNTRY_INFO!$Y$9:$Y$80,[2]COUNTRY_INFO!$S$9:$S$80) -> 
A78: =IF(INTRO!$E$33<>0,INTRO!$E$33, " ") -> Niger | B78: Niamey | C78: Niamey III | D78: 223685 | E78: =IF(INTRO!$E$48="","",ROUND($D78*INTRO!$E$48,0)) -> 40263 | F78: =IF(INTRO!$E$49="","",ROUND($D78*INTRO!$E$49,0)) -> 67106 | G78: =IF(INTRO!$E$50="","",ROUND($D78*INTRO!$E$50,0)) -> 111843 | H78: 99 | I78: 0 | J78: 0 | K78: 3 | L78: =IF(INTRO!$E$37="Endémique",IF($H78>0,IF($H78=4,"Inconnu",IF($H78=99,"Interrompu",$D78)),0),"Non requis") -> Interrompu | M78: =IF(INTRO!$E$39="Endémique", IF($I78>0, IF($I78=4,"Inconnu",IF($I78=99,"Interrompu",$D78)), 0),"Non requis") -> Non requis | N78: =IF(INTRO!$E$41="Endémique", IF(AND($J78>1,$J78<5), IF($J78=4, "Inconnu", E78+F78), 0),"Non requis") -> 0 | O78: =IF(INTRO!$E$43="Endémique", IF(AND($K78>0,$K78<5), IF($K78=4,"Inconnu", IF($K78=1, $F78*0.33, IF($K78=2, $F78*0.5+$G78*0.2, SUM(F78:G78)))), 0),"Non requis") -> 178949 | P78: 0 | Q78: 0 | R78: 0 | S78: 1 | X78: 35360 | Y78: Niamey 3 | AB78: =_xlfn.XLOOKUP($X78,[1]COUNTRY_INFO!$X$9:$X$80,[1]COUNTRY_INFO!D$9:D$80) ->  | AF78: =_xlfn.XLOOKUP($X78,[1]COUNTRY_INFO!$X$9:$X$80,[1]COUNTRY_INFO!H$9:H$80) ->  | AG78: =_xlfn.XLOOKUP($X78,[1]COUNTRY_INFO!$X$9:$X$80,[1]COUNTRY_INFO!I$9:I$80) ->  | AH78: =_xlfn.XLOOKUP($X78,[1]COUNTRY_INFO!$X$9:$X$80,[1]COUNTRY_INFO!J$9:J$80) ->  | AI78: =_xlfn.XLOOKUP($X78,[1]COUNTRY_INFO!$X$9:$X$80,[1]COUNTRY_INFO!K$9:K$80) ->  | AP78: =_xlfn.XLOOKUP($X78,[2]COUNTRY_INFO!$Y$9:$Y$80,[2]COUNTRY_INFO!H$9:H$80) ->  | AQ78: =_xlfn.XLOOKUP($X78,[2]COUNTRY_INFO!$Y$9:$Y$80,[2]COUNTRY_INFO!I$9:I$80) ->  | AR78: =_xlfn.XLOOKUP($X78,[2]COUNTRY_INFO!$Y$9:$Y$80,[2]COUNTRY_INFO!J$9:J$80) ->  | AS78: =_xlfn.XLOOKUP($X78,[2]COUNTRY_INFO!$Y$9:$Y$80,[2]COUNTRY_INFO!K$9:K$80) ->  | AV78: =_xlfn.XLOOKUP(X78,[1]COUNTRY_INFO!$X$9:$X$80,[1]COUNTRY_INFO!$S$9:$S$80) ->  | AW78: =_xlfn.XLOOKUP(X78,[2]COUNTRY_INFO!$Y$9:$Y$80,[2]COUNTRY_INFO!$S$9:$S$80) -> 
A79: =IF(INTRO!$E$33<>0,INTRO!$E$33, " ") -> Niger | B79: Niamey | C79: Niamey IV | D79: 376271 | E79: =IF(INTRO!$E$48="","",ROUND($D79*INTRO!$E$48,0)) -> 67729 | F79: =IF(INTRO!$E$49="","",ROUND($D79*INTRO!$E$49,0)) -> 112881 | G79: =IF(INTRO!$E$50="","",ROUND($D79*INTRO!$E$50,0)) -> 188136 | H79: 99 | I79: 0 | J79: 0 | K79: 3 | L79: =IF(INTRO!$E$37="Endémique",IF($H79>0,IF($H79=4,"Inconnu",IF($H79=99,"Interrompu",$D79)),0),"Non requis") -> Interrompu | M79: =IF(INTRO!$E$39="Endémique", IF($I79>0, IF($I79=4,"Inconnu",IF($I79=99,"Interrompu",$D79)), 0),"Non requis") -> Non requis | N79: =IF(INTRO!$E$41="Endémique", IF(AND($J79>1,$J79<5), IF($J79=4, "Inconnu", E79+F79), 0),"Non requis") -> 0 | O79: =IF(INTRO!$E$43="Endémique", IF(AND($K79>0,$K79<5), IF($K79=4,"Inconnu", IF($K79=1, $F79*0.33, IF($K79=2, $F79*0.5+$G79*0.2, SUM(F79:G79)))), 0),"Non requis") -> 301017 | P79: 0 | Q79: 0 | R79: 0 | S79: 1 | X79: 35361 | Y79: Niamey 4 | AB79: =_xlfn.XLOOKUP($X79,[1]COUNTRY_INFO!$X$9:$X$80,[1]COUNTRY_INFO!D$9:D$80) ->  | AF79: =_xlfn.XLOOKUP($X79,[1]COUNTRY_INFO!$X$9:$X$80,[1]COUNTRY_INFO!H$9:H$80) ->  | AG79: =_xlfn.XLOOKUP($X79,[1]COUNTRY_INFO!$X$9:$X$80,[1]COUNTRY_INFO!I$9:I$80) ->  | AH79: =_xlfn.XLOOKUP($X79,[1]COUNTRY_INFO!$X$9:$X$80,[1]COUNTRY_INFO!J$9:J$80) ->  | AI79: =_xlfn.XLOOKUP($X79,[1]COUNTRY_INFO!$X$9:$X$80,[1]COUNTRY_INFO!K$9:K$80) ->  | AP79: =_xlfn.XLOOKUP($X79,[2]COUNTRY_INFO!$Y$9:$Y$80,[2]COUNTRY_INFO!H$9:H$80) ->  | AQ79: =_xlfn.XLOOKUP($X79,[2]COUNTRY_INFO!$Y$9:$Y$80,[2]COUNTRY_INFO!I$9:I$80) ->  | AR79: =_xlfn.XLOOKUP($X79,[2]COUNTRY_INFO!$Y$9:$Y$80,[2]COUNTRY_INFO!J$9:J$80) ->  | AS79: =_xlfn.XLOOKUP($X79,[2]COUNTRY_INFO!$Y$9:$Y$80,[2]COUNTRY_INFO!K$9:K$80) ->  | AV79: =_xlfn.XLOOKUP(X79,[1]COUNTRY_INFO!$X$9:$X$80,[1]COUNTRY_INFO!$S$9:$S$80) ->  | AW79: =_xlfn.XLOOKUP(X79,[2]COUNTRY_INFO!$Y$9:$Y$80,[2]COUNTRY_INFO!$S$9:$S$80) -> 
A80: =IF(INTRO!$E$33<>0,INTRO!$E$33, " ") -> Niger | B80: Niamey | C80: Niamey V | D80: 181321 | E80: =IF(INTRO!$E$48="","",ROUND($D80*INTRO!$E$48,0)) -> 32638 | F80: =IF(INTRO!$E$49="","",ROUND($D80*INTRO!$E$49,0)) -> 54396 | G80: =IF(INTRO!$E$50="","",ROUND($D80*INTRO!$E$50,0)) -> 90661 | H80: 99 | I80: 0 | J80: 0 | K80: 3 | L80: =IF(INTRO!$E$37="Endémique",IF($H80>0,IF($H80=4,"Inconnu",IF($H80=99,"Interrompu",$D80)),0),"Non requis") -> Interrompu | M80: =IF(INTRO!$E$39="Endémique", IF($I80>0, IF($I80=4,"Inconnu",IF($I80=99,"Interrompu",$D80)), 0),"Non requis") -> Non requis | N80: =IF(INTRO!$E$41="Endémique", IF(AND($J80>1,$J80<5), IF($J80=4, "Inconnu", E80+F80), 0),"Non requis") -> 0 | O80: =IF(INTRO!$E$43="Endémique", IF(AND($K80>0,$K80<5), IF($K80=4,"Inconnu", IF($K80=1, $F80*0.33, IF($K80=2, $F80*0.5+$G80*0.2, SUM(F80:G80)))), 0),"Non requis") -> 145057 | P80: 0 | Q80: 0 | R80: 0 | S80: 1 | X80: 35315 | Y80: Niamey 5 (ex Niamey 3) | AB80: =_xlfn.XLOOKUP($X80,[1]COUNTRY_INFO!$X$9:$X$80,[1]COUNTRY_INFO!D$9:D$80) ->  | AF80: =_xlfn.XLOOKUP($X80,[1]COUNTRY_INFO!$X$9:$X$80,[1]COUNTRY_INFO!H$9:H$80) ->  | AG80: =_xlfn.XLOOKUP($X80,[1]COUNTRY_INFO!$X$9:$X$80,[1]COUNTRY_INFO!I$9:I$80) ->  | AH80: =_xlfn.XLOOKUP($X80,[1]COUNTRY_INFO!$X$9:$X$80,[1]COUNTRY_INFO!J$9:J$80) ->  | AI80: =_xlfn.XLOOKUP($X80,[1]COUNTRY_INFO!$X$9:$X$80,[1]COUNTRY_INFO!K$9:K$80) ->  | AP80: =_xlfn.XLOOKUP($X80,[2]COUNTRY_INFO!$Y$9:$Y$80,[2]COUNTRY_INFO!H$9:H$80) ->  | AQ80: =_xlfn.XLOOKUP($X80,[2]COUNTRY_INFO!$Y$9:$Y$80,[2]COUNTRY_INFO!I$9:I$80) ->  | AR80: =_xlfn.XLOOKUP($X80,[2]COUNTRY_INFO!$Y$9:$Y$80,[2]COUNTRY_INFO!J$9:J$80) ->  | AS80: =_xlfn.XLOOKUP($X80,[2]COUNTRY_INFO!$Y$9:$Y$80,[2]COUNTRY_INFO!K$9:K$80) ->  | AV80: =_xlfn.XLOOKUP(X80,[1]COUNTRY_INFO!$X$9:$X$80,[1]COUNTRY_INFO!$S$9:$S$80) ->  | AW80: =_xlfn.XLOOKUP(X80,[2]COUNTRY_INFO!$Y$9:$Y$80,[2]COUNTRY_INFO!$S$9:$S$80) -> 
D82: 642193
D83: 55565

Sheet DEC (hidden)
A1: Diethylcarbamazine (DEC)
A2: Structure administrative, population ciblée par groupe d'âge, plan de traitement et information sur les comprimés
A4: TOTAL | D4: =SUM(D$9:D$1000) -> 0 | E4: =SUM(E$9:E$1000) -> 0 | F4: =SUM(F$9:F$1000) -> 0 | G4: =SUM(G$9:G$1000) -> 0 | I4: =SUM(I$9:I$1000) -> 0 | J4: =SUM(J$9:J$1000) -> 0 | K4: =SUM(K$9:K$1000) -> 0 | L4: =SUM(L$9:L$1000) -> 0 | M4: =SUM(M$9:M$1000) -> 0
A6: Structure administrative du pays | D6: Population nécessitant un traitement avec DEC | H6: Plan de traitement | I6: Population cible | J6: Diethylcarbamazine (DEC)
A7: Pays | B7: Région/Département | C7: District | D7: EAPréS | E7: EAS | F7: Adultes | G7: Total | H7: FL | I7: FL | J7: Total requis | K7: Reste en stock | L7: Comprimés devant être fournis | M7: Flacons (100mg) 1000 comprimés
A9: =IF(INTRO!$E$39<>"Non endémique", " ", IF(INTRO!$E$37="Non endémique"," ", IF(COUNTRY_INFO!A9=0," ",COUNTRY_INFO!A9))) ->  | B9: =IF(INTRO!$E$39<>"Non endémique", " ", IF(INTRO!$E$37="Non endémique"," ", IF(COUNTRY_INFO!B9=0," ",COUNTRY_INFO!B9))) ->  | C9: =IF(INTRO!$E$39<>"Non endémique", " ", IF(INTRO!$E$37="Non endémique"," ", IF(COUNTRY_INFO!C9=0," ",COUNTRY_INFO!C9))) ->  | D9: =IF(INTRO!$E$39<>"Non endémique", 0, IF(INTRO!$E$37="Non endémique",0,IF(COUNTRY_INFO!$H9=1,COUNTRY_INFO!E9,0))) -> 0 | E9: =IF(INTRO!$E$39<>"Non endémique", 0, IF(INTRO!$E$37="Non endémique",0,IF(COUNTRY_INFO!$H9=1,COUNTRY_INFO!F9,0))) -> 0 | F9: =IF(INTRO!$E$39<>"Non endémique", 0, IF(INTRO!$E$37="Non endémique",0,IF(COUNTRY_INFO!$H9=1,COUNTRY_INFO!G9,0))) -> 0 | G9: =SUM(D9:F9) -> 0 | H9: =IF(INTRO!$E$39="Non endémique",IF(INTRO!$E$37="Non endémique","Non requis",COUNTRY_INFO!P9),"Traiter avec IVM") -> Traiter avec IVM | I9: =IF(H9=1,G9,0) -> 0 | J9: =IF(I9>0,I9*2.5,0) -> 0 | L9: =IF($J9>$K9,$J9-$K9,0) -> 0 | M9: =ROUNDUP($J9/1000,0) -> 0
A10: =IF(INTRO!$E$39<>"Non endémique", " ", IF(INTRO!$E$37="Non endémique"," ", IF(COUNTRY_INFO!A10=0," ",COUNTRY_INFO!A10))) ->  | B10: =IF(INTRO!$E$39<>"Non endémique", " ", IF(INTRO!$E$37="Non endémique"," ", IF(COUNTRY_INFO!B10=0," ",COUNTRY_INFO!B10))) ->  | C10: =IF(INTRO!$E$39<>"Non endémique", " ", IF(INTRO!$E$37="Non endémique"," ", IF(COUNTRY_INFO!C10=0," ",COUNTRY_INFO!C10))) ->  | D10: =IF(INTRO!$E$39<>"Non endémique", 0, IF(INTRO!$E$37="Non endémique",0,IF(COUNTRY_INFO!$H10=1,COUNTRY_INFO!E10,0))) -> 0 | E10: =IF(INTRO!$E$39<>"Non endémique", 0, IF(INTRO!$E$37="Non endémique",0,IF(COUNTRY_INFO!$H10=1,COUNTRY_INFO!F10,0))) -> 0 | F10: =IF(INTRO!$E$39<>"Non endémique", 0, IF(INTRO!$E$37="Non endémique",0,IF(COUNTRY_INFO!$H10=1,COUNTRY_INFO!G10,0))) -> 0 | G10: =SUM(D10:F10) -> 0 | H10: =IF(INTRO!$E$39="Non endémique",IF(INTRO!$E$37="Non endémique","Non requis",COUNTRY_INFO!P10),"Traiter avec IVM") -> Traiter avec IVM | I10: =IF(H10=1,G10,0) -> 0 | J10: =IF(I10>0,I10*2.5,0) -> 0 | L10: 0 | M10: 0
A11: =IF(INTRO!$E$39<>"Non endémique", " ", IF(INTRO!$E$37="Non endémique"," ", IF(COUNTRY_INFO!A11=0," ",COUNTRY_INFO!A11))) ->  | B11: =IF(INTRO!$E$39<>"Non endémique", " ", IF(INTRO!$E$37="Non endémique"," ", IF(COUNTRY_INFO!B11=0," ",COUNTRY_INFO!B11))) ->  | C11: =IF(INTRO!$E$39<>"Non endémique", " ", IF(INTRO!$E$37="Non endémique"," ", IF(COUNTRY_INFO!C11=0," ",COUNTRY_INFO!C11))) ->  | D11: =IF(INTRO!$E$39<>"Non endémique", 0, IF(INTRO!$E$37="Non endémique",0,IF(COUNTRY_INFO!$H11=1,COUNTRY_INFO!E11,0))) -> 0 | E11: =IF(INTRO!$E$39<>"Non endémique", 0, IF(INTRO!$E$37="Non endémique",0,IF(COUNTRY_INFO!$H11=1,COUNTRY_INFO!F11,0))) -> 0 | F11: =IF(INTRO!$E$39<>"Non endémique", 0, IF(INTRO!$E$37="Non endémique",0,IF(COUNTRY_INFO!$H11=1,COUNTRY_INFO!G11,0))) -> 0 | G11: 0 | H11: =IF(INTRO!$E$39="Non endémique",IF(INTRO!$E$37="Non endémique","Non requis",COUNTRY_INFO!P11),"Traiter avec IVM") -> Traiter avec IVM | I11: 0 | J11: 0 | L11: 0 | M11: 0
A12: =IF(INTRO!$E$39<>"Non endémique", " ", IF(INTRO!$E$37="Non endémique"," ", IF(COUNTRY_INFO!A12=0," ",COUNTRY_INFO!A12))) ->  | B12: =IF(INTRO!$E$39<>"Non endémique", " ", IF(INTRO!$E$37="Non endémique"," ", IF(COUNTRY_INFO!B12=0," ",COUNTRY_INFO!B12))) ->  | C12: =IF(INTRO!$E$39<>"Non endémique", " ", IF(INTRO!$E$37="Non endémique"," ", IF(COUNTRY_INFO!C12=0," ",COUNTRY_INFO!C12))) ->  | D12: =IF(INTRO!$E$39<>"Non endémique", 0, IF(INTRO!$E$37="Non endémique",0,IF(COUNTRY_INFO!$H12=1,COUNTRY_INFO!E12,0))) -> 0 | E12: =IF(INTRO!$E$39<>"Non endémique", 0, IF(INTRO!$E$37="Non endémique",0,IF(COUNTRY_INFO!$H12=1,COUNTRY_INFO!F12,0))) -> 0 | F12: =IF(INTRO!$E$39<>"Non endémique", 0, IF(INTRO!$E$37="Non endémique",0,IF(COUNTRY_INFO!$H12=1,COUNTRY_INFO!G12,0))) -> 0 | G12: 0 | H12: =IF(INTRO!$E$39="Non endémique",IF(INTRO!$E$37="Non endémique","Non requis",COUNTRY_INFO!P12),"Traiter avec IVM") -> Traiter avec IVM | I12: 0 | J12: 0 | L12: 0 | M12: 0
A13: =IF(INTRO!$E$39<>"Non endémique", " ", IF(INTRO!$E$37="Non endémique"," ", IF(COUNTRY_INFO!A13=0," ",COUNTRY_INFO!A13))) ->  | B13: =IF(INTRO!$E$39<>"Non endémique", " ", IF(INTRO!$E$37="Non endémique"," ", IF(COUNTRY_INFO!B13=0," ",COUNTRY_INFO!B13))) ->  | C13: =IF(INTRO!$E$39<>"Non endémique", " ", IF(INTRO!$E$37="Non endémique"," ", IF(COUNTRY_INFO!C13=0," ",COUNTRY_INFO!C13))) ->  | D13: =IF(INTRO!$E$39<>"Non endémique", 0, IF(INTRO!$E$37="Non endémique",0,IF(COUNTRY_INFO!$H13=1,COUNTRY_INFO!E13,0))) -> 0 | E13: =IF(INTRO!$E$39<>"Non endémique", 0, IF(INTRO!$E$37="Non endémique",0,IF(COUNTRY_INFO!$H13=1,COUNTRY_INFO!F13,0))) -> 0 | F13: =IF(INTRO!$E$39<>"Non endémique", 0, IF(INTRO!$E$37="Non endémique",0,IF(COUNTRY_INFO!$H13=1,COUNTRY_INFO!G13,0))) -> 0 | G13: 0 | H13: =IF(INTRO!$E$39="Non endémique",IF(INTRO!$E$37="Non endémique","Non requis",COUNTRY_INFO!P13),"Traiter avec IVM") -> Traiter avec IVM | I13: 0 | J13: 0 | L13: 0 | M13: 0
A14: =IF(INTRO!$E$39<>"Non endémique", " ", IF(INTRO!$E$37="Non endémique"," ", IF(COUNTRY_INFO!A14=0," ",COUNTRY_INFO!A14))) ->  | B14: =IF(INTRO!$E$39<>"Non endémique", " ", IF(INTRO!$E$37="Non endémique"," ", IF(COUNTRY_INFO!B14=0," ",COUNTRY_INFO!B14))) ->  | C14: =IF(INTRO!$E$39<>"Non endémique", " ", IF(INTRO!$E$37="Non endémique"," ", IF(COUNTRY_INFO!C14=0," ",COUNTRY_INFO!C14))) ->  | D14: =IF(INTRO!$E$39<>"Non endémique", 0, IF(INTRO!$E$37="Non endémique",0,IF(COUNTRY_INFO!$H14=1,COUNTRY_INFO!E14,0))) -> 0 | E14: =IF(INTRO!$E$39<>"Non endémique", 0, IF(INTRO!$E$37="Non endémique",0,IF(COUNTRY_INFO!$H14=1,COUNTRY_INFO!F14,0))) -> 0 | F14: =IF(INTRO!$E$39<>"Non endémique", 0, IF(INTRO!$E$37="Non endémique",0,IF(COUNTRY_INFO!$H14=1,COUNTRY_INFO!G14,0))) -> 0 | G14: 0 | H14: =IF(INTRO!$E$39="Non endémique",IF(INTRO!$E$37="Non endémique","Non requis",COUNTRY_INFO!P14),"Traiter avec IVM") -> Traiter avec IVM | I14: 0 | J14: 0 | L14: 0 | M14: 0
A15: =IF(INTRO!$E$39<>"Non endémique", " ", IF(INTRO!$E$37="Non endémique"," ", IF(COUNTRY_INFO!A15=0," ",COUNTRY_INFO!A15))) ->  | B15: =IF(INTRO!$E$39<>"Non endémique", " ", IF(INTRO!$E$37="Non endémique"," ", IF(COUNTRY_INFO!B15=0," ",COUNTRY_INFO!B15))) ->  | C15: =IF(INTRO!$E$39<>"Non endémique", " ", IF(INTRO!$E$37="Non endémique"," ", IF(COUNTRY_INFO!C15=0," ",COUNTRY_INFO!C15))) ->  | D15: =IF(INTRO!$E$39<>"Non endémique", 0, IF(INTRO!$E$37="Non endémique",0,IF(COUNTRY_INFO!$H15=1,COUNTRY_INFO!E15,0))) -> 0 | E15: =IF(INTRO!$E$39<>"Non endémique", 0, IF(INTRO!$E$37="Non endémique",0,IF(COUNTRY_INFO!$H15=1,COUNTRY_INFO!F15,0))) -> 0 | F15: =IF(INTRO!$E$39<>"Non endémique", 0, IF(INTRO!$E$37="Non endémique",0,IF(COUNTRY_INFO!$H15=1,COUNTRY_INFO!G15,0))) -> 0 | G15: 0 | H15: =IF(INTRO!$E$39="Non endémique",IF(INTRO!$E$37="Non endémique","Non requis",COUNTRY_INFO!P15),"Traiter avec IVM") -> Traiter avec IVM | I15: 0 | J15: 0 | L15: 0 | M15: 0
A16: =IF(INTRO!$E$39<>"Non endémique", " ", IF(INTRO!$E$37="Non endémique"," ", IF(COUNTRY_INFO!A16=0," ",COUNTRY_INFO!A16))) ->  | B16: =IF(INTRO!$E$39<>"Non endémique", " ", IF(INTRO!$E$37="Non endémique"," ", IF(COUNTRY_INFO!B16=0," ",COUNTRY_INFO!B16))) ->  | C16: =IF(INTRO!$E$39<>"Non endémique", " ", IF(INTRO!$E$37="Non endémique"," ", IF(COUNTRY_INFO!C16=0," ",COUNTRY_INFO!C16))) ->  | D16: =IF(INTRO!$E$39<>"Non endémique", 0, IF(INTRO!$E$37="Non endémique",0,IF(COUNTRY_INFO!$H16=1,COUNTRY_INFO!E16,0))) -> 0 | E16: =IF(INTRO!$E$39<>"Non endémique", 0, IF(INTRO!$E$37="Non endémique",0,IF(COUNTRY_INFO!$H16=1,COUNTRY_INFO!F16,0))) -> 0 | F16: =IF(INTRO!$E$39<>"Non endémique", 0, IF(INTRO!$E$37="Non endémique",0,IF(COUNTRY_INFO!$H16=1,COUNTRY_INFO!G16,0))) -> 0 | G16: 0 | H16: =IF(INTRO!$E$39="Non endémique",IF(INTRO!$E$37="Non endémique","Non requis",COUNTRY_INFO!P16),"Traiter avec IVM") -> Traiter avec IVM | I16: 0 | J16: 0 | L16: 0 | M16: 0
A17: =IF(INTRO!$E$39<>"Non endémique", " ", IF(INTRO!$E$37="Non endémique"," ", IF(COUNTRY_INFO!A17=0," ",COUNTRY_INFO!A17))) ->  | B17: =IF(INTRO!$E$39<>"Non endémique", " ", IF(INTRO!$E$37="Non endémique"," ", IF(COUNTRY_INFO!B17=0," ",COUNTRY_INFO!B17))) ->  | C17: =IF(INTRO!$E$39<>"Non endémique", " ", IF(INTRO!$E$37="Non endémique"," ", IF(COUNTRY_INFO!C17=0," ",COUNTRY_INFO!C17))) ->  | D17: =IF(INTRO!$E$39<>"Non endémique", 0, IF(INTRO!$E$37="Non endémique",0,IF(COUNTRY_INFO!$H17=1,COUNTRY_INFO!E17,0))) -> 0 | E17: =IF(INTRO!$E$39<>"Non endémique", 0, IF(INTRO!$E$37="Non endémique",0,IF(COUNTRY_INFO!$H17=1,COUNTRY_INFO!F17,0))) -> 0 | F17: =IF(INTRO!$E$39<>"Non endémique", 0, IF(INTRO!$E$37="Non endémique",0,IF(COUNTRY_INFO!$H17=1,COUNTRY_INFO!G17,0))) -> 0 | G17: 0 | H17: =IF(INTRO!$E$39="Non endémique",IF(INTRO!$E$37="Non endémique","Non requis",COUNTRY_INFO!P17),"Traiter avec IVM") -> Traiter avec IVM | I17: 0 | J17: 0 | L17: 0 | M17: 0
A18: =IF(INTRO!$E$39<>"Non endémique", " ", IF(INTRO!$E$37="Non endémique"," ", IF(COUNTRY_INFO!A18=0," ",COUNTRY_INFO!A18))) ->  | B18: =IF(INTRO!$E$39<>"Non endémique", " ", IF(INTRO!$E$37="Non endémique"," ", IF(COUNTRY_INFO!B18=0," ",COUNTRY_INFO!B18))) ->  | C18: =IF(INTRO!$E$39<>"Non endémique", " ", IF(INTRO!$E$37="Non endémique"," ", IF(COUNTRY_INFO!C18=0," ",COUNTRY_INFO!C18))) ->  | D18: =IF(INTRO!$E$39<>"Non endémique", 0, IF(INTRO!$E$37="Non endémique",0,IF(COUNTRY_INFO!$H18=1,COUNTRY_INFO!E18,0))) -> 0 | E18: =IF(INTRO!$E$39<>"Non endémique", 0, IF(INTRO!$E$37="Non endémique",0,IF(COUNTRY_INFO!$H18=1,COUNTRY_INFO!F18,0))) -> 0 | F18: =IF(INTRO!$E$39<>"Non endémique", 0, IF(INTRO!$E$37="Non endémique",0,IF(COUNTRY_INFO!$H18=1,COUNTRY_INFO!G18,0))) -> 0 | G18: 0 | H18: =IF(INTRO!$E$39="Non endémique",IF(INTRO!$E$37="Non endémique","Non requis",COUNTRY_INFO!P18),"Traiter avec IVM") -> Traiter avec IVM | I18: 0 | J18: 0 | L18: 0 | M18: 0
A19: =IF(INTRO!$E$39<>"Non endémique", " ", IF(INTRO!$E$37="Non endémique"," ", IF(COUNTRY_INFO!A19=0," ",COUNTRY_INFO!A19))) ->  | B19: =IF(INTRO!$E$39<>"Non endémique", " ", IF(INTRO!$E$37="Non endémique"," ", IF(COUNTRY_INFO!B19=0," ",COUNTRY_INFO!B19))) ->  | C19: =IF(INTRO!$E$39<>"Non endémique", " ", IF(INTRO!$E$37="Non endémique"," ", IF(COUNTRY_INFO!C19=0," ",COUNTRY_INFO!C19))) ->  | D19: =IF(INTRO!$E$39<>"Non endémique", 0, IF(INTRO!$E$37="Non endémique",0,IF(COUNTRY_INFO!$H19=1,COUNTRY_INFO!E19,0))) -> 0 | E19: =IF(INTRO!$E$39<>"Non endémique", 0, IF(INTRO!$E$37="Non endémique",0,IF(COUNTRY_INFO!$H19=1,COUNTRY_INFO!F19,0))) -> 0 | F19: =IF(INTRO!$E$39<>"Non endémique", 0, IF(INTRO!$E$37="Non endémique",0,IF(COUNTRY_INFO!$H19=1,COUNTRY_INFO!G19,0))) -> 0 | G19: 0 | H19: =IF(INTRO!$E$39="Non endémique",IF(INTRO!$E$37="Non endémique","Non requis",COUNTRY_INFO!P19),"Traiter avec IVM") -> Traiter avec IVM | I19: 0 | J19: 0 | L19: 0 | M19: 0
A20: =IF(INTRO!$E$39<>"Non endémique", " ", IF(INTRO!$E$37="Non endémique"," ", IF(COUNTRY_INFO!A20=0," ",COUNTRY_INFO!A20))) ->  | B20: =IF(INTRO!$E$39<>"Non endémique", " ", IF(INTRO!$E$37="Non endémique"," ", IF(COUNTRY_INFO!B20=0," ",COUNTRY_INFO!B20))) ->  | C20: =IF(INTRO!$E$39<>"Non endémique", " ", IF(INTRO!$E$37="Non endémique"," ", IF(COUNTRY_INFO!C20=0," ",COUNTRY_INFO!C20))) ->  | D20: =IF(INTRO!$E$39<>"Non endémique", 0, IF(INTRO!$E$37="Non endémique",0,IF(COUNTRY_INFO!$H20=1,COUNTRY_INFO!E20,0))) -> 0 | E20: =IF(INTRO!$E$39<>"Non endémique", 0, IF(INTRO!$E$37="Non endémique",0,IF(COUNTRY_INFO!$H20=1,COUNTRY_INFO!F20,0))) -> 0 | F20: =IF(INTRO!$E$39<>"Non endémique", 0, IF(INTRO!$E$37="Non endémique",0,IF(COUNTRY_INFO!$H20=1,COUNTRY_INFO!G20,0))) -> 0 | G20: 0 | H20: =IF(INTRO!$E$39="Non endémique",IF(INTRO!$E$37="Non endémique","Non requis",COUNTRY_INFO!P20),"Traiter avec IVM") -> Traiter avec IVM | I20: 0 | J20: 0 | L20: 0 | M20: 0
A21: =IF(INTRO!$E$39<>"Non endémique", " ", IF(INTRO!$E$37="Non endémique"," ", IF(COUNTRY_INFO!A21=0," ",COUNTRY_INFO!A21))) ->  | B21: =IF(INTRO!$E$39<>"Non endémique", " ", IF(INTRO!$E$37="Non endémique"," ", IF(COUNTRY_INFO!B21=0," ",COUNTRY_INFO!B21))) ->  | C21: =IF(INTRO!$E$39<>"Non endémique", " ", IF(INTRO!$E$37="Non endémique"," ", IF(COUNTRY_INFO!C21=0," ",COUNTRY_INFO!C21))) ->  | D21: =IF(INTRO!$E$39<>"Non endémique", 0, IF(INTRO!$E$37="Non endémique",0,IF(COUNTRY_INFO!$H21=1,COUNTRY_INFO!E21,0))) -> 0 | E21: =IF(INTRO!$E$39<>"Non endémique", 0, IF(INTRO!$E$37="Non endémique",0,IF(COUNTRY_INFO!$H21=1,COUNTRY_INFO!F21,0))) -> 0 | F21: =IF(INTRO!$E$39<>"Non endémique", 0, IF(INTRO!$E$37="Non endémique",0,IF(COUNTRY_INFO!$H21=1,COUNTRY_INFO!G21,0))) -> 0 | G21: 0 | H21: =IF(INTRO!$E$39="Non endémique",IF(INTRO!$E$37="Non endémique","Non requis",COUNTRY_INFO!P21),"Traiter avec IVM") -> Traiter avec IVM | I21: 0 | J21: 0 | L21: 0 | M21: 0
A22: =IF(INTRO!$E$39<>"Non endémique", " ", IF(INTRO!$E$37="Non endémique"," ", IF(COUNTRY_INFO!A22=0," ",COUNTRY_INFO!A22))) ->  | B22: =IF(INTRO!$E$39<>"Non endémique", " ", IF(INTRO!$E$37="Non endémique"," ", IF(COUNTRY_INFO!B22=0," ",COUNTRY_INFO!B22))) ->  | C22: =IF(INTRO!$E$39<>"Non endémique", " ", IF(INTRO!$E$37="Non endémique"," ", IF(COUNTRY_INFO!C22=0," ",COUNTRY_INFO!C22))) ->  | D22: =IF(INTRO!$E$39<>"Non endémique", 0, IF(INTRO!$E$37="Non endémique",0,IF(COUNTRY_INFO!$H22=1,COUNTRY_INFO!E22,0))) -> 0 | E22: =IF(INTRO!$E$39<>"Non endémique", 0, IF(INTRO!$E$37="Non endémique",0,IF(COUNTRY_INFO!$H22=1,COUNTRY_INFO!F22,0))) -> 0 | F22: =IF(INTRO!$E$39<>"Non endémique", 0, IF(INTRO!$E$37="Non endémique",0,IF(COUNTRY_INFO!$H22=1,COUNTRY_INFO!G22,0))) -> 0 | G22: 0 | H22: =IF(INTRO!$E$39="Non endémique",IF(INTRO!$E$37="Non endémique","Non requis",COUNTRY_INFO!P22),"Traiter avec IVM") -> Traiter avec IVM | I22: 0 | J22: 0 | L22: 0 | M22: 0
A23: =IF(INTRO!$E$39<>"Non endémique", " ", IF(INTRO!$E$37="Non endémique"," ", IF(COUNTRY_INFO!A23=0," ",COUNTRY_INFO!A23))) ->  | B23: =IF(INTRO!$E$39<>"Non endémique", " ", IF(INTRO!$E$37="Non endémique"," ", IF(COUNTRY_INFO!B23=0," ",COUNTRY_INFO!B23))) ->  | C23: =IF(INTRO!$E$39<>"Non endémique", " ", IF(INTRO!$E$37="Non endémique"," ", IF(COUNTRY_INFO!C23=0," ",COUNTRY_INFO!C23))) ->  | D23: =IF(INTRO!$E$39<>"Non endémique", 0, IF(INTRO!$E$37="Non endémique",0,IF(COUNTRY_INFO!$H23=1,COUNTRY_INFO!E23,0))) -> 0 | E23: =IF(INTRO!$E$39<>"Non endémique", 0, IF(INTRO!$E$37="Non endémique",0,IF(COUNTRY_INFO!$H23=1,COUNTRY_INFO!F23,0))) -> 0 | F23: =IF(INTRO!$E$39<>"Non endémique", 0, IF(INTRO!$E$37="Non endémique",0,IF(COUNTRY_INFO!$H23=1,COUNTRY_INFO!G23,0))) -> 0 | G23: 0 | H23: =IF(INTRO!$E$39="Non endémique",IF(INTRO!$E$37="Non endémique","Non requis",COUNTRY_INFO!P23),"Traiter avec IVM") -> Traiter avec IVM | I23: 0 | J23: 0 | L23: 0 | M23: 0
A24: =IF(INTRO!$E$39<>"Non endémique", " ", IF(INTRO!$E$37="Non endémique"," ", IF(COUNTRY_INFO!A24=0," ",COUNTRY_INFO!A24))) ->  | B24: =IF(INTRO!$E$39<>"Non endémique", " ", IF(INTRO!$E$37="Non endémique"," ", IF(COUNTRY_INFO!B24=0," ",COUNTRY_INFO!B24))) ->  | C24: =IF(INTRO!$E$39<>"Non endémique", " ", IF(INTRO!$E$37="Non endémique"," ", IF(COUNTRY_INFO!C24=0," ",COUNTRY_INFO!C24))) ->  | D24: =IF(INTRO!$E$39<>"Non endémique", 0, IF(INTRO!$E$37="Non endémique",0,IF(COUNTRY_INFO!$H24=1,COUNTRY_INFO!E24,0))) -> 0 | E24: =IF(INTRO!$E$39<>"Non endémique", 0, IF(INTRO!$E$37="Non endémique",0,IF(COUNTRY_INFO!$H24=1,COUNTRY_INFO!F24,0))) -> 0 | F24: =IF(INTRO!$E$39<>"Non endémique", 0, IF(INTRO!$E$37="Non endémique",0,IF(COUNTRY_INFO!$H24=1,COUNTRY_INFO!G24,0))) -> 0 | G24: 0 | H24: =IF(INTRO!$E$39="Non endémique",IF(INTRO!$E$37="Non endémique","Non requis",COUNTRY_INFO!P24),"Traiter avec IVM") -> Traiter avec IVM | I24: 0 | J24: 0 | L24: 0 | M24: 0
A25: =IF(INTRO!$E$39<>"Non endémique", " ", IF(INTRO!$E$37="Non endémique"," ", IF(COUNTRY_INFO!A25=0," ",COUNTRY_INFO!A25))) ->  | B25: =IF(INTRO!$E$39<>"Non endémique", " ", IF(INTRO!$E$37="Non endémique"," ", IF(COUNTRY_INFO!B25=0," ",COUNTRY_INFO!B25))) ->  | C25: =IF(INTRO!$E$39<>"Non endémique", " ", IF(INTRO!$E$37="Non endémique"," ", IF(COUNTRY_INFO!C25=0," ",COUNTRY_INFO!C25))) ->  | D25: =IF(INTRO!$E$39<>"Non endémique", 0, IF(INTRO!$E$37="Non endémique",0,IF(COUNTRY_INFO!$H25=1,COUNTRY_INFO!E25,0))) -> 0 | E25: =IF(INTRO!$E$39<>"Non endémique", 0, IF(INTRO!$E$37="Non endémique",0,IF(COUNTRY_INFO!$H25=1,COUNTRY_INFO!F25,0))) -> 0 | F25: =IF(INTRO!$E$39<>"Non endémique", 0, IF(INTRO!$E$37="Non endémique",0,IF(COUNTRY_INFO!$H25=1,COUNTRY_INFO!G25,0))) -> 0 | G25: 0 | H25: =IF(INTRO!$E$39="Non endémique",IF(INTRO!$E$37="Non endémique","Non requis",COUNTRY_INFO!P25),"Traiter avec IVM") -> Traiter avec IVM | I25: 0 | J25: 0 | L25: 0 | M25: 0
A26: =IF(INTRO!$E$39<>"Non endémique", " ", IF(INTRO!$E$37="Non endémique"," ", IF(COUNTRY_INFO!A26=0," ",COUNTRY_INFO!A26))) ->  | B26: =IF(INTRO!$E$39<>"Non endémique", " ", IF(INTRO!$E$37="Non endémique"," ", IF(COUNTRY_INFO!B26=0," ",COUNTRY_INFO!B26))) ->  | C26: =IF(INTRO!$E$39<>"Non endémique", " ", IF(INTRO!$E$37="Non endémique"," ", IF(COUNTRY_INFO!C26=0," ",COUNTRY_INFO!C26))) ->  | D26: =IF(INTRO!$E$39<>"Non endémique", 0, IF(INTRO!$E$37="Non endémique",0,IF(COUNTRY_INFO!$H26=1,COUNTRY_INFO!E26,0))) -> 0 | E26: =IF(INTRO!$E$39<>"Non endémique", 0, IF(INTRO!$E$37="Non endémique",0,IF(COUNTRY_INFO!$H26=1,COUNTRY_INFO!F26,0))) -> 0 | F26: =IF(INTRO!$E$39<>"Non endémique", 0, IF(INTRO!$E$37="Non endémique",0,IF(COUNTRY_INFO!$H26=1,COUNTRY_INFO!G26,0))) -> 0 | G26: 0 | H26: =IF(INTRO!$E$39="Non endémique",IF(INTRO!$E$37="Non endémique","Non requis",COUNTRY_INFO!P26),"Traiter avec IVM") -> Traiter avec IVM | I26: 0 | J26: 0 | L26: 0 | M26: 0
A27: =IF(INTRO!$E$39<>"Non endémique", " ", IF(INTRO!$E$37="Non endémique"," ", IF(COUNTRY_INFO!A27=0," ",COUNTRY_INFO!A27))) ->  | B27: =IF(INTRO!$E$39<>"Non endémique", " ", IF(INTRO!$E$37="Non endémique"," ", IF(COUNTRY_INFO!B27=0," ",COUNTRY_INFO!B27))) ->  | C27: =IF(INTRO!$E$39<>"Non endémique", " ", IF(INTRO!$E$37="Non endémique"," ", IF(COUNTRY_INFO!C27=0," ",COUNTRY_INFO!C27))) ->  | D27: =IF(INTRO!$E$39<>"Non endémique", 0, IF(INTRO!$E$37="Non endémique",0,IF(COUNTRY_INFO!$H27=1,COUNTRY_INFO!E27,0))) -> 0 | E27: =IF(INTRO!$E$39<>"Non endémique", 0, IF(INTRO!$E$37="Non endémique",0,IF(COUNTRY_INFO!$H27=1,COUNTRY_INFO!F27,0))) -> 0 | F27: =IF(INTRO!$E$39<>"Non endémique", 0, IF(INTRO!$E$37="Non endémique",0,IF(COUNTRY_INFO!$H27=1,COUNTRY_INFO!G27,0))) -> 0 | G27: 0 | H27: =IF(INTRO!$E$39="Non endémique",IF(INTRO!$E$37="Non endémique","Non requis",COUNTRY_INFO!P27),"Traiter avec IVM") -> Traiter avec IVM | I27: 0 | J27: 0 | L27: 0 | M27: 0
A28: =IF(INTRO!$E$39<>"Non endémique", " ", IF(INTRO!$E$37="Non endémique"," ", IF(COUNTRY_INFO!A28=0," ",COUNTRY_INFO!A28))) ->  | B28: =IF(INTRO!$E$39<>"Non endémique", " ", IF(INTRO!$E$37="Non endémique"," ", IF(COUNTRY_INFO!B28=0," ",COUNTRY_INFO!B28))) ->  | C28: =IF(INTRO!$E$39<>"Non endémique", " ", IF(INTRO!$E$37="Non endémique"," ", IF(COUNTRY_INFO!C28=0," ",COUNTRY_INFO!C28))) ->  | D28: =IF(INTRO!$E$39<>"Non endémique", 0, IF(INTRO!$E$37="Non endémique",0,IF(COUNTRY_INFO!$H28=1,COUNTRY_INFO!E28,0))) -> 0 | E28: =IF(INTRO!$E$39<>"Non endémique", 0, IF(INTRO!$E$37="Non endémique",0,IF(COUNTRY_INFO!$H28=1,COUNTRY_INFO!F28,0))) -> 0 | F28: =IF(INTRO!$E$39<>"Non endémique", 0, IF(INTRO!$E$37="Non endémique",0,IF(COUNTRY_INFO!$H28=1,COUNTRY_INFO!G28,0))) -> 0 | G28: 0 | H28: =IF(INTRO!$E$39="Non endémique",IF(INTRO!$E$37="Non endémique","Non requis",COUNTRY_INFO!P28),"Traiter avec IVM") -> Traiter avec IVM | I28: 0 | J28: 0 | L28: 0 | M28: 0
A29: =IF(INTRO!$E$39<>"Non endémique", " ", IF(INTRO!$E$37="Non endémique"," ", IF(COUNTRY_INFO!A29=0," ",COUNTRY_INFO!A29))) ->  | B29: =IF(INTRO!$E$39<>"Non endémique", " ", IF(INTRO!$E$37="Non endémique"," ", IF(COUNTRY_INFO!B29=0," ",COUNTRY_INFO!B29))) ->  | C29: =IF(INTRO!$E$39<>"Non endémique", " ", IF(INTRO!$E$37="Non endémique"," ", IF(COUNTRY_INFO!C29=0," ",COUNTRY_INFO!C29))) ->  | D29: =IF(INTRO!$E$39<>"Non endémique", 0, IF(INTRO!$E$37="Non endémique",0,IF(COUNTRY_INFO!$H29=1,COUNTRY_INFO!E29,0))) -> 0 | E29: =IF(INTRO!$E$39<>"Non endémique", 0, IF(INTRO!$E$37="Non endémique",0,IF(COUNTRY_INFO!$H29=1,COUNTRY_INFO!F29,0))) -> 0 | F29: =IF(INTRO!$E$39<>"Non endémique", 0, IF(INTRO!$E$37="Non endémique",0,IF(COUNTRY_INFO!$H29=1,COUNTRY_INFO!G29,0))) -> 0 | G29: 0 | H29: =IF(INTRO!$E$39="Non endémique",IF(INTRO!$E$37="Non endémique","Non requis",COUNTRY_INFO!P29),"Traiter avec IVM") -> Traiter avec IVM | I29: 0 | J29: 0 | L29: 0 | M29: 0
A30: =IF(INTRO!$E$39<>"Non endémique", " ", IF(INTRO!$E$37="Non endémique"," ", IF(COUNTRY_INFO!A30=0," ",COUNTRY_INFO!A30))) ->  | B30: =IF(INTRO!$E$39<>"Non endémique", " ", IF(INTRO!$E$37="Non endémique"," ", IF(COUNTRY_INFO!B30=0," ",COUNTRY_INFO!B30))) ->  | C30: =IF(INTRO!$E$39<>"Non endémique", " ", IF(INTRO!$E$37="Non endémique"," ", IF(COUNTRY_INFO!C30=0," ",COUNTRY_INFO!C30))) ->  | D30: =IF(INTRO!$E$39<>"Non endémique", 0, IF(INTRO!$E$37="Non endémique",0,IF(COUNTRY_INFO!$H30=1,COUNTRY_INFO!E30,0))) -> 0 | E30: =IF(INTRO!$E$39<>"Non endémique", 0, IF(INTRO!$E$37="Non endémique",0,IF(COUNTRY_INFO!$H30=1,COUNTRY_INFO!F30,0))) -> 0 | F30: =IF(INTRO!$E$39<>"Non endémique", 0, IF(INTRO!$E$37="Non endémique",0,IF(COUNTRY_INFO!$H30=1,COUNTRY_INFO!G30,0))) -> 0 | G30: 0 | H30: =IF(INTRO!$E$39="Non endémique",IF(INTRO!$E$37="Non endémique","Non requis",COUNTRY_INFO!P30),"Traiter avec IVM") -> Traiter avec IVM | I30: 0 | J30: 0 | L30: 0 | M30: 0
A31: =IF(INTRO!$E$39<>"Non endémique", " ", IF(INTRO!$E$37="Non endémique"," ", IF(COUNTRY_INFO!A31=0," ",COUNTRY_INFO!A31))) ->  | B31: =IF(INTRO!$E$39<>"Non endémique", " ", IF(INTRO!$E$37="Non endémique"," ", IF(COUNTRY_INFO!B31=0," ",COUNTRY_INFO!B31))) ->  | C31: =IF(INTRO!$E$39<>"Non endémique", " ", IF(INTRO!$E$37="Non endémique"," ", IF(COUNTRY_INFO!C31=0," ",COUNTRY_INFO!C31))) ->  | D31: =IF(INTRO!$E$39<>"Non endémique", 0, IF(INTRO!$E$37="Non endémique",0,IF(COUNTRY_INFO!$H31=1,COUNTRY_INFO!E31,0))) -> 0 | E31: =IF(INTRO!$E$39<>"Non endémique", 0, IF(INTRO!$E$37="Non endémique",0,IF(COUNTRY_INFO!$H31=1,COUNTRY_INFO!F31,0))) -> 0 | F31: =IF(INTRO!$E$39<>"Non endémique", 0, IF(INTRO!$E$37="Non endémique",0,IF(COUNTRY_INFO!$H31=1,COUNTRY_INFO!G31,0))) -> 0 | G31: 0 | H31: =IF(INTRO!$E$39="Non endémique",IF(INTRO!$E$37="Non endémique","Non requis",COUNTRY_INFO!P31),"Traiter avec IVM") -> Traiter avec IVM | I31: 0 | J31: 0 | L31: 0 | M31: 0
A32: =IF(INTRO!$E$39<>"Non endémique", " ", IF(INTRO!$E$37="Non endémique"," ", IF(COUNTRY_INFO!A32=0," ",COUNTRY_INFO!A32))) ->  | B32: =IF(INTRO!$E$39<>"Non endémique", " ", IF(INTRO!$E$37="Non endémique"," ", IF(COUNTRY_INFO!B32=0," ",COUNTRY_INFO!B32))) ->  | C32: =IF(INTRO!$E$39<>"Non endémique", " ", IF(INTRO!$E$37="Non endémique"," ", IF(COUNTRY_INFO!C32=0," ",COUNTRY_INFO!C32))) ->  | D32: =IF(INTRO!$E$39<>"Non endémique", 0, IF(INTRO!$E$37="Non endémique",0,IF(COUNTRY_INFO!$H32=1,COUNTRY_INFO!E32,0))) -> 0 | E32: =IF(INTRO!$E$39<>"Non endémique", 0, IF(INTRO!$E$37="Non endémique",0,IF(COUNTRY_INFO!$H32=1,COUNTRY_INFO!F32,0))) -> 0 | F32: =IF(INTRO!$E$39<>"Non endémique", 0, IF(INTRO!$E$37="Non endémique",0,IF(COUNTRY_INFO!$H32=1,COUNTRY_INFO!G32,0))) -> 0 | G32: 0 | H32: =IF(INTRO!$E$39="Non endémique",IF(INTRO!$E$37="Non endémique","Non requis",COUNTRY_INFO!P32),"Traiter avec IVM") -> Traiter avec IVM | I32: 0 | J32: 0 | L32: 0 | M32: 0
A33: =IF(INTRO!$E$39<>"Non endémique", " ", IF(INTRO!$E$37="Non endémique"," ", IF(COUNTRY_INFO!A33=0," ",COUNTRY_INFO!A33))) ->  | B33: =IF(INTRO!$E$39<>"Non endémique", " ", IF(INTRO!$E$37="Non endémique"," ", IF(COUNTRY_INFO!B33=0," ",COUNTRY_INFO!B33))) ->  | C33: =IF(INTRO!$E$39<>"Non endémique", " ", IF(INTRO!$E$37="Non endémique"," ", IF(COUNTRY_INFO!C33=0," ",COUNTRY_INFO!C33))) ->  | D33: =IF(INTRO!$E$39<>"Non endémique", 0, IF(INTRO!$E$37="Non endémique",0,IF(COUNTRY_INFO!$H33=1,COUNTRY_INFO!E33,0))) -> 0 | E33: =IF(INTRO!$E$39<>"Non endémique", 0, IF(INTRO!$E$37="Non endémique",0,IF(COUNTRY_INFO!$H33=1,COUNTRY_INFO!F33,0))) -> 0 | F33: =IF(INTRO!$E$39<>"Non endémique", 0, IF(INTRO!$E$37="Non endémique",0,IF(COUNTRY_INFO!$H33=1,COUNTRY_INFO!G33,0))) -> 0 | G33: 0 | H33: =IF(INTRO!$E$39="Non endémique",IF(INTRO!$E$37="Non endémique","Non requis",COUNTRY_INFO!P33),"Traiter avec IVM") -> Traiter avec IVM | I33: 0 | J33: 0 | L33: 0 | M33: 0
A34: =IF(INTRO!$E$39<>"Non endémique", " ", IF(INTRO!$E$37="Non endémique"," ", IF(COUNTRY_INFO!A34=0," ",COUNTRY_INFO!A34))) ->  | B34: =IF(INTRO!$E$39<>"Non endémique", " ", IF(INTRO!$E$37="Non endémique"," ", IF(COUNTRY_INFO!B34=0," ",COUNTRY_INFO!B34))) ->  | C34: =IF(INTRO!$E$39<>"Non endémique", " ", IF(INTRO!$E$37="Non endémique"," ", IF(COUNTRY_INFO!C34=0," ",COUNTRY_INFO!C34))) ->  | D34: =IF(INTRO!$E$39<>"Non endémique", 0, IF(INTRO!$E$37="Non endémique",0,IF(COUNTRY_INFO!$H34=1,COUNTRY_INFO!E34,0))) -> 0 | E34: =IF(INTRO!$E$39<>"Non endémique", 0, IF(INTRO!$E$37="Non endémique",0,IF(COUNTRY_INFO!$H34=1,COUNTRY_INFO!F34,0))) -> 0 | F34: =IF(INTRO!$E$39<>"Non endémique", 0, IF(INTRO!$E$37="Non endémique",0,IF(COUNTRY_INFO!$H34=1,COUNTRY_INFO!G34,0))) -> 0 | G34: 0 | H34: =IF(INTRO!$E$39="Non endémique",IF(INTRO!$E$37="Non endémique","Non requis",COUNTRY_INFO!P34),"Traiter avec IVM") -> Traiter avec IVM | I34: 0 | J34: 0 | L34: 0 | M34: 0
A35: =IF(INTRO!$E$39<>"Non endémique", " ", IF(INTRO!$E$37="Non endémique"," ", IF(COUNTRY_INFO!A35=0," ",COUNTRY_INFO!A35))) ->  | B35: =IF(INTRO!$E$39<>"Non endémique", " ", IF(INTRO!$E$37="Non endémique"," ", IF(COUNTRY_INFO!B35=0," ",COUNTRY_INFO!B35))) ->  | C35: =IF(INTRO!$E$39<>"Non endémique", " ", IF(INTRO!$E$37="Non endémique"," ", IF(COUNTRY_INFO!C35=0," ",COUNTRY_INFO!C35))) ->  | D35: =IF(INTRO!$E$39<>"Non endémique", 0, IF(INTRO!$E$37="Non endémique",0,IF(COUNTRY_INFO!$H35=1,COUNTRY_INFO!E35,0))) -> 0 | E35: =IF(INTRO!$E$39<>"Non endémique", 0, IF(INTRO!$E$37="Non endémique",0,IF(COUNTRY_INFO!$H35=1,COUNTRY_INFO!F35,0))) -> 0 | F35: =IF(INTRO!$E$39<>"Non endémique", 0, IF(INTRO!$E$37="Non endémique",0,IF(COUNTRY_INFO!$H35=1,COUNTRY_INFO!G35,0))) -> 0 | G35: 0 | H35: =IF(INTRO!$E$39="Non endémique",IF(INTRO!$E$37="Non endémique","Non requis",COUNTRY_INFO!P35),"Traiter avec IVM") -> Traiter avec IVM | I35: 0 | J35: 0 | L35: 0 | M35: 0
A36: =IF(INTRO!$E$39<>"Non endémique", " ", IF(INTRO!$E$37="Non endémique"," ", IF(COUNTRY_INFO!A36=0," ",COUNTRY_INFO!A36))) ->  | B36: =IF(INTRO!$E$39<>"Non endémique", " ", IF(INTRO!$E$37="Non endémique"," ", IF(COUNTRY_INFO!B36=0," ",COUNTRY_INFO!B36))) ->  | C36: =IF(INTRO!$E$39<>"Non endémique", " ", IF(INTRO!$E$37="Non endémique"," ", IF(COUNTRY_INFO!C36=0," ",COUNTRY_INFO!C36))) ->  | D36: =IF(INTRO!$E$39<>"Non endémique", 0, IF(INTRO!$E$37="Non endémique",0,IF(COUNTRY_INFO!$H36=1,COUNTRY_INFO!E36,0))) -> 0 | E36: =IF(INTRO!$E$39<>"Non endémique", 0, IF(INTRO!$E$37="Non endémique",0,IF(COUNTRY_INFO!$H36=1,COUNTRY_INFO!F36,0))) -> 0 | F36: =IF(INTRO!$E$39<>"Non endémique", 0, IF(INTRO!$E$37="Non endémique",0,IF(COUNTRY_INFO!$H36=1,COUNTRY_INFO!G36,0))) -> 0 | G36: 0 | H36: =IF(INTRO!$E$39="Non endémique",IF(INTRO!$E$37="Non endémique","Non requis",COUNTRY_INFO!P36),"Traiter avec IVM") -> Traiter avec IVM | I36: 0 | J36: 0 | L36: 0 | M36: 0
A37: =IF(INTRO!$E$39<>"Non endémique", " ", IF(INTRO!$E$37="Non endémique"," ", IF(COUNTRY_INFO!A37=0," ",COUNTRY_INFO!A37))) ->  | B37: =IF(INTRO!$E$39<>"Non endémique", " ", IF(INTRO!$E$37="Non endémique"," ", IF(COUNTRY_INFO!B37=0," ",COUNTRY_INFO!B37))) ->  | C37: =IF(INTRO!$E$39<>"Non endémique", " ", IF(INTRO!$E$37="Non endémique"," ", IF(COUNTRY_INFO!C37=0," ",COUNTRY_INFO!C37))) ->  | D37: =IF(INTRO!$E$39<>"Non endémique", 0, IF(INTRO!$E$37="Non endémique",0,IF(COUNTRY_INFO!$H37=1,COUNTRY_INFO!E37,0))) -> 0 | E37: =IF(INTRO!$E$39<>"Non endémique", 0, IF(INTRO!$E$37="Non endémique",0,IF(COUNTRY_INFO!$H37=1,COUNTRY_INFO!F37,0))) -> 0 | F37: =IF(INTRO!$E$39<>"Non endémique", 0, IF(INTRO!$E$37="Non endémique",0,IF(COUNTRY_INFO!$H37=1,COUNTRY_INFO!G37,0))) -> 0 | G37: 0 | H37: =IF(INTRO!$E$39="Non endémique",IF(INTRO!$E$37="Non endémique","Non requis",COUNTRY_INFO!P37),"Traiter avec IVM") -> Traiter avec IVM | I37: 0 | J37: 0 | L37: 0 | M37: 0
A38: =IF(INTRO!$E$39<>"Non endémique", " ", IF(INTRO!$E$37="Non endémique"," ", IF(COUNTRY_INFO!A38=0," ",COUNTRY_INFO!A38))) ->  | B38: =IF(INTRO!$E$39<>"Non endémique", " ", IF(INTRO!$E$37="Non endémique"," ", IF(COUNTRY_INFO!B38=0," ",COUNTRY_INFO!B38))) ->  | C38: =IF(INTRO!$E$39<>"Non endémique", " ", IF(INTRO!$E$37="Non endémique"," ", IF(COUNTRY_INFO!C38=0," ",COUNTRY_INFO!C38))) ->  | D38: =IF(INTRO!$E$39<>"Non endémique", 0, IF(INTRO!$E$37="Non endémique",0,IF(COUNTRY_INFO!$H38=1,COUNTRY_INFO!E38,0))) -> 0 | E38: =IF(INTRO!$E$39<>"Non endémique", 0, IF(INTRO!$E$37="Non endémique",0,IF(COUNTRY_INFO!$H38=1,COUNTRY_INFO!F38,0))) -> 0 | F38: =IF(INTRO!$E$39<>"Non endémique", 0, IF(INTRO!$E$37="Non endémique",0,IF(COUNTRY_INFO!$H38=1,COUNTRY_INFO!G38,0))) -> 0 | G38: 0 | H38: =IF(INTRO!$E$39="Non endémique",IF(INTRO!$E$37="Non endémique","Non requis",COUNTRY_INFO!P38),"Traiter avec IVM") -> Traiter avec IVM | I38: 0 | J38: 0 | L38: 0 | M38: 0
A39: =IF(INTRO!$E$39<>"Non endémique", " ", IF(INTRO!$E$37="Non endémique"," ", IF(COUNTRY_INFO!A39=0," ",COUNTRY_INFO!A39))) ->  | B39: =IF(INTRO!$E$39<>"Non endémique", " ", IF(INTRO!$E$37="Non endémique"," ", IF(COUNTRY_INFO!B39=0," ",COUNTRY_INFO!B39))) ->  | C39: =IF(INTRO!$E$39<>"Non endémique", " ", IF(INTRO!$E$37="Non endémique"," ", IF(COUNTRY_INFO!C39=0," ",COUNTRY_INFO!C39))) ->  | D39: =IF(INTRO!$E$39<>"Non endémique", 0, IF(INTRO!$E$37="Non endémique",0,IF(COUNTRY_INFO!$H39=1,COUNTRY_INFO!E39,0))) -> 0 | E39: =IF(INTRO!$E$39<>"Non endémique", 0, IF(INTRO!$E$37="Non endémique",0,IF(COUNTRY_INFO!$H39=1,COUNTRY_INFO!F39,0))) -> 0 | F39: =IF(INTRO!$E$39<>"Non endémique", 0, IF(INTRO!$E$37="Non endémique",0,IF(COUNTRY_INFO!$H39=1,COUNTRY_INFO!G39,0))) -> 0 | G39: 0 | H39: =IF(INTRO!$E$39="Non endémique",IF(INTRO!$E$37="Non endémique","Non requis",COUNTRY_INFO!P39),"Traiter avec IVM") -> Traiter avec IVM | I39: 0 | J39: 0 | L39: 0 | M39: 0
A40: =IF(INTRO!$E$39<>"Non endémique", " ", IF(INTRO!$E$37="Non endémique"," ", IF(COUNTRY_INFO!A40=0," ",COUNTRY_INFO!A40))) ->  | B40: =IF(INTRO!$E$39<>"Non endémique", " ", IF(INTRO!$E$37="Non endémique"," ", IF(COUNTRY_INFO!B40=0," ",COUNTRY_INFO!B40))) ->  | C40: =IF(INTRO!$E$39<>"Non endémique", " ", IF(INTRO!$E$37="Non endémique"," ", IF(COUNTRY_INFO!C40=0," ",COUNTRY_INFO!C40))) ->  | D40: =IF(INTRO!$E$39<>"Non endémique", 0, IF(INTRO!$E$37="Non endémique",0,IF(COUNTRY_INFO!$H40=1,COUNTRY_INFO!E40,0))) -> 0 | E40: =IF(INTRO!$E$39<>"Non endémique", 0, IF(INTRO!$E$37="Non endémique",0,IF(COUNTRY_INFO!$H40=1,COUNTRY_INFO!F40,0))) -> 0 | F40: =IF(INTRO!$E$39<>"Non endémique", 0, IF(INTRO!$E$37="Non endémique",0,IF(COUNTRY_INFO!$H40=1,COUNTRY_INFO!G40,0))) -> 0 | G40: 0 | H40: =IF(INTRO!$E$39="Non endémique",IF(INTRO!$E$37="Non endémique","Non requis",COUNTRY_INFO!P40),"Traiter avec IVM") -> Traiter avec IVM | I40: 0 | J40: 0 | L40: 0 | M40: 0
A41: =IF(INTRO!$E$39<>"Non endémique", " ", IF(INTRO!$E$37="Non endémique"," ", IF(COUNTRY_INFO!A41=0," ",COUNTRY_INFO!A41))) ->  | B41: =IF(INTRO!$E$39<>"Non endémique", " ", IF(INTRO!$E$37="Non endémique"," ", IF(COUNTRY_INFO!B41=0," ",COUNTRY_INFO!B41))) ->  | C41: =IF(INTRO!$E$39<>"Non endémique", " ", IF(INTRO!$E$37="Non endémique"," ", IF(COUNTRY_INFO!C41=0," ",COUNTRY_INFO!C41))) ->  | D41: =IF(INTRO!$E$39<>"Non endémique", 0, IF(INTRO!$E$37="Non endémique",0,IF(COUNTRY_INFO!$H41=1,COUNTRY_INFO!E41,0))) -> 0 | E41: =IF(INTRO!$E$39<>"Non endémique", 0, IF(INTRO!$E$37="Non endémique",0,IF(COUNTRY_INFO!$H41=1,COUNTRY_INFO!F41,0))) -> 0 | F41: =IF(INTRO!$E$39<>"Non endémique", 0, IF(INTRO!$E$37="Non endémique",0,IF(COUNTRY_INFO!$H41=1,COUNTRY_INFO!G41,0))) -> 0 | G41: 0 | H41: =IF(INTRO!$E$39="Non endémique",IF(INTRO!$E$37="Non endémique","Non requis",COUNTRY_INFO!P41),"Traiter avec IVM") -> Traiter avec IVM | I41: 0 | J41: 0 | L41: 0 | M41: 0
A42: =IF(INTRO!$E$39<>"Non endémique", " ", IF(INTRO!$E$37="Non endémique"," ", IF(COUNTRY_INFO!A42=0," ",COUNTRY_INFO!A42))) ->  | B42: =IF(INTRO!$E$39<>"Non endémique", " ", IF(INTRO!$E$37="Non endémique"," ", IF(COUNTRY_INFO!B42=0," ",COUNTRY_INFO!B42))) ->  | C42: =IF(INTRO!$E$39<>"Non endémique", " ", IF(INTRO!$E$37="Non endémique"," ", IF(COUNTRY_INFO!C42=0," ",COUNTRY_INFO!C42))) ->  | D42: =IF(INTRO!$E$39<>"Non endémique", 0, IF(INTRO!$E$37="Non endémique",0,IF(COUNTRY_INFO!$H42=1,COUNTRY_INFO!E42,0))) -> 0 | E42: =IF(INTRO!$E$39<>"Non endémique", 0, IF(INTRO!$E$37="Non endémique",0,IF(COUNTRY_INFO!$H42=1,COUNTRY_INFO!F42,0))) -> 0 | F42: =IF(INTRO!$E$39<>"Non endémique", 0, IF(INTRO!$E$37="Non endémique",0,IF(COUNTRY_INFO!$H42=1,COUNTRY_INFO!G42,0))) -> 0 | G42: 0 | H42: =IF(INTRO!$E$39="Non endémique",IF(INTRO!$E$37="Non endémique","Non requis",COUNTRY_INFO!P42),"Traiter avec IVM") -> Traiter avec IVM | I42: 0 | J42: 0 | L42: 0 | M42: 0
A43: =IF(INTRO!$E$39<>"Non endémique", " ", IF(INTRO!$E$37="Non endémique"," ", IF(COUNTRY_INFO!A43=0," ",COUNTRY_INFO!A43))) ->  | B43: =IF(INTRO!$E$39<>"Non endémique", " ", IF(INTRO!$E$37="Non endémique"," ", IF(COUNTRY_INFO!B43=0," ",COUNTRY_INFO!B43))) ->  | C43: =IF(INTRO!$E$39<>"Non endémique", " ", IF(INTRO!$E$37="Non endémique"," ", IF(COUNTRY_INFO!C43=0," ",COUNTRY_INFO!C43))) ->  | D43: =IF(INTRO!$E$39<>"Non endémique", 0, IF(INTRO!$E$37="Non endémique",0,IF(COUNTRY_INFO!$H43=1,COUNTRY_INFO!E43,0))) -> 0 | E43: =IF(INTRO!$E$39<>"Non endémique", 0, IF(INTRO!$E$37="Non endémique",0,IF(COUNTRY_INFO!$H43=1,COUNTRY_INFO!F43,0))) -> 0 | F43: =IF(INTRO!$E$39<>"Non endémique", 0, IF(INTRO!$E$37="Non endémique",0,IF(COUNTRY_INFO!$H43=1,COUNTRY_INFO!G43,0))) -> 0 | G43: 0 | H43: =IF(INTRO!$E$39="Non endémique",IF(INTRO!$E$37="Non endémique","Non requis",COUNTRY_INFO!P43),"Traiter avec IVM") -> Traiter avec IVM | I43: 0 | J43: 0 | L43: 0 | M43: 0
A44: =IF(INTRO!$E$39<>"Non endémique", " ", IF(INTRO!$E$37="Non endémique"," ", IF(COUNTRY_INFO!A44=0," ",COUNTRY_INFO!A44))) ->  | B44: =IF(INTRO!$E$39<>"Non endémique", " ", IF(INTRO!$E$37="Non endémique"," ", IF(COUNTRY_INFO!B44=0," ",COUNTRY_INFO!B44))) ->  | C44: =IF(INTRO!$E$39<>"Non endémique", " ", IF(INTRO!$E$37="Non endémique"," ", IF(COUNTRY_INFO!C44=0," ",COUNTRY_INFO!C44))) ->  | D44: =IF(INTRO!$E$39<>"Non endémique", 0, IF(INTRO!$E$37="Non endémique",0,IF(COUNTRY_INFO!$H44=1,COUNTRY_INFO!E44,0))) -> 0 | E44: =IF(INTRO!$E$39<>"Non endémique", 0, IF(INTRO!$E$37="Non endémique",0,IF(COUNTRY_INFO!$H44=1,COUNTRY_INFO!F44,0))) -> 0 | F44: =IF(INTRO!$E$39<>"Non endémique", 0, IF(INTRO!$E$37="Non endémique",0,IF(COUNTRY_INFO!$H44=1,COUNTRY_INFO!G44,0))) -> 0 | G44: 0 | H44: =IF(INTRO!$E$39="Non endémique",IF(INTRO!$E$37="Non endémique","Non requis",COUNTRY_INFO!P44),"Traiter avec IVM") -> Traiter avec IVM | I44: 0 | J44: 0 | L44: 0 | M44: 0
A45: =IF(INTRO!$E$39<>"Non endémique", " ", IF(INTRO!$E$37="Non endémique"," ", IF(COUNTRY_INFO!A45=0," ",COUNTRY_INFO!A45))) ->  | B45: =IF(INTRO!$E$39<>"Non endémique", " ", IF(INTRO!$E$37="Non endémique"," ", IF(COUNTRY_INFO!B45=0," ",COUNTRY_INFO!B45))) ->  | C45: =IF(INTRO!$E$39<>"Non endémique", " ", IF(INTRO!$E$37="Non endémique"," ", IF(COUNTRY_INFO!C45=0," ",COUNTRY_INFO!C45))) ->  | D45: =IF(INTRO!$E$39<>"Non endémique", 0, IF(INTRO!$E$37="Non endémique",0,IF(COUNTRY_INFO!$H45=1,COUNTRY_INFO!E45,0))) -> 0 | E45: =IF(INTRO!$E$39<>"Non endémique", 0, IF(INTRO!$E$37="Non endémique",0,IF(COUNTRY_INFO!$H45=1,COUNTRY_INFO!F45,0))) -> 0 | F45: =IF(INTRO!$E$39<>"Non endémique", 0, IF(INTRO!$E$37="Non endémique",0,IF(COUNTRY_INFO!$H45=1,COUNTRY_INFO!G45,0))) -> 0 | G45: 0 | H45: =IF(INTRO!$E$39="Non endémique",IF(INTRO!$E$37="Non endémique","Non requis",COUNTRY_INFO!P45),"Traiter avec IVM") -> Traiter avec IVM | I45: 0 | J45: 0 | L45: 0 | M45: 0
A46: =IF(INTRO!$E$39<>"Non endémique", " ", IF(INTRO!$E$37="Non endémique"," ", IF(COUNTRY_INFO!A46=0," ",COUNTRY_INFO!A46))) ->  | B46: =IF(INTRO!$E$39<>"Non endémique", " ", IF(INTRO!$E$37="Non endémique"," ", IF(COUNTRY_INFO!B46=0," ",COUNTRY_INFO!B46))) ->  | C46: =IF(INTRO!$E$39<>"Non endémique", " ", IF(INTRO!$E$37="Non endémique"," ", IF(COUNTRY_INFO!C46=0," ",COUNTRY_INFO!C46))) ->  | D46: =IF(INTRO!$E$39<>"Non endémique", 0, IF(INTRO!$E$37="Non endémique",0,IF(COUNTRY_INFO!$H46=1,COUNTRY_INFO!E46,0))) -> 0 | E46: =IF(INTRO!$E$39<>"Non endémique", 0, IF(INTRO!$E$37="Non endémique",0,IF(COUNTRY_INFO!$H46=1,COUNTRY_INFO!F46,0))) -> 0 | F46: =IF(INTRO!$E$39<>"Non endémique", 0, IF(INTRO!$E$37="Non endémique",0,IF(COUNTRY_INFO!$H46=1,COUNTRY_INFO!G46,0))) -> 0 | G46: 0 | H46: =IF(INTRO!$E$39="Non endémique",IF(INTRO!$E$37="Non endémique","Non requis",COUNTRY_INFO!P46),"Traiter avec IVM") -> Traiter avec IVM | I46: 0 | J46: 0 | L46: 0 | M46: 0
A47: =IF(INTRO!$E$39<>"Non endémique", " ", IF(INTRO!$E$37="Non endémique"," ", IF(COUNTRY_INFO!A47=0," ",COUNTRY_INFO!A47))) ->  | B47: =IF(INTRO!$E$39<>"Non endémique", " ", IF(INTRO!$E$37="Non endémique"," ", IF(COUNTRY_INFO!B47=0," ",COUNTRY_INFO!B47))) ->  | C47: =IF(INTRO!$E$39<>"Non endémique", " ", IF(INTRO!$E$37="Non endémique"," ", IF(COUNTRY_INFO!C47=0," ",COUNTRY_INFO!C47))) ->  | D47: =IF(INTRO!$E$39<>"Non endémique", 0, IF(INTRO!$E$37="Non endémique",0,IF(COUNTRY_INFO!$H47=1,COUNTRY_INFO!E47,0))) -> 0 | E47: =IF(INTRO!$E$39<>"Non endémique", 0, IF(INTRO!$E$37="Non endémique",0,IF(COUNTRY_INFO!$H47=1,COUNTRY_INFO!F47,0))) -> 0 | F47: =IF(INTRO!$E$39<>"Non endémique", 0, IF(INTRO!$E$37="Non endémique",0,IF(COUNTRY_INFO!$H47=1,COUNTRY_INFO!G47,0))) -> 0 | G47: 0 | H47: =IF(INTRO!$E$39="Non endémique",IF(INTRO!$E$37="Non endémique","Non requis",COUNTRY_INFO!P47),"Traiter avec IVM") -> Traiter avec IVM | I47: 0 | J47: 0 | L47: 0 | M47: 0
A48: =IF(INTRO!$E$39<>"Non endémique", " ", IF(INTRO!$E$37="Non endémique"," ", IF(COUNTRY_INFO!A48=0," ",COUNTRY_INFO!A48))) ->  | B48: =IF(INTRO!$E$39<>"Non endémique", " ", IF(INTRO!$E$37="Non endémique"," ", IF(COUNTRY_INFO!B48=0," ",COUNTRY_INFO!B48))) ->  | C48: =IF(INTRO!$E$39<>"Non endémique", " ", IF(INTRO!$E$37="Non endémique"," ", IF(COUNTRY_INFO!C48=0," ",COUNTRY_INFO!C48))) ->  | D48: =IF(INTRO!$E$39<>"Non endémique", 0, IF(INTRO!$E$37="Non endémique",0,IF(COUNTRY_INFO!$H48=1,COUNTRY_INFO!E48,0))) -> 0 | E48: =IF(INTRO!$E$39<>"Non endémique", 0, IF(INTRO!$E$37="Non endémique",0,IF(COUNTRY_INFO!$H48=1,COUNTRY_INFO!F48,0))) -> 0 | F48: =IF(INTRO!$E$39<>"Non endémique", 0, IF(INTRO!$E$37="Non endémique",0,IF(COUNTRY_INFO!$H48=1,COUNTRY_INFO!G48,0))) -> 0 | G48: 0 | H48: =IF(INTRO!$E$39="Non endémique",IF(INTRO!$E$37="Non endémique","Non requis",COUNTRY_INFO!P48),"Traiter avec IVM") -> Traiter avec IVM | I48: 0 | J48: 0 | L48: 0 | M48: 0
A49: =IF(INTRO!$E$39<>"Non endémique", " ", IF(INTRO!$E$37="Non endémique"," ", IF(COUNTRY_INFO!A49=0," ",COUNTRY_INFO!A49))) ->  | B49: =IF(INTRO!$E$39<>"Non endémique", " ", IF(INTRO!$E$37="Non endémique"," ", IF(COUNTRY_INFO!B49=0," ",COUNTRY_INFO!B49))) ->  | C49: =IF(INTRO!$E$39<>"Non endémique", " ", IF(INTRO!$E$37="Non endémique"," ", IF(COUNTRY_INFO!C49=0," ",COUNTRY_INFO!C49))) ->  | D49: =IF(INTRO!$E$39<>"Non endémique", 0, IF(INTRO!$E$37="Non endémique",0,IF(COUNTRY_INFO!$H49=1,COUNTRY_INFO!E49,0))) -> 0 | E49: =IF(INTRO!$E$39<>"Non endémique", 0, IF(INTRO!$E$37="Non endémique",0,IF(COUNTRY_INFO!$H49=1,COUNTRY_INFO!F49,0))) -> 0 | F49: =IF(INTRO!$E$39<>"Non endémique", 0, IF(INTRO!$E$37="Non endémique",0,IF(COUNTRY_INFO!$H49=1,COUNTRY_INFO!G49,0))) -> 0 | G49: 0 | H49: =IF(INTRO!$E$39="Non endémique",IF(INTRO!$E$37="Non endémique","Non requis",COUNTRY_INFO!P49),"Traiter avec IVM") -> Traiter avec IVM | I49: 0 | J49: 0 | L49: 0 | M49: 0
A50: =IF(INTRO!$E$39<>"Non endémique", " ", IF(INTRO!$E$37="Non endémique"," ", IF(COUNTRY_INFO!A50=0," ",COUNTRY_INFO!A50))) ->  | B50: =IF(INTRO!$E$39<>"Non endémique", " ", IF(INTRO!$E$37="Non endémique"," ", IF(COUNTRY_INFO!B50=0," ",COUNTRY_INFO!B50))) ->  | C50: =IF(INTRO!$E$39<>"Non endémique", " ", IF(INTRO!$E$37="Non endémique"," ", IF(COUNTRY_INFO!C50=0," ",COUNTRY_INFO!C50))) ->  | D50: =IF(INTRO!$E$39<>"Non endémique", 0, IF(INTRO!$E$37="Non endémique",0,IF(COUNTRY_INFO!$H50=1,COUNTRY_INFO!E50,0))) -> 0 | E50: =IF(INTRO!$E$39<>"Non endémique", 0, IF(INTRO!$E$37="Non endémique",0,IF(COUNTRY_INFO!$H50=1,COUNTRY_INFO!F50,0))) -> 0 | F50: =IF(INTRO!$E$39<>"Non endémique", 0, IF(INTRO!$E$37="Non endémique",0,IF(COUNTRY_INFO!$H50=1,COUNTRY_INFO!G50,0))) -> 0 | G50: 0 | H50: =IF(INTRO!$E$39="Non endémique",IF(INTRO!$E$37="Non endémique","Non requis",COUNTRY_INFO!P50),"Traiter avec IVM") -> Traiter avec IVM | I50: 0 | J50: 0 | L50: 0 | M50: 0
A51: =IF(INTRO!$E$39<>"Non endémique", " ", IF(INTRO!$E$37="Non endémique"," ", IF(COUNTRY_INFO!A51=0," ",COUNTRY_INFO!A51))) ->  | B51: =IF(INTRO!$E$39<>"Non endémique", " ", IF(INTRO!$E$37="Non endémique"," ", IF(COUNTRY_INFO!B51=0," ",COUNTRY_INFO!B51))) ->  | C51: =IF(INTRO!$E$39<>"Non endémique", " ", IF(INTRO!$E$37="Non endémique"," ", IF(COUNTRY_INFO!C51=0," ",COUNTRY_INFO!C51))) ->  | D51: =IF(INTRO!$E$39<>"Non endémique", 0, IF(INTRO!$E$37="Non endémique",0,IF(COUNTRY_INFO!$H51=1,COUNTRY_INFO!E51,0))) -> 0 | E51: =IF(INTRO!$E$39<>"Non endémique", 0, IF(INTRO!$E$37="Non endémique",0,IF(COUNTRY_INFO!$H51=1,COUNTRY_INFO!F51,0))) -> 0 | F51: =IF(INTRO!$E$39<>"Non endémique", 0, IF(INTRO!$E$37="Non endémique",0,IF(COUNTRY_INFO!$H51=1,COUNTRY_INFO!G51,0))) -> 0 | G51: 0 | H51: =IF(INTRO!$E$39="Non endémique",IF(INTRO!$E$37="Non endémique","Non requis",COUNTRY_INFO!P51),"Traiter avec IVM") -> Traiter avec IVM | I51: 0 | J51: 0 | L51: 0 | M51: 0
A52: =IF(INTRO!$E$39<>"Non endémique", " ", IF(INTRO!$E$37="Non endémique"," ", IF(COUNTRY_INFO!A52=0," ",COUNTRY_INFO!A52))) ->  | B52: =IF(INTRO!$E$39<>"Non endémique", " ", IF(INTRO!$E$37="Non endémique"," ", IF(COUNTRY_INFO!B52=0," ",COUNTRY_INFO!B52))) ->  | C52: =IF(INTRO!$E$39<>"Non endémique", " ", IF(INTRO!$E$37="Non endémique"," ", IF(COUNTRY_INFO!C52=0," ",COUNTRY_INFO!C52))) ->  | D52: =IF(INTRO!$E$39<>"Non endémique", 0, IF(INTRO!$E$37="Non endémique",0,IF(COUNTRY_INFO!$H52=1,COUNTRY_INFO!E52,0))) -> 0 | E52: =IF(INTRO!$E$39<>"Non endémique", 0, IF(INTRO!$E$37="Non endémique",0,IF(COUNTRY_INFO!$H52=1,COUNTRY_INFO!F52,0))) -> 0 | F52: =IF(INTRO!$E$39<>"Non endémique", 0, IF(INTRO!$E$37="Non endémique",0,IF(COUNTRY_INFO!$H52=1,COUNTRY_INFO!G52,0))) -> 0 | G52: 0 | H52: =IF(INTRO!$E$39="Non endémique",IF(INTRO!$E$37="Non endémique","Non requis",COUNTRY_INFO!P52),"Traiter avec IVM") -> Traiter avec IVM | I52: 0 | J52: 0 | L52: 0 | M52: 0
A53: =IF(INTRO!$E$39<>"Non endémique", " ", IF(INTRO!$E$37="Non endémique"," ", IF(COUNTRY_INFO!A53=0," ",COUNTRY_INFO!A53))) ->  | B53: =IF(INTRO!$E$39<>"Non endémique", " ", IF(INTRO!$E$37="Non endémique"," ", IF(COUNTRY_INFO!B53=0," ",COUNTRY_INFO!B53))) ->  | C53: =IF(INTRO!$E$39<>"Non endémique", " ", IF(INTRO!$E$37="Non endémique"," ", IF(COUNTRY_INFO!C53=0," ",COUNTRY_INFO!C53))) ->  | D53: =IF(INTRO!$E$39<>"Non endémique", 0, IF(INTRO!$E$37="Non endémique",0,IF(COUNTRY_INFO!$H53=1,COUNTRY_INFO!E53,0))) -> 0 | E53: =IF(INTRO!$E$39<>"Non endémique", 0, IF(INTRO!$E$37="Non endémique",0,IF(COUNTRY_INFO!$H53=1,COUNTRY_INFO!F53,0))) -> 0 | F53: =IF(INTRO!$E$39<>"Non endémique", 0, IF(INTRO!$E$37="Non endémique",0,IF(COUNTRY_INFO!$H53=1,COUNTRY_INFO!G53,0))) -> 0 | G53: 0 | H53: =IF(INTRO!$E$39="Non endémique",IF(INTRO!$E$37="Non endémique","Non requis",COUNTRY_INFO!P53),"Traiter avec IVM") -> Traiter avec IVM | I53: 0 | J53: 0 | L53: 0 | M53: 0
A54: =IF(INTRO!$E$39<>"Non endémique", " ", IF(INTRO!$E$37="Non endémique"," ", IF(COUNTRY_INFO!A54=0," ",COUNTRY_INFO!A54))) ->  | B54: =IF(INTRO!$E$39<>"Non endémique", " ", IF(INTRO!$E$37="Non endémique"," ", IF(COUNTRY_INFO!B54=0," ",COUNTRY_INFO!B54))) ->  | C54: =IF(INTRO!$E$39<>"Non endémique", " ", IF(INTRO!$E$37="Non endémique"," ", IF(COUNTRY_INFO!C54=0," ",COUNTRY_INFO!C54))) ->  | D54: =IF(INTRO!$E$39<>"Non endémique", 0, IF(INTRO!$E$37="Non endémique",0,IF(COUNTRY_INFO!$H54=1,COUNTRY_INFO!E54,0))) -> 0 | E54: =IF(INTRO!$E$39<>"Non endémique", 0, IF(INTRO!$E$37="Non endémique",0,IF(COUNTRY_INFO!$H54=1,COUNTRY_INFO!F54,0))) -> 0 | F54: =IF(INTRO!$E$39<>"Non endémique", 0, IF(INTRO!$E$37="Non endémique",0,IF(COUNTRY_INFO!$H54=1,COUNTRY_INFO!G54,0))) -> 0 | G54: 0 | H54: =IF(INTRO!$E$39="Non endémique",IF(INTRO!$E$37="Non endémique","Non requis",COUNTRY_INFO!P54),"Traiter avec IVM") -> Traiter avec IVM | I54: 0 | J54: 0 | L54: 0 | M54: 0
A55: =IF(INTRO!$E$39<>"Non endémique", " ", IF(INTRO!$E$37="Non endémique"," ", IF(COUNTRY_INFO!A55=0," ",COUNTRY_INFO!A55))) ->  | B55: =IF(INTRO!$E$39<>"Non endémique", " ", IF(INTRO!$E$37="Non endémique"," ", IF(COUNTRY_INFO!B55=0," ",COUNTRY_INFO!B55))) ->  | C55: =IF(INTRO!$E$39<>"Non endémique", " ", IF(INTRO!$E$37="Non endémique"," ", IF(COUNTRY_INFO!C55=0," ",COUNTRY_INFO!C55))) ->  | D55: =IF(INTRO!$E$39<>"Non endémique", 0, IF(INTRO!$E$37="Non endémique",0,IF(COUNTRY_INFO!$H55=1,COUNTRY_INFO!E55,0))) -> 0 | E55: =IF(INTRO!$E$39<>"Non endémique", 0, IF(INTRO!$E$37="Non endémique",0,IF(COUNTRY_INFO!$H55=1,COUNTRY_INFO!F55,0))) -> 0 | F55: =IF(INTRO!$E$39<>"Non endémique", 0, IF(INTRO!$E$37="Non endémique",0,IF(COUNTRY_INFO!$H55=1,COUNTRY_INFO!G55,0))) -> 0 | G55: 0 | H55: =IF(INTRO!$E$39="Non endémique",IF(INTRO!$E$37="Non endémique","Non requis",COUNTRY_INFO!P55),"Traiter avec IVM") -> Traiter avec IVM | I55: 0 | J55: 0 | L55: 0 | M55: 0
A56: =IF(INTRO!$E$39<>"Non endémique", " ", IF(INTRO!$E$37="Non endémique"," ", IF(COUNTRY_INFO!A56=0," ",COUNTRY_INFO!A56))) ->  | B56: =IF(INTRO!$E$39<>"Non endémique", " ", IF(INTRO!$E$37="Non endémique"," ", IF(COUNTRY_INFO!B56=0," ",COUNTRY_INFO!B56))) ->  | C56: =IF(INTRO!$E$39<>"Non endémique", " ", IF(INTRO!$E$37="Non endémique"," ", IF(COUNTRY_INFO!C56=0," ",COUNTRY_INFO!C56))) ->  | D56: =IF(INTRO!$E$39<>"Non endémique", 0, IF(INTRO!$E$37="Non endémique",0,IF(COUNTRY_INFO!$H56=1,COUNTRY_INFO!E56,0))) -> 0 | E56: =IF(INTRO!$E$39<>"Non endémique", 0, IF(INTRO!$E$37="Non endémique",0,IF(COUNTRY_INFO!$H56=1,COUNTRY_INFO!F56,0))) -> 0 | F56: =IF(INTRO!$E$39<>"Non endémique", 0, IF(INTRO!$E$37="Non endémique",0,IF(COUNTRY_INFO!$H56=1,COUNTRY_INFO!G56,0))) -> 0 | G56: 0 | H56: =IF(INTRO!$E$39="Non endémique",IF(INTRO!$E$37="Non endémique","Non requis",COUNTRY_INFO!P56),"Traiter avec IVM") -> Traiter avec IVM | I56: 0 | J56: 0 | L56: 0 | M56: 0
A57: =IF(INTRO!$E$39<>"Non endémique", " ", IF(INTRO!$E$37="Non endémique"," ", IF(COUNTRY_INFO!A57=0," ",COUNTRY_INFO!A57))) ->  | B57: =IF(INTRO!$E$39<>"Non endémique", " ", IF(INTRO!$E$37="Non endémique"," ", IF(COUNTRY_INFO!B57=0," ",COUNTRY_INFO!B57))) ->  | C57: =IF(INTRO!$E$39<>"Non endémique", " ", IF(INTRO!$E$37="Non endémique"," ", IF(COUNTRY_INFO!C57=0," ",COUNTRY_INFO!C57))) ->  | D57: =IF(INTRO!$E$39<>"Non endémique", 0, IF(INTRO!$E$37="Non endémique",0,IF(COUNTRY_INFO!$H57=1,COUNTRY_INFO!E57,0))) -> 0 | E57: =IF(INTRO!$E$39<>"Non endémique", 0, IF(INTRO!$E$37="Non endémique",0,IF(COUNTRY_INFO!$H57=1,COUNTRY_INFO!F57,0))) -> 0 | F57: =IF(INTRO!$E$39<>"Non endémique", 0, IF(INTRO!$E$37="Non endémique",0,IF(COUNTRY_INFO!$H57=1,COUNTRY_INFO!G57,0))) -> 0 | G57: 0 | H57: =IF(INTRO!$E$39="Non endémique",IF(INTRO!$E$37="Non endémique","Non requis",COUNTRY_INFO!P57),"Traiter avec IVM") -> Traiter avec IVM | I57: 0 | J57: 0 | L57: 0 | M57: 0
A58: =IF(INTRO!$E$39<>"Non endémique", " ", IF(INTRO!$E$37="Non endémique"," ", IF(COUNTRY_INFO!A58=0," ",COUNTRY_INFO!A58))) ->  | B58: =IF(INTRO!$E$39<>"Non endémique", " ", IF(INTRO!$E$37="Non endémique"," ", IF(COUNTRY_INFO!B58=0," ",COUNTRY_INFO!B58))) ->  | C58: =IF(INTRO!$E$39<>"Non endémique", " ", IF(INTRO!$E$37="Non endémique"," ", IF(COUNTRY_INFO!C58=0," ",COUNTRY_INFO!C58))) ->  | D58: =IF(INTRO!$E$39<>"Non endémique", 0, IF(INTRO!$E$37="Non endémique",0,IF(COUNTRY_INFO!$H58=1,COUNTRY_INFO!E58,0))) -> 0 | E58: =IF(INTRO!$E$39<>"Non endémique", 0, IF(INTRO!$E$37="Non endémique",0,IF(COUNTRY_INFO!$H58=1,COUNTRY_INFO!F58,0))) -> 0 | F58: =IF(INTRO!$E$39<>"Non endémique", 0, IF(INTRO!$E$37="Non endémique",0,IF(COUNTRY_INFO!$H58=1,COUNTRY_INFO!G58,0))) -> 0 | G58: 0 | H58: =IF(INTRO!$E$39="Non endémique",IF(INTRO!$E$37="Non endémique","Non requis",COUNTRY_INFO!P58),"Traiter avec IVM") -> Traiter avec IVM | I58: 0 | J58: 0 | L58: 0 | M58: 0
A59: =IF(INTRO!$E$39<>"Non endémique", " ", IF(INTRO!$E$37="Non endémique"," ", IF(COUNTRY_INFO!A59=0," ",COUNTRY_INFO!A59))) ->  | B59: =IF(INTRO!$E$39<>"Non endémique", " ", IF(INTRO!$E$37="Non endémique"," ", IF(COUNTRY_INFO!B59=0," ",COUNTRY_INFO!B59))) ->  | C59: =IF(INTRO!$E$39<>"Non endémique", " ", IF(INTRO!$E$37="Non endémique"," ", IF(COUNTRY_INFO!C59=0," ",COUNTRY_INFO!C59))) ->  | D59: =IF(INTRO!$E$39<>"Non endémique", 0, IF(INTRO!$E$37="Non endémique",0,IF(COUNTRY_INFO!$H59=1,COUNTRY_INFO!E59,0))) -> 0 | E59: =IF(INTRO!$E$39<>"Non endémique", 0, IF(INTRO!$E$37="Non endémique",0,IF(COUNTRY_INFO!$H59=1,COUNTRY_INFO!F59,0))) -> 0 | F59: =IF(INTRO!$E$39<>"Non endémique", 0, IF(INTRO!$E$37="Non endémique",0,IF(COUNTRY_INFO!$H59=1,COUNTRY_INFO!G59,0))) -> 0 | G59: 0 | H59: =IF(INTRO!$E$39="Non endémique",IF(INTRO!$E$37="Non endémique","Non requis",COUNTRY_INFO!P59),"Traiter avec IVM") -> Traiter avec IVM | I59: 0 | J59: 0 | L59: 0 | M59: 0
A60: =IF(INTRO!$E$39<>"Non endémique", " ", IF(INTRO!$E$37="Non endémique"," ", IF(COUNTRY_INFO!A60=0," ",COUNTRY_INFO!A60))) ->  | B60: =IF(INTRO!$E$39<>"Non endémique", " ", IF(INTRO!$E$37="Non endémique"," ", IF(COUNTRY_INFO!B60=0," ",COUNTRY_INFO!B60))) ->  | C60: =IF(INTRO!$E$39<>"Non endémique", " ", IF(INTRO!$E$37="Non endémique"," ", IF(COUNTRY_INFO!C60=0," ",COUNTRY_INFO!C60))) ->  | D60: =IF(INTRO!$E$39<>"Non endémique", 0, IF(INTRO!$E$37="Non endémique",0,IF(COUNTRY_INFO!$H60=1,COUNTRY_INFO!E60,0))) -> 0 | E60: =IF(INTRO!$E$39<>"Non endémique", 0, IF(INTRO!$E$37="Non endémique",0,IF(COUNTRY_INFO!$H60=1,COUNTRY_INFO!F60,0))) -> 0 | F60: =IF(INTRO!$E$39<>"Non endémique", 0, IF(INTRO!$E$37="Non endémique",0,IF(COUNTRY_INFO!$H60=1,COUNTRY_INFO!G60,0))) -> 0 | G60: 0 | H60: =IF(INTRO!$E$39="Non endémique",IF(INTRO!$E$37="Non endémique","Non requis",COUNTRY_INFO!P60),"Traiter avec IVM") -> Traiter avec IVM | I60: 0 | J60: 0 | L60: 0 | M60: 0
A61: =IF(INTRO!$E$39<>"Non endémique", " ", IF(INTRO!$E$37="Non endémique"," ", IF(COUNTRY_INFO!A61=0," ",COUNTRY_INFO!A61))) ->  | B61: =IF(INTRO!$E$39<>"Non endémique", " ", IF(INTRO!$E$37="Non endémique"," ", IF(COUNTRY_INFO!B61=0," ",COUNTRY_INFO!B61))) ->  | C61: =IF(INTRO!$E$39<>"Non endémique", " ", IF(INTRO!$E$37="Non endémique"," ", IF(COUNTRY_INFO!C61=0," ",COUNTRY_INFO!C61))) ->  | D61: =IF(INTRO!$E$39<>"Non endémique", 0, IF(INTRO!$E$37="Non endémique",0,IF(COUNTRY_INFO!$H61=1,COUNTRY_INFO!E61,0))) -> 0 | E61: =IF(INTRO!$E$39<>"Non endémique", 0, IF(INTRO!$E$37="Non endémique",0,IF(COUNTRY_INFO!$H61=1,COUNTRY_INFO!F61,0))) -> 0 | F61: =IF(INTRO!$E$39<>"Non endémique", 0, IF(INTRO!$E$37="Non endémique",0,IF(COUNTRY_INFO!$H61=1,COUNTRY_INFO!G61,0))) -> 0 | G61: 0 | H61: =IF(INTRO!$E$39="Non endémique",IF(INTRO!$E$37="Non endémique","Non requis",COUNTRY_INFO!P61),"Traiter avec IVM") -> Traiter avec IVM | I61: 0 | J61: 0 | L61: 0 | M61: 0
A62: =IF(INTRO!$E$39<>"Non endémique", " ", IF(INTRO!$E$37="Non endémique"," ", IF(COUNTRY_INFO!A62=0," ",COUNTRY_INFO!A62))) ->  | B62: =IF(INTRO!$E$39<>"Non endémique", " ", IF(INTRO!$E$37="Non endémique"," ", IF(COUNTRY_INFO!B62=0," ",COUNTRY_INFO!B62))) ->  | C62: =IF(INTRO!$E$39<>"Non endémique", " ", IF(INTRO!$E$37="Non endémique"," ", IF(COUNTRY_INFO!C62=0," ",COUNTRY_INFO!C62))) ->  | D62: =IF(INTRO!$E$39<>"Non endémique", 0, IF(INTRO!$E$37="Non endémique",0,IF(COUNTRY_INFO!$H62=1,COUNTRY_INFO!E62,0))) -> 0 | E62: =IF(INTRO!$E$39<>"Non endémique", 0, IF(INTRO!$E$37="Non endémique",0,IF(COUNTRY_INFO!$H62=1,COUNTRY_INFO!F62,0))) -> 0 | F62: =IF(INTRO!$E$39<>"Non endémique", 0, IF(INTRO!$E$37="Non endémique",0,IF(COUNTRY_INFO!$H62=1,COUNTRY_INFO!G62,0))) -> 0 | G62: 0 | H62: =IF(INTRO!$E$39="Non endémique",IF(INTRO!$E$37="Non endémique","Non requis",COUNTRY_INFO!P62),"Traiter avec IVM") -> Traiter avec IVM | I62: 0 | J62: 0 | L62: 0 | M62: 0
A63: =IF(INTRO!$E$39<>"Non endémique", " ", IF(INTRO!$E$37="Non endémique"," ", IF(COUNTRY_INFO!A63=0," ",COUNTRY_INFO!A63))) ->  | B63: =IF(INTRO!$E$39<>"Non endémique", " ", IF(INTRO!$E$37="Non endémique"," ", IF(COUNTRY_INFO!B63=0," ",COUNTRY_INFO!B63))) ->  | C63: =IF(INTRO!$E$39<>"Non endémique", " ", IF(INTRO!$E$37="Non endémique"," ", IF(COUNTRY_INFO!C63=0," ",COUNTRY_INFO!C63))) ->  | D63: =IF(INTRO!$E$39<>"Non endémique", 0, IF(INTRO!$E$37="Non endémique",0,IF(COUNTRY_INFO!$H63=1,COUNTRY_INFO!E63,0))) -> 0 | E63: =IF(INTRO!$E$39<>"Non endémique", 0, IF(INTRO!$E$37="Non endémique",0,IF(COUNTRY_INFO!$H63=1,COUNTRY_INFO!F63,0))) -> 0 | F63: =IF(INTRO!$E$39<>"Non endémique", 0, IF(INTRO!$E$37="Non endémique",0,IF(COUNTRY_INFO!$H63=1,COUNTRY_INFO!G63,0))) -> 0 | G63: 0 | H63: =IF(INTRO!$E$39="Non endémique",IF(INTRO!$E$37="Non endémique","Non requis",COUNTRY_INFO!P63),"Traiter avec IVM") -> Traiter avec IVM | I63: 0 | J63: 0 | L63: 0 | M63: 0
A64: =IF(INTRO!$E$39<>"Non endémique", " ", IF(INTRO!$E$37="Non endémique"," ", IF(COUNTRY_INFO!A64=0," ",COUNTRY_INFO!A64))) ->  | B64: =IF(INTRO!$E$39<>"Non endémique", " ", IF(INTRO!$E$37="Non endémique"," ", IF(COUNTRY_INFO!B64=0," ",COUNTRY_INFO!B64))) ->  | C64: =IF(INTRO!$E$39<>"Non endémique", " ", IF(INTRO!$E$37="Non endémique"," ", IF(COUNTRY_INFO!C64=0," ",COUNTRY_INFO!C64))) ->  | D64: =IF(INTRO!$E$39<>"Non endémique", 0, IF(INTRO!$E$37="Non endémique",0,IF(COUNTRY_INFO!$H64=1,COUNTRY_INFO!E64,0))) -> 0 | E64: =IF(INTRO!$E$39<>"Non endémique", 0, IF(INTRO!$E$37="Non endémique",0,IF(COUNTRY_INFO!$H64=1,COUNTRY_INFO!F64,0))) -> 0 | F64: =IF(INTRO!$E$39<>"Non endémique", 0, IF(INTRO!$E$37="Non endémique",0,IF(COUNTRY_INFO!$H64=1,COUNTRY_INFO!G64,0))) -> 0 | G64: 0 | H64: =IF(INTRO!$E$39="Non endémique",IF(INTRO!$E$37="Non endémique","Non requis",COUNTRY_INFO!P64),"Traiter avec IVM") -> Traiter avec IVM | I64: 0 | J64: 0 | L64: 0 | M64: 0
A65: =IF(INTRO!$E$39<>"Non endémique", " ", IF(INTRO!$E$37="Non endémique"," ", IF(COUNTRY_INFO!A65=0," ",COUNTRY_INFO!A65))) ->  | B65: =IF(INTRO!$E$39<>"Non endémique", " ", IF(INTRO!$E$37="Non endémique"," ", IF(COUNTRY_INFO!B65=0," ",COUNTRY_INFO!B65))) ->  | C65: =IF(INTRO!$E$39<>"Non endémique", " ", IF(INTRO!$E$37="Non endémique"," ", IF(COUNTRY_INFO!C65=0," ",COUNTRY_INFO!C65))) ->  | D65: =IF(INTRO!$E$39<>"Non endémique", 0, IF(INTRO!$E$37="Non endémique",0,IF(COUNTRY_INFO!$H65=1,COUNTRY_INFO!E65,0))) -> 0 | E65: =IF(INTRO!$E$39<>"Non endémique", 0, IF(INTRO!$E$37="Non endémique",0,IF(COUNTRY_INFO!$H65=1,COUNTRY_INFO!F65,0))) -> 0 | F65: =IF(INTRO!$E$39<>"Non endémique", 0, IF(INTRO!$E$37="Non endémique",0,IF(COUNTRY_INFO!$H65=1,COUNTRY_INFO!G65,0))) -> 0 | G65: 0 | H65: =IF(INTRO!$E$39="Non endémique",IF(INTRO!$E$37="Non endémique","Non requis",COUNTRY_INFO!P65),"Traiter avec IVM") -> Traiter avec IVM | I65: 0 | J65: 0 | L65: 0 | M65: 0
A66: =IF(INTRO!$E$39<>"Non endémique", " ", IF(INTRO!$E$37="Non endémique"," ", IF(COUNTRY_INFO!A66=0," ",COUNTRY_INFO!A66))) ->  | B66: =IF(INTRO!$E$39<>"Non endémique", " ", IF(INTRO!$E$37="Non endémique"," ", IF(COUNTRY_INFO!B66=0," ",COUNTRY_INFO!B66))) ->  | C66: =IF(INTRO!$E$39<>"Non endémique", " ", IF(INTRO!$E$37="Non endémique"," ", IF(COUNTRY_INFO!C66=0," ",COUNTRY_INFO!C66))) ->  | D66: =IF(INTRO!$E$39<>"Non endémique", 0, IF(INTRO!$E$37="Non endémique",0,IF(COUNTRY_INFO!$H66=1,COUNTRY_INFO!E66,0))) -> 0 | E66: =IF(INTRO!$E$39<>"Non endémique", 0, IF(INTRO!$E$37="Non endémique",0,IF(COUNTRY_INFO!$H66=1,COUNTRY_INFO!F66,0))) -> 0 | F66: =IF(INTRO!$E$39<>"Non endémique", 0, IF(INTRO!$E$37="Non endémique",0,IF(COUNTRY_INFO!$H66=1,COUNTRY_INFO!G66,0))) -> 0 | G66: 0 | H66: =IF(INTRO!$E$39="Non endémique",IF(INTRO!$E$37="Non endémique","Non requis",COUNTRY_INFO!P66),"Traiter avec IVM") -> Traiter avec IVM | I66: 0 | J66: 0 | L66: 0 | M66: 0
A67: =IF(INTRO!$E$39<>"Non endémique", " ", IF(INTRO!$E$37="Non endémique"," ", IF(COUNTRY_INFO!A67=0," ",COUNTRY_INFO!A67))) ->  | B67: =IF(INTRO!$E$39<>"Non endémique", " ", IF(INTRO!$E$37="Non endémique"," ", IF(COUNTRY_INFO!B67=0," ",COUNTRY_INFO!B67))) ->  | C67: =IF(INTRO!$E$39<>"Non endémique", " ", IF(INTRO!$E$37="Non endémique"," ", IF(COUNTRY_INFO!C67=0," ",COUNTRY_INFO!C67))) ->  | D67: =IF(INTRO!$E$39<>"Non endémique", 0, IF(INTRO!$E$37="Non endémique",0,IF(COUNTRY_INFO!$H67=1,COUNTRY_INFO!E67,0))) -> 0 | E67: =IF(INTRO!$E$39<>"Non endémique", 0, IF(INTRO!$E$37="Non endémique",0,IF(COUNTRY_INFO!$H67=1,COUNTRY_INFO!F67,0))) -> 0 | F67: =IF(INTRO!$E$39<>"Non endémique", 0, IF(INTRO!$E$37="Non endémique",0,IF(COUNTRY_INFO!$H67=1,COUNTRY_INFO!G67,0))) -> 0 | G67: 0 | H67: =IF(INTRO!$E$39="Non endémique",IF(INTRO!$E$37="Non endémique","Non requis",COUNTRY_INFO!P67),"Traiter avec IVM") -> Traiter avec IVM | I67: 0 | J67: 0 | L67: 0 | M67: 0
A68: =IF(INTRO!$E$39<>"Non endémique", " ", IF(INTRO!$E$37="Non endémique"," ", IF(COUNTRY_INFO!A68=0," ",COUNTRY_INFO!A68))) ->  | B68: =IF(INTRO!$E$39<>"Non endémique", " ", IF(INTRO!$E$37="Non endémique"," ", IF(COUNTRY_INFO!B68=0," ",COUNTRY_INFO!B68))) ->  | C68: =IF(INTRO!$E$39<>"Non endémique", " ", IF(INTRO!$E$37="Non endémique"," ", IF(COUNTRY_INFO!C68=0," ",COUNTRY_INFO!C68))) ->  | D68: =IF(INTRO!$E$39<>"Non endémique", 0, IF(INTRO!$E$37="Non endémique",0,IF(COUNTRY_INFO!$H68=1,COUNTRY_INFO!E68,0))) -> 0 | E68: =IF(INTRO!$E$39<>"Non endémique", 0, IF(INTRO!$E$37="Non endémique",0,IF(COUNTRY_INFO!$H68=1,COUNTRY_INFO!F68,0))) -> 0 | F68: =IF(INTRO!$E$39<>"Non endémique", 0, IF(INTRO!$E$37="Non endémique",0,IF(COUNTRY_INFO!$H68=1,COUNTRY_INFO!G68,0))) -> 0 | G68: 0 | H68: =IF(INTRO!$E$39="Non endémique",IF(INTRO!$E$37="Non endémique","Non requis",COUNTRY_INFO!P68),"Traiter avec IVM") -> Traiter avec IVM | I68: 0 | J68: 0 | L68: 0 | M68: 0
A69: =IF(INTRO!$E$39<>"Non endémique", " ", IF(INTRO!$E$37="Non endémique"," ", IF(COUNTRY_INFO!A69=0," ",COUNTRY_INFO!A69))) ->  | B69: =IF(INTRO!$E$39<>"Non endémique", " ", IF(INTRO!$E$37="Non endémique"," ", IF(COUNTRY_INFO!B69=0," ",COUNTRY_INFO!B69))) ->  | C69: =IF(INTRO!$E$39<>"Non endémique", " ", IF(INTRO!$E$37="Non endémique"," ", IF(COUNTRY_INFO!C69=0," ",COUNTRY_INFO!C69))) ->  | D69: =IF(INTRO!$E$39<>"Non endémique", 0, IF(INTRO!$E$37="Non endémique",0,IF(COUNTRY_INFO!$H69=1,COUNTRY_INFO!E69,0))) -> 0 | E69: =IF(INTRO!$E$39<>"Non endémique", 0, IF(INTRO!$E$37="Non endémique",0,IF(COUNTRY_INFO!$H69=1,COUNTRY_INFO!F69,0))) -> 0 | F69: =IF(INTRO!$E$39<>"Non endémique", 0, IF(INTRO!$E$37="Non endémique",0,IF(COUNTRY_INFO!$H69=1,COUNTRY_INFO!G69,0))) -> 0 | G69: 0 | H69: =IF(INTRO!$E$39="Non endémique",IF(INTRO!$E$37="Non endémique","Non requis",COUNTRY_INFO!P69),"Traiter avec IVM") -> Traiter avec IVM | I69: 0 | J69: 0 | L69: 0 | M69: 0
A70: =IF(INTRO!$E$39<>"Non endémique", " ", IF(INTRO!$E$37="Non endémique"," ", IF(COUNTRY_INFO!A70=0," ",COUNTRY_INFO!A70))) ->  | B70: =IF(INTRO!$E$39<>"Non endémique", " ", IF(INTRO!$E$37="Non endémique"," ", IF(COUNTRY_INFO!B70=0," ",COUNTRY_INFO!B70))) ->  | C70: =IF(INTRO!$E$39<>"Non endémique", " ", IF(INTRO!$E$37="Non endémique"," ", IF(COUNTRY_INFO!C70=0," ",COUNTRY_INFO!C70))) ->  | D70: =IF(INTRO!$E$39<>"Non endémique", 0, IF(INTRO!$E$37="Non endémique",0,IF(COUNTRY_INFO!$H70=1,COUNTRY_INFO!E70,0))) -> 0 | E70: =IF(INTRO!$E$39<>"Non endémique", 0, IF(INTRO!$E$37="Non endémique",0,IF(COUNTRY_INFO!$H70=1,COUNTRY_INFO!F70,0))) -> 0 | F70: =IF(INTRO!$E$39<>"Non endémique", 0, IF(INTRO!$E$37="Non endémique",0,IF(COUNTRY_INFO!$H70=1,COUNTRY_INFO!G70,0))) -> 0 | G70: 0 | H70: =IF(INTRO!$E$39="Non endémique",IF(INTRO!$E$37="Non endémique","Non requis",COUNTRY_INFO!P70),"Traiter avec IVM") -> Traiter avec IVM | I70: 0 | J70: 0 | L70: 0 | M70: 0
A71: =IF(INTRO!$E$39<>"Non endémique", " ", IF(INTRO!$E$37="Non endémique"," ", IF(COUNTRY_INFO!A71=0," ",COUNTRY_INFO!A71))) ->  | B71: =IF(INTRO!$E$39<>"Non endémique", " ", IF(INTRO!$E$37="Non endémique"," ", IF(COUNTRY_INFO!B71=0," ",COUNTRY_INFO!B71))) ->  | C71: =IF(INTRO!$E$39<>"Non endémique", " ", IF(INTRO!$E$37="Non endémique"," ", IF(COUNTRY_INFO!C71=0," ",COUNTRY_INFO!C71))) ->  | D71: =IF(INTRO!$E$39<>"Non endémique", 0, IF(INTRO!$E$37="Non endémique",0,IF(COUNTRY_INFO!$H71=1,COUNTRY_INFO!E71,0))) -> 0 | E71: =IF(INTRO!$E$39<>"Non endémique", 0, IF(INTRO!$E$37="Non endémique",0,IF(COUNTRY_INFO!$H71=1,COUNTRY_INFO!F71,0))) -> 0 | F71: =IF(INTRO!$E$39<>"Non endémique", 0, IF(INTRO!$E$37="Non endémique",0,IF(COUNTRY_INFO!$H71=1,COUNTRY_INFO!G71,0))) -> 0 | G71: 0 | H71: =IF(INTRO!$E$39="Non endémique",IF(INTRO!$E$37="Non endémique","Non requis",COUNTRY_INFO!P71),"Traiter avec IVM") -> Traiter avec IVM | I71: 0 | J71: 0 | L71: 0 | M71: 0
A72: =IF(INTRO!$E$39<>"Non endémique", " ", IF(INTRO!$E$37="Non endémique"," ", IF(COUNTRY_INFO!A72=0," ",COUNTRY_INFO!A72))) ->  | B72: =IF(INTRO!$E$39<>"Non endémique", " ", IF(INTRO!$E$37="Non endémique"," ", IF(COUNTRY_INFO!B72=0," ",COUNTRY_INFO!B72))) ->  | C72: =IF(INTRO!$E$39<>"Non endémique", " ", IF(INTRO!$E$37="Non endémique"," ", IF(COUNTRY_INFO!C72=0," ",COUNTRY_INFO!C72))) ->  | D72: =IF(INTRO!$E$39<>"Non endémique", 0, IF(INTRO!$E$37="Non endémique",0,IF(COUNTRY_INFO!$H72=1,COUNTRY_INFO!E72,0))) -> 0 | E72: =IF(INTRO!$E$39<>"Non endémique", 0, IF(INTRO!$E$37="Non endémique",0,IF(COUNTRY_INFO!$H72=1,COUNTRY_INFO!F72,0))) -> 0 | F72: =IF(INTRO!$E$39<>"Non endémique", 0, IF(INTRO!$E$37="Non endémique",0,IF(COUNTRY_INFO!$H72=1,COUNTRY_INFO!G72,0))) -> 0 | G72: 0 | H72: =IF(INTRO!$E$39="Non endémique",IF(INTRO!$E$37="Non endémique","Non requis",COUNTRY_INFO!P72),"Traiter avec IVM") -> Traiter avec IVM | I72: 0 | J72: 0 | L72: 0 | M72: 0
A73: =IF(INTRO!$E$39<>"Non endémique", " ", IF(INTRO!$E$37="Non endémique"," ", IF(COUNTRY_INFO!A73=0," ",COUNTRY_INFO!A73))) ->  | B73: =IF(INTRO!$E$39<>"Non endémique", " ", IF(INTRO!$E$37="Non endémique"," ", IF(COUNTRY_INFO!B73=0," ",COUNTRY_INFO!B73))) ->  | C73: =IF(INTRO!$E$39<>"Non endémique", " ", IF(INTRO!$E$37="Non endémique"," ", IF(COUNTRY_INFO!C73=0," ",COUNTRY_INFO!C73))) ->  | D73: =IF(INTRO!$E$39<>"Non endémique", 0, IF(INTRO!$E$37="Non endémique",0,IF(COUNTRY_INFO!$H73=1,COUNTRY_INFO!E73,0))) -> 0 | E73: =IF(INTRO!$E$39<>"Non endémique", 0, IF(INTRO!$E$37="Non endémique",0,IF(COUNTRY_INFO!$H73=1,COUNTRY_INFO!F73,0))) -> 0 | F73: =IF(INTRO!$E$39<>"Non endémique", 0, IF(INTRO!$E$37="Non endémique",0,IF(COUNTRY_INFO!$H73=1,COUNTRY_INFO!G73,0))) -> 0 | G73: 0 | H73: =IF(INTRO!$E$39="Non endémique",IF(INTRO!$E$37="Non endémique","Non requis",COUNTRY_INFO!P73),"Traiter avec IVM") -> Traiter avec IVM | I73: 0 | J73: 0 | L73: 0 | M73: 0
A74: =IF(INTRO!$E$39<>"Non endémique", " ", IF(INTRO!$E$37="Non endémique"," ", IF(COUNTRY_INFO!A74=0," ",COUNTRY_INFO!A74))) ->  | B74: =IF(INTRO!$E$39<>"Non endémique", " ", IF(INTRO!$E$37="Non endémique"," ", IF(COUNTRY_INFO!B74=0," ",COUNTRY_INFO!B74))) ->  | C74: =IF(INTRO!$E$39<>"Non endémique", " ", IF(INTRO!$E$37="Non endémique"," ", IF(COUNTRY_INFO!C74=0," ",COUNTRY_INFO!C74))) ->  | D74: =IF(INTRO!$E$39<>"Non endémique", 0, IF(INTRO!$E$37="Non endémique",0,IF(COUNTRY_INFO!$H74=1,COUNTRY_INFO!E74,0))) -> 0 | E74: =IF(INTRO!$E$39<>"Non endémique", 0, IF(INTRO!$E$37="Non endémique",0,IF(COUNTRY_INFO!$H74=1,COUNTRY_INFO!F74,0))) -> 0 | F74: =IF(INTRO!$E$39<>"Non endémique", 0, IF(INTRO!$E$37="Non endémique",0,IF(COUNTRY_INFO!$H74=1,COUNTRY_INFO!G74,0))) -> 0 | G74: =SUM(D74:F74) -> 0 | H74: =IF(INTRO!$E$39="Non endémique",IF(INTRO!$E$37="Non endémique","Non requis",COUNTRY_INFO!P74),"Traiter avec IVM") -> Traiter avec IVM | I74: =IF(H74=1,G74,0) -> 0 | J74: =IF(I74>0,I74*2.5,0) -> 0 | L74: 0 | M74: 0
A75: =IF(INTRO!$E$39<>"Non endémique", " ", IF(INTRO!$E$37="Non endémique"," ", IF(COUNTRY_INFO!A75=0," ",COUNTRY_INFO!A75))) ->  | B75: =IF(INTRO!$E$39<>"Non endémique", " ", IF(INTRO!$E$37="Non endémique"," ", IF(COUNTRY_INFO!B75=0," ",COUNTRY_INFO!B75))) ->  | C75: =IF(INTRO!$E$39<>"Non endémique", " ", IF(INTRO!$E$37="Non endémique"," ", IF(COUNTRY_INFO!C75=0," ",COUNTRY_INFO!C75))) ->  | D75: =IF(INTRO!$E$39<>"Non endémique", 0, IF(INTRO!$E$37="Non endémique",0,IF(COUNTRY_INFO!$H75=1,COUNTRY_INFO!E75,0))) -> 0 | E75: =IF(INTRO!$E$39<>"Non endémique", 0, IF(INTRO!$E$37="Non endémique",0,IF(COUNTRY_INFO!$H75=1,COUNTRY_INFO!F75,0))) -> 0 | F75: =IF(INTRO!$E$39<>"Non endémique", 0, IF(INTRO!$E$37="Non endémique",0,IF(COUNTRY_INFO!$H75=1,COUNTRY_INFO!G75,0))) -> 0 | G75: 0 | H75: =IF(INTRO!$E$39="Non endémique",IF(INTRO!$E$37="Non endémique","Non requis",COUNTRY_INFO!P75),"Traiter avec IVM") -> Traiter avec IVM | I75: 0 | J75: 0 | L75: 0 | M75: 0
A76: =IF(INTRO!$E$39<>"Non endémique", " ", IF(INTRO!$E$37="Non endémique"," ", IF(COUNTRY_INFO!A76=0," ",COUNTRY_INFO!A76))) ->  | B76: =IF(INTRO!$E$39<>"Non endémique", " ", IF(INTRO!$E$37="Non endémique"," ", IF(COUNTRY_INFO!B76=0," ",COUNTRY_INFO!B76))) ->  | C76: =IF(INTRO!$E$39<>"Non endémique", " ", IF(INTRO!$E$37="Non endémique"," ", IF(COUNTRY_INFO!C76=0," ",COUNTRY_INFO!C76))) ->  | D76: =IF(INTRO!$E$39<>"Non endémique", 0, IF(INTRO!$E$37="Non endémique",0,IF(COUNTRY_INFO!$H76=1,COUNTRY_INFO!E76,0))) -> 0 | E76: =IF(INTRO!$E$39<>"Non endémique", 0, IF(INTRO!$E$37="Non endémique",0,IF(COUNTRY_INFO!$H76=1,COUNTRY_INFO!F76,0))) -> 0 | F76: =IF(INTRO!$E$39<>"Non endémique", 0, IF(INTRO!$E$37="Non endémique",0,IF(COUNTRY_INFO!$H76=1,COUNTRY_INFO!G76,0))) -> 0 | G76: 0 | H76: =IF(INTRO!$E$39="Non endémique",IF(INTRO!$E$37="Non endémique","Non requis",COUNTRY_INFO!P76),"Traiter avec IVM") -> Traiter avec IVM | I76: 0 | J76: 0 | L76: 0 | M76: 0
A77: =IF(INTRO!$E$39<>"Non endémique", " ", IF(INTRO!$E$37="Non endémique"," ", IF(COUNTRY_INFO!A77=0," ",COUNTRY_INFO!A77))) ->  | B77: =IF(INTRO!$E$39<>"Non endémique", " ", IF(INTRO!$E$37="Non endémique"," ", IF(COUNTRY_INFO!B77=0," ",COUNTRY_INFO!B77))) ->  | C77: =IF(INTRO!$E$39<>"Non endémique", " ", IF(INTRO!$E$37="Non endémique"," ", IF(COUNTRY_INFO!C77=0," ",COUNTRY_INFO!C77))) ->  | D77: =IF(INTRO!$E$39<>"Non endémique", 0, IF(INTRO!$E$37="Non endémique",0,IF(COUNTRY_INFO!$H77=1,COUNTRY_INFO!E77,0))) -> 0 | E77: =IF(INTRO!$E$39<>"Non endémique", 0, IF(INTRO!$E$37="Non endémique",0,IF(COUNTRY_INFO!$H77=1,COUNTRY_INFO!F77,0))) -> 0 | F77: =IF(INTRO!$E$39<>"Non endémique", 0, IF(INTRO!$E$37="Non endémique",0,IF(COUNTRY_INFO!$H77=1,COUNTRY_INFO!G77,0))) -> 0 | G77: 0 | H77: =IF(INTRO!$E$39="Non endémique",IF(INTRO!$E$37="Non endémique","Non requis",COUNTRY_INFO!P77),"Traiter avec IVM") -> Traiter avec IVM | I77: 0 | J77: 0 | L77: 0 | M77: 0
A78: =IF(INTRO!$E$39<>"Non endémique", " ", IF(INTRO!$E$37="Non endémique"," ", IF(COUNTRY_INFO!A78=0," ",COUNTRY_INFO!A78))) ->  | B78: =IF(INTRO!$E$39<>"Non endémique", " ", IF(INTRO!$E$37="Non endémique"," ", IF(COUNTRY_INFO!B78=0," ",COUNTRY_INFO!B78))) ->  | C78: =IF(INTRO!$E$39<>"Non endémique", " ", IF(INTRO!$E$37="Non endémique"," ", IF(COUNTRY_INFO!C78=0," ",COUNTRY_INFO!C78))) ->  | D78: =IF(INTRO!$E$39<>"Non endémique", 0, IF(INTRO!$E$37="Non endémique",0,IF(COUNTRY_INFO!$H78=1,COUNTRY_INFO!E78,0))) -> 0 | E78: =IF(INTRO!$E$39<>"Non endémique", 0, IF(INTRO!$E$37="Non endémique",0,IF(COUNTRY_INFO!$H78=1,COUNTRY_INFO!F78,0))) -> 0 | F78: =IF(INTRO!$E$39<>"Non endémique", 0, IF(INTRO!$E$37="Non endémique",0,IF(COUNTRY_INFO!$H78=1,COUNTRY_INFO!G78,0))) -> 0 | G78: 0 | H78: =IF(INTRO!$E$39="Non endémique",IF(INTRO!$E$37="Non endémique","Non requis",COUNTRY_INFO!P78),"Traiter avec IVM") -> Traiter avec IVM | I78: 0 | J78: 0 | L78: 0 | M78: 0
A79: =IF(INTRO!$E$39<>"Non endémique", " ", IF(INTRO!$E$37="Non endémique"," ", IF(COUNTRY_INFO!A79=0," ",COUNTRY_INFO!A79))) ->  | B79: =IF(INTRO!$E$39<>"Non endémique", " ", IF(INTRO!$E$37="Non endémique"," ", IF(COUNTRY_INFO!B79=0," ",COUNTRY_INFO!B79))) ->  | C79: =IF(INTRO!$E$39<>"Non endémique", " ", IF(INTRO!$E$37="Non endémique"," ", IF(COUNTRY_INFO!C79=0," ",COUNTRY_INFO!C79))) ->  | D79: =IF(INTRO!$E$39<>"Non endémique", 0, IF(INTRO!$E$37="Non endémique",0,IF(COUNTRY_INFO!$H79=1,COUNTRY_INFO!E79,0))) -> 0 | E79: =IF(INTRO!$E$39<>"Non endémique", 0, IF(INTRO!$E$37="Non endémique",0,IF(COUNTRY_INFO!$H79=1,COUNTRY_INFO!F79,0))) -> 0 | F79: =IF(INTRO!$E$39<>"Non endémique", 0, IF(INTRO!$E$37="Non endémique",0,IF(COUNTRY_INFO!$H79=1,COUNTRY_INFO!G79,0))) -> 0 | G79: 0 | H79: =IF(INTRO!$E$39="Non endémique",IF(INTRO!$E$37="Non endémique","Non requis",COUNTRY_INFO!P79),"Traiter avec IVM") -> Traiter avec IVM | I79: 0 | J79: 0 | L79: 0 | M79: 0
A80: =IF(INTRO!$E$39<>"Non endémique", " ", IF(INTRO!$E$37="Non endémique"," ", IF(COUNTRY_INFO!A80=0," ",COUNTRY_INFO!A80))) ->  | B80: =IF(INTRO!$E$39<>"Non endémique", " ", IF(INTRO!$E$37="Non endémique"," ", IF(COUNTRY_INFO!B80=0," ",COUNTRY_INFO!B80))) ->  | C80: =IF(INTRO!$E$39<>"Non endémique", " ", IF(INTRO!$E$37="Non endémique"," ", IF(COUNTRY_INFO!C80=0," ",COUNTRY_INFO!C80))) ->  | D80: =IF(INTRO!$E$39<>"Non endémique", 0, IF(INTRO!$E$37="Non endémique",0,IF(COUNTRY_INFO!$H80=1,COUNTRY_INFO!E80,0))) -> 0 | E80: =IF(INTRO!$E$39<>"Non endémique", 0, IF(INTRO!$E$37="Non endémique",0,IF(COUNTRY_INFO!$H80=1,COUNTRY_INFO!F80,0))) -> 0 | F80: =IF(INTRO!$E$39<>"Non endémique", 0, IF(INTRO!$E$37="Non endémique",0,IF(COUNTRY_INFO!$H80=1,COUNTRY_INFO!G80,0))) -> 0 | G80: 0 | H80: =IF(INTRO!$E$39="Non endémique",IF(INTRO!$E$37="Non endémique","Non requis",COUNTRY_INFO!P80),"Traiter avec IVM") -> Traiter avec IVM | I80: 0 | J80: 0 | L80: 0 | M80: 0

Sheet ALB_MBD
A1: Albendazole (ALB) et Mebendazole (MBD)
A2: Structure administrative, population ciblée par groupe d'âge, plan de traitement et information sur les comprimés
A4: TOTAL | D4: =SUM(D$9:D$1000) -> 3030119 | E4: =SUM(E$9:E$1000) -> 5050203 | F4: =SUM(F$9:F$1000) -> 8080322 | I4: =SUM(I$9:I$1000) -> 3588487 | K4: =SUM(K$9:K$1000) -> 0 | L4: =SUM(L$9:L$1000) -> 0 | M4: =SUM(M$9:M$1000) -> 0 | N4: =SUM(N$9:N$1000) -> 0 | O4: =SUM(O$9:O$1000) -> 0 | P4: =SUM(P$9:P$1000) -> 0 | Q4: 0 | R4: 0 | S4: 0 | T4: 3588487 | U4: 17948 | V4: 0 | W4: 0 | X4: 0 | Y4: 0 | Z4: 0 | AA4: 0
A6: Structure administrative du pays | D6: Population nécessitant un traitement avec ALB/MBD | G6: Plan de traitement | I6: Population couverte par le PEFL avec ALB | J6: Médicament choisi pour le traitement des STH | K6: Population cible | S6: Albendazole (ALB) | Y6: Mebendazole (MBD)
A7: Pays | B7: Région/Département | C7: District | D7: EAPréS | E7: EAS | F7: Total | G7: FL | H7: STH | K7: STH (ALB) | O7: STH (MBD) | S7: Reste en stock (FL) | T7: Comprimés devant être fournis (FL) | U7: Flacons (400mg) 200 comprimés (FL) | V7: Reste en stock (STH) | W7: Comprimés devant être fournis pour EAS (STH) | X7: Flacons (400mg) 200 comprimés (STH) | Y7: Reste en stock | Z7: Comprimés devant être fournis pour EAS | AA7: Flacons (500mg) 150 comprimés
K8: EAPréS | L8: EAS | M8: Autres | N8: Total | O8: EAPréS | P8: EAS | Q8: Autres | R8: Total
A9: =IF(AND(INTRO!$E$37="Non endémique",INTRO!$E$41="Non endémique")," ",IF(COUNTRY_INFO!A9=0," ",COUNTRY_INFO!A9)) -> Niger | B9: =IF(AND(INTRO!$E$37="Non endémique",INTRO!$E$41="Non endémique")," ",IF(COUNTRY_INFO!B9=0," ",COUNTRY_INFO!B9)) -> Agadez | C9: =IF(AND(INTRO!$E$37="Non endémique",INTRO!$E$41="Non endémique")," ",IF(COUNTRY_INFO!C9=0," ",COUNTRY_INFO!C9)) -> Agadez commune | D9: =IF(AND(INTRO!$E$37="Non endémique",INTRO!$E$41="Non endémique"),0,IF(AND(OR(COUNTRY_INFO!$H9=0,COUNTRY_INFO!$H9=4,COUNTRY_INFO!$H9=99),OR(COUNTRY_INFO!$J9=0,COUNTRY_INFO!$J9=4)),0,COUNTRY_INFO!$E9)) -> 0 | E9: =IF(AND(INTRO!$E$37="Non endémique",INTRO!$E$41="Non endémique"),0,IF(AND(OR(COUNTRY_INFO!$H9=0,COUNTRY_INFO!$H9=4,COUNTRY_INFO!$H9=99),OR(COUNTRY_INFO!$J9=0,COUNTRY_INFO!$J9=4)),0,COUNTRY_INFO!$F9)) -> 0 | F9: =SUM(D9:E9) -> 0 | G9: =IF(AND(INTRO!$E$37="Non endémique",INTRO!$E$41="Non endémique"),0,COUNTRY_INFO!P9) -> 0 | H9: =IF(AND(INTRO!$E$37="Non endémique",INTRO!$E$41="Non endémique"),0,COUNTRY_INFO!R9) -> 0 | I9: =IF(INTRO!$E$39="Non endémique",IF($G9=1,DEC!I9,0),IF($G9=1,IVM!G9,0)) -> 0 | K9: =IF($J9="ALB", IF(INTRO!$E$39="Non endémique",IF($H9<>0,$D9*($H9-$G9),0),$D9*$H9), 0) -> 0 | L9: =IF($J9="ALB", IF($H9<>0, IF($I9=0, $E9*$H9, $E9*($H9-$G9)),0), 0) -> 0 | N9: =SUM(K9:M9) -> 0 | O9: =IF($J9="MBD", IF(INTRO!$E$39="Non endémique",IF($H9<>0,$D9*($H9-$G9),0),$D9*$H9),0) -> 0 | P9: =IF($J9="MBD", IF($H9<>0,IF($I9=0, $E9*$H9, $E9*($H9-$G9)),0), 0 ) -> 0 | R9: =SUM(O9:Q9) -> 0 | T9: =IF($I9>$S9, $I9-$S9,0) -> 0 | U9: =ROUNDUP($I9/200,0) -> 0 | W9: =IF($L9>$V9,$L9-$V9,0) -> 0 | X9: =ROUNDUP($L9/200,0) -> 0 | Z9: =IF($P9>$Y9,$P9-$Y9,0) -> 0 | AA9: =ROUNDUP($P9/150,0) -> 0
A10: =IF(AND(INTRO!$E$37="Non endémique",INTRO!$E$41="Non endémique")," ",IF(COUNTRY_INFO!A10=0," ",COUNTRY_INFO!A10)) -> Niger | B10: =IF(AND(INTRO!$E$37="Non endémique",INTRO!$E$41="Non endémique")," ",IF(COUNTRY_INFO!B10=0," ",COUNTRY_INFO!B10)) -> Agadez | C10: =IF(AND(INTRO!$E$37="Non endémique",INTRO!$E$41="Non endémique")," ",IF(COUNTRY_INFO!C10=0," ",COUNTRY_INFO!C10)) -> Aderbissanat | D10: =IF(AND(INTRO!$E$37="Non endémique",INTRO!$E$41="Non endémique"),0,IF(AND(OR(COUNTRY_INFO!$H10=0,COUNTRY_INFO!$H10=4,COUNTRY_INFO!$H10=99),OR(COUNTRY_INFO!$J10=0,COUNTRY_INFO!$J10=4)),0,COUNTRY_INFO!$E10)) -> 0 | E10: =IF(AND(INTRO!$E$37="Non endémique",INTRO!$E$41="Non endémique"),0,IF(AND(OR(COUNTRY_INFO!$H10=0,COUNTRY_INFO!$H10=4,COUNTRY_INFO!$H10=99),OR(COUNTRY_INFO!$J10=0,COUNTRY_INFO!$J10=4)),0,COUNTRY_INFO!$F10)) -> 0 | F10: =SUM(D10:E10) -> 0 | G10: =IF(AND(INTRO!$E$37="Non endémique",INTRO!$E$41="Non endémique"),0,COUNTRY_INFO!P10) -> 0 | H10: =IF(AND(INTRO!$E$37="Non endémique",INTRO!$E$41="Non endémique"),0,COUNTRY_INFO!R10) -> 0 | I10: =IF(INTRO!$E$39="Non endémique",IF($G10=1,DEC!I10,0),IF($G10=1,IVM!G10,0)) -> 0 | K10: =IF($J10="ALB", IF(INTRO!$E$39="Non endémique",IF($H10<>0,$D10*($H10-$G10),0),$D10*$H10), 0) -> 0 | L10: 0 | N10: =SUM(K10:M10) -> 0 | O10: =IF($J10="MBD", IF(INTRO!$E$39="Non endémique",IF($H10<>0,$D10*($H10-$G10),0),$D10*$H10),0) -> 0 | P10: 0 | R10: =SUM(O10:Q10) -> 0 | T10: 0 | U10: 0 | W10: 0 | X10: 0 | Z10: 0 | AA10: 0
A11: =IF(AND(INTRO!$E$37="Non endémique",INTRO!$E$41="Non endémique")," ",IF(COUNTRY_INFO!A11=0," ",COUNTRY_INFO!A11)) -> Niger | B11: =IF(AND(INTRO!$E$37="Non endémique",INTRO!$E$41="Non endémique")," ",IF(COUNTRY_INFO!B11=0," ",COUNTRY_INFO!B11)) -> Agadez | C11: =IF(AND(INTRO!$E$37="Non endémique",INTRO!$E$41="Non endémique")," ",IF(COUNTRY_INFO!C11=0," ",COUNTRY_INFO!C11)) -> Arlit | D11: =IF(AND(INTRO!$E$37="Non endémique",INTRO!$E$41="Non endémique"),0,IF(AND(OR(COUNTRY_INFO!$H11=0,COUNTRY_INFO!$H11=4,COUNTRY_INFO!$H11=99),OR(COUNTRY_INFO!$J11=0,COUNTRY_INFO!$J11=4)),0,COUNTRY_INFO!$E11)) -> 25937 | E11: =IF(AND(INTRO!$E$37="Non endémique",INTRO!$E$41="Non endémique"),0,IF(AND(OR(COUNTRY_INFO!$H11=0,COUNTRY_INFO!$H11=4,COUNTRY_INFO!$H11=99),OR(COUNTRY_INFO!$J11=0,COUNTRY_INFO!$J11=4)),0,COUNTRY_INFO!$F11)) -> 43228 | F11: 69165 | G11: =IF(AND(INTRO!$E$37="Non endémique",INTRO!$E$41="Non endémique"),0,COUNTRY_INFO!P11) -> 1 | H11: =IF(AND(INTRO!$E$37="Non endémique",INTRO!$E$41="Non endémique"),0,COUNTRY_INFO!R11) -> 0 | I11: =IF(INTRO!$E$39="Non endémique",IF($G11=1,DEC!I11,0),IF($G11=1,IVM!G11,0)) -> 115274 | K11: =IF($J11="ALB", IF(INTRO!$E$39="Non endémique",IF($H11<>0,$D11*($H11-$G11),0),$D11*$H11), 0) -> 0 | L11: 0 | N11: 0 | O11: =IF($J11="MBD", IF(INTRO!$E$39="Non endémique",IF($H11<>0,$D11*($H11-$G11),0),$D11*$H11),0) -> 0 | P11: 0 | R11: 0 | T11: 115274 | U11: 577 | W11: 0 | X11: 0 | Z11: 0 | AA11: 0
A12: =IF(AND(INTRO!$E$37="Non endémique",INTRO!$E$41="Non endémique")," ",IF(COUNTRY_INFO!A12=0," ",COUNTRY_INFO!A12)) -> Niger | B12: =IF(AND(INTRO!$E$37="Non endémique",INTRO!$E$41="Non endémique")," ",IF(COUNTRY_INFO!B12=0," ",COUNTRY_INFO!B12)) -> Agadez | C12: =IF(AND(INTRO!$E$37="Non endémique",INTRO!$E$41="Non endémique")," ",IF(COUNTRY_INFO!C12=0," ",COUNTRY_INFO!C12)) -> Bilma | D12: =IF(AND(INTRO!$E$37="Non endémique",INTRO!$E$41="Non endémique"),0,IF(AND(OR(COUNTRY_INFO!$H12=0,COUNTRY_INFO!$H12=4,COUNTRY_INFO!$H12=99),OR(COUNTRY_INFO!$J12=0,COUNTRY_INFO!$J12=4)),0,COUNTRY_INFO!$E12)) -> 4429 | E12: =IF(AND(INTRO!$E$37="Non endémique",INTRO!$E$41="Non endémique"),0,IF(AND(OR(COUNTRY_INFO!$H12=0,COUNTRY_INFO!$H12=4,COUNTRY_INFO!$H12=99),OR(COUNTRY_INFO!$J12=0,COUNTRY_INFO!$J12=4)),0,COUNTRY_INFO!$F12)) -> 7382 | F12: 11811 | G12: =IF(AND(INTRO!$E$37="Non endémique",INTRO!$E$41="Non endémique"),0,COUNTRY_INFO!P12) -> 0 | H12: =IF(AND(INTRO!$E$37="Non endémique",INTRO!$E$41="Non endémique"),0,COUNTRY_INFO!R12) -> 0 | I12: =IF(INTRO!$E$39="Non endémique",IF($G12=1,DEC!I12,0),IF($G12=1,IVM!G12,0)) -> 0 | K12: =IF($J12="ALB", IF(INTRO!$E$39="Non endémique",IF($H12<>0,$D12*($H12-$G12),0),$D12*$H12), 0) -> 0 | L12: 0 | N12: 0 | O12: =IF($J12="MBD", IF(INTRO!$E$39="Non endémique",IF($H12<>0,$D12*($H12-$G12),0),$D12*$H12),0) -> 0 | P12: 0 | R12: 0 | T12: 0 | U12: 0 | W12: 0 | X12: 0 | Z12: 0 | AA12: 0
A13: =IF(AND(INTRO!$E$37="Non endémique",INTRO!$E$41="Non endémique")," ",IF(COUNTRY_INFO!A13=0," ",COUNTRY_INFO!A13)) -> Niger | B13: =IF(AND(INTRO!$E$37="Non endémique",INTRO!$E$41="Non endémique")," ",IF(COUNTRY_INFO!B13=0," ",COUNTRY_INFO!B13)) -> Agadez | C13: =IF(AND(INTRO!$E$37="Non endémique",INTRO!$E$41="Non endémique")," ",IF(COUNTRY_INFO!C13=0," ",COUNTRY_INFO!C13)) -> Iférouane | D13: =IF(AND(INTRO!$E$37="Non endémique",INTRO!$E$41="Non endémique"),0,IF(AND(OR(COUNTRY_INFO!$H13=0,COUNTRY_INFO!$H13=4,COUNTRY_INFO!$H13=99),OR(COUNTRY_INFO!$J13=0,COUNTRY_INFO!$J13=4)),0,COUNTRY_INFO!$E13)) -> 8083 | E13: =IF(AND(INTRO!$E$37="Non endémique",INTRO!$E$41="Non endémique"),0,IF(AND(OR(COUNTRY_INFO!$H13=0,COUNTRY_INFO!$H13=4,COUNTRY_INFO!$H13=99),OR(COUNTRY_INFO!$J13=0,COUNTRY_INFO!$J13=4)),0,COUNTRY_INFO!$F13)) -> 13472 | F13: 21555 | G13: =IF(AND(INTRO!$E$37="Non endémique",INTRO!$E$41="Non endémique"),0,COUNTRY_INFO!P13) -> 1 | H13: =IF(AND(INTRO!$E$37="Non endémique",INTRO!$E$41="Non endémique"),0,COUNTRY_INFO!R13) -> 0 | I13: =IF(INTRO!$E$39="Non endémique",IF($G13=1,DEC!I13,0),IF($G13=1,IVM!G13,0)) -> 35925 | K13: =IF($J13="ALB", IF(INTRO!$E$39="Non endémique",IF($H13<>0,$D13*($H13-$G13),0),$D13*$H13), 0) -> 0 | L13: 0 | N13: 0 | O13: =IF($J13="MBD", IF(INTRO!$E$39="Non endémique",IF($H13<>0,$D13*($H13-$G13),0),$D13*$H13),0) -> 0 | P13: 0 | R13: 0 | T13: 35925 | U13: 180 | W13: 0 | X13: 0 | Z13: 0 | AA13: 0
A14: =IF(AND(INTRO!$E$37="Non endémique",INTRO!$E$41="Non endémique")," ",IF(COUNTRY_INFO!A14=0," ",COUNTRY_INFO!A14)) -> Niger | B14: =IF(AND(INTRO!$E$37="Non endémique",INTRO!$E$41="Non endémique")," ",IF(COUNTRY_INFO!B14=0," ",COUNTRY_INFO!B14)) -> Agadez | C14: =IF(AND(INTRO!$E$37="Non endémique",INTRO!$E$41="Non endémique")," ",IF(COUNTRY_INFO!C14=0," ",COUNTRY_INFO!C14)) -> Ingall | D14: =IF(AND(INTRO!$E$37="Non endémique",INTRO!$E$41="Non endémique"),0,IF(AND(OR(COUNTRY_INFO!$H14=0,COUNTRY_INFO!$H14=4,COUNTRY_INFO!$H14=99),OR(COUNTRY_INFO!$J14=0,COUNTRY_INFO!$J14=4)),0,COUNTRY_INFO!$E14)) -> 0 | E14: =IF(AND(INTRO!$E$37="Non endémique",INTRO!$E$41="Non endémique"),0,IF(AND(OR(COUNTRY_INFO!$H14=0,COUNTRY_INFO!$H14=4,COUNTRY_INFO!$H14=99),OR(COUNTRY_INFO!$J14=0,COUNTRY_INFO!$J14=4)),0,COUNTRY_INFO!$F14)) -> 0 | F14: 0 | G14: =IF(AND(INTRO!$E$37="Non endémique",INTRO!$E$41="Non endémique"),0,COUNTRY_INFO!P14) -> 0 | H14: =IF(AND(INTRO!$E$37="Non endémique",INTRO!$E$41="Non endémique"),0,COUNTRY_INFO!R14) -> 0 | I14: =IF(INTRO!$E$39="Non endémique",IF($G14=1,DEC!I14,0),IF($G14=1,IVM!G14,0)) -> 0 | K14: =IF($J14="ALB", IF(INTRO!$E$39="Non endémique",IF($H14<>0,$D14*($H14-$G14),0),$D14*$H14), 0) -> 0 | L14: 0 | N14: 0 | O14: =IF($J14="MBD", IF(INTRO!$E$39="Non endémique",IF($H14<>0,$D14*($H14-$G14),0),$D14*$H14),0) -> 0 | P14: 0 | R14: 0 | T14: 0 | U14: 0 | W14: 0 | X14: 0 | Z14: 0 | AA14: 0
A15: =IF(AND(INTRO!$E$37="Non endémique",INTRO!$E$41="Non endémique")," ",IF(COUNTRY_INFO!A15=0," ",COUNTRY_INFO!A15)) -> Niger | B15: =IF(AND(INTRO!$E$37="Non endémique",INTRO!$E$41="Non endémique")," ",IF(COUNTRY_INFO!B15=0," ",COUNTRY_INFO!B15)) -> Agadez | C15: =IF(AND(INTRO!$E$37="Non endémique",INTRO!$E$41="Non endémique")," ",IF(COUNTRY_INFO!C15=0," ",COUNTRY_INFO!C15)) -> Tchirozérine | D15: =IF(AND(INTRO!$E$37="Non endémique",INTRO!$E$41="Non endémique"),0,IF(AND(OR(COUNTRY_INFO!$H15=0,COUNTRY_INFO!$H15=4,COUNTRY_INFO!$H15=99),OR(COUNTRY_INFO!$J15=0,COUNTRY_INFO!$J15=4)),0,COUNTRY_INFO!$E15)) -> 31231 | E15: =IF(AND(INTRO!$E$37="Non endémique",INTRO!$E$41="Non endémique"),0,IF(AND(OR(COUNTRY_INFO!$H15=0,COUNTRY_INFO!$H15=4,COUNTRY_INFO!$H15=99),OR(COUNTRY_INFO!$J15=0,COUNTRY_INFO!$J15=4)),0,COUNTRY_INFO!$F15)) -> 52052 | F15: 83283 | G15: =IF(AND(INTRO!$E$37="Non endémique",INTRO!$E$41="Non endémique"),0,COUNTRY_INFO!P15) -> 0 | H15: =IF(AND(INTRO!$E$37="Non endémique",INTRO!$E$41="Non endémique"),0,COUNTRY_INFO!R15) -> 0 | I15: =IF(INTRO!$E$39="Non endémique",IF($G15=1,DEC!I15,0),IF($G15=1,IVM!G15,0)) -> 0 | K15: =IF($J15="ALB", IF(INTRO!$E$39="Non endémique",IF($H15<>0,$D15*($H15-$G15),0),$D15*$H15), 0) -> 0 | L15: 0 | N15: 0 | O15: =IF($J15="MBD", IF(INTRO!$E$39="Non endémique",IF($H15<>0,$D15*($H15-$G15),0),$D15*$H15),0) -> 0 | P15: 0 | R15: 0 | T15: 0 | U15: 0 | W15: 0 | X15: 0 | Z15: 0 | AA15: 0
A16: =IF(AND(INTRO!$E$37="Non endémique",INTRO!$E$41="Non endémique")," ",IF(COUNTRY_INFO!A16=0," ",COUNTRY_INFO!A16)) -> Niger | B16: =IF(AND(INTRO!$E$37="Non endémique",INTRO!$E$41="Non endémique")," ",IF(COUNTRY_INFO!B16=0," ",COUNTRY_INFO!B16)) -> Diffa | C16: =IF(AND(INTRO!$E$37="Non endémique",INTRO!$E$41="Non endémique")," ",IF(COUNTRY_INFO!C16=0," ",COUNTRY_INFO!C16)) -> Bosso | D16: =IF(AND(INTRO!$E$37="Non endémique",INTRO!$E$41="Non endémique"),0,IF(AND(OR(COUNTRY_INFO!$H16=0,COUNTRY_INFO!$H16=4,COUNTRY_INFO!$H16=99),OR(COUNTRY_INFO!$J16=0,COUNTRY_INFO!$J16=4)),0,COUNTRY_INFO!$E16)) -> 0 | E16: =IF(AND(INTRO!$E$37="Non endémique",INTRO!$E$41="Non endémique"),0,IF(AND(OR(COUNTRY_INFO!$H16=0,COUNTRY_INFO!$H16=4,COUNTRY_INFO!$H16=99),OR(COUNTRY_INFO!$J16=0,COUNTRY_INFO!$J16=4)),0,COUNTRY_INFO!$F16)) -> 0 | F16: 0 | G16: =IF(AND(INTRO!$E$37="Non endémique",INTRO!$E$41="Non endémique"),0,COUNTRY_INFO!P16) -> 0 | H16: =IF(AND(INTRO!$E$37="Non endémique",INTRO!$E$41="Non endémique"),0,COUNTRY_INFO!R16) -> 0 | I16: =IF(INTRO!$E$39="Non endémique",IF($G16=1,DEC!I16,0),IF($G16=1,IVM!G16,0)) -> 0 | K16: =IF($J16="ALB", IF(INTRO!$E$39="Non endémique",IF($H16<>0,$D16*($H16-$G16),0),$D16*$H16), 0) -> 0 | L16: 0 | N16: 0 | O16: =IF($J16="MBD", IF(INTRO!$E$39="Non endémique",IF($H16<>0,$D16*($H16-$G16),0),$D16*$H16),0) -> 0 | P16: 0 | R16: 0 | T16: 0 | U16: 0 | W16: 0 | X16: 0 | Z16: 0 | AA16: 0
A17: =IF(AND(INTRO!$E$37="Non endémique",INTRO!$E$41="Non endémique")," ",IF(COUNTRY_INFO!A17=0," ",COUNTRY_INFO!A17)) -> Niger | B17: =IF(AND(INTRO!$E$37="Non endémique",INTRO!$E$41="Non endémique")," ",IF(COUNTRY_INFO!B17=0," ",COUNTRY_INFO!B17)) -> Diffa | C17: =IF(AND(INTRO!$E$37="Non endémique",INTRO!$E$41="Non endémique")," ",IF(COUNTRY_INFO!C17=0," ",COUNTRY_INFO!C17)) -> DS Diffa | D17: =IF(AND(INTRO!$E$37="Non endémique",INTRO!$E$41="Non endémique"),0,IF(AND(OR(COUNTRY_INFO!$H17=0,COUNTRY_INFO!$H17=4,COUNTRY_INFO!$H17=99),OR(COUNTRY_INFO!$J17=0,COUNTRY_INFO!$J17=4)),0,COUNTRY_INFO!$E17)) -> 0 | E17: =IF(AND(INTRO!$E$37="Non endémique",INTRO!$E$41="Non endémique"),0,IF(AND(OR(COUNTRY_INFO!$H17=0,COUNTRY_INFO!$H17=4,COUNTRY_INFO!$H17=99),OR(COUNTRY_INFO!$J17=0,COUNTRY_INFO!$J17=4)),0,COUNTRY_INFO!$F17)) -> 0 | F17: 0 | G17: =IF(AND(INTRO!$E$37="Non endémique",INTRO!$E$41="Non endémique"),0,COUNTRY_INFO!P17) -> 0 | H17: =IF(AND(INTRO!$E$37="Non endémique",INTRO!$E$41="Non endémique"),0,COUNTRY_INFO!R17) -> 0 | I17: =IF(INTRO!$E$39="Non endémique",IF($G17=1,DEC!I17,0),IF($G17=1,IVM!G17,0)) -> 0 | K17: =IF($J17="ALB", IF(INTRO!$E$39="Non endémique",IF($H17<>0,$D17*($H17-$G17),0),$D17*$H17), 0) -> 0 | L17: 0 | N17: 0 | O17: =IF($J17="MBD", IF(INTRO!$E$39="Non endémique",IF($H17<>0,$D17*($H17-$G17),0),$D17*$H17),0) -> 0 | P17: 0 | R17: 0 | T17: 0 | U17: 0 | W17: 0 | X17: 0 | Z17: 0 | AA17: 0
A18: =IF(AND(INTRO!$E$37="Non endémique",INTRO!$E$41="Non endémique")," ",IF(COUNTRY_INFO!A18=0," ",COUNTRY_INFO!A18)) -> Niger | B18: =IF(AND(INTRO!$E$37="Non endémique",INTRO!$E$41="Non endémique")," ",IF(COUNTRY_INFO!B18=0," ",COUNTRY_INFO!B18)) -> Diffa | C18: =IF(AND(INTRO!$E$37="Non endémique",INTRO!$E$41="Non endémique")," ",IF(COUNTRY_INFO!C18=0," ",COUNTRY_INFO!C18)) -> Mainé Soroa | D18: =IF(AND(INTRO!$E$37="Non endémique",INTRO!$E$41="Non endémique"),0,IF(AND(OR(COUNTRY_INFO!$H18=0,COUNTRY_INFO!$H18=4,COUNTRY_INFO!$H18=99),OR(COUNTRY_INFO!$J18=0,COUNTRY_INFO!$J18=4)),0,COUNTRY_INFO!$E18)) -> 0 | E18: =IF(AND(INTRO!$E$37="Non endémique",INTRO!$E$41="Non endémique"),0,IF(AND(OR(COUNTRY_INFO!$H18=0,COUNTRY_INFO!$H18=4,COUNTRY_INFO!$H18=99),OR(COUNTRY_INFO!$J18=0,COUNTRY_INFO!$J18=4)),0,COUNTRY_INFO!$F18)) -> 0 | F18: 0 | G18: =IF(AND(INTRO!$E$37="Non endémique",INTRO!$E$41="Non endémique"),0,COUNTRY_INFO!P18) -> 0 | H18: =IF(AND(INTRO!$E$37="Non endémique",INTRO!$E$41="Non endémique"),0,COUNTRY_INFO!R18) -> 0 | I18: =IF(INTRO!$E$39="Non endémique",IF($G18=1,DEC!I18,0),IF($G18=1,IVM!G18,0)) -> 0 | K18: =IF($J18="ALB", IF(INTRO!$E$39="Non endémique",IF($H18<>0,$D18*($H18-$G18),0),$D18*$H18), 0) -> 0 | L18: 0 | N18: 0 | O18: =IF($J18="MBD", IF(INTRO!$E$39="Non endémique",IF($H18<>0,$D18*($H18-$G18),0),$D18*$H18),0) -> 0 | P18: 0 | R18: 0 | T18: 0 | U18: 0 | W18: 0 | X18: 0 | Z18: 0 | AA18: 0
A19: =IF(AND(INTRO!$E$37="Non endémique",INTRO!$E$41="Non endémique")," ",IF(COUNTRY_INFO!A19=0," ",COUNTRY_INFO!A19)) -> Niger | B19: =IF(AND(INTRO!$E$37="Non endémique",INTRO!$E$41="Non endémique")," ",IF(COUNTRY_INFO!B19=0," ",COUNTRY_INFO!B19)) -> Diffa | C19: =IF(AND(INTRO!$E$37="Non endémique",INTRO!$E$41="Non endémique")," ",IF(COUNTRY_INFO!C19=0," ",COUNTRY_INFO!C19)) -> Goudoumaria | D19: =IF(AND(INTRO!$E$37="Non endémique",INTRO!$E$41="Non endémique"),0,IF(AND(OR(COUNTRY_INFO!$H19=0,COUNTRY_INFO!$H19=4,COUNTRY_INFO!$H19=99),OR(COUNTRY_INFO!$J19=0,COUNTRY_INFO!$J19=4)),0,COUNTRY_INFO!$E19)) -> 0 | E19: =IF(AND(INTRO!$E$37="Non endémique",INTRO!$E$41="Non endémique"),0,IF(AND(OR(COUNTRY_INFO!$H19=0,COUNTRY_INFO!$H19=4,COUNTRY_INFO!$H19=99),OR(COUNTRY_INFO!$J19=0,COUNTRY_INFO!$J19=4)),0,COUNTRY_INFO!$F19)) -> 0 | F19: 0 | G19: =IF(AND(INTRO!$E$37="Non endémique",INTRO!$E$41="Non endémique"),0,COUNTRY_INFO!P19) -> 0 | H19: =IF(AND(INTRO!$E$37="Non endémique",INTRO!$E$41="Non endémique"),0,COUNTRY_INFO!R19) -> 0 | I19: =IF(INTRO!$E$39="Non endémique",IF($G19=1,DEC!I19,0),IF($G19=1,IVM!G19,0)) -> 0 | K19: =IF($J19="ALB", IF(INTRO!$E$39="Non endémique",IF($H19<>0,$D19*($H19-$G19),0),$D19*$H19), 0) -> 0 | L19: 0 | N19: 0 | O19: =IF($J19="MBD", IF(INTRO!$E$39="Non endémique",IF($H19<>0,$D19*($H19-$G19),0),$D19*$H19),0) -> 0 | P19: 0 | R19: 0 | T19: 0 | U19: 0 | W19: 0 | X19: 0 | Z19: 0 | AA19: 0
A20: =IF(AND(INTRO!$E$37="Non endémique",INTRO!$E$41="Non endémique")," ",IF(COUNTRY_INFO!A20=0," ",COUNTRY_INFO!A20)) -> Niger | B20: =IF(AND(INTRO!$E$37="Non endémique",INTRO!$E$41="Non endémique")," ",IF(COUNTRY_INFO!B20=0," ",COUNTRY_INFO!B20)) -> Diffa | C20: =IF(AND(INTRO!$E$37="Non endémique",INTRO!$E$41="Non endémique")," ",IF(COUNTRY_INFO!C20=0," ",COUNTRY_INFO!C20)) -> N'gourti | D20: =IF(AND(INTRO!$E$37="Non endémique",INTRO!$E$41="Non endémique"),0,IF(AND(OR(COUNTRY_INFO!$H20=0,COUNTRY_INFO!$H20=4,COUNTRY_INFO!$H20=99),OR(COUNTRY_INFO!$J20=0,COUNTRY_INFO!$J20=4)),0,COUNTRY_INFO!$E20)) -> 12794 | E20: =IF(AND(INTRO!$E$37="Non endémique",INTRO!$E$41="Non endémique"),0,IF(AND(OR(COUNTRY_INFO!$H20=0,COUNTRY_INFO!$H20=4,COUNTRY_INFO!$H20=99),OR(COUNTRY_INFO!$J20=0,COUNTRY_INFO!$J20=4)),0,COUNTRY_INFO!$F20)) -> 21323 | F20: 34117 | G20: =IF(AND(INTRO!$E$37="Non endémique",INTRO!$E$41="Non endémique"),0,COUNTRY_INFO!P20) -> 0 | H20: =IF(AND(INTRO!$E$37="Non endémique",INTRO!$E$41="Non endémique"),0,COUNTRY_INFO!R20) -> 0 | I20: =IF(INTRO!$E$39="Non endémique",IF($G20=1,DEC!I20,0),IF($G20=1,IVM!G20,0)) -> 0 | K20: =IF($J20="ALB", IF(INTRO!$E$39="Non endémique",IF($H20<>0,$D20*($H20-$G20),0),$D20*$H20), 0) -> 0 | L20: 0 | N20: 0 | O20: =IF($J20="MBD", IF(INTRO!$E$39="Non endémique",IF($H20<>0,$D20*($H20-$G20),0),$D20*$H20),0) -> 0 | P20: 0 | R20: 0 | T20: 0 | U20: 0 | W20: 0 | X20: 0 | Z20: 0 | AA20: 0
A21: =IF(AND(INTRO!$E$37="Non endémique",INTRO!$E$41="Non endémique")," ",IF(COUNTRY_INFO!A21=0," ",COUNTRY_INFO!A21)) -> Niger | B21: =IF(AND(INTRO!$E$37="Non endémique",INTRO!$E$41="Non endémique")," ",IF(COUNTRY_INFO!B21=0," ",COUNTRY_INFO!B21)) -> Diffa | C21: =IF(AND(INTRO!$E$37="Non endémique",INTRO!$E$41="Non endémique")," ",IF(COUNTRY_INFO!C21=0," ",COUNTRY_INFO!C21)) -> N'Guigmi | D21: =IF(AND(INTRO!$E$37="Non endémique",INTRO!$E$41="Non endémique"),0,IF(AND(OR(COUNTRY_INFO!$H21=0,COUNTRY_INFO!$H21=4,COUNTRY_INFO!$H21=99),OR(COUNTRY_INFO!$J21=0,COUNTRY_INFO!$J21=4)),0,COUNTRY_INFO!$E21)) -> 18134 | E21: =IF(AND(INTRO!$E$37="Non endémique",INTRO!$E$41="Non endémique"),0,IF(AND(OR(COUNTRY_INFO!$H21=0,COUNTRY_INFO!$H21=4,COUNTRY_INFO!$H21=99),OR(COUNTRY_INFO!$J21=0,COUNTRY_INFO!$J21=4)),0,COUNTRY_INFO!$F21)) -> 30223 | F21: 48357 | G21: =IF(AND(INTRO!$E$37="Non endémique",INTRO!$E$41="Non endémique"),0,COUNTRY_INFO!P21) -> 0 | H21: =IF(AND(INTRO!$E$37="Non endémique",INTRO!$E$41="Non endémique"),0,COUNTRY_INFO!R21) -> 0 | I21: =IF(INTRO!$E$39="Non endémique",IF($G21=1,DEC!I21,0),IF($G21=1,IVM!G21,0)) -> 0 | K21: =IF($J21="ALB", IF(INTRO!$E$39="Non endémique",IF($H21<>0,$D21*($H21-$G21),0),$D21*$H21), 0) -> 0 | L21: 0 | N21: 0 | O21: =IF($J21="MBD", IF(INTRO!$E$39="Non endémique",IF($H21<>0,$D21*($H21-$G21),0),$D21*$H21),0) -> 0 | P21: 0 | R21: 0 | T21: 0 | U21: 0 | W21: 0 | X21: 0 | Z21: 0 | AA21: 0
A22: =IF(AND(INTRO!$E$37="Non endémique",INTRO!$E$41="Non endémique")," ",IF(COUNTRY_INFO!A22=0," ",COUNTRY_INFO!A22)) -> Niger | B22: =IF(AND(INTRO!$E$37="Non endémique",INTRO!$E$41="Non endémique")," ",IF(COUNTRY_INFO!B22=0," ",COUNTRY_INFO!B22)) -> Dosso | C22: =IF(AND(INTRO!$E$37="Non endémique",INTRO!$E$41="Non endémique")," ",IF(COUNTRY_INFO!C22=0," ",COUNTRY_INFO!C22)) -> Boboye | D22: =IF(AND(INTRO!$E$37="Non endémique",INTRO!$E$41="Non endémique"),0,IF(AND(OR(COUNTRY_INFO!$H22=0,COUNTRY_INFO!$H22=4,COUNTRY_INFO!$H22=99),OR(COUNTRY_INFO!$J22=0,COUNTRY_INFO!$J22=4)),0,COUNTRY_INFO!$E22)) -> 66278 | E22: =IF(AND(INTRO!$E$37="Non endémique",INTRO!$E$41="Non endémique"),0,IF(AND(OR(COUNTRY_INFO!$H22=0,COUNTRY_INFO!$H22=4,COUNTRY_INFO!$H22=99),OR(COUNTRY_INFO!$J22=0,COUNTRY_INFO!$J22=4)),0,COUNTRY_INFO!$F22)) -> 110463 | F22: 176741 | G22: =IF(AND(INTRO!$E$37="Non endémique",INTRO!$E$41="Non endémique"),0,COUNTRY_INFO!P22) -> 0 | H22: =IF(AND(INTRO!$E$37="Non endémique",INTRO!$E$41="Non endémique"),0,COUNTRY_INFO!R22) -> 0 | I22: =IF(INTRO!$E$39="Non endémique",IF($G22=1,DEC!I22,0),IF($G22=1,IVM!G22,0)) -> 0 | K22: =IF($J22="ALB", IF(INTRO!$E$39="Non endémique",IF($H22<>0,$D22*($H22-$G22),0),$D22*$H22), 0) -> 0 | L22: 0 | N22: 0 | O22: =IF($J22="MBD", IF(INTRO!$E$39="Non endémique",IF($H22<>0,$D22*($H22-$G22),0),$D22*$H22),0) -> 0 | P22: 0 | R22: 0 | T22: 0 | U22: 0 | W22: 0 | X22: 0 | Z22: 0 | AA22: 0
A23: =IF(AND(INTRO!$E$37="Non endémique",INTRO!$E$41="Non endémique")," ",IF(COUNTRY_INFO!A23=0," ",COUNTRY_INFO!A23)) -> Niger | B23: =IF(AND(INTRO!$E$37="Non endémique",INTRO!$E$41="Non endémique")," ",IF(COUNTRY_INFO!B23=0," ",COUNTRY_INFO!B23)) -> Dosso | C23: =IF(AND(INTRO!$E$37="Non endémique",INTRO!$E$41="Non endémique")," ",IF(COUNTRY_INFO!C23=0," ",COUNTRY_INFO!C23)) -> Dioundou | D23: =IF(AND(INTRO!$E$37="Non endémique",INTRO!$E$41="Non endémique"),0,IF(AND(OR(COUNTRY_INFO!$H23=0,COUNTRY_INFO!$H23=4,COUNTRY_INFO!$H23=99),OR(COUNTRY_INFO!$J23=0,COUNTRY_INFO!$J23=4)),0,COUNTRY_INFO!$E23)) -> 28761 | E23: =IF(AND(INTRO!$E$37="Non endémique",INTRO!$E$41="Non endémique"),0,IF(AND(OR(COUNTRY_INFO!$H23=0,COUNTRY_INFO!$H23=4,COUNTRY_INFO!$H23=99),OR(COUNTRY_INFO!$J23=0,COUNTRY_INFO!$J23=4)),0,COUNTRY_INFO!$F23)) -> 47936 | F23: 76697 | G23: =IF(AND(INTRO!$E$37="Non endémique",INTRO!$E$41="Non endémique"),0,COUNTRY_INFO!P23) -> 1 | H23: =IF(AND(INTRO!$E$37="Non endémique",INTRO!$E$41="Non endémique"),0,COUNTRY_INFO!R23) -> 0 | I23: =IF(INTRO!$E$39="Non endémique",IF($G23=1,DEC!I23,0),IF($G23=1,IVM!G23,0)) -> 127829 | K23: =IF($J23="ALB", IF(INTRO!$E$39="Non endémique",IF($H23<>0,$D23*($H23-$G23),0),$D23*$H23), 0) -> 0 | L23: 0 | N23: 0 | O23: =IF($J23="MBD", IF(INTRO!$E$39="Non endémique",IF($H23<>0,$D23*($H23-$G23),0),$D23*$H23),0) -> 0 | P23: 0 | R23: 0 | T23: 127829 | U23: 640 | W23: 0 | X23: 0 | Z23: 0 | AA23: 0
A24: =IF(AND(INTRO!$E$37="Non endémique",INTRO!$E$41="Non endémique")," ",IF(COUNTRY_INFO!A24=0," ",COUNTRY_INFO!A24)) -> Niger | B24: =IF(AND(INTRO!$E$37="Non endémique",INTRO!$E$41="Non endémique")," ",IF(COUNTRY_INFO!B24=0," ",COUNTRY_INFO!B24)) -> Dosso | C24: =IF(AND(INTRO!$E$37="Non endémique",INTRO!$E$41="Non endémique")," ",IF(COUNTRY_INFO!C24=0," ",COUNTRY_INFO!C24)) -> Dogondoutchi | D24: =IF(AND(INTRO!$E$37="Non endémique",INTRO!$E$41="Non endémique"),0,IF(AND(OR(COUNTRY_INFO!$H24=0,COUNTRY_INFO!$H24=4,COUNTRY_INFO!$H24=99),OR(COUNTRY_INFO!$J24=0,COUNTRY_INFO!$J24=4)),0,COUNTRY_INFO!$E24)) -> 0 | E24: =IF(AND(INTRO!$E$37="Non endémique",INTRO!$E$41="Non endémique"),0,IF(AND(OR(COUNTRY_INFO!$H24=0,COUNTRY_INFO!$H24=4,COUNTRY_INFO!$H24=99),OR(COUNTRY_INFO!$J24=0,COUNTRY_INFO!$J24=4)),0,COUNTRY_INFO!$F24)) -> 0 | F24: 0 | G24: =IF(AND(INTRO!$E$37="Non endémique",INTRO!$E$41="Non endémique"),0,COUNTRY_INFO!P24) -> 0 | H24: =IF(AND(INTRO!$E$37="Non endémique",INTRO!$E$41="Non endémique"),0,COUNTRY_INFO!R24) -> 0 | I24: =IF(INTRO!$E$39="Non endémique",IF($G24=1,DEC!I24,0),IF($G24=1,IVM!G24,0)) -> 0 | K24: =IF($J24="ALB", IF(INTRO!$E$39="Non endémique",IF($H24<>0,$D24*($H24-$G24),0),$D24*$H24), 0) -> 0 | L24: 0 | N24: 0 | O24: =IF($J24="MBD", IF(INTRO!$E$39="Non endémique",IF($H24<>0,$D24*($H24-$G24),0),$D24*$H24),0) -> 0 | P24: 0 | R24: 0 | T24: 0 | U24: 0 | W24: 0 | X24: 0 | Z24: 0 | AA24: 0
A25: =IF(AND(INTRO!$E$37="Non endémique",INTRO!$E$41="Non endémique")," ",IF(COUNTRY_INFO!A25=0," ",COUNTRY_INFO!A25)) -> Niger | B25: =IF(AND(INTRO!$E$37="Non endémique",INTRO!$E$41="Non endémique")," ",IF(COUNTRY_INFO!B25=0," ",COUNTRY_INFO!B25)) -> Dosso | C25: =IF(AND(INTRO!$E$37="Non endémique",INTRO!$E$41="Non endémique")," ",IF(COUNTRY_INFO!C25=0," ",COUNTRY_INFO!C25)) -> Dosso Commune | D25: =IF(AND(INTRO!$E$37="Non endémique",INTRO!$E$41="Non endémique"),0,IF(AND(OR(COUNTRY_INFO!$H25=0,COUNTRY_INFO!$H25=4,COUNTRY_INFO!$H25=99),OR(COUNTRY_INFO!$J25=0,COUNTRY_INFO!$J25=4)),0,COUNTRY_INFO!$E25)) -> 0 | E25: =IF(AND(INTRO!$E$37="Non endémique",INTRO!$E$41="Non endémique"),0,IF(AND(OR(COUNTRY_INFO!$H25=0,COUNTRY_INFO!$H25=4,COUNTRY_INFO!$H25=99),OR(COUNTRY_INFO!$J25=0,COUNTRY_INFO!$J25=4)),0,COUNTRY_INFO!$F25)) -> 0 | F25: 0 | G25: =IF(AND(INTRO!$E$37="Non endémique",INTRO!$E$41="Non endémique"),0,COUNTRY_INFO!P25) -> 0 | H25: =IF(AND(INTRO!$E$37="Non endémique",INTRO!$E$41="Non endémique"),0,COUNTRY_INFO!R25) -> 0 | I25: =IF(INTRO!$E$39="Non endémique",IF($G25=1,DEC!I25,0),IF($G25=1,IVM!G25,0)) -> 0 | K25: =IF($J25="ALB", IF(INTRO!$E$39="Non endémique",IF($H25<>0,$D25*($H25-$G25),0),$D25*$H25), 0) -> 0 | L25: 0 | N25: 0 | O25: =IF($J25="MBD", IF(INTRO!$E$39="Non endémique",IF($H25<>0,$D25*($H25-$G25),0),$D25*$H25),0) -> 0 | P25: 0 | R25: 0 | T25: 0 | U25: 0 | W25: 0 | X25: 0 | Z25: 0 | AA25: 0
A26: =IF(AND(INTRO!$E$37="Non endémique",INTRO!$E$41="Non endémique")," ",IF(COUNTRY_INFO!A26=0," ",COUNTRY_INFO!A26)) -> Niger | B26: =IF(AND(INTRO!$E$37="Non endémique",INTRO!$E$41="Non endémique")," ",IF(COUNTRY_INFO!B26=0," ",COUNTRY_INFO!B26)) -> Dosso | C26: =IF(AND(INTRO!$E$37="Non endémique",INTRO!$E$41="Non endémique")," ",IF(COUNTRY_INFO!C26=0," ",COUNTRY_INFO!C26)) -> Falmey | D26: =IF(AND(INTRO!$E$37="Non endémique",INTRO!$E$41="Non endémique"),0,IF(AND(OR(COUNTRY_INFO!$H26=0,COUNTRY_INFO!$H26=4,COUNTRY_INFO!$H26=99),OR(COUNTRY_INFO!$J26=0,COUNTRY_INFO!$J26=4)),0,COUNTRY_INFO!$E26)) -> 0 | E26: =IF(AND(INTRO!$E$37="Non endémique",INTRO!$E$41="Non endémique"),0,IF(AND(OR(COUNTRY_INFO!$H26=0,COUNTRY_INFO!$H26=4,COUNTRY_INFO!$H26=99),OR(COUNTRY_INFO!$J26=0,COUNTRY_INFO!$J26=4)),0,COUNTRY_INFO!$F26)) -> 0 | F26: 0 | G26: =IF(AND(INTRO!$E$37="Non endémique",INTRO!$E$41="Non endémique"),0,COUNTRY_INFO!P26) -> 0 | H26: =IF(AND(INTRO!$E$37="Non endémique",INTRO!$E$41="Non endémique"),0,COUNTRY_INFO!R26) -> 0 | I26: =IF(INTRO!$E$39="Non endémique",IF($G26=1,DEC!I26,0),IF($G26=1,IVM!G26,0)) -> 0 | K26: =IF($J26="ALB", IF(INTRO!$E$39="Non endémique",IF($H26<>0,$D26*($H26-$G26),0),$D26*$H26), 0) -> 0 | L26: 0 | N26: 0 | O26: =IF($J26="MBD", IF(INTRO!$E$39="Non endémique",IF($H26<>0,$D26*($H26-$G26),0),$D26*$H26),0) -> 0 | P26: 0 | R26: 0 | T26: 0 | U26: 0 | W26: 0 | X26: 0 | Z26: 0 | AA26: 0
A27: =IF(AND(INTRO!$E$37="Non endémique",INTRO!$E$41="Non endémique")," ",IF(COUNTRY_INFO!A27=0," ",COUNTRY_INFO!A27)) -> Niger | B27: =IF(AND(INTRO!$E$37="Non endémique",INTRO!$E$41="Non endémique")," ",IF(COUNTRY_INFO!B27=0," ",COUNTRY_INFO!B27)) -> Dosso | C27: =IF(AND(INTRO!$E$37="Non endémique",INTRO!$E$41="Non endémique")," ",IF(COUNTRY_INFO!C27=0," ",COUNTRY_INFO!C27)) -> Gaya | D27: =IF(AND(INTRO!$E$37="Non endémique",INTRO!$E$41="Non endémique"),0,IF(AND(OR(COUNTRY_INFO!$H27=0,COUNTRY_INFO!$H27=4,COUNTRY_INFO!$H27=99),OR(COUNTRY_INFO!$J27=0,COUNTRY_INFO!$J27=4)),0,COUNTRY_INFO!$E27)) -> 68650 | E27: =IF(AND(INTRO!$E$37="Non endémique",INTRO!$E$41="Non endémique"),0,IF(AND(OR(COUNTRY_INFO!$H27=0,COUNTRY_INFO!$H27=4,COUNTRY_INFO!$H27=99),OR(COUNTRY_INFO!$J27=0,COUNTRY_INFO!$J27=4)),0,COUNTRY_INFO!$F27)) -> 114417 | F27: 183067 | G27: =IF(AND(INTRO!$E$37="Non endémique",INTRO!$E$41="Non endémique"),0,COUNTRY_INFO!P27) -> 1 | H27: =IF(AND(INTRO!$E$37="Non endémique",INTRO!$E$41="Non endémique"),0,COUNTRY_INFO!R27) -> 0 | I27: =IF(INTRO!$E$39="Non endémique",IF($G27=1,DEC!I27,0),IF($G27=1,IVM!G27,0)) -> 305112 | K27: =IF($J27="ALB", IF(INTRO!$E$39="Non endémique",IF($H27<>0,$D27*($H27-$G27),0),$D27*$H27), 0) -> 0 | L27: 0 | N27: 0 | O27: =IF($J27="MBD", IF(INTRO!$E$39="Non endémique",IF($H27<>0,$D27*($H27-$G27),0),$D27*$H27),0) -> 0 | P27: 0 | R27: 0 | T27: 305112 | U27: 1526 | W27: 0 | X27: 0 | Z27: 0 | AA27: 0
A28: =IF(AND(INTRO!$E$37="Non endémique",INTRO!$E$41="Non endémique")," ",IF(COUNTRY_INFO!A28=0," ",COUNTRY_INFO!A28)) -> Niger | B28: =IF(AND(INTRO!$E$37="Non endémique",INTRO!$E$41="Non endémique")," ",IF(COUNTRY_INFO!B28=0," ",COUNTRY_INFO!B28)) -> Dosso | C28: =IF(AND(INTRO!$E$37="Non endémique",INTRO!$E$41="Non endémique")," ",IF(COUNTRY_INFO!C28=0," ",COUNTRY_INFO!C28)) -> Loga | D28: =IF(AND(INTRO!$E$37="Non endémique",INTRO!$E$41="Non endémique"),0,IF(AND(OR(COUNTRY_INFO!$H28=0,COUNTRY_INFO!$H28=4,COUNTRY_INFO!$H28=99),OR(COUNTRY_INFO!$J28=0,COUNTRY_INFO!$J28=4)),0,COUNTRY_INFO!$E28)) -> 46060 | E28: =IF(AND(INTRO!$E$37="Non endémique",INTRO!$E$41="Non endémique"),0,IF(AND(OR(COUNTRY_INFO!$H28=0,COUNTRY_INFO!$H28=4,COUNTRY_INFO!$H28=99),OR(COUNTRY_INFO!$J28=0,COUNTRY_INFO!$J28=4)),0,COUNTRY_INFO!$F28)) -> 76767 | F28: 122827 | G28: =IF(AND(INTRO!$E$37="Non endémique",INTRO!$E$41="Non endémique"),0,COUNTRY_INFO!P28) -> 0 | H28: =IF(AND(INTRO!$E$37="Non endémique",INTRO!$E$41="Non endémique"),0,COUNTRY_INFO!R28) -> 0 | I28: =IF(INTRO!$E$39="Non endémique",IF($G28=1,DEC!I28,0),IF($G28=1,IVM!G28,0)) -> 0 | K28: =IF($J28="ALB", IF(INTRO!$E$39="Non endémique",IF($H28<>0,$D28*($H28-$G28),0),$D28*$H28), 0) -> 0 | L28: 0 | N28: 0 | O28: =IF($J28="MBD", IF(INTRO!$E$39="Non endémique",IF($H28<>0,$D28*($H28-$G28),0),$D28*$H28),0) -> 0 | P28: 0 | R28: 0 | T28: 0 | U28: 0 | W28: 0 | X28: 0 | Z28: 0 | AA28: 0
A29: =IF(AND(INTRO!$E$37="Non endémique",INTRO!$E$41="Non endémique")," ",IF(COUNTRY_INFO!A29=0," ",COUNTRY_INFO!A29)) -> Niger | B29: =IF(AND(INTRO!$E$37="Non endémique",INTRO!$E$41="Non endémique")," ",IF(COUNTRY_INFO!B29=0," ",COUNTRY_INFO!B29)) -> Dosso | C29: =IF(AND(INTRO!$E$37="Non endémique",INTRO!$E$41="Non endémique")," ",IF(COUNTRY_INFO!C29=0," ",COUNTRY_INFO!C29)) -> Tibiri (Doutchi) | D29: =IF(AND(INTRO!$E$37="Non endémique",INTRO!$E$41="Non endémique"),0,IF(AND(OR(COUNTRY_INFO!$H29=0,COUNTRY_INFO!$H29=4,COUNTRY_INFO!$H29=99),OR(COUNTRY_INFO!$J29=0,COUNTRY_INFO!$J29=4)),0,COUNTRY_INFO!$E29)) -> 70849 | E29: =IF(AND(INTRO!$E$37="Non endémique",INTRO!$E$41="Non endémique"),0,IF(AND(OR(COUNTRY_INFO!$H29=0,COUNTRY_INFO!$H29=4,COUNTRY_INFO!$H29=99),OR(COUNTRY_INFO!$J29=0,COUNTRY_INFO!$J29=4)),0,COUNTRY_INFO!$F29)) -> 118081 | F29: 188930 | G29: =IF(AND(INTRO!$E$37="Non endémique",INTRO!$E$41="Non endémique"),0,COUNTRY_INFO!P29) -> 0 | H29: =IF(AND(INTRO!$E$37="Non endémique",INTRO!$E$41="Non endémique"),0,COUNTRY_INFO!R29) -> 0 | I29: =IF(INTRO!$E$39="Non endémique",IF($G29=1,DEC!I29,0),IF($G29=1,IVM!G29,0)) -> 0 | K29: =IF($J29="ALB", IF(INTRO!$E$39="Non endémique",IF($H29<>0,$D29*($H29-$G29),0),$D29*$H29), 0) -> 0 | L29: 0 | N29: 0 | O29: =IF($J29="MBD", IF(INTRO!$E$39="Non endémique",IF($H29<>0,$D29*($H29-$G29),0),$D29*$H29),0) -> 0 | P29: 0 | R29: 0 | T29: 0 | U29: 0 | W29: 0 | X29: 0 | Z29: 0 | AA29: 0
A30: =IF(AND(INTRO!$E$37="Non endémique",INTRO!$E$41="Non endémique")," ",IF(COUNTRY_INFO!A30=0," ",COUNTRY_INFO!A30)) -> Niger | B30: =IF(AND(INTRO!$E$37="Non endémique",INTRO!$E$41="Non endémique")," ",IF(COUNTRY_INFO!B30=0," ",COUNTRY_INFO!B30)) -> Maradi | C30: =IF(AND(INTRO!$E$37="Non endémique",INTRO!$E$41="Non endémique")," ",IF(COUNTRY_INFO!C30=0," ",COUNTRY_INFO!C30)) -> Aguié | D30: =IF(AND(INTRO!$E$37="Non endémique",INTRO!$E$41="Non endémique"),0,IF(AND(OR(COUNTRY_INFO!$H30=0,COUNTRY_INFO!$H30=4,COUNTRY_INFO!$H30=99),OR(COUNTRY_INFO!$J30=0,COUNTRY_INFO!$J30=4)),0,COUNTRY_INFO!$E30)) -> 67073 | E30: =IF(AND(INTRO!$E$37="Non endémique",INTRO!$E$41="Non endémique"),0,IF(AND(OR(COUNTRY_INFO!$H30=0,COUNTRY_INFO!$H30=4,COUNTRY_INFO!$H30=99),OR(COUNTRY_INFO!$J30=0,COUNTRY_INFO!$J30=4)),0,COUNTRY_INFO!$F30)) -> 111789 | F30: 178862 | G30: =IF(AND(INTRO!$E$37="Non endémique",INTRO!$E$41="Non endémique"),0,COUNTRY_INFO!P30) -> 1 | H30: =IF(AND(INTRO!$E$37="Non endémique",INTRO!$E$41="Non endémique"),0,COUNTRY_INFO!R30) -> 0 | I30: =IF(INTRO!$E$39="Non endémique",IF($G30=1,DEC!I30,0),IF($G30=1,IVM!G30,0)) -> 298104 | K30: =IF($J30="ALB", IF(INTRO!$E$39="Non endémique",IF($H30<>0,$D30*($H30-$G30),0),$D30*$H30), 0) -> 0 | L30: 0 | N30: 0 | O30: =IF($J30="MBD", IF(INTRO!$E$39="Non endémique",IF($H30<>0,$D30*($H30-$G30),0),$D30*$H30),0) -> 0 | P30: 0 | R30: 0 | T30: 298104 | U30: 1491 | W30: 0 | X30: 0 | Z30: 0 | AA30: 0
A31: =IF(AND(INTRO!$E$37="Non endémique",INTRO!$E$41="Non endémique")," ",IF(COUNTRY_INFO!A31=0," ",COUNTRY_INFO!A31)) -> Niger | B31: =IF(AND(INTRO!$E$37="Non endémique",INTRO!$E$41="Non endémique")," ",IF(COUNTRY_INFO!B31=0," ",COUNTRY_INFO!B31)) -> Maradi | C31: =IF(AND(INTRO!$E$37="Non endémique",INTRO!$E$41="Non endémique")," ",IF(COUNTRY_INFO!C31=0," ",COUNTRY_INFO!C31)) -> Bermo | D31: =IF(AND(INTRO!$E$37="Non endémique",INTRO!$E$41="Non endémique"),0,IF(AND(OR(COUNTRY_INFO!$H31=0,COUNTRY_INFO!$H31=4,COUNTRY_INFO!$H31=99),OR(COUNTRY_INFO!$J31=0,COUNTRY_INFO!$J31=4)),0,COUNTRY_INFO!$E31)) -> 0 | E31: =IF(AND(INTRO!$E$37="Non endémique",INTRO!$E$41="Non endémique"),0,IF(AND(OR(COUNTRY_INFO!$H31=0,COUNTRY_INFO!$H31=4,COUNTRY_INFO!$H31=99),OR(COUNTRY_INFO!$J31=0,COUNTRY_INFO!$J31=4)),0,COUNTRY_INFO!$F31)) -> 0 | F31: 0 | G31: =IF(AND(INTRO!$E$37="Non endémique",INTRO!$E$41="Non endémique"),0,COUNTRY_INFO!P31) -> 0 | H31: =IF(AND(INTRO!$E$37="Non endémique",INTRO!$E$41="Non endémique"),0,COUNTRY_INFO!R31) -> 0 | I31: =IF(INTRO!$E$39="Non endémique",IF($G31=1,DEC!I31,0),IF($G31=1,IVM!G31,0)) -> 0 | K31: =IF($J31="ALB", IF(INTRO!$E$39="Non endémique",IF($H31<>0,$D31*($H31-$G31),0),$D31*$H31), 0) -> 0 | L31: 0 | N31: 0 | O31: =IF($J31="MBD", IF(INTRO!$E$39="Non endémique",IF($H31<>0,$D31*($H31-$G31),0),$D31*$H31),0) -> 0 | P31: 0 | R31: 0 | T31: 0 | U31: 0 | W31: 0 | X31: 0 | Z31: 0 | AA31: 0
A32: =IF(AND(INTRO!$E$37="Non endémique",INTRO!$E$41="Non endémique")," ",IF(COUNTRY_INFO!A32=0," ",COUNTRY_INFO!A32)) -> Niger | B32: =IF(AND(INTRO!$E$37="Non endémique",INTRO!$E$41="Non endémique")," ",IF(COUNTRY_INFO!B32=0," ",COUNTRY_INFO!B32)) -> Maradi | C32: =IF(AND(INTRO!$E$37="Non endémique",INTRO!$E$41="Non endémique")," ",IF(COUNTRY_INFO!C32=0," ",COUNTRY_INFO!C32)) -> Dakoro | D32: =IF(AND(INTRO!$E$37="Non endémique",INTRO!$E$41="Non endémique"),0,IF(AND(OR(COUNTRY_INFO!$H32=0,COUNTRY_INFO!$H32=4,COUNTRY_INFO!$H32=99),OR(COUNTRY_INFO!$J32=0,COUNTRY_INFO!$J32=4)),0,COUNTRY_INFO!$E32)) -> 171891 | E32: =IF(AND(INTRO!$E$37="Non endémique",INTRO!$E$41="Non endémique"),0,IF(AND(OR(COUNTRY_INFO!$H32=0,COUNTRY_INFO!$H32=4,COUNTRY_INFO!$H32=99),OR(COUNTRY_INFO!$J32=0,COUNTRY_INFO!$J32=4)),0,COUNTRY_INFO!$F32)) -> 286485 | F32: 458376 | G32: =IF(AND(INTRO!$E$37="Non endémique",INTRO!$E$41="Non endémique"),0,COUNTRY_INFO!P32) -> 0 | H32: =IF(AND(INTRO!$E$37="Non endémique",INTRO!$E$41="Non endémique"),0,COUNTRY_INFO!R32) -> 0 | I32: =IF(INTRO!$E$39="Non endémique",IF($G32=1,DEC!I32,0),IF($G32=1,IVM!G32,0)) -> 0 | K32: =IF($J32="ALB", IF(INTRO!$E$39="Non endémique",IF($H32<>0,$D32*($H32-$G32),0),$D32*$H32), 0) -> 0 | L32: 0 | N32: 0 | O32: =IF($J32="MBD", IF(INTRO!$E$39="Non endémique",IF($H32<>0,$D32*($H32-$G32),0),$D32*$H32),0) -> 0 | P32: 0 | R32: 0 | T32: 0 | U32: 0 | W32: 0 | X32: 0 | Z32: 0 | AA32: 0
A33: =IF(AND(INTRO!$E$37="Non endémique",INTRO!$E$41="Non endémique")," ",IF(COUNTRY_INFO!A33=0," ",COUNTRY_INFO!A33)) -> Niger | B33: =IF(AND(INTRO!$E$37="Non endémique",INTRO!$E$41="Non endémique")," ",IF(COUNTRY_INFO!B33=0," ",COUNTRY_INFO!B33)) -> Maradi | C33: =IF(AND(INTRO!$E$37="Non endémique",INTRO!$E$41="Non endémique")," ",IF(COUNTRY_INFO!C33=0," ",COUNTRY_INFO!C33)) -> Gazaoua | D33: =IF(AND(INTRO!$E$37="Non endémique",INTRO!$E$41="Non endémique"),0,IF(AND(OR(COUNTRY_INFO!$H33=0,COUNTRY_INFO!$H33=4,COUNTRY_INFO!$H33=99),OR(COUNTRY_INFO!$J33=0,COUNTRY_INFO!$J33=4)),0,COUNTRY_INFO!$E33)) -> 43772 | E33: =IF(AND(INTRO!$E$37="Non endémique",INTRO!$E$41="Non endémique"),0,IF(AND(OR(COUNTRY_INFO!$H33=0,COUNTRY_INFO!$H33=4,COUNTRY_INFO!$H33=99),OR(COUNTRY_INFO!$J33=0,COUNTRY_INFO!$J33=4)),0,COUNTRY_INFO!$F33)) -> 72953 | F33: 116725 | G33: =IF(AND(INTRO!$E$37="Non endémique",INTRO!$E$41="Non endémique"),0,COUNTRY_INFO!P33) -> 1 | H33: =IF(AND(INTRO!$E$37="Non endémique",INTRO!$E$41="Non endémique"),0,COUNTRY_INFO!R33) -> 0 | I33: =IF(INTRO!$E$39="Non endémique",IF($G33=1,DEC!I33,0),IF($G33=1,IVM!G33,0)) -> 194542 | K33: =IF($J33="ALB", IF(INTRO!$E$39="Non endémique",IF($H33<>0,$D33*($H33-$G33),0),$D33*$H33), 0) -> 0 | L33: 0 | N33: 0 | O33: =IF($J33="MBD", IF(INTRO!$E$39="Non endémique",IF($H33<>0,$D33*($H33-$G33),0),$D33*$H33),0) -> 0 | P33: 0 | R33: 0 | T33: 194542 | U33: 973 | W33: 0 | X33: 0 | Z33: 0 | AA33: 0
A34: =IF(AND(INTRO!$E$37="Non endémique",INTRO!$E$41="Non endémique")," ",IF(COUNTRY_INFO!A34=0," ",COUNTRY_INFO!A34)) -> Niger | B34: =IF(AND(INTRO!$E$37="Non endémique",INTRO!$E$41="Non endémique")," ",IF(COUNTRY_INFO!B34=0," ",COUNTRY_INFO!B34)) -> Maradi | C34: =IF(AND(INTRO!$E$37="Non endémique",INTRO!$E$41="Non endémique")," ",IF(COUNTRY_INFO!C34=0," ",COUNTRY_INFO!C34)) -> Guidan Roumdji | D34: =IF(AND(INTRO!$E$37="Non endémique",INTRO!$E$41="Non endémique"),0,IF(AND(OR(COUNTRY_INFO!$H34=0,COUNTRY_INFO!$H34=4,COUNTRY_INFO!$H34=99),OR(COUNTRY_INFO!$J34=0,COUNTRY_INFO!$J34=4)),0,COUNTRY_INFO!$E34)) -> 142797 | E34: =IF(AND(INTRO!$E$37="Non endémique",INTRO!$E$41="Non endémique"),0,IF(AND(OR(COUNTRY_INFO!$H34=0,COUNTRY_INFO!$H34=4,COUNTRY_INFO!$H34=99),OR(COUNTRY_INFO!$J34=0,COUNTRY_INFO!$J34=4)),0,COUNTRY_INFO!$F34)) -> 237995 | F34: 380792 | G34: =IF(AND(INTRO!$E$37="Non endémique",INTRO!$E$41="Non endémique"),0,COUNTRY_INFO!P34) -> 0 | H34: =IF(AND(INTRO!$E$37="Non endémique",INTRO!$E$41="Non endémique"),0,COUNTRY_INFO!R34) -> 0 | I34: =IF(INTRO!$E$39="Non endémique",IF($G34=1,DEC!I34,0),IF($G34=1,IVM!G34,0)) -> 0 | K34: =IF($J34="ALB", IF(INTRO!$E$39="Non endémique",IF($H34<>0,$D34*($H34-$G34),0),$D34*$H34), 0) -> 0 | L34: 0 | N34: 0 | O34: =IF($J34="MBD", IF(INTRO!$E$39="Non endémique",IF($H34<>0,$D34*($H34-$G34),0),$D34*$H34),0) -> 0 | P34: 0 | R34: 0 | T34: 0 | U34: 0 | W34: 0 | X34: 0 | Z34: 0 | AA34: 0
A35: =IF(AND(INTRO!$E$37="Non endémique",INTRO!$E$41="Non endémique")," ",IF(COUNTRY_INFO!A35=0," ",COUNTRY_INFO!A35)) -> Niger | B35: =IF(AND(INTRO!$E$37="Non endémique",INTRO!$E$41="Non endémique")," ",IF(COUNTRY_INFO!B35=0," ",COUNTRY_INFO!B35)) -> Maradi | C35: =IF(AND(INTRO!$E$37="Non endémique",INTRO!$E$41="Non endémique")," ",IF(COUNTRY_INFO!C35=0," ",COUNTRY_INFO!C35)) -> Madarounfa | D35: =IF(AND(INTRO!$E$37="Non endémique",INTRO!$E$41="Non endémique"),0,IF(AND(OR(COUNTRY_INFO!$H35=0,COUNTRY_INFO!$H35=4,COUNTRY_INFO!$H35=99),OR(COUNTRY_INFO!$J35=0,COUNTRY_INFO!$J35=4)),0,COUNTRY_INFO!$E35)) -> 122387 | E35: =IF(AND(INTRO!$E$37="Non endémique",INTRO!$E$41="Non endémique"),0,IF(AND(OR(COUNTRY_INFO!$H35=0,COUNTRY_INFO!$H35=4,COUNTRY_INFO!$H35=99),OR(COUNTRY_INFO!$J35=0,COUNTRY_INFO!$J35=4)),0,COUNTRY_INFO!$F35)) -> 203978 | F35: 326365 | G35: =IF(AND(INTRO!$E$37="Non endémique",INTRO!$E$41="Non endémique"),0,COUNTRY_INFO!P35) -> 1 | H35: =IF(AND(INTRO!$E$37="Non endémique",INTRO!$E$41="Non endémique"),0,COUNTRY_INFO!R35) -> 0 | I35: =IF(INTRO!$E$39="Non endémique",IF($G35=1,DEC!I35,0),IF($G35=1,IVM!G35,0)) -> 543942 | K35: =IF($J35="ALB", IF(INTRO!$E$39="Non endémique",IF($H35<>0,$D35*($H35-$G35),0),$D35*$H35), 0) -> 0 | L35: 0 | N35: 0 | O35: =IF($J35="MBD", IF(INTRO!$E$39="Non endémique",IF($H35<>0,$D35*($H35-$G35),0),$D35*$H35),0) -> 0 | P35: 0 | R35: 0 | T35: 543942 | U35: 2720 | W35: 0 | X35: 0 | Z35: 0 | AA35: 0
A36: =IF(AND(INTRO!$E$37="Non endémique",INTRO!$E$41="Non endémique")," ",IF(COUNTRY_INFO!A36=0," ",COUNTRY_INFO!A36)) -> Niger | B36: =IF(AND(INTRO!$E$37="Non endémique",INTRO!$E$41="Non endémique")," ",IF(COUNTRY_INFO!B36=0," ",COUNTRY_INFO!B36)) -> Maradi | C36: =IF(AND(INTRO!$E$37="Non endémique",INTRO!$E$41="Non endémique")," ",IF(COUNTRY_INFO!C36=0," ",COUNTRY_INFO!C36)) -> Maradi commune | D36: =IF(AND(INTRO!$E$37="Non endémique",INTRO!$E$41="Non endémique"),0,IF(AND(OR(COUNTRY_INFO!$H36=0,COUNTRY_INFO!$H36=4,COUNTRY_INFO!$H36=99),OR(COUNTRY_INFO!$J36=0,COUNTRY_INFO!$J36=4)),0,COUNTRY_INFO!$E36)) -> 72868 | E36: =IF(AND(INTRO!$E$37="Non endémique",INTRO!$E$41="Non endémique"),0,IF(AND(OR(COUNTRY_INFO!$H36=0,COUNTRY_INFO!$H36=4,COUNTRY_INFO!$H36=99),OR(COUNTRY_INFO!$J36=0,COUNTRY_INFO!$J36=4)),0,COUNTRY_INFO!$F36)) -> 121447 | F36: 194315 | G36: =IF(AND(INTRO!$E$37="Non endémique",INTRO!$E$41="Non endémique"),0,COUNTRY_INFO!P36) -> 0 | H36: =IF(AND(INTRO!$E$37="Non endémique",INTRO!$E$41="Non endémique"),0,COUNTRY_INFO!R36) -> 0 | I36: =IF(INTRO!$E$39="Non endémique",IF($G36=1,DEC!I36,0),IF($G36=1,IVM!G36,0)) -> 0 | K36: =IF($J36="ALB", IF(INTRO!$E$39="Non endémique",IF($H36<>0,$D36*($H36-$G36),0),$D36*$H36), 0) -> 0 | L36: 0 | N36: 0 | O36: =IF($J36="MBD", IF(INTRO!$E$39="Non endémique",IF($H36<>0,$D36*($H36-$G36),0),$D36*$H36),0) -> 0 | P36: 0 | R36: 0 | T36: 0 | U36: 0 | W36: 0 | X36: 0 | Z36: 0 | AA36: 0
A37: =IF(AND(INTRO!$E$37="Non endémique",INTRO!$E$41="Non endémique")," ",IF(COUNTRY_INFO!A37=0," ",COUNTRY_INFO!A37)) -> Niger | B37: =IF(AND(INTRO!$E$37="Non endémique",INTRO!$E$41="Non endémique")," ",IF(COUNTRY_INFO!B37=0," ",COUNTRY_INFO!B37)) -> Maradi | C37: =IF(AND(INTRO!$E$37="Non endémique",INTRO!$E$41="Non endémique")," ",IF(COUNTRY_INFO!C37=0," ",COUNTRY_INFO!C37)) -> Mayahi | D37: =IF(AND(INTRO!$E$37="Non endémique",INTRO!$E$41="Non endémique"),0,IF(AND(OR(COUNTRY_INFO!$H37=0,COUNTRY_INFO!$H37=4,COUNTRY_INFO!$H37=99),OR(COUNTRY_INFO!$J37=0,COUNTRY_INFO!$J37=4)),0,COUNTRY_INFO!$E37)) -> 151923 | E37: =IF(AND(INTRO!$E$37="Non endémique",INTRO!$E$41="Non endémique"),0,IF(AND(OR(COUNTRY_INFO!$H37=0,COUNTRY_INFO!$H37=4,COUNTRY_INFO!$H37=99),OR(COUNTRY_INFO!$J37=0,COUNTRY_INFO!$J37=4)),0,COUNTRY_INFO!$F37)) -> 253204 | F37: 405127 | G37: =IF(AND(INTRO!$E$37="Non endémique",INTRO!$E$41="Non endémique"),0,COUNTRY_INFO!P37) -> 1 | H37: =IF(AND(INTRO!$E$37="Non endémique",INTRO!$E$41="Non endémique"),0,COUNTRY_INFO!R37) -> 0 | I37: =IF(INTRO!$E$39="Non endémique",IF($G37=1,DEC!I37,0),IF($G37=1,IVM!G37,0)) -> 675211 | K37: =IF($J37="ALB", IF(INTRO!$E$39="Non endémique",IF($H37<>0,$D37*($H37-$G37),0),$D37*$H37), 0) -> 0 | L37: 0 | N37: 0 | O37: =IF($J37="MBD", IF(INTRO!$E$39="Non endémique",IF($H37<>0,$D37*($H37-$G37),0),$D37*$H37),0) -> 0 | P37: 0 | R37: 0 | T37: 675211 | U37: 3377 | W37: 0 | X37: 0 | Z37: 0 | AA37: 0
A38: =IF(AND(INTRO!$E$37="Non endémique",INTRO!$E$41="Non endémique")," ",IF(COUNTRY_INFO!A38=0," ",COUNTRY_INFO!A38)) -> Niger | B38: =IF(AND(INTRO!$E$37="Non endémique",INTRO!$E$41="Non endémique")," ",IF(COUNTRY_INFO!B38=0," ",COUNTRY_INFO!B38)) -> Maradi | C38: =IF(AND(INTRO!$E$37="Non endémique",INTRO!$E$41="Non endémique")," ",IF(COUNTRY_INFO!C38=0," ",COUNTRY_INFO!C38)) -> Tessaoua | D38: =IF(AND(INTRO!$E$37="Non endémique",INTRO!$E$41="Non endémique"),0,IF(AND(OR(COUNTRY_INFO!$H38=0,COUNTRY_INFO!$H38=4,COUNTRY_INFO!$H38=99),OR(COUNTRY_INFO!$J38=0,COUNTRY_INFO!$J38=4)),0,COUNTRY_INFO!$E38)) -> 140652 | E38: =IF(AND(INTRO!$E$37="Non endémique",INTRO!$E$41="Non endémique"),0,IF(AND(OR(COUNTRY_INFO!$H38=0,COUNTRY_INFO!$H38=4,COUNTRY_INFO!$H38=99),OR(COUNTRY_INFO!$J38=0,COUNTRY_INFO!$J38=4)),0,COUNTRY_INFO!$F38)) -> 234421 | F38: 375073 | G38: =IF(AND(INTRO!$E$37="Non endémique",INTRO!$E$41="Non endémique"),0,COUNTRY_INFO!P38) -> 1 | H38: =IF(AND(INTRO!$E$37="Non endémique",INTRO!$E$41="Non endémique"),0,COUNTRY_INFO!R38) -> 0 | I38: =IF(INTRO!$E$39="Non endémique",IF($G38=1,DEC!I38,0),IF($G38=1,IVM!G38,0)) -> 625122 | K38: =IF($J38="ALB", IF(INTRO!$E$39="Non endémique",IF($H38<>0,$D38*($H38-$G38),0),$D38*$H38), 0) -> 0 | L38: 0 | N38: 0 | O38: =IF($J38="MBD", IF(INTRO!$E$39="Non endémique",IF($H38<>0,$D38*($H38-$G38),0),$D38*$H38),0) -> 0 | P38: 0 | R38: 0 | T38: 625122 | U38: 3126 | W38: 0 | X38: 0 | Z38: 0 | AA38: 0
A39: =IF(AND(INTRO!$E$37="Non endémique",INTRO!$E$41="Non endémique")," ",IF(COUNTRY_INFO!A39=0," ",COUNTRY_INFO!A39)) -> Niger | B39: =IF(AND(INTRO!$E$37="Non endémique",INTRO!$E$41="Non endémique")," ",IF(COUNTRY_INFO!B39=0," ",COUNTRY_INFO!B39)) -> Tahoua | C39: =IF(AND(INTRO!$E$37="Non endémique",INTRO!$E$41="Non endémique")," ",IF(COUNTRY_INFO!C39=0," ",COUNTRY_INFO!C39)) -> Abalak | D39: =IF(AND(INTRO!$E$37="Non endémique",INTRO!$E$41="Non endémique"),0,IF(AND(OR(COUNTRY_INFO!$H39=0,COUNTRY_INFO!$H39=4,COUNTRY_INFO!$H39=99),OR(COUNTRY_INFO!$J39=0,COUNTRY_INFO!$J39=4)),0,COUNTRY_INFO!$E39)) -> 0 | E39: =IF(AND(INTRO!$E$37="Non endémique",INTRO!$E$41="Non endémique"),0,IF(AND(OR(COUNTRY_INFO!$H39=0,COUNTRY_INFO!$H39=4,COUNTRY_INFO!$H39=99),OR(COUNTRY_INFO!$J39=0,COUNTRY_INFO!$J39=4)),0,COUNTRY_INFO!$F39)) -> 0 | F39: 0 | G39: =IF(AND(INTRO!$E$37="Non endémique",INTRO!$E$41="Non endémique"),0,COUNTRY_INFO!P39) -> 0 | H39: =IF(AND(INTRO!$E$37="Non endémique",INTRO!$E$41="Non endémique"),0,COUNTRY_INFO!R39) -> 0 | I39: =IF(INTRO!$E$39="Non endémique",IF($G39=1,DEC!I39,0),IF($G39=1,IVM!G39,0)) -> 0 | K39: =IF($J39="ALB", IF(INTRO!$E$39="Non endémique",IF($H39<>0,$D39*($H39-$G39),0),$D39*$H39), 0) -> 0 | L39: 0 | N39: 0 | O39: =IF($J39="MBD", IF(INTRO!$E$39="Non endémique",IF($H39<>0,$D39*($H39-$G39),0),$D39*$H39),0) -> 0 | P39: 0 | R39: 0 | T39: 0 | U39: 0 | W39: 0 | X39: 0 | Z39: 0 | AA39: 0
A40: =IF(AND(INTRO!$E$37="Non endémique",INTRO!$E$41="Non endémique")," ",IF(COUNTRY_INFO!A40=0," ",COUNTRY_INFO!A40)) -> Niger | B40: =IF(AND(INTRO!$E$37="Non endémique",INTRO!$E$41="Non endémique")," ",IF(COUNTRY_INFO!B40=0," ",COUNTRY_INFO!B40)) -> Tahoua | C40: =IF(AND(INTRO!$E$37="Non endémique",INTRO!$E$41="Non endémique")," ",IF(COUNTRY_INFO!C40=0," ",COUNTRY_INFO!C40)) -> Bagaroua | D40: =IF(AND(INTRO!$E$37="Non endémique",INTRO!$E$41="Non endémique"),0,IF(AND(OR(COUNTRY_INFO!$H40=0,COUNTRY_INFO!$H40=4,COUNTRY_INFO!$H40=99),OR(COUNTRY_INFO!$J40=0,COUNTRY_INFO!$J40=4)),0,COUNTRY_INFO!$E40)) -> 0 | E40: =IF(AND(INTRO!$E$37="Non endémique",INTRO!$E$41="Non endémique"),0,IF(AND(OR(COUNTRY_INFO!$H40=0,COUNTRY_INFO!$H40=4,COUNTRY_INFO!$H40=99),OR(COUNTRY_INFO!$J40=0,COUNTRY_INFO!$J40=4)),0,COUNTRY_INFO!$F40)) -> 0 | F40: 0 | G40: =IF(AND(INTRO!$E$37="Non endémique",INTRO!$E$41="Non endémique"),0,COUNTRY_INFO!P40) -> 0 | H40: =IF(AND(INTRO!$E$37="Non endémique",INTRO!$E$41="Non endémique"),0,COUNTRY_INFO!R40) -> 0 | I40: =IF(INTRO!$E$39="Non endémique",IF($G40=1,DEC!I40,0),IF($G40=1,IVM!G40,0)) -> 0 | K40: =IF($J40="ALB", IF(INTRO!$E$39="Non endémique",IF($H40<>0,$D40*($H40-$G40),0),$D40*$H40), 0) -> 0 | L40: 0 | N40: 0 | O40: =IF($J40="MBD", IF(INTRO!$E$39="Non endémique",IF($H40<>0,$D40*($H40-$G40),0),$D40*$H40),0) -> 0 | P40: 0 | R40: 0 | T40: 0 | U40: 0 | W40: 0 | X40: 0 | Z40: 0 | AA40: 0
A41: =IF(AND(INTRO!$E$37="Non endémique",INTRO!$E$41="Non endémique")," ",IF(COUNTRY_INFO!A41=0," ",COUNTRY_INFO!A41)) -> Niger | B41: =IF(AND(INTRO!$E$37="Non endémique",INTRO!$E$41="Non endémique")," ",IF(COUNTRY_INFO!B41=0," ",COUNTRY_INFO!B41)) -> Tahoua | C41: =IF(AND(INTRO!$E$37="Non endémique",INTRO!$E$41="Non endémique")," ",IF(COUNTRY_INFO!C41=0," ",COUNTRY_INFO!C41)) -> Birni N'Konni | D41: =IF(AND(INTRO!$E$37="Non endémique",INTRO!$E$41="Non endémique"),0,IF(AND(OR(COUNTRY_INFO!$H41=0,COUNTRY_INFO!$H41=4,COUNTRY_INFO!$H41=99),OR(COUNTRY_INFO!$J41=0,COUNTRY_INFO!$J41=4)),0,COUNTRY_INFO!$E41)) -> 0 | E41: =IF(AND(INTRO!$E$37="Non endémique",INTRO!$E$41="Non endémique"),0,IF(AND(OR(COUNTRY_INFO!$H41=0,COUNTRY_INFO!$H41=4,COUNTRY_INFO!$H41=99),OR(COUNTRY_INFO!$J41=0,COUNTRY_INFO!$J41=4)),0,COUNTRY_INFO!$F41)) -> 0 | F41: 0 | G41: =IF(AND(INTRO!$E$37="Non endémique",INTRO!$E$41="Non endémique"),0,COUNTRY_INFO!P41) -> 0 | H41: =IF(AND(INTRO!$E$37="Non endémique",INTRO!$E$41="Non endémique"),0,COUNTRY_INFO!R41) -> 0 | I41: =IF(INTRO!$E$39="Non endémique",IF($G41=1,DEC!I41,0),IF($G41=1,IVM!G41,0)) -> 0 | K41: =IF($J41="ALB", IF(INTRO!$E$39="Non endémique",IF($H41<>0,$D41*($H41-$G41),0),$D41*$H41), 0) -> 0 | L41: 0 | N41: 0 | O41: =IF($J41="MBD", IF(INTRO!$E$39="Non endémique",IF($H41<>0,$D41*($H41-$G41),0),$D41*$H41),0) -> 0 | P41: 0 | R41: 0 | T41: 0 | U41: 0 | W41: 0 | X41: 0 | Z41: 0 | AA41: 0
A42: =IF(AND(INTRO!$E$37="Non endémique",INTRO!$E$41="Non endémique")," ",IF(COUNTRY_INFO!A42=0," ",COUNTRY_INFO!A42)) -> Niger | B42: =IF(AND(INTRO!$E$37="Non endémique",INTRO!$E$41="Non endémique")," ",IF(COUNTRY_INFO!B42=0," ",COUNTRY_INFO!B42)) -> Tahoua | C42: =IF(AND(INTRO!$E$37="Non endémique",INTRO!$E$41="Non endémique")," ",IF(COUNTRY_INFO!C42=0," ",COUNTRY_INFO!C42)) -> Bouza | D42: =IF(AND(INTRO!$E$37="Non endémique",INTRO!$E$41="Non endémique"),0,IF(AND(OR(COUNTRY_INFO!$H42=0,COUNTRY_INFO!$H42=4,COUNTRY_INFO!$H42=99),OR(COUNTRY_INFO!$J42=0,COUNTRY_INFO!$J42=4)),0,COUNTRY_INFO!$E42)) -> 0 | E42: =IF(AND(INTRO!$E$37="Non endémique",INTRO!$E$41="Non endémique"),0,IF(AND(OR(COUNTRY_INFO!$H42=0,COUNTRY_INFO!$H42=4,COUNTRY_INFO!$H42=99),OR(COUNTRY_INFO!$J42=0,COUNTRY_INFO!$J42=4)),0,COUNTRY_INFO!$F42)) -> 0 | F42: 0 | G42: =IF(AND(INTRO!$E$37="Non endémique",INTRO!$E$41="Non endémique"),0,COUNTRY_INFO!P42) -> 0 | H42: =IF(AND(INTRO!$E$37="Non endémique",INTRO!$E$41="Non endémique"),0,COUNTRY_INFO!R42) -> 0 | I42: =IF(INTRO!$E$39="Non endémique",IF($G42=1,DEC!I42,0),IF($G42=1,IVM!G42,0)) -> 0 | K42: =IF($J42="ALB", IF(INTRO!$E$39="Non endémique",IF($H42<>0,$D42*($H42-$G42),0),$D42*$H42), 0) -> 0 | L42: 0 | N42: 0 | O42: =IF($J42="MBD", IF(INTRO!$E$39="Non endémique",IF($H42<>0,$D42*($H42-$G42),0),$D42*$H42),0) -> 0 | P42: 0 | R42: 0 | T42: 0 | U42: 0 | W42: 0 | X42: 0 | Z42: 0 | AA42: 0
A43: =IF(AND(INTRO!$E$37="Non endémique",INTRO!$E$41="Non endémique")," ",IF(COUNTRY_INFO!A43=0," ",COUNTRY_INFO!A43)) -> Niger | B43: =IF(AND(INTRO!$E$37="Non endémique",INTRO!$E$41="Non endémique")," ",IF(COUNTRY_INFO!B43=0," ",COUNTRY_INFO!B43)) -> Tahoua | C43: =IF(AND(INTRO!$E$37="Non endémique",INTRO!$E$41="Non endémique")," ",IF(COUNTRY_INFO!C43=0," ",COUNTRY_INFO!C43)) -> Illéla | D43: =IF(AND(INTRO!$E$37="Non endémique",INTRO!$E$41="Non endémique"),0,IF(AND(OR(COUNTRY_INFO!$H43=0,COUNTRY_INFO!$H43=4,COUNTRY_INFO!$H43=99),OR(COUNTRY_INFO!$J43=0,COUNTRY_INFO!$J43=4)),0,COUNTRY_INFO!$E43)) -> 0 | E43: =IF(AND(INTRO!$E$37="Non endémique",INTRO!$E$41="Non endémique"),0,IF(AND(OR(COUNTRY_INFO!$H43=0,COUNTRY_INFO!$H43=4,COUNTRY_INFO!$H43=99),OR(COUNTRY_INFO!$J43=0,COUNTRY_INFO!$J43=4)),0,COUNTRY_INFO!$F43)) -> 0 | F43: 0 | G43: =IF(AND(INTRO!$E$37="Non endémique",INTRO!$E$41="Non endémique"),0,COUNTRY_INFO!P43) -> 0 | H43: =IF(AND(INTRO!$E$37="Non endémique",INTRO!$E$41="Non endémique"),0,COUNTRY_INFO!R43) -> 0 | I43: =IF(INTRO!$E$39="Non endémique",IF($G43=1,DEC!I43,0),IF($G43=1,IVM!G43,0)) -> 0 | K43: =IF($J43="ALB", IF(INTRO!$E$39="Non endémique",IF($H43<>0,$D43*($H43-$G43),0),$D43*$H43), 0) -> 0 | L43: 0 | N43: 0 | O43: =IF($J43="MBD", IF(INTRO!$E$39="Non endémique",IF($H43<>0,$D43*($H43-$G43),0),$D43*$H43),0) -> 0 | P43: 0 | R43: 0 | T43: 0 | U43: 0 | W43: 0 | X43: 0 | Z43: 0 | AA43: 0
A44: =IF(AND(INTRO!$E$37="Non endémique",INTRO!$E$41="Non endémique")," ",IF(COUNTRY_INFO!A44=0," ",COUNTRY_INFO!A44)) -> Niger | B44: =IF(AND(INTRO!$E$37="Non endémique",INTRO!$E$41="Non endémique")," ",IF(COUNTRY_INFO!B44=0," ",COUNTRY_INFO!B44)) -> Tahoua | C44: =IF(AND(INTRO!$E$37="Non endémique",INTRO!$E$41="Non endémique")," ",IF(COUNTRY_INFO!C44=0," ",COUNTRY_INFO!C44)) -> Keita | D44: =IF(AND(INTRO!$E$37="Non endémique",INTRO!$E$41="Non endémique"),0,IF(AND(OR(COUNTRY_INFO!$H44=0,COUNTRY_INFO!$H44=4,COUNTRY_INFO!$H44=99),OR(COUNTRY_INFO!$J44=0,COUNTRY_INFO!$J44=4)),0,COUNTRY_INFO!$E44)) -> 0 | E44: =IF(AND(INTRO!$E$37="Non endémique",INTRO!$E$41="Non endémique"),0,IF(AND(OR(COUNTRY_INFO!$H44=0,COUNTRY_INFO!$H44=4,COUNTRY_INFO!$H44=99),OR(COUNTRY_INFO!$J44=0,COUNTRY_INFO!$J44=4)),0,COUNTRY_INFO!$F44)) -> 0 | F44: 0 | G44: =IF(AND(INTRO!$E$37="Non endémique",INTRO!$E$41="Non endémique"),0,COUNTRY_INFO!P44) -> 0 | H44: =IF(AND(INTRO!$E$37="Non endémique",INTRO!$E$41="Non endémique"),0,COUNTRY_INFO!R44) -> 0 | I44: =IF(INTRO!$E$39="Non endémique",IF($G44=1,DEC!I44,0),IF($G44=1,IVM!G44,0)) -> 0 | K44: =IF($J44="ALB", IF(INTRO!$E$39="Non endémique",IF($H44<>0,$D44*($H44-$G44),0),$D44*$H44), 0) -> 0 | L44: 0 | N44: 0 | O44: =IF($J44="MBD", IF(INTRO!$E$39="Non endémique",IF($H44<>0,$D44*($H44-$G44),0),$D44*$H44),0) -> 0 | P44: 0 | R44: 0 | T44: 0 | U44: 0 | W44: 0 | X44: 0 | Z44: 0 | AA44: 0
A45: =IF(AND(INTRO!$E$37="Non endémique",INTRO!$E$41="Non endémique")," ",IF(COUNTRY_INFO!A45=0," ",COUNTRY_INFO!A45)) -> Niger | B45: =IF(AND(INTRO!$E$37="Non endémique",INTRO!$E$41="Non endémique")," ",IF(COUNTRY_INFO!B45=0," ",COUNTRY_INFO!B45)) -> Tahoua | C45: =IF(AND(INTRO!$E$37="Non endémique",INTRO!$E$41="Non endémique")," ",IF(COUNTRY_INFO!C45=0," ",COUNTRY_INFO!C45)) -> Madaoua | D45: =IF(AND(INTRO!$E$37="Non endémique",INTRO!$E$41="Non endémique"),0,IF(AND(OR(COUNTRY_INFO!$H45=0,COUNTRY_INFO!$H45=4,COUNTRY_INFO!$H45=99),OR(COUNTRY_INFO!$J45=0,COUNTRY_INFO!$J45=4)),0,COUNTRY_INFO!$E45)) -> 0 | E45: =IF(AND(INTRO!$E$37="Non endémique",INTRO!$E$41="Non endémique"),0,IF(AND(OR(COUNTRY_INFO!$H45=0,COUNTRY_INFO!$H45=4,COUNTRY_INFO!$H45=99),OR(COUNTRY_INFO!$J45=0,COUNTRY_INFO!$J45=4)),0,COUNTRY_INFO!$F45)) -> 0 | F45: 0 | G45: =IF(AND(INTRO!$E$37="Non endémique",INTRO!$E$41="Non endémique"),0,COUNTRY_INFO!P45) -> 0 | H45: =IF(AND(INTRO!$E$37="Non endémique",INTRO!$E$41="Non endémique"),0,COUNTRY_INFO!R45) -> 0 | I45: =IF(INTRO!$E$39="Non endémique",IF($G45=1,DEC!I45,0),IF($G45=1,IVM!G45,0)) -> 0 | K45: =IF($J45="ALB", IF(INTRO!$E$39="Non endémique",IF($H45<>0,$D45*($H45-$G45),0),$D45*$H45), 0) -> 0 | L45: 0 | N45: 0 | O45: =IF($J45="MBD", IF(INTRO!$E$39="Non endémique",IF($H45<>0,$D45*($H45-$G45),0),$D45*$H45),0) -> 0 | P45: 0 | R45: 0 | T45: 0 | U45: 0 | W45: 0 | X45: 0 | Z45: 0 | AA45: 0
A46: =IF(AND(INTRO!$E$37="Non endémique",INTRO!$E$41="Non endémique")," ",IF(COUNTRY_INFO!A46=0," ",COUNTRY_INFO!A46)) -> Niger | B46: =IF(AND(INTRO!$E$37="Non endémique",INTRO!$E$41="Non endémique")," ",IF(COUNTRY_INFO!B46=0," ",COUNTRY_INFO!B46)) -> Tahoua | C46: =IF(AND(INTRO!$E$37="Non endémique",INTRO!$E$41="Non endémique")," ",IF(COUNTRY_INFO!C46=0," ",COUNTRY_INFO!C46)) -> Malbaza | D46: =IF(AND(INTRO!$E$37="Non endémique",INTRO!$E$41="Non endémique"),0,IF(AND(OR(COUNTRY_INFO!$H46=0,COUNTRY_INFO!$H46=4,COUNTRY_INFO!$H46=99),OR(COUNTRY_INFO!$J46=0,COUNTRY_INFO!$J46=4)),0,COUNTRY_INFO!$E46)) -> 60037 | E46: =IF(AND(INTRO!$E$37="Non endémique",INTRO!$E$41="Non endémique"),0,IF(AND(OR(COUNTRY_INFO!$H46=0,COUNTRY_INFO!$H46=4,COUNTRY_INFO!$H46=99),OR(COUNTRY_INFO!$J46=0,COUNTRY_INFO!$J46=4)),0,COUNTRY_INFO!$F46)) -> 100062 | F46: 160099 | G46: =IF(AND(INTRO!$E$37="Non endémique",INTRO!$E$41="Non endémique"),0,COUNTRY_INFO!P46) -> 0 | H46: =IF(AND(INTRO!$E$37="Non endémique",INTRO!$E$41="Non endémique"),0,COUNTRY_INFO!R46) -> 0 | I46: =IF(INTRO!$E$39="Non endémique",IF($G46=1,DEC!I46,0),IF($G46=1,IVM!G46,0)) -> 0 | K46: =IF($J46="ALB", IF(INTRO!$E$39="Non endémique",IF($H46<>0,$D46*($H46-$G46),0),$D46*$H46), 0) -> 0 | L46: 0 | N46: 0 | O46: =IF($J46="MBD", IF(INTRO!$E$39="Non endémique",IF($H46<>0,$D46*($H46-$G46),0),$D46*$H46),0) -> 0 | P46: 0 | R46: 0 | T46: 0 | U46: 0 | W46: 0 | X46: 0 | Z46: 0 | AA46: 0
A47: =IF(AND(INTRO!$E$37="Non endémique",INTRO!$E$41="Non endémique")," ",IF(COUNTRY_INFO!A47=0," ",COUNTRY_INFO!A47)) -> Niger | B47: =IF(AND(INTRO!$E$37="Non endémique",INTRO!$E$41="Non endémique")," ",IF(COUNTRY_INFO!B47=0," ",COUNTRY_INFO!B47)) -> Tahoua | C47: =IF(AND(INTRO!$E$37="Non endémique",INTRO!$E$41="Non endémique")," ",IF(COUNTRY_INFO!C47=0," ",COUNTRY_INFO!C47)) -> Tahoua commune | D47: =IF(AND(INTRO!$E$37="Non endémique",INTRO!$E$41="Non endémique"),0,IF(AND(OR(COUNTRY_INFO!$H47=0,COUNTRY_INFO!$H47=4,COUNTRY_INFO!$H47=99),OR(COUNTRY_INFO!$J47=0,COUNTRY_INFO!$J47=4)),0,COUNTRY_INFO!$E47)) -> 38619 | E47: =IF(AND(INTRO!$E$37="Non endémique",INTRO!$E$41="Non endémique"),0,IF(AND(OR(COUNTRY_INFO!$H47=0,COUNTRY_INFO!$H47=4,COUNTRY_INFO!$H47=99),OR(COUNTRY_INFO!$J47=0,COUNTRY_INFO!$J47=4)),0,COUNTRY_INFO!$F47)) -> 64366 | F47: 102985 | G47: =IF(AND(INTRO!$E$37="Non endémique",INTRO!$E$41="Non endémique"),0,COUNTRY_INFO!P47) -> 1 | H47: =IF(AND(INTRO!$E$37="Non endémique",INTRO!$E$41="Non endémique"),0,COUNTRY_INFO!R47) -> 0 | I47: =IF(INTRO!$E$39="Non endémique",IF($G47=1,DEC!I47,0),IF($G47=1,IVM!G47,0)) -> 171642 | K47: =IF($J47="ALB", IF(INTRO!$E$39="Non endémique",IF($H47<>0,$D47*($H47-$G47),0),$D47*$H47), 0) -> 0 | L47: 0 | N47: 0 | O47: =IF($J47="MBD", IF(INTRO!$E$39="Non endémique",IF($H47<>0,$D47*($H47-$G47),0),$D47*$H47),0) -> 0 | P47: 0 | R47: 0 | T47: 171642 | U47: 859 | W47: 0 | X47: 0 | Z47: 0 | AA47: 0
A48: =IF(AND(INTRO!$E$37="Non endémique",INTRO!$E$41="Non endémique")," ",IF(COUNTRY_INFO!A48=0," ",COUNTRY_INFO!A48)) -> Niger | B48: =IF(AND(INTRO!$E$37="Non endémique",INTRO!$E$41="Non endémique")," ",IF(COUNTRY_INFO!B48=0," ",COUNTRY_INFO!B48)) -> Tahoua | C48: =IF(AND(INTRO!$E$37="Non endémique",INTRO!$E$41="Non endémique")," ",IF(COUNTRY_INFO!C48=0," ",COUNTRY_INFO!C48)) -> Tahoua Departement | D48: =IF(AND(INTRO!$E$37="Non endémique",INTRO!$E$41="Non endémique"),0,IF(AND(OR(COUNTRY_INFO!$H48=0,COUNTRY_INFO!$H48=4,COUNTRY_INFO!$H48=99),OR(COUNTRY_INFO!$J48=0,COUNTRY_INFO!$J48=4)),0,COUNTRY_INFO!$E48)) -> 111551 | E48: =IF(AND(INTRO!$E$37="Non endémique",INTRO!$E$41="Non endémique"),0,IF(AND(OR(COUNTRY_INFO!$H48=0,COUNTRY_INFO!$H48=4,COUNTRY_INFO!$H48=99),OR(COUNTRY_INFO!$J48=0,COUNTRY_INFO!$J48=4)),0,COUNTRY_INFO!$F48)) -> 185919 | F48: 297470 | G48: =IF(AND(INTRO!$E$37="Non endémique",INTRO!$E$41="Non endémique"),0,COUNTRY_INFO!P48) -> 1 | H48: =IF(AND(INTRO!$E$37="Non endémique",INTRO!$E$41="Non endémique"),0,COUNTRY_INFO!R48) -> 0 | I48: =IF(INTRO!$E$39="Non endémique",IF($G48=1,DEC!I48,0),IF($G48=1,IVM!G48,0)) -> 495784 | K48: =IF($J48="ALB", IF(INTRO!$E$39="Non endémique",IF($H48<>0,$D48*($H48-$G48),0),$D48*$H48), 0) -> 0 | L48: 0 | N48: 0 | O48: =IF($J48="MBD", IF(INTRO!$E$39="Non endémique",IF($H48<>0,$D48*($H48-$G48),0),$D48*$H48),0) -> 0 | P48: 0 | R48: 0 | T48: 495784 | U48: 2479 | W48: 0 | X48: 0 | Z48: 0 | AA48: 0
A49: =IF(AND(INTRO!$E$37="Non endémique",INTRO!$E$41="Non endémique")," ",IF(COUNTRY_INFO!A49=0," ",COUNTRY_INFO!A49)) -> Niger | B49: =IF(AND(INTRO!$E$37="Non endémique",INTRO!$E$41="Non endémique")," ",IF(COUNTRY_INFO!B49=0," ",COUNTRY_INFO!B49)) -> Tahoua | C49: =IF(AND(INTRO!$E$37="Non endémique",INTRO!$E$41="Non endémique")," ",IF(COUNTRY_INFO!C49=0," ",COUNTRY_INFO!C49)) -> Tassara | D49: =IF(AND(INTRO!$E$37="Non endémique",INTRO!$E$41="Non endémique"),0,IF(AND(OR(COUNTRY_INFO!$H49=0,COUNTRY_INFO!$H49=4,COUNTRY_INFO!$H49=99),OR(COUNTRY_INFO!$J49=0,COUNTRY_INFO!$J49=4)),0,COUNTRY_INFO!$E49)) -> 6318 | E49: =IF(AND(INTRO!$E$37="Non endémique",INTRO!$E$41="Non endémique"),0,IF(AND(OR(COUNTRY_INFO!$H49=0,COUNTRY_INFO!$H49=4,COUNTRY_INFO!$H49=99),OR(COUNTRY_INFO!$J49=0,COUNTRY_INFO!$J49=4)),0,COUNTRY_INFO!$F49)) -> 10530 | F49: 16848 | G49: =IF(AND(INTRO!$E$37="Non endémique",INTRO!$E$41="Non endémique"),0,COUNTRY_INFO!P49) -> 0 | H49: =IF(AND(INTRO!$E$37="Non endémique",INTRO!$E$41="Non endémique"),0,COUNTRY_INFO!R49) -> 0 | I49: =IF(INTRO!$E$39="Non endémique",IF($G49=1,DEC!I49,0),IF($G49=1,IVM!G49,0)) -> 0 | K49: =IF($J49="ALB", IF(INTRO!$E$39="Non endémique",IF($H49<>0,$D49*($H49-$G49),0),$D49*$H49), 0) -> 0 | L49: 0 | N49: 0 | O49: =IF($J49="MBD", IF(INTRO!$E$39="Non endémique",IF($H49<>0,$D49*($H49-$G49),0),$D49*$H49),0) -> 0 | P49: 0 | R49: 0 | T49: 0 | U49: 0 | W49: 0 | X49: 0 | Z49: 0 | AA49: 0
A50: =IF(AND(INTRO!$E$37="Non endémique",INTRO!$E$41="Non endémique")," ",IF(COUNTRY_INFO!A50=0," ",COUNTRY_INFO!A50)) -> Niger | B50: =IF(AND(INTRO!$E$37="Non endémique",INTRO!$E$41="Non endémique")," ",IF(COUNTRY_INFO!B50=0," ",COUNTRY_INFO!B50)) -> Tahoua | C50: =IF(AND(INTRO!$E$37="Non endémique",INTRO!$E$41="Non endémique")," ",IF(COUNTRY_INFO!C50=0," ",COUNTRY_INFO!C50)) -> Tchintabaraden | D50: =IF(AND(INTRO!$E$37="Non endémique",INTRO!$E$41="Non endémique"),0,IF(AND(OR(COUNTRY_INFO!$H50=0,COUNTRY_INFO!$H50=4,COUNTRY_INFO!$H50=99),OR(COUNTRY_INFO!$J50=0,COUNTRY_INFO!$J50=4)),0,COUNTRY_INFO!$E50)) -> 37480 | E50: =IF(AND(INTRO!$E$37="Non endémique",INTRO!$E$41="Non endémique"),0,IF(AND(OR(COUNTRY_INFO!$H50=0,COUNTRY_INFO!$H50=4,COUNTRY_INFO!$H50=99),OR(COUNTRY_INFO!$J50=0,COUNTRY_INFO!$J50=4)),0,COUNTRY_INFO!$F50)) -> 62466 | F50: 99946 | G50: =IF(AND(INTRO!$E$37="Non endémique",INTRO!$E$41="Non endémique"),0,COUNTRY_INFO!P50) -> 0 | H50: =IF(AND(INTRO!$E$37="Non endémique",INTRO!$E$41="Non endémique"),0,COUNTRY_INFO!R50) -> 0 | I50: =IF(INTRO!$E$39="Non endémique",IF($G50=1,DEC!I50,0),IF($G50=1,IVM!G50,0)) -> 0 | K50: =IF($J50="ALB", IF(INTRO!$E$39="Non endémique",IF($H50<>0,$D50*($H50-$G50),0),$D50*$H50), 0) -> 0 | L50: 0 | N50: 0 | O50: =IF($J50="MBD", IF(INTRO!$E$39="Non endémique",IF($H50<>0,$D50*($H50-$G50),0),$D50*$H50),0) -> 0 | P50: 0 | R50: 0 | T50: 0 | U50: 0 | W50: 0 | X50: 0 | Z50: 0 | AA50: 0
A51: =IF(AND(INTRO!$E$37="Non endémique",INTRO!$E$41="Non endémique")," ",IF(COUNTRY_INFO!A51=0," ",COUNTRY_INFO!A51)) -> Niger | B51: =IF(AND(INTRO!$E$37="Non endémique",INTRO!$E$41="Non endémique")," ",IF(COUNTRY_INFO!B51=0," ",COUNTRY_INFO!B51)) -> Tahoua | C51: =IF(AND(INTRO!$E$37="Non endémique",INTRO!$E$41="Non endémique")," ",IF(COUNTRY_INFO!C51=0," ",COUNTRY_INFO!C51)) -> Tillia | D51: =IF(AND(INTRO!$E$37="Non endémique",INTRO!$E$41="Non endémique"),0,IF(AND(OR(COUNTRY_INFO!$H51=0,COUNTRY_INFO!$H51=4,COUNTRY_INFO!$H51=99),OR(COUNTRY_INFO!$J51=0,COUNTRY_INFO!$J51=4)),0,COUNTRY_INFO!$E51)) -> 10073 | E51: =IF(AND(INTRO!$E$37="Non endémique",INTRO!$E$41="Non endémique"),0,IF(AND(OR(COUNTRY_INFO!$H51=0,COUNTRY_INFO!$H51=4,COUNTRY_INFO!$H51=99),OR(COUNTRY_INFO!$J51=0,COUNTRY_INFO!$J51=4)),0,COUNTRY_INFO!$F51)) -> 16789 | F51: 26862 | G51: =IF(AND(INTRO!$E$37="Non endémique",INTRO!$E$41="Non endémique"),0,COUNTRY_INFO!P51) -> 0 | H51: =IF(AND(INTRO!$E$37="Non endémique",INTRO!$E$41="Non endémique"),0,COUNTRY_INFO!R51) -> 0 | I51: =IF(INTRO!$E$39="Non endémique",IF($G51=1,DEC!I51,0),IF($G51=1,IVM!G51,0)) -> 0 | K51: =IF($J51="ALB", IF(INTRO!$E$39="Non endémique",IF($H51<>0,$D51*($H51-$G51),0),$D51*$H51), 0) -> 0 | L51: 0 | N51: 0 | O51: =IF($J51="MBD", IF(INTRO!$E$39="Non endémique",IF($H51<>0,$D51*($H51-$G51),0),$D51*$H51),0) -> 0 | P51: 0 | R51: 0 | T51: 0 | U51: 0 | W51: 0 | X51: 0 | Z51: 0 | AA51: 0
A52: =IF(AND(INTRO!$E$37="Non endémique",INTRO!$E$41="Non endémique")," ",IF(COUNTRY_INFO!A52=0," ",COUNTRY_INFO!A52)) -> Niger | B52: =IF(AND(INTRO!$E$37="Non endémique",INTRO!$E$41="Non endémique")," ",IF(COUNTRY_INFO!B52=0," ",COUNTRY_INFO!B52)) -> Tillabéri | C52: =IF(AND(INTRO!$E$37="Non endémique",INTRO!$E$41="Non endémique")," ",IF(COUNTRY_INFO!C52=0," ",COUNTRY_INFO!C52)) -> Abala | D52: =IF(AND(INTRO!$E$37="Non endémique",INTRO!$E$41="Non endémique"),0,IF(AND(OR(COUNTRY_INFO!$H52=0,COUNTRY_INFO!$H52=4,COUNTRY_INFO!$H52=99),OR(COUNTRY_INFO!$J52=0,COUNTRY_INFO!$J52=4)),0,COUNTRY_INFO!$E52)) -> 37945 | E52: =IF(AND(INTRO!$E$37="Non endémique",INTRO!$E$41="Non endémique"),0,IF(AND(OR(COUNTRY_INFO!$H52=0,COUNTRY_INFO!$H52=4,COUNTRY_INFO!$H52=99),OR(COUNTRY_INFO!$J52=0,COUNTRY_INFO!$J52=4)),0,COUNTRY_INFO!$F52)) -> 63242 | F52: 101187 | G52: =IF(AND(INTRO!$E$37="Non endémique",INTRO!$E$41="Non endémique"),0,COUNTRY_INFO!P52) -> 0 | H52: =IF(AND(INTRO!$E$37="Non endémique",INTRO!$E$41="Non endémique"),0,COUNTRY_INFO!R52) -> 0 | I52: =IF(INTRO!$E$39="Non endémique",IF($G52=1,DEC!I52,0),IF($G52=1,IVM!G52,0)) -> 0 | K52: =IF($J52="ALB", IF(INTRO!$E$39="Non endémique",IF($H52<>0,$D52*($H52-$G52),0),$D52*$H52), 0) -> 0 | L52: 0 | N52: 0 | O52: =IF($J52="MBD", IF(INTRO!$E$39="Non endémique",IF($H52<>0,$D52*($H52-$G52),0),$D52*$H52),0) -> 0 | P52: 0 | R52: 0 | T52: 0 | U52: 0 | W52: 0 | X52: 0 | Z52: 0 | AA52: 0
A53: =IF(AND(INTRO!$E$37="Non endémique",INTRO!$E$41="Non endémique")," ",IF(COUNTRY_INFO!A53=0," ",COUNTRY_INFO!A53)) -> Niger | B53: =IF(AND(INTRO!$E$37="Non endémique",INTRO!$E$41="Non endémique")," ",IF(COUNTRY_INFO!B53=0," ",COUNTRY_INFO!B53)) -> Tillabéri | C53: =IF(AND(INTRO!$E$37="Non endémique",INTRO!$E$41="Non endémique")," ",IF(COUNTRY_INFO!C53=0," ",COUNTRY_INFO!C53)) -> Ayerou | D53: =IF(AND(INTRO!$E$37="Non endémique",INTRO!$E$41="Non endémique"),0,IF(AND(OR(COUNTRY_INFO!$H53=0,COUNTRY_INFO!$H53=4,COUNTRY_INFO!$H53=99),OR(COUNTRY_INFO!$J53=0,COUNTRY_INFO!$J53=4)),0,COUNTRY_INFO!$E53)) -> 14998 | E53: =IF(AND(INTRO!$E$37="Non endémique",INTRO!$E$41="Non endémique"),0,IF(AND(OR(COUNTRY_INFO!$H53=0,COUNTRY_INFO!$H53=4,COUNTRY_INFO!$H53=99),OR(COUNTRY_INFO!$J53=0,COUNTRY_INFO!$J53=4)),0,COUNTRY_INFO!$F53)) -> 24997 | F53: 39995 | G53: =IF(AND(INTRO!$E$37="Non endémique",INTRO!$E$41="Non endémique"),0,COUNTRY_INFO!P53) -> 0 | H53: =IF(AND(INTRO!$E$37="Non endémique",INTRO!$E$41="Non endémique"),0,COUNTRY_INFO!R53) -> 0 | I53: =IF(INTRO!$E$39="Non endémique",IF($G53=1,DEC!I53,0),IF($G53=1,IVM!G53,0)) -> 0 | K53: =IF($J53="ALB", IF(INTRO!$E$39="Non endémique",IF($H53<>0,$D53*($H53-$G53),0),$D53*$H53), 0) -> 0 | L53: 0 | N53: 0 | O53: =IF($J53="MBD", IF(INTRO!$E$39="Non endémique",IF($H53<>0,$D53*($H53-$G53),0),$D53*$H53),0) -> 0 | P53: 0 | R53: 0 | T53: 0 | U53: 0 | W53: 0 | X53: 0 | Z53: 0 | AA53: 0
A54: =IF(AND(INTRO!$E$37="Non endémique",INTRO!$E$41="Non endémique")," ",IF(COUNTRY_INFO!A54=0," ",COUNTRY_INFO!A54)) -> Niger | B54: =IF(AND(INTRO!$E$37="Non endémique",INTRO!$E$41="Non endémique")," ",IF(COUNTRY_INFO!B54=0," ",COUNTRY_INFO!B54)) -> Tillabéri | C54: =IF(AND(INTRO!$E$37="Non endémique",INTRO!$E$41="Non endémique")," ",IF(COUNTRY_INFO!C54=0," ",COUNTRY_INFO!C54)) -> Balleyara | D54: =IF(AND(INTRO!$E$37="Non endémique",INTRO!$E$41="Non endémique"),0,IF(AND(OR(COUNTRY_INFO!$H54=0,COUNTRY_INFO!$H54=4,COUNTRY_INFO!$H54=99),OR(COUNTRY_INFO!$J54=0,COUNTRY_INFO!$J54=4)),0,COUNTRY_INFO!$E54)) -> 28175 | E54: =IF(AND(INTRO!$E$37="Non endémique",INTRO!$E$41="Non endémique"),0,IF(AND(OR(COUNTRY_INFO!$H54=0,COUNTRY_INFO!$H54=4,COUNTRY_INFO!$H54=99),OR(COUNTRY_INFO!$J54=0,COUNTRY_INFO!$J54=4)),0,COUNTRY_INFO!$F54)) -> 46958 | F54: 75133 | G54: =IF(AND(INTRO!$E$37="Non endémique",INTRO!$E$41="Non endémique"),0,COUNTRY_INFO!P54) -> 0 | H54: =IF(AND(INTRO!$E$37="Non endémique",INTRO!$E$41="Non endémique"),0,COUNTRY_INFO!R54) -> 0 | I54: =IF(INTRO!$E$39="Non endémique",IF($G54=1,DEC!I54,0),IF($G54=1,IVM!G54,0)) -> 0 | K54: =IF($J54="ALB", IF(INTRO!$E$39="Non endémique",IF($H54<>0,$D54*($H54-$G54),0),$D54*$H54), 0) -> 0 | L54: 0 | N54: 0 | O54: =IF($J54="MBD", IF(INTRO!$E$39="Non endémique",IF($H54<>0,$D54*($H54-$G54),0),$D54*$H54),0) -> 0 | P54: 0 | R54: 0 | T54: 0 | U54: 0 | W54: 0 | X54: 0 | Z54: 0 | AA54: 0
A55: =IF(AND(INTRO!$E$37="Non endémique",INTRO!$E$41="Non endémique")," ",IF(COUNTRY_INFO!A55=0," ",COUNTRY_INFO!A55)) -> Niger | B55: =IF(AND(INTRO!$E$37="Non endémique",INTRO!$E$41="Non endémique")," ",IF(COUNTRY_INFO!B55=0," ",COUNTRY_INFO!B55)) -> Tillabéri | C55: =IF(AND(INTRO!$E$37="Non endémique",INTRO!$E$41="Non endémique")," ",IF(COUNTRY_INFO!C55=0," ",COUNTRY_INFO!C55)) -> Banibangou | D55: =IF(AND(INTRO!$E$37="Non endémique",INTRO!$E$41="Non endémique"),0,IF(AND(OR(COUNTRY_INFO!$H55=0,COUNTRY_INFO!$H55=4,COUNTRY_INFO!$H55=99),OR(COUNTRY_INFO!$J55=0,COUNTRY_INFO!$J55=4)),0,COUNTRY_INFO!$E55)) -> 17607 | E55: =IF(AND(INTRO!$E$37="Non endémique",INTRO!$E$41="Non endémique"),0,IF(AND(OR(COUNTRY_INFO!$H55=0,COUNTRY_INFO!$H55=4,COUNTRY_INFO!$H55=99),OR(COUNTRY_INFO!$J55=0,COUNTRY_INFO!$J55=4)),0,COUNTRY_INFO!$F55)) -> 29344 | F55: 46951 | G55: =IF(AND(INTRO!$E$37="Non endémique",INTRO!$E$41="Non endémique"),0,COUNTRY_INFO!P55) -> 0 | H55: =IF(AND(INTRO!$E$37="Non endémique",INTRO!$E$41="Non endémique"),0,COUNTRY_INFO!R55) -> 0 | I55: =IF(INTRO!$E$39="Non endémique",IF($G55=1,DEC!I55,0),IF($G55=1,IVM!G55,0)) -> 0 | K55: =IF($J55="ALB", IF(INTRO!$E$39="Non endémique",IF($H55<>0,$D55*($H55-$G55),0),$D55*$H55), 0) -> 0 | L55: 0 | N55: 0 | O55: =IF($J55="MBD", IF(INTRO!$E$39="Non endémique",IF($H55<>0,$D55*($H55-$G55),0),$D55*$H55),0) -> 0 | P55: 0 | R55: 0 | T55: 0 | U55: 0 | W55: 0 | X55: 0 | Z55: 0 | AA55: 0
A56: =IF(AND(INTRO!$E$37="Non endémique",INTRO!$E$41="Non endémique")," ",IF(COUNTRY_INFO!A56=0," ",COUNTRY_INFO!A56)) -> Niger | B56: =IF(AND(INTRO!$E$37="Non endémique",INTRO!$E$41="Non endémique")," ",IF(COUNTRY_INFO!B56=0," ",COUNTRY_INFO!B56)) -> Tillabéri | C56: =IF(AND(INTRO!$E$37="Non endémique",INTRO!$E$41="Non endémique")," ",IF(COUNTRY_INFO!C56=0," ",COUNTRY_INFO!C56)) -> Bankilare | D56: =IF(AND(INTRO!$E$37="Non endémique",INTRO!$E$41="Non endémique"),0,IF(AND(OR(COUNTRY_INFO!$H56=0,COUNTRY_INFO!$H56=4,COUNTRY_INFO!$H56=99),OR(COUNTRY_INFO!$J56=0,COUNTRY_INFO!$J56=4)),0,COUNTRY_INFO!$E56)) -> 22325 | E56: =IF(AND(INTRO!$E$37="Non endémique",INTRO!$E$41="Non endémique"),0,IF(AND(OR(COUNTRY_INFO!$H56=0,COUNTRY_INFO!$H56=4,COUNTRY_INFO!$H56=99),OR(COUNTRY_INFO!$J56=0,COUNTRY_INFO!$J56=4)),0,COUNTRY_INFO!$F56)) -> 37209 | F56: 59534 | G56: =IF(AND(INTRO!$E$37="Non endémique",INTRO!$E$41="Non endémique"),0,COUNTRY_INFO!P56) -> 0 | H56: =IF(AND(INTRO!$E$37="Non endémique",INTRO!$E$41="Non endémique"),0,COUNTRY_INFO!R56) -> 0 | I56: =IF(INTRO!$E$39="Non endémique",IF($G56=1,DEC!I56,0),IF($G56=1,IVM!G56,0)) -> 0 | K56: =IF($J56="ALB", IF(INTRO!$E$39="Non endémique",IF($H56<>0,$D56*($H56-$G56),0),$D56*$H56), 0) -> 0 | L56: 0 | N56: 0 | O56: =IF($J56="MBD", IF(INTRO!$E$39="Non endémique",IF($H56<>0,$D56*($H56-$G56),0),$D56*$H56),0) -> 0 | P56: 0 | R56: 0 | T56: 0 | U56: 0 | W56: 0 | X56: 0 | Z56: 0 | AA56: 0
A57: =IF(AND(INTRO!$E$37="Non endémique",INTRO!$E$41="Non endémique")," ",IF(COUNTRY_INFO!A57=0," ",COUNTRY_INFO!A57)) -> Niger | B57: =IF(AND(INTRO!$E$37="Non endémique",INTRO!$E$41="Non endémique")," ",IF(COUNTRY_INFO!B57=0," ",COUNTRY_INFO!B57)) -> Tillabéri | C57: =IF(AND(INTRO!$E$37="Non endémique",INTRO!$E$41="Non endémique")," ",IF(COUNTRY_INFO!C57=0," ",COUNTRY_INFO!C57)) -> Filingué | D57: =IF(AND(INTRO!$E$37="Non endémique",INTRO!$E$41="Non endémique"),0,IF(AND(OR(COUNTRY_INFO!$H57=0,COUNTRY_INFO!$H57=4,COUNTRY_INFO!$H57=99),OR(COUNTRY_INFO!$J57=0,COUNTRY_INFO!$J57=4)),0,COUNTRY_INFO!$E57)) -> 80664 | E57: =IF(AND(INTRO!$E$37="Non endémique",INTRO!$E$41="Non endémique"),0,IF(AND(OR(COUNTRY_INFO!$H57=0,COUNTRY_INFO!$H57=4,COUNTRY_INFO!$H57=99),OR(COUNTRY_INFO!$J57=0,COUNTRY_INFO!$J57=4)),0,COUNTRY_INFO!$F57)) -> 134440 | F57: 215104 | G57: =IF(AND(INTRO!$E$37="Non endémique",INTRO!$E$41="Non endémique"),0,COUNTRY_INFO!P57) -> 0 | H57: =IF(AND(INTRO!$E$37="Non endémique",INTRO!$E$41="Non endémique"),0,COUNTRY_INFO!R57) -> 0 | I57: =IF(INTRO!$E$39="Non endémique",IF($G57=1,DEC!I57,0),IF($G57=1,IVM!G57,0)) -> 0 | K57: =IF($J57="ALB", IF(INTRO!$E$39="Non endémique",IF($H57<>0,$D57*($H57-$G57),0),$D57*$H57), 0) -> 0 | L57: 0 | N57: 0 | O57: =IF($J57="MBD", IF(INTRO!$E$39="Non endémique",IF($H57<>0,$D57*($H57-$G57),0),$D57*$H57),0) -> 0 | P57: 0 | R57: 0 | T57: 0 | U57: 0 | W57: 0 | X57: 0 | Z57: 0 | AA57: 0
A58: =IF(AND(INTRO!$E$37="Non endémique",INTRO!$E$41="Non endémique")," ",IF(COUNTRY_INFO!A58=0," ",COUNTRY_INFO!A58)) -> Niger | B58: =IF(AND(INTRO!$E$37="Non endémique",INTRO!$E$41="Non endémique")," ",IF(COUNTRY_INFO!B58=0," ",COUNTRY_INFO!B58)) -> Tillabéri | C58: =IF(AND(INTRO!$E$37="Non endémique",INTRO!$E$41="Non endémique")," ",IF(COUNTRY_INFO!C58=0," ",COUNTRY_INFO!C58)) -> Gothèye | D58: =IF(AND(INTRO!$E$37="Non endémique",INTRO!$E$41="Non endémique"),0,IF(AND(OR(COUNTRY_INFO!$H58=0,COUNTRY_INFO!$H58=4,COUNTRY_INFO!$H58=99),OR(COUNTRY_INFO!$J58=0,COUNTRY_INFO!$J58=4)),0,COUNTRY_INFO!$E58)) -> 63390 | E58: =IF(AND(INTRO!$E$37="Non endémique",INTRO!$E$41="Non endémique"),0,IF(AND(OR(COUNTRY_INFO!$H58=0,COUNTRY_INFO!$H58=4,COUNTRY_INFO!$H58=99),OR(COUNTRY_INFO!$J58=0,COUNTRY_INFO!$J58=4)),0,COUNTRY_INFO!$F58)) -> 105651 | F58: 169041 | G58: =IF(AND(INTRO!$E$37="Non endémique",INTRO!$E$41="Non endémique"),0,COUNTRY_INFO!P58) -> 0 | H58: =IF(AND(INTRO!$E$37="Non endémique",INTRO!$E$41="Non endémique"),0,COUNTRY_INFO!R58) -> 0 | I58: =IF(INTRO!$E$39="Non endémique",IF($G58=1,DEC!I58,0),IF($G58=1,IVM!G58,0)) -> 0 | K58: =IF($J58="ALB", IF(INTRO!$E$39="Non endémique",IF($H58<>0,$D58*($H58-$G58),0),$D58*$H58), 0) -> 0 | L58: 0 | N58: 0 | O58: =IF($J58="MBD", IF(INTRO!$E$39="Non endémique",IF($H58<>0,$D58*($H58-$G58),0),$D58*$H58),0) -> 0 | P58: 0 | R58: 0 | T58: 0 | U58: 0 | W58: 0 | X58: 0 | Z58: 0 | AA58: 0
A59: =IF(AND(INTRO!$E$37="Non endémique",INTRO!$E$41="Non endémique")," ",IF(COUNTRY_INFO!A59=0," ",COUNTRY_INFO!A59)) -> Niger | B59: =IF(AND(INTRO!$E$37="Non endémique",INTRO!$E$41="Non endémique")," ",IF(COUNTRY_INFO!B59=0," ",COUNTRY_INFO!B59)) -> Tillabéri | C59: =IF(AND(INTRO!$E$37="Non endémique",INTRO!$E$41="Non endémique")," ",IF(COUNTRY_INFO!C59=0," ",COUNTRY_INFO!C59)) -> Kollo | D59: =IF(AND(INTRO!$E$37="Non endémique",INTRO!$E$41="Non endémique"),0,IF(AND(OR(COUNTRY_INFO!$H59=0,COUNTRY_INFO!$H59=4,COUNTRY_INFO!$H59=99),OR(COUNTRY_INFO!$J59=0,COUNTRY_INFO!$J59=4)),0,COUNTRY_INFO!$E59)) -> 122392 | E59: =IF(AND(INTRO!$E$37="Non endémique",INTRO!$E$41="Non endémique"),0,IF(AND(OR(COUNTRY_INFO!$H59=0,COUNTRY_INFO!$H59=4,COUNTRY_INFO!$H59=99),OR(COUNTRY_INFO!$J59=0,COUNTRY_INFO!$J59=4)),0,COUNTRY_INFO!$F59)) -> 203987 | F59: 326379 | G59: =IF(AND(INTRO!$E$37="Non endémique",INTRO!$E$41="Non endémique"),0,COUNTRY_INFO!P59) -> 0 | H59: =IF(AND(INTRO!$E$37="Non endémique",INTRO!$E$41="Non endémique"),0,COUNTRY_INFO!R59) -> 0 | I59: =IF(INTRO!$E$39="Non endémique",IF($G59=1,DEC!I59,0),IF($G59=1,IVM!G59,0)) -> 0 | K59: =IF($J59="ALB", IF(INTRO!$E$39="Non endémique",IF($H59<>0,$D59*($H59-$G59),0),$D59*$H59), 0) -> 0 | L59: 0 | N59: 0 | O59: =IF($J59="MBD", IF(INTRO!$E$39="Non endémique",IF($H59<>0,$D59*($H59-$G59),0),$D59*$H59),0) -> 0 | P59: 0 | R59: 0 | T59: 0 | U59: 0 | W59: 0 | X59: 0 | Z59: 0 | AA59: 0
A60: =IF(AND(INTRO!$E$37="Non endémique",INTRO!$E$41="Non endémique")," ",IF(COUNTRY_INFO!A60=0," ",COUNTRY_INFO!A60)) -> Niger | B60: =IF(AND(INTRO!$E$37="Non endémique",INTRO!$E$41="Non endémique")," ",IF(COUNTRY_INFO!B60=0," ",COUNTRY_INFO!B60)) -> Tillabéri | C60: =IF(AND(INTRO!$E$37="Non endémique",INTRO!$E$41="Non endémique")," ",IF(COUNTRY_INFO!C60=0," ",COUNTRY_INFO!C60)) -> Ouallam | D60: =IF(AND(INTRO!$E$37="Non endémique",INTRO!$E$41="Non endémique"),0,IF(AND(OR(COUNTRY_INFO!$H60=0,COUNTRY_INFO!$H60=4,COUNTRY_INFO!$H60=99),OR(COUNTRY_INFO!$J60=0,COUNTRY_INFO!$J60=4)),0,COUNTRY_INFO!$E60)) -> 86055 | E60: =IF(AND(INTRO!$E$37="Non endémique",INTRO!$E$41="Non endémique"),0,IF(AND(OR(COUNTRY_INFO!$H60=0,COUNTRY_INFO!$H60=4,COUNTRY_INFO!$H60=99),OR(COUNTRY_INFO!$J60=0,COUNTRY_INFO!$J60=4)),0,COUNTRY_INFO!$F60)) -> 143424 | F60: 229479 | G60: =IF(AND(INTRO!$E$37="Non endémique",INTRO!$E$41="Non endémique"),0,COUNTRY_INFO!P60) -> 0 | H60: =IF(AND(INTRO!$E$37="Non endémique",INTRO!$E$41="Non endémique"),0,COUNTRY_INFO!R60) -> 0 | I60: =IF(INTRO!$E$39="Non endémique",IF($G60=1,DEC!I60,0),IF($G60=1,IVM!G60,0)) -> 0 | K60: =IF($J60="ALB", IF(INTRO!$E$39="Non endémique",IF($H60<>0,$D60*($H60-$G60),0),$D60*$H60), 0) -> 0 | L60: 0 | N60: 0 | O60: =IF($J60="MBD", IF(INTRO!$E$39="Non endémique",IF($H60<>0,$D60*($H60-$G60),0),$D60*$H60),0) -> 0 | P60: 0 | R60: 0 | T60: 0 | U60: 0 | W60: 0 | X60: 0 | Z60: 0 | AA60: 0
A61: =IF(AND(INTRO!$E$37="Non endémique",INTRO!$E$41="Non endémique")," ",IF(COUNTRY_INFO!A61=0," ",COUNTRY_INFO!A61)) -> Niger | B61: =IF(AND(INTRO!$E$37="Non endémique",INTRO!$E$41="Non endémique")," ",IF(COUNTRY_INFO!B61=0," ",COUNTRY_INFO!B61)) -> Tillabéri | C61: =IF(AND(INTRO!$E$37="Non endémique",INTRO!$E$41="Non endémique")," ",IF(COUNTRY_INFO!C61=0," ",COUNTRY_INFO!C61)) -> Say | D61: =IF(AND(INTRO!$E$37="Non endémique",INTRO!$E$41="Non endémique"),0,IF(AND(OR(COUNTRY_INFO!$H61=0,COUNTRY_INFO!$H61=4,COUNTRY_INFO!$H61=99),OR(COUNTRY_INFO!$J61=0,COUNTRY_INFO!$J61=4)),0,COUNTRY_INFO!$E61)) -> 46187 | E61: =IF(AND(INTRO!$E$37="Non endémique",INTRO!$E$41="Non endémique"),0,IF(AND(OR(COUNTRY_INFO!$H61=0,COUNTRY_INFO!$H61=4,COUNTRY_INFO!$H61=99),OR(COUNTRY_INFO!$J61=0,COUNTRY_INFO!$J61=4)),0,COUNTRY_INFO!$F61)) -> 76978 | F61: 123165 | G61: =IF(AND(INTRO!$E$37="Non endémique",INTRO!$E$41="Non endémique"),0,COUNTRY_INFO!P61) -> 0 | H61: =IF(AND(INTRO!$E$37="Non endémique",INTRO!$E$41="Non endémique"),0,COUNTRY_INFO!R61) -> 0 | I61: =IF(INTRO!$E$39="Non endémique",IF($G61=1,DEC!I61,0),IF($G61=1,IVM!G61,0)) -> 0 | K61: =IF($J61="ALB", IF(INTRO!$E$39="Non endémique",IF($H61<>0,$D61*($H61-$G61),0),$D61*$H61), 0) -> 0 | L61: 0 | N61: 0 | O61: =IF($J61="MBD", IF(INTRO!$E$39="Non endémique",IF($H61<>0,$D61*($H61-$G61),0),$D61*$H61),0) -> 0 | P61: 0 | R61: 0 | T61: 0 | U61: 0 | W61: 0 | X61: 0 | Z61: 0 | AA61: 0
A62: =IF(AND(INTRO!$E$37="Non endémique",INTRO!$E$41="Non endémique")," ",IF(COUNTRY_INFO!A62=0," ",COUNTRY_INFO!A62)) -> Niger | B62: =IF(AND(INTRO!$E$37="Non endémique",INTRO!$E$41="Non endémique")," ",IF(COUNTRY_INFO!B62=0," ",COUNTRY_INFO!B62)) -> Tillabéri | C62: =IF(AND(INTRO!$E$37="Non endémique",INTRO!$E$41="Non endémique")," ",IF(COUNTRY_INFO!C62=0," ",COUNTRY_INFO!C62)) -> Téra | D62: =IF(AND(INTRO!$E$37="Non endémique",INTRO!$E$41="Non endémique"),0,IF(AND(OR(COUNTRY_INFO!$H62=0,COUNTRY_INFO!$H62=4,COUNTRY_INFO!$H62=99),OR(COUNTRY_INFO!$J62=0,COUNTRY_INFO!$J62=4)),0,COUNTRY_INFO!$E62)) -> 88417 | E62: =IF(AND(INTRO!$E$37="Non endémique",INTRO!$E$41="Non endémique"),0,IF(AND(OR(COUNTRY_INFO!$H62=0,COUNTRY_INFO!$H62=4,COUNTRY_INFO!$H62=99),OR(COUNTRY_INFO!$J62=0,COUNTRY_INFO!$J62=4)),0,COUNTRY_INFO!$F62)) -> 147362 | F62: 235779 | G62: =IF(AND(INTRO!$E$37="Non endémique",INTRO!$E$41="Non endémique"),0,COUNTRY_INFO!P62) -> 0 | H62: =IF(AND(INTRO!$E$37="Non endémique",INTRO!$E$41="Non endémique"),0,COUNTRY_INFO!R62) -> 0 | I62: =IF(INTRO!$E$39="Non endémique",IF($G62=1,DEC!I62,0),IF($G62=1,IVM!G62,0)) -> 0 | K62: =IF($J62="ALB", IF(INTRO!$E$39="Non endémique",IF($H62<>0,$D62*($H62-$G62),0),$D62*$H62), 0) -> 0 | L62: 0 | N62: 0 | O62: =IF($J62="MBD", IF(INTRO!$E$39="Non endémique",IF($H62<>0,$D62*($H62-$G62),0),$D62*$H62),0) -> 0 | P62: 0 | R62: 0 | T62: 0 | U62: 0 | W62: 0 | X62: 0 | Z62: 0 | AA62: 0
A63: =IF(AND(INTRO!$E$37="Non endémique",INTRO!$E$41="Non endémique")," ",IF(COUNTRY_INFO!A63=0," ",COUNTRY_INFO!A63)) -> Niger | B63: =IF(AND(INTRO!$E$37="Non endémique",INTRO!$E$41="Non endémique")," ",IF(COUNTRY_INFO!B63=0," ",COUNTRY_INFO!B63)) -> Tillabéri | C63: =IF(AND(INTRO!$E$37="Non endémique",INTRO!$E$41="Non endémique")," ",IF(COUNTRY_INFO!C63=0," ",COUNTRY_INFO!C63)) -> Tillabéry | D63: =IF(AND(INTRO!$E$37="Non endémique",INTRO!$E$41="Non endémique"),0,IF(AND(OR(COUNTRY_INFO!$H63=0,COUNTRY_INFO!$H63=4,COUNTRY_INFO!$H63=99),OR(COUNTRY_INFO!$J63=0,COUNTRY_INFO!$J63=4)),0,COUNTRY_INFO!$E63)) -> 59790 | E63: =IF(AND(INTRO!$E$37="Non endémique",INTRO!$E$41="Non endémique"),0,IF(AND(OR(COUNTRY_INFO!$H63=0,COUNTRY_INFO!$H63=4,COUNTRY_INFO!$H63=99),OR(COUNTRY_INFO!$J63=0,COUNTRY_INFO!$J63=4)),0,COUNTRY_INFO!$F63)) -> 99650 | F63: 159440 | G63: =IF(AND(INTRO!$E$37="Non endémique",INTRO!$E$41="Non endémique"),0,COUNTRY_INFO!P63) -> 0 | H63: =IF(AND(INTRO!$E$37="Non endémique",INTRO!$E$41="Non endémique"),0,COUNTRY_INFO!R63) -> 0 | I63: =IF(INTRO!$E$39="Non endémique",IF($G63=1,DEC!I63,0),IF($G63=1,IVM!G63,0)) -> 0 | K63: =IF($J63="ALB", IF(INTRO!$E$39="Non endémique",IF($H63<>0,$D63*($H63-$G63),0),$D63*$H63), 0) -> 0 | L63: 0 | N63: 0 | O63: =IF($J63="MBD", IF(INTRO!$E$39="Non endémique",IF($H63<>0,$D63*($H63-$G63),0),$D63*$H63),0) -> 0 | P63: 0 | R63: 0 | T63: 0 | U63: 0 | W63: 0 | X63: 0 | Z63: 0 | AA63: 0
A64: =IF(AND(INTRO!$E$37="Non endémique",INTRO!$E$41="Non endémique")," ",IF(COUNTRY_INFO!A64=0," ",COUNTRY_INFO!A64)) -> Niger | B64: =IF(AND(INTRO!$E$37="Non endémique",INTRO!$E$41="Non endémique")," ",IF(COUNTRY_INFO!B64=0," ",COUNTRY_INFO!B64)) -> Tillabéri | C64: =IF(AND(INTRO!$E$37="Non endémique",INTRO!$E$41="Non endémique")," ",IF(COUNTRY_INFO!C64=0," ",COUNTRY_INFO!C64)) -> Torodi | D64: =IF(AND(INTRO!$E$37="Non endémique",INTRO!$E$41="Non endémique"),0,IF(AND(OR(COUNTRY_INFO!$H64=0,COUNTRY_INFO!$H64=4,COUNTRY_INFO!$H64=99),OR(COUNTRY_INFO!$J64=0,COUNTRY_INFO!$J64=4)),0,COUNTRY_INFO!$E64)) -> 48024 | E64: =IF(AND(INTRO!$E$37="Non endémique",INTRO!$E$41="Non endémique"),0,IF(AND(OR(COUNTRY_INFO!$H64=0,COUNTRY_INFO!$H64=4,COUNTRY_INFO!$H64=99),OR(COUNTRY_INFO!$J64=0,COUNTRY_INFO!$J64=4)),0,COUNTRY_INFO!$F64)) -> 80040 | F64: 128064 | G64: =IF(AND(INTRO!$E$37="Non endémique",INTRO!$E$41="Non endémique"),0,COUNTRY_INFO!P64) -> 0 | H64: =IF(AND(INTRO!$E$37="Non endémique",INTRO!$E$41="Non endémique"),0,COUNTRY_INFO!R64) -> 0 | I64: =IF(INTRO!$E$39="Non endémique",IF($G64=1,DEC!I64,0),IF($G64=1,IVM!G64,0)) -> 0 | K64: =IF($J64="ALB", IF(INTRO!$E$39="Non endémique",IF($H64<>0,$D64*($H64-$G64),0),$D64*$H64), 0) -> 0 | L64: 0 | N64: 0 | O64: =IF($J64="MBD", IF(INTRO!$E$39="Non endémique",IF($H64<>0,$D64*($H64-$G64),0),$D64*$H64),0) -> 0 | P64: 0 | R64: 0 | T64: 0 | U64: 0 | W64: 0 | X64: 0 | Z64: 0 | AA64: 0
A65: =IF(AND(INTRO!$E$37="Non endémique",INTRO!$E$41="Non endémique")," ",IF(COUNTRY_INFO!A65=0," ",COUNTRY_INFO!A65)) -> Niger | B65: =IF(AND(INTRO!$E$37="Non endémique",INTRO!$E$41="Non endémique")," ",IF(COUNTRY_INFO!B65=0," ",COUNTRY_INFO!B65)) -> Zinder | C65: =IF(AND(INTRO!$E$37="Non endémique",INTRO!$E$41="Non endémique")," ",IF(COUNTRY_INFO!C65=0," ",COUNTRY_INFO!C65)) -> Belbedji | D65: =IF(AND(INTRO!$E$37="Non endémique",INTRO!$E$41="Non endémique"),0,IF(AND(OR(COUNTRY_INFO!$H65=0,COUNTRY_INFO!$H65=4,COUNTRY_INFO!$H65=99),OR(COUNTRY_INFO!$J65=0,COUNTRY_INFO!$J65=4)),0,COUNTRY_INFO!$E65)) -> 25980 | E65: =IF(AND(INTRO!$E$37="Non endémique",INTRO!$E$41="Non endémique"),0,IF(AND(OR(COUNTRY_INFO!$H65=0,COUNTRY_INFO!$H65=4,COUNTRY_INFO!$H65=99),OR(COUNTRY_INFO!$J65=0,COUNTRY_INFO!$J65=4)),0,COUNTRY_INFO!$F65)) -> 43300 | F65: 69280 | G65: =IF(AND(INTRO!$E$37="Non endémique",INTRO!$E$41="Non endémique"),0,COUNTRY_INFO!P65) -> 0 | H65: =IF(AND(INTRO!$E$37="Non endémique",INTRO!$E$41="Non endémique"),0,COUNTRY_INFO!R65) -> 0 | I65: =IF(INTRO!$E$39="Non endémique",IF($G65=1,DEC!I65,0),IF($G65=1,IVM!G65,0)) -> 0 | K65: =IF($J65="ALB", IF(INTRO!$E$39="Non endémique",IF($H65<>0,$D65*($H65-$G65),0),$D65*$H65), 0) -> 0 | L65: 0 | N65: 0 | O65: =IF($J65="MBD", IF(INTRO!$E$39="Non endémique",IF($H65<>0,$D65*($H65-$G65),0),$D65*$H65),0) -> 0 | P65: 0 | R65: 0 | T65: 0 | U65: 0 | W65: 0 | X65: 0 | Z65: 0 | AA65: 0
A66: =IF(AND(INTRO!$E$37="Non endémique",INTRO!$E$41="Non endémique")," ",IF(COUNTRY_INFO!A66=0," ",COUNTRY_INFO!A66)) -> Niger | B66: =IF(AND(INTRO!$E$37="Non endémique",INTRO!$E$41="Non endémique")," ",IF(COUNTRY_INFO!B66=0," ",COUNTRY_INFO!B66)) -> Zinder | C66: =IF(AND(INTRO!$E$37="Non endémique",INTRO!$E$41="Non endémique")," ",IF(COUNTRY_INFO!C66=0," ",COUNTRY_INFO!C66)) -> Damagaram takaya | D66: =IF(AND(INTRO!$E$37="Non endémique",INTRO!$E$41="Non endémique"),0,IF(AND(OR(COUNTRY_INFO!$H66=0,COUNTRY_INFO!$H66=4,COUNTRY_INFO!$H66=99),OR(COUNTRY_INFO!$J66=0,COUNTRY_INFO!$J66=4)),0,COUNTRY_INFO!$E66)) -> 64961 | E66: =IF(AND(INTRO!$E$37="Non endémique",INTRO!$E$41="Non endémique"),0,IF(AND(OR(COUNTRY_INFO!$H66=0,COUNTRY_INFO!$H66=4,COUNTRY_INFO!$H66=99),OR(COUNTRY_INFO!$J66=0,COUNTRY_INFO!$J66=4)),0,COUNTRY_INFO!$F66)) -> 108268 | F66: 173229 | G66: =IF(AND(INTRO!$E$37="Non endémique",INTRO!$E$41="Non endémique"),0,COUNTRY_INFO!P66) -> 0 | H66: =IF(AND(INTRO!$E$37="Non endémique",INTRO!$E$41="Non endémique"),0,COUNTRY_INFO!R66) -> 0 | I66: =IF(INTRO!$E$39="Non endémique",IF($G66=1,DEC!I66,0),IF($G66=1,IVM!G66,0)) -> 0 | K66: =IF($J66="ALB", IF(INTRO!$E$39="Non endémique",IF($H66<>0,$D66*($H66-$G66),0),$D66*$H66), 0) -> 0 | L66: 0 | N66: 0 | O66: =IF($J66="MBD", IF(INTRO!$E$39="Non endémique",IF($H66<>0,$D66*($H66-$G66),0),$D66*$H66),0) -> 0 | P66: 0 | R66: 0 | T66: 0 | U66: 0 | W66: 0 | X66: 0 | Z66: 0 | AA66: 0
A67: =IF(AND(INTRO!$E$37="Non endémique",INTRO!$E$41="Non endémique")," ",IF(COUNTRY_INFO!A67=0," ",COUNTRY_INFO!A67)) -> Niger | B67: =IF(AND(INTRO!$E$37="Non endémique",INTRO!$E$41="Non endémique")," ",IF(COUNTRY_INFO!B67=0," ",COUNTRY_INFO!B67)) -> Zinder | C67: =IF(AND(INTRO!$E$37="Non endémique",INTRO!$E$41="Non endémique")," ",IF(COUNTRY_INFO!C67=0," ",COUNTRY_INFO!C67)) -> Dungass | D67: =IF(AND(INTRO!$E$37="Non endémique",INTRO!$E$41="Non endémique"),0,IF(AND(OR(COUNTRY_INFO!$H67=0,COUNTRY_INFO!$H67=4,COUNTRY_INFO!$H67=99),OR(COUNTRY_INFO!$J67=0,COUNTRY_INFO!$J67=4)),0,COUNTRY_INFO!$E67)) -> 95317 | E67: =IF(AND(INTRO!$E$37="Non endémique",INTRO!$E$41="Non endémique"),0,IF(AND(OR(COUNTRY_INFO!$H67=0,COUNTRY_INFO!$H67=4,COUNTRY_INFO!$H67=99),OR(COUNTRY_INFO!$J67=0,COUNTRY_INFO!$J67=4)),0,COUNTRY_INFO!$F67)) -> 158861 | F67: 254178 | G67: =IF(AND(INTRO!$E$37="Non endémique",INTRO!$E$41="Non endémique"),0,COUNTRY_INFO!P67) -> 0 | H67: =IF(AND(INTRO!$E$37="Non endémique",INTRO!$E$41="Non endémique"),0,COUNTRY_INFO!R67) -> 0 | I67: =IF(INTRO!$E$39="Non endémique",IF($G67=1,DEC!I67,0),IF($G67=1,IVM!G67,0)) -> 0 | K67: =IF($J67="ALB", IF(INTRO!$E$39="Non endémique",IF($H67<>0,$D67*($H67-$G67),0),$D67*$H67), 0) -> 0 | L67: 0 | N67: 0 | O67: =IF($J67="MBD", IF(INTRO!$E$39="Non endémique",IF($H67<>0,$D67*($H67-$G67),0),$D67*$H67),0) -> 0 | P67: 0 | R67: 0 | T67: 0 | U67: 0 | W67: 0 | X67: 0 | Z67: 0 | AA67: 0
A68: =IF(AND(INTRO!$E$37="Non endémique",INTRO!$E$41="Non endémique")," ",IF(COUNTRY_INFO!A68=0," ",COUNTRY_INFO!A68)) -> Niger | B68: =IF(AND(INTRO!$E$37="Non endémique",INTRO!$E$41="Non endémique")," ",IF(COUNTRY_INFO!B68=0," ",COUNTRY_INFO!B68)) -> Zinder | C68: =IF(AND(INTRO!$E$37="Non endémique",INTRO!$E$41="Non endémique")," ",IF(COUNTRY_INFO!C68=0," ",COUNTRY_INFO!C68)) -> Gouré | D68: =IF(AND(INTRO!$E$37="Non endémique",INTRO!$E$41="Non endémique"),0,IF(AND(OR(COUNTRY_INFO!$H68=0,COUNTRY_INFO!$H68=4,COUNTRY_INFO!$H68=99),OR(COUNTRY_INFO!$J68=0,COUNTRY_INFO!$J68=4)),0,COUNTRY_INFO!$E68)) -> 88300 | E68: =IF(AND(INTRO!$E$37="Non endémique",INTRO!$E$41="Non endémique"),0,IF(AND(OR(COUNTRY_INFO!$H68=0,COUNTRY_INFO!$H68=4,COUNTRY_INFO!$H68=99),OR(COUNTRY_INFO!$J68=0,COUNTRY_INFO!$J68=4)),0,COUNTRY_INFO!$F68)) -> 147167 | F68: 235467 | G68: =IF(AND(INTRO!$E$37="Non endémique",INTRO!$E$41="Non endémique"),0,COUNTRY_INFO!P68) -> 0 | H68: =IF(AND(INTRO!$E$37="Non endémique",INTRO!$E$41="Non endémique"),0,COUNTRY_INFO!R68) -> 0 | I68: =IF(INTRO!$E$39="Non endémique",IF($G68=1,DEC!I68,0),IF($G68=1,IVM!G68,0)) -> 0 | K68: =IF($J68="ALB", IF(INTRO!$E$39="Non endémique",IF($H68<>0,$D68*($H68-$G68),0),$D68*$H68), 0) -> 0 | L68: 0 | N68: 0 | O68: =IF($J68="MBD", IF(INTRO!$E$39="Non endémique",IF($H68<>0,$D68*($H68-$G68),0),$D68*$H68),0) -> 0 | P68: 0 | R68: 0 | T68: 0 | U68: 0 | W68: 0 | X68: 0 | Z68: 0 | AA68: 0
